Workbook

Sheet CHECKLIST
A1: Manager Checklist
B3: STATUS BAR: shows % of steps below completed
B4: =COUNTIF(C7:C25,TRUE)/COUNTA(C7:C25) -> 0
A6: Tab | B6: Checklist | C6: Status: click the checkbox when the step is complete
A7: Discussion Items | B7: Entered any items you'd like to discuss during the budget meeting. | C7: FALSE
A8: Capital Exp | B8: Entered capital projects and filled in ALL the columns for each project. | C8: FALSE
A9: Summary NOI Report | B9: Reviewed large variance and entered comments | C9: FALSE
A10: Occupancy Budget | B10: Reviewed and updated if necessary Market Rent, Avg Actual Rent, GPR, & Trend % | C10: FALSE
A11: Occupancy Budget | B11: Reviewed and updated if necessary Renewal Increase % | C11: FALSE
A12: Occupancy Budget | B12: Reviewed and commented on Replacement Rent Increase % | C12: FALSE
A13: Occupancy Budget | B13: Reviewed and updated if necessary Occupancy % | C13: FALSE
A14: Separate Payroll Workbook | B14: Reviewed and updated if necessary Employees & Rates | C14: FALSE
A15: Payroll | B15: Reviewed and updated if necessary the payroll bonuses at the bottom of the tab | C15: FALSE
A16: Make Ready | B16: Reviewed and updated if necessary Actual renos during the period 08/23-07/24 | C16: FALSE
A17: Make Ready | B17: Reviewed and updated if necessary the per unit make ready cost by category & entered an explanation if so. | C17: FALSE
A18: Make Ready | B18: Reviewed and updated if necessary the make ready capital items section including the amenity charge | C18: FALSE
A19: Renovations | B19: Reviewed and updated if necessary cost per reno including the amenity charge | C19: FALSE
A20: Income Statement | B20: Reviewed and updated if necessary any line items & entered an explanation if so. | C20: FALSE
A21: Income Statement | B21: Entered contract amounts in the override budget column. | C21: FALSE
A22: Notes | B22: Entered any details related to the contract amounts on the income statement tab | C22: FALSE
A23: Marketing | B23: Reviewed and updated if necessary | C23: FALSE
A24: Advertising | B24: Reviewed and updated if necessary | C24: FALSE
A25: Software | B25: Reviewed and updated if necessary | C25: FALSE

Sheet Discussion Items
A1: Willow Bend
A3: Managers : Come to the corporate budget meeting with your 3 best discussion items!
A4: YOU MUST INPUT ALL ORANGE HIGHLIGHTED CELLS!
J5: Was NOI idea reflected in the 2025 Budget? (Yes or No)
A6: 1
A11: 2
A16: 3

Sheet Capital Exp
A1: Capital Expenses
C2: Please fill out all columns!
A3: Description | B3: # of units | C3: Price per unit | D3: Est. Amount | E3: Expense Category (see list below for options) | F3: Proposal or Guesstimate or Other? | G3: Reason for Expense | H3: Vendor | I3: G/L Account | J3: Priority (High, Med, Low)
A4: Renovations | B4: =Renovations!D7 -> 2 | C4: =SUM(Renovations!D10:D21) -> 22950 | D4: =SUM(Renovations!F10:F21) -> 45900 | F4: guesstimate | G4: Unit renovations | H4: N/A | I4: 60147
A5: Make Ready Plank Flooring | B5: ='Make Ready'!D28 -> 1.768181818 | C5: ='Make Ready'!C28 -> 2200 | D5: ='Make Ready'!F28 -> 3890 | F5: guesstimate | G5: Unit Upgrade | H5: N/A | I5: 60102
A6: Make Ready Countertop | B6: ='Make Ready'!D29 -> 1.178787879 | C6: ='Make Ready'!C29 -> 1200 | D6: ='Make Ready'!F29 -> 1414.545455 | F6: guesstimate | G6: Unit Upgrade | H6: N/A | I6: 60102
A7: Make Ready Appliance Package | B7: ='Make Ready'!D30 -> 0 | C7: ='Make Ready'!C30 -> 0 | D7: ='Make Ready'!F30 -> 0 | F7: guesstimate | G7: Unit Upgrade | H7: N/A | I7: 60102
A8: SUBTOTAL Make Ready & Renos | D8: =SUM(D4:D7) -> 51204.54545
A10: Enter capital projects below
A12: Irrigation (if not done in 2024) | D12: 12000 | E12: Landscaping | F12: Proposal | G12: Approved in 2024 however not completed, save man hours for watering | I12: 60131 | J12: High
A13: Hallway Painting | D13: 10000 | E13: Common Area | F13: Guesstimate | G13: Ongoing upkeep in hallways-railings, touch ups | I13: 60109 | J13: Medium
A20: SUBTOTAL Capital Projects | D20: =SUM(D11:D19) -> 22000
A21: TOTAL ALL Capital Projects | D21: =SUM(D20+D8) -> 73204.54545
E30: Full Bath Reno | F30: 60103
E31: Full Kitchen Reno | F31: 60104
E32: Boilers/HVAC | F32: 60105
E33: Carpeting-common area | F33: 60106
E34: Common Area Upgrade | F34: 60109
E35: Doors and Door Hardware | F35: 60112
E36: Electricial Upgrades | F36: 60113
E37: Elevator Upgrades | F37: 60114
E38: Equipment Purchases | F38: 60116
E39: Exterior Upgrade | F39: 60117
E40: Fire Protection | F40: 60120
E41: Fit Out-Commercial | F41: 60122
E42: Landscaping & Fencing | F42: 60131
E43: Light Fixtures | F43: 60132
E44: Masonary Repairs/Restoration | F44: 60136
E45: Paving & Concrete | F45: 60142
E46: Rehab of Apts - (All Costs) | F46: 60147
E47: Roofing | F47: 60148
E48: Security Upgrades | F48: 60149
E49: Signs | F49: 60150
E50: Structural Repairs | F50: 60155
E51: Utility Upgrade | F51: 60157
E52: Technology/Software Upgrades | F52: 60160
E53: Window Replacements | F53: 60162
E54: Green Funding Projects | F54: 60172

Sheet Summary NOI Report
A1: All Residential Properties (.allresd)
A2: Budget Season Report - Enter end of year date
A3: Period: Dec 2024
A4: Book = Accrual ; Tree = summary_noi
C5: 2025 Budget | D5: 2024 Budget | E5: T12 (Aug 23-Jul 24) Actual | F5: 2024 Est/Act | G5: Variance $ 2025 Bud vs 2024 Act/Bud | H5: Variance % 2025 Bud vs 2024 Act/Bud | I5: Comments
A6: 39999 | B6: OPERATING INCOME | F6: Actuals through Oct and Budget Nov/Dec
A7: 40001 | B7: Market Rent | C7: =Methodology!D4 -> 1100088 | D7: =VLOOKUP($B7,'Summary NOI Report Support'!$B:$H,3,FALSE) -> 1048608 | E7: =VLOOKUP($B7,'Summary NOI Report Support'!$B:$H,4,FALSE) -> 1054200 | F7: =VLOOKUP($B7,'Summary NOI Report Support'!$B:$H,5,FALSE) -> 1054248 | G7: =C7-F7 -> 45840 | H7: =G7/F7 -> 0.04348123022
A8: 40002 | B8: Rental Income | C8: =Methodology!D5 -> 0 | D8: =IFERROR(VLOOKUP($B8,'Summary NOI Report Support'!$B:$H,3,FALSE),0) -> 0 | E8: =IFERROR(VLOOKUP($B8,'Summary NOI Report Support'!$B:$H,4,FALSE),0) -> 0 | F8: =IFERROR(VLOOKUP($B8,'Summary NOI Report Support'!$B:$H,5,FALSE),0) -> 0 | G8: =C8-F8 -> 0 | H8: =G8/F8 -> 
A9: 40003 | B9: Loss to Lease | C9: =Methodology!D51 -> -19560.85383 | D9: =VLOOKUP($B9,'Summary NOI Report Support'!$B:$H,3,FALSE) -> 12875.56 | E9: =VLOOKUP($B9,'Summary NOI Report Support'!$B:$H,4,FALSE) -> -15023 | F9: =VLOOKUP($B9,'Summary NOI Report Support'!$B:$H,5,FALSE) -> -7109.18 | G9: -12451.67383 | H9: 1.751492272
B10: GPR | C10: =SUM(C7:C9) -> 1080527.146 | D10: =SUM(D7:D9) -> 1061483.56 | E10: 1039177 | F10: 1047138.82 | G10: =C10-F10 -> 33388.32617 | H10: =G10/F10 -> 0.03188529117 | I10: =+'Occupancy Budget'!E10 -> 0.04683736012
A11: 40004 | B11: Vacancy | C11: =Methodology!D52 -> -58671.36 | D11: =VLOOKUP($B11,'Summary NOI Report Support'!$B:$H,3,FALSE) -> -58547.28 | E11: =VLOOKUP($B11,'Summary NOI Report Support'!$B:$H,4,FALSE) -> -55555 | F11: =VLOOKUP($B11,'Summary NOI Report Support'!$B:$H,5,FALSE) -> -55607.5 | G11: -3063.86 | H11: 0.0550979634 | I11: =+'Occupancy Budget'!O18 -> 94.66666667
A12: 40340 | B12: Down Units | C12: =Methodology!D3 ->  | D12: =VLOOKUP($B12,'Summary NOI Report Support'!$B:$H,3,FALSE) ->  | E12: =VLOOKUP($B12,'Summary NOI Report Support'!$B:$H,4,FALSE) ->  | F12: =VLOOKUP($B12,'Summary NOI Report Support'!$B:$H,5,FALSE) -> 
A13: 40007 | B13: Commercial Space Income | C13: =Methodology!D184 ->  | D13: =VLOOKUP($B13,'Summary NOI Report Support'!$B:$H,3,FALSE) ->  | E13: =VLOOKUP($B13,'Summary NOI Report Support'!$B:$H,4,FALSE) ->  | F13: =VLOOKUP($B13,'Summary NOI Report Support'!$B:$H,5,FALSE) -> 
A14: 40009 | B14: Roof Rent Inc | C14: =Methodology!D183 ->  | D14: =VLOOKUP($B14,'Summary NOI Report Support'!$B:$H,3,FALSE) ->  | E14: =VLOOKUP($B14,'Summary NOI Report Support'!$B:$H,4,FALSE) ->  | F14: =VLOOKUP($B14,'Summary NOI Report Support'!$B:$H,5,FALSE) -> 
A15: 40053 | B15: Laundry/Vend Inc | C15: =Methodology!D328 -> 10745.26 | D15: =VLOOKUP($B15,'Summary NOI Report Support'!$B:$H,3,FALSE) -> 9900 | E15: =VLOOKUP($B15,'Summary NOI Report Support'!$B:$H,4,FALSE) -> 10526 | F15: =VLOOKUP($B15,'Summary NOI Report Support'!$B:$H,5,FALSE) -> 11255.93 | G15: =C15-F15 -> -510.67 | H15: -0.0453689744
B16: Non-Inc Units | C16: =SUM(Methodology!D185:D193) -> -14595.09 | D16: =VLOOKUP($B16,'Summary NOI Report Support'!$B:$H,3,FALSE) -> -16788 | E16: =VLOOKUP($B16,'Summary NOI Report Support'!$B:$H,4,FALSE) -> -10019.88 | F16: =VLOOKUP($B16,'Summary NOI Report Support'!$B:$H,5,FALSE) -> -10994.49 | G16: -3600.6 | H16: 0.3274913161
B17: Concessions | C17: =SUM(Methodology!D247:D256) -> -1848.8499 | D17: =VLOOKUP($B17,'Summary NOI Report Support'!$B:$H,3,FALSE) -> -2852.04 | E17: =VLOOKUP($B17,'Summary NOI Report Support'!$B:$H,4,FALSE) -> -1849.9 | F17: =VLOOKUP($B17,'Summary NOI Report Support'!$B:$H,5,FALSE) -> -2183.94 | G17: 335.0901 | H17: -0.1534337482
B18: Bad Debts | C18: =SUM(Methodology!D332:D334) -> -43558.03 | D18: =VLOOKUP($B18,'Summary NOI Report Support'!$B:$H,3,FALSE) -> -53909 | E18: =VLOOKUP($B18,'Summary NOI Report Support'!$B:$H,4,FALSE) -> -41847.32 | F18: =VLOOKUP($B18,'Summary NOI Report Support'!$B:$H,5,FALSE) -> -40260.13 | G18: -3297.9 | H18: 0.08191478766 | I18: =-C18/(C10+C11) -> 0.04262639659 | J18: 73% or $37k of the T12 was due to 3 residents.
B19: Misc Inc & Fees | C19: =SUM(Methodology!D258:D275)+SUM(Methodology!D277:D326) -> 39304.8001 | D19: =VLOOKUP($B19,'Summary NOI Report Support'!$B:$H,3,FALSE) -> 33036.96 | E19: =VLOOKUP($B19,'Summary NOI Report Support'!$B:$H,4,FALSE) -> 44430.77 | F19: =VLOOKUP($B19,'Summary NOI Report Support'!$B:$H,5,FALSE) -> 32691.9 | G19: 6612.9001 | H19: 0.2022794668
A20: 49999 | B20: TOTAL OP INCOME | C20: =SUM(C7:C9)+SUM(C11:C19) -> 1011903.876 | D20: =VLOOKUP($B20,'Summary NOI Report Support'!$B:$H,3,FALSE) -> 972324.2 | E20: =VLOOKUP($B20,'Summary NOI Report Support'!$B:$H,4,FALSE) -> 984861.67 | F20: =VLOOKUP($B20,'Summary NOI Report Support'!$B:$H,5,FALSE) -> 982040.59 | G20: 29863.28637 | H20: 0.03040942164
B21: OPERATING EXPENSES | D21: =VLOOKUP($B21,'Summary NOI Report Support'!$B:$H,3,FALSE) -> 0 | E21: =VLOOKUP($B21,'Summary NOI Report Support'!$B:$H,4,FALSE) -> 0 | F21: =VLOOKUP($B21,'Summary NOI Report Support'!$B:$H,5,FALSE) -> 0
A22: 50110 | B22: Electric Exp | C22: =Methodology!D338 -> 8600 | D22: =VLOOKUP($B22,'Summary NOI Report Support'!$B:$H,3,FALSE) -> 7700 | E22: =VLOOKUP($B22,'Summary NOI Report Support'!$B:$H,4,FALSE) -> 8559.06 | F22: =VLOOKUP($B22,'Summary NOI Report Support'!$B:$H,5,FALSE) -> 8148.09 | G22: =F22-C22 -> -451.91 | H22: =G22/F22 -> -0.05546207762 | I22: increased supply rates & removed VCR
A23: 50111 | B23: Electric Inc | C23: =Methodology!D336 -> 0.0001 | D23: =VLOOKUP($B23,'Summary NOI Report Support'!$B:$H,3,FALSE) -> 0 | E23: =VLOOKUP($B23,'Summary NOI Report Support'!$B:$H,4,FALSE) -> -2718.97 | F23: =VLOOKUP($B23,'Summary NOI Report Support'!$B:$H,5,FALSE) -> -2000.13 | G23: =F23-C23 -> -2000.1301 | H23: =G23/F23 -> 1.00000005 | I23: removed VCR
A24: 50120 | B24: Gas Exp | C24: =Methodology!D335 -> 41859.42 | D24: =VLOOKUP($B24,'Summary NOI Report Support'!$B:$H,3,FALSE) -> 37637.77 | E24: =VLOOKUP($B24,'Summary NOI Report Support'!$B:$H,4,FALSE) -> 43330.79 | F24: =VLOOKUP($B24,'Summary NOI Report Support'!$B:$H,5,FALSE) -> 38497.6 | G24: -3361.82 | H24: =G24/F24 -> -0.08732544366 | I24: used T12
A25: 50121 | B25: Gas Inc | C25: =Methodology!D327 -> -41612.54 | D25: =VLOOKUP($B25,'Summary NOI Report Support'!$B:$H,3,FALSE) -> -38155.15 | E25: =VLOOKUP($B25,'Summary NOI Report Support'!$B:$H,4,FALSE) -> -41502.85 | F25: =VLOOKUP($B25,'Summary NOI Report Support'!$B:$H,5,FALSE) -> -40270.24 | G25: 1342.3 | H25: =G25/F25 -> -0.03333230693 | I25: used T12
A26: 50130 | B26: Water & Sewer | C26: =Methodology!D199 -> 31505.45455 | D26: =VLOOKUP($B26,'Summary NOI Report Support'!$B:$H,3,FALSE) -> 32551 | E26: =VLOOKUP($B26,'Summary NOI Report Support'!$B:$H,4,FALSE) -> 40871.49 | F26: =VLOOKUP($B26,'Summary NOI Report Support'!$B:$H,5,FALSE) -> 40459.02 | G26: 8953.565455 | H26: =G26/F26 -> 0.2212996127 | I26: net of passthrough starting in June
A27: 50131 | B27: Water Usage Inc | C27: =Methodology!D329 ->  | D27: =VLOOKUP($B27,'Summary NOI Report Support'!$B:$H,3,FALSE) ->  | E27: =VLOOKUP($B27,'Summary NOI Report Support'!$B:$H,4,FALSE) ->  | F27: =VLOOKUP($B27,'Summary NOI Report Support'!$B:$H,5,FALSE) ->  | H27: =G27/F27 -> 
A28: 50132 | B28: Oil-Fuel | C28: =Methodology!D246 ->  | D28: =VLOOKUP($B28,'Summary NOI Report Support'!$B:$H,3,FALSE) ->  | E28: =VLOOKUP($B28,'Summary NOI Report Support'!$B:$H,4,FALSE) ->  | F28: =VLOOKUP($B28,'Summary NOI Report Support'!$B:$H,5,FALSE) ->  | H28: =G28/F28 -> 
A29: 50140 | B29: Sewer Expense | C29: =Methodology!D339 -> 11007.66 | D29: =VLOOKUP($B29,'Summary NOI Report Support'!$B:$H,3,FALSE) -> 11348.04 | E29: =VLOOKUP($B29,'Summary NOI Report Support'!$B:$H,4,FALSE) -> 11806.97 | F29: =VLOOKUP($B29,'Summary NOI Report Support'!$B:$H,5,FALSE) -> 11572.7 | G29: 565.04 | H29: =G29/F29 -> 0.04882525253
A30: 50141 | B30: Sewer Income | C30: =Methodology!D340 ->  | D30: =VLOOKUP($B30,'Summary NOI Report Support'!$B:$H,3,FALSE) ->  | E30: =VLOOKUP($B30,'Summary NOI Report Support'!$B:$H,4,FALSE) ->  | F30: =VLOOKUP($B30,'Summary NOI Report Support'!$B:$H,5,FALSE) ->  | H30: =G30/F30 -> 
B31: Corp Suite Exp | C31: =SUM(Methodology!D194:D198) -> 0 | D31: =VLOOKUP($B31,'Summary NOI Report Support'!$B:$H,3,FALSE) ->  | E31: =VLOOKUP($B31,'Summary NOI Report Support'!$B:$H,4,FALSE) ->  | F31: =VLOOKUP($B31,'Summary NOI Report Support'!$B:$H,5,FALSE) -> 
B32: Payroll & Benefits | C32: =SUM(Methodology!D7:D50) -> 124102.9915 | D32: =VLOOKUP($B32,'Summary NOI Report Support'!$B:$H,3,FALSE) -> 116941.86 | E32: =VLOOKUP($B32,'Summary NOI Report Support'!$B:$H,4,FALSE) -> 108261.13 | F32: =VLOOKUP($B32,'Summary NOI Report Support'!$B:$H,5,FALSE) -> 108743.28 | G32: =F32-C32 -> -15359.71145 | H32: -0.1412474541 | I32: $2300 due to full bonuses - $1500 due to leasing agent helping at 450 for 2 months - $1500 due to a equity adjustment
A33: 55010 | B33: Real Estate Taxes | C33: =Methodology!D6 -> 65157.89 | D33: =VLOOKUP($B33,'Summary NOI Report Support'!$B:$H,3,FALSE) -> 65157.84 | E33: =VLOOKUP($B33,'Summary NOI Report Support'!$B:$H,4,FALSE) -> 65157.89 | F33: =VLOOKUP($B33,'Summary NOI Report Support'!$B:$H,5,FALSE) -> 65157.84 | G33: -0.05 | H33: -7.673673652e-07 | I33: Based on 2025 Assessment
A34: 55040 | B34: Insurance Exp | C34: =Methodology!D331+Methodology!D330 -> 83185.9648 | D34: =VLOOKUP($B34,'Summary NOI Report Support'!$B:$H,3,FALSE) -> 70622.33 | E34: =VLOOKUP($B34,'Summary NOI Report Support'!$B:$H,4,FALSE) -> 72531.26 | F34: =VLOOKUP($B34,'Summary NOI Report Support'!$B:$H,5,FALSE) -> 70240.25 | G34: -12945.7148 | H34: -0.1843062176 | I34: 10% increase
A35: 55050 | B35: Mgmt Fees | C35: =Methodology!D257 -> 44195.05644 | D35: =VLOOKUP($B35,'Summary NOI Report Support'!$B:$H,3,FALSE) -> 72133.56 | E35: =VLOOKUP($B35,'Summary NOI Report Support'!$B:$H,4,FALSE) -> 73775.83 | F35: =VLOOKUP($B35,'Summary NOI Report Support'!$B:$H,5,FALSE) -> 74286.66 | G35: 30091.60356 | H35: 0.4050741218 | I35: portion below NOI
B36: Supplies | C36: =SUM(Methodology!D200:D245) -> 13891.3008 | D36: =VLOOKUP($B36,'Summary NOI Report Support'!$B:$H,3,FALSE) -> 14303.2 | E36: =VLOOKUP($B36,'Summary NOI Report Support'!$B:$H,4,FALSE) -> 10645.7 | F36: =VLOOKUP($B36,'Summary NOI Report Support'!$B:$H,5,FALSE) -> 11498.4 | G36: -2392.9008 | H36: -0.2081072845 | I36: nothing material
B37: Repairs | C37: =SUM(Methodology!D66:D110) -> 84036.5604 | D37: =VLOOKUP($B37,'Summary NOI Report Support'!$B:$H,3,FALSE) -> 73890.08 | E37: =VLOOKUP($B37,'Summary NOI Report Support'!$B:$H,4,FALSE) -> 87646.44 | F37: =VLOOKUP($B37,'Summary NOI Report Support'!$B:$H,5,FALSE) -> 84338.16 | G37: 301.5996 | H37: 0.003576075172 | I37: nothing material
A38: 56400 | B38: Make Ready | C38: =SUM(Methodology!D53:D64) ->  | D38: =VLOOKUP($B38,'Summary NOI Report Support'!$B:$H,3,FALSE) -> 32415.31 | E38: =VLOOKUP($B38,'Summary NOI Report Support'!$B:$H,4,FALSE) -> 13649.53 | F38: =VLOOKUP($B38,'Summary NOI Report Support'!$B:$H,5,FALSE) -> 15289.7 | I38: 12 units @ $1608
A39: 56445 | B39: Vacant Electric Exp MR | C39: =Methodology!D65 ->  | D39: =VLOOKUP($B39,'Summary NOI Report Support'!$B:$H,3,FALSE) ->  | E39: =VLOOKUP($B39,'Summary NOI Report Support'!$B:$H,4,FALSE) ->  | F39: =VLOOKUP($B39,'Summary NOI Report Support'!$B:$H,5,FALSE) -> 
B40: General & Admin | C40: =SUM(Methodology!D111:D182) -> 60289.4401 | D40: =VLOOKUP($B40,'Summary NOI Report Support'!$B:$H,3,FALSE) -> 58104.08 | E40: =VLOOKUP($B40,'Summary NOI Report Support'!$B:$H,4,FALSE) -> 60562.12 | F40: =VLOOKUP($B40,'Summary NOI Report Support'!$B:$H,5,FALSE) -> 57270.49 | G40: =F40-C40 -> -3018.9501 | H40: -0.05271388633 | I40: MetaTech & Fitech ($2k)
A41: 58999 | B41: TOTAL OP EXPENSE | C41: =SUM(C22:C40) ->  | D41: =VLOOKUP($B41,'Summary NOI Report Support'!$B:$H,3,FALSE) -> 554649.92 | E41: =VLOOKUP($B41,'Summary NOI Report Support'!$B:$H,4,FALSE) -> 552576.39 | F41: =VLOOKUP($B41,'Summary NOI Report Support'!$B:$H,5,FALSE) -> 543231.82 | G41: =F41-C41 -> 
A42: 59999 | B42: NET OPERATING INC | C42: =C20-C41 ->  | D42: =VLOOKUP($B42,'Summary NOI Report Support'!$B:$H,3,FALSE) -> 417674.28 | E42: =VLOOKUP($B42,'Summary NOI Report Support'!$B:$H,4,FALSE) -> 432285.28 | F42: =VLOOKUP($B42,'Summary NOI Report Support'!$B:$H,5,FALSE) -> 438808.77 | G42: =C42-F42 ->  | H42: =G42/F42 -> 
B43: NOI without RE Tax & Insurance | C43: =+C42+C33+C34 ->  | F43: =+F42+F33+F34 -> 574206.86 | G43: =+C43-F43 ->  | H43: =G43/F43 -> 
B44: NOI including excess mgmt fees | C44: =+C42-C49 ->  | F44: =+F42 -> 438808.77 | G44: =+C44-F44 ->  | H44: =G44/F44 -> 
B45: Capital Expenses | C45: =+'Capital Exp'!D21 -> 73204.54545
B46: Debt Service (Principal & Interest) | C46: 306832.08
B47: Distributions & Professional Fees | C47: =16000*4 -> 64000 | D47: Quarterly
B48: Donations, Exec Payroll, Taxes, Interco Int. | C48: 15455.23
B49: Excess Mgmt Fee | C49: =+Methodology!P262*(VLOOKUP('Occupancy Budget'!A1,'Mgmt Fees'!B:D,3,FALSE)) -> 33146.29233
B50: 2024 Cash Flow | C50: =+C42-C45-C46-C47-C48-C49 -> 
B52: Funds in Wells Fargo | C52: 215000

Sheet Methodology (hidden)
A2: Acc # | B2: Account Name | D2: Budgeted Amount with Override | E2: T12 (Aug 19 to Jul 20) | F2: METHODOLOGY | G2: PERIOD/TERM | H2: Acc # | I2: Headers & Footers | J2: Acct
A3: 40340 | B3: Down Units | C3: 1 | D3: =IF(ISERROR(VLOOKUP(A3,'Income Statement'!A:Y,25,FALSE)),"",(VLOOKUP(A3,'Income Statement'!A:Y,25,FALSE))) ->  | F3: T12 | G3: Straight Line
A4: 40001 | B4: Market Rent | C4: 192 | D4: =VLOOKUP(A4,'Occupancy Budget'!$A$34:$F$36,6,FALSE) -> 1100088 | E4: =VLOOKUP(B4,'Occupancy Budget'!$A$34:$F$36,6,FALSE) ->  | F4: Schedule | G4: Schedule | H4: 39999 | I4: INCOME | J4: Head
A5: 40002 | B5: Rental Income | C5: 255 | D5: =IF(ISERROR(VLOOKUP(A5,'Income Statement'!A:Y,25,FALSE)),"",(VLOOKUP(A5,'Income Statement'!A:Y,25,FALSE))) -> 0 | E5: =IF(ISERROR(VLOOKUP(A5,'Income Statement'!A:Y,15,FALSE)),"",(VLOOKUP(A5,'Income Statement'!A:Y,15,FALSE))) -> 0 | F5: DNU | G5: DNU | H5: 40000 | I5: RENTAL INCOME | J5: Head
A6: 55010 | B6: Real estate taxes | C6: 24704 | D6: =IF(ISERROR(VLOOKUP(A6,'Income Statement'!A:Y,25,FALSE)),"",(VLOOKUP(A6,'Income Statement'!A:Y,25,FALSE))) -> 65157.89 | E6: =IF(ISERROR(VLOOKUP(A6,'Income Statement'!A:Y,15,FALSE)),"",(VLOOKUP(A6,'Income Statement'!A:Y,15,FALSE))) -> 65157.89 | F6: 3% Increase | G6: Straight Line
A7: 51201 | B7: Executive Management | C7: 36799 | D7: =IF(ISERROR(VLOOKUP(A7,Payroll!A:F,6,FALSE)),"",(VLOOKUP(A7,Payroll!A:F,6,FALSE))) ->  | E7: =IF(ISERROR(VLOOKUP(A7,'Income Statement'!A:Y,15,FALSE)),"",(VLOOKUP(A7,'Income Statement'!A:Y,15,FALSE))) -> 0 | F7: DNU | G7: DNU
A8: 51202 | B8: Community Managers | C8: 36799 | D8: =IF(ISERROR(VLOOKUP(A8,Payroll!A:F,6,FALSE)),"",(VLOOKUP(A8,Payroll!A:F,6,FALSE))) -> 18733.07853 | E8: =IF(ISERROR(VLOOKUP(A8,'Income Statement'!A:Y,15,FALSE)),"",(VLOOKUP(A8,'Income Statement'!A:Y,15,FALSE))) -> 13585.08 | F8: Schedule | G8: Schedule
A9: 51203 | B9: Office Payroll | C9: 36799 | D9: =IF(ISERROR(VLOOKUP(A9,Payroll!A:F,6,FALSE)),"",(VLOOKUP(A9,Payroll!A:F,6,FALSE))) -> 2502.78 | E9: =IF(ISERROR(VLOOKUP(A9,'Income Statement'!A:Y,15,FALSE)),"",(VLOOKUP(A9,'Income Statement'!A:Y,15,FALSE))) -> 0 | F9: Schedule | G9: Schedule
A10: 51204 | B10: Assistant Managers | C10: 36799 | D10: =IF(ISERROR(VLOOKUP(A10,Payroll!A:F,6,FALSE)),"",(VLOOKUP(A10,Payroll!A:F,6,FALSE))) -> 13453.02076 | E10: =IF(ISERROR(VLOOKUP(A10,'Income Statement'!A:Y,15,FALSE)),"",(VLOOKUP(A10,'Income Statement'!A:Y,15,FALSE))) -> 12123.28 | F10: Schedule | G10: Schedule
A11: 51205 | B11: Resident Services | C11: 36799 | D11: =IF(ISERROR(VLOOKUP(A11,Payroll!A:F,6,FALSE)),"",(VLOOKUP(A11,Payroll!A:F,6,FALSE))) -> 10620.80586 | E11: =IF(ISERROR(VLOOKUP(A11,'Income Statement'!A:Y,15,FALSE)),"",(VLOOKUP(A11,'Income Statement'!A:Y,15,FALSE))) -> 7215.41 | F11: Schedule | G11: Schedule
A12: 51206 | B12: Reception/Front Desk | C12: 36799 | D12: =IF(ISERROR(VLOOKUP(A12,Payroll!A:F,6,FALSE)),"",(VLOOKUP(A12,Payroll!A:F,6,FALSE))) -> 0 | E12: =IF(ISERROR(VLOOKUP(A12,'Income Statement'!A:Y,15,FALSE)),"",(VLOOKUP(A12,'Income Statement'!A:Y,15,FALSE))) ->  | F12: Schedule | G12: Schedule
A13: 51207 | B13: Doorman | C13: 36799 | D13: =IF(ISERROR(VLOOKUP(A13,Payroll!A:F,6,FALSE)),"",(VLOOKUP(A13,Payroll!A:F,6,FALSE))) ->  | E13: =IF(ISERROR(VLOOKUP(A13,'Income Statement'!A:Y,15,FALSE)),"",(VLOOKUP(A13,'Income Statement'!A:Y,15,FALSE))) ->  | F13: Schedule | G13: Schedule
A14: 51208 | B14: Regional Manager | C14: 36799 | D14: =IF(ISERROR(VLOOKUP(A14,Payroll!A:F,6,FALSE)),"",(VLOOKUP(A14,Payroll!A:F,6,FALSE))) ->  | E14: =IF(ISERROR(VLOOKUP(A14,'Income Statement'!A:Y,15,FALSE)),"",(VLOOKUP(A14,'Income Statement'!A:Y,15,FALSE))) ->  | F14: Schedule | G14: Schedule
A15: 51209 | B15: Maint-Manager | C15: 36799 | D15: =IF(ISERROR(VLOOKUP(A15,Payroll!A:F,6,FALSE)),"",(VLOOKUP(A15,Payroll!A:F,6,FALSE))) -> 0 | E15: =IF(ISERROR(VLOOKUP(A15,'Income Statement'!A:Y,15,FALSE)),"",(VLOOKUP(A15,'Income Statement'!A:Y,15,FALSE))) -> 0 | F15: Schedule | G15: Schedule
A16: 51210 | B16: Maint-Superintendant | C16: 36799 | D16: =IF(ISERROR(VLOOKUP(A16,Payroll!A:F,6,FALSE)),"",(VLOOKUP(A16,Payroll!A:F,6,FALSE))) -> 13486.7376 | E16: =IF(ISERROR(VLOOKUP(A16,'Income Statement'!A:Y,15,FALSE)),"",(VLOOKUP(A16,'Income Statement'!A:Y,15,FALSE))) -> 12422.36 | F16: Schedule | G16: Schedule
A17: 51211 | B17: Maint-Staff | C17: 36799 | D17: =IF(ISERROR(VLOOKUP(A17,Payroll!A:F,6,FALSE)),"",(VLOOKUP(A17,Payroll!A:F,6,FALSE))) -> 33750.56084 | E17: =IF(ISERROR(VLOOKUP(A17,'Income Statement'!A:Y,15,FALSE)),"",(VLOOKUP(A17,'Income Statement'!A:Y,15,FALSE))) -> 32102.63 | F17: Schedule | G17: Schedule
A18: 51212 | B18: Maintenance Technician | C18: 36799 | D18: =IF(ISERROR(VLOOKUP(A18,Payroll!A:F,6,FALSE)),"",(VLOOKUP(A18,Payroll!A:F,6,FALSE))) ->  | E18: =IF(ISERROR(VLOOKUP(A18,'Income Statement'!A:Y,15,FALSE)),"",(VLOOKUP(A18,'Income Statement'!A:Y,15,FALSE))) ->  | F18: DNU | G18: DNU
A19: 51213 | B19: Janitorial | C19: 36799 | D19: =IF(ISERROR(VLOOKUP(A19,Payroll!A:F,6,FALSE)),"",(VLOOKUP(A19,Payroll!A:F,6,FALSE))) -> 0 | E19: =IF(ISERROR(VLOOKUP(A19,'Income Statement'!A:Y,15,FALSE)),"",(VLOOKUP(A19,'Income Statement'!A:Y,15,FALSE))) ->  | F19: Schedule | G19: Schedule
A20: 51214 | B20: Housekeeping | C20: 36799 | D20: =IF(ISERROR(VLOOKUP(A20,Payroll!A:F,6,FALSE)),"",(VLOOKUP(A20,Payroll!A:F,6,FALSE))) ->  | E20: =IF(ISERROR(VLOOKUP(A20,'Income Statement'!A:Y,15,FALSE)),"",(VLOOKUP(A20,'Income Statement'!A:Y,15,FALSE))) ->  | F20: Schedule | G20: Schedule
A21: 51215 | B21: Groundskeeping | C21: 36799 | D21: =IF(ISERROR(VLOOKUP(A21,Payroll!A:F,6,FALSE)),"",(VLOOKUP(A21,Payroll!A:F,6,FALSE))) -> 0 | E21: =IF(ISERROR(VLOOKUP(A21,'Income Statement'!A:Y,15,FALSE)),"",(VLOOKUP(A21,'Income Statement'!A:Y,15,FALSE))) ->  | F21: Schedule | G21: Schedule
A22: 51216 | B22: Labor/Mover | C22: 36799 | D22: =IF(ISERROR(VLOOKUP(A22,Payroll!A:F,6,FALSE)),"",(VLOOKUP(A22,Payroll!A:F,6,FALSE))) ->  | E22: =IF(ISERROR(VLOOKUP(A22,'Income Statement'!A:Y,15,FALSE)),"",(VLOOKUP(A22,'Income Statement'!A:Y,15,FALSE))) ->  | F22: DNU | G22: DNU
A23: 51217 | B23: Club Attendant | C23: 36799 | D23: =IF(ISERROR(VLOOKUP(A23,Payroll!A:F,6,FALSE)),"",(VLOOKUP(A23,Payroll!A:F,6,FALSE))) ->  | E23: =IF(ISERROR(VLOOKUP(A23,'Income Statement'!A:Y,15,FALSE)),"",(VLOOKUP(A23,'Income Statement'!A:Y,15,FALSE))) ->  | F23: DNU | G23: DNU
A24: 51218 | B24: Golf Course - Supt | C24: 36799 | D24: =IF(ISERROR(VLOOKUP(A24,Payroll!A:F,6,FALSE)),"",(VLOOKUP(A24,Payroll!A:F,6,FALSE))) ->  | E24: =IF(ISERROR(VLOOKUP(A24,'Income Statement'!A:Y,15,FALSE)),"",(VLOOKUP(A24,'Income Statement'!A:Y,15,FALSE))) ->  | F24: DNU | G24: DNU
A25: 51219 | B25: Golf Course-Grndskp | C25: 36799 | D25: =IF(ISERROR(VLOOKUP(A25,Payroll!A:F,6,FALSE)),"",(VLOOKUP(A25,Payroll!A:F,6,FALSE))) ->  | E25: =IF(ISERROR(VLOOKUP(A25,'Income Statement'!A:Y,15,FALSE)),"",(VLOOKUP(A25,'Income Statement'!A:Y,15,FALSE))) ->  | F25: DNU | G25: DNU
A26: 51220 | B26: Golf Course-Sporting Club Manager | C26: 36799 | D26: =IF(ISERROR(VLOOKUP(A26,Payroll!A:F,6,FALSE)),"",(VLOOKUP(A26,Payroll!A:F,6,FALSE))) ->  | E26: =IF(ISERROR(VLOOKUP(A26,'Income Statement'!A:Y,15,FALSE)),"",(VLOOKUP(A26,'Income Statement'!A:Y,15,FALSE))) ->  | F26: DNU | G26: DNU
A27: 51228 | B27: Fire | C27: 36799 | D27: =IF(ISERROR(VLOOKUP(A27,Payroll!A:F,6,FALSE)),"",(VLOOKUP(A27,Payroll!A:F,6,FALSE))) ->  | E27: =IF(ISERROR(VLOOKUP(A27,'Income Statement'!A:Y,15,FALSE)),"",(VLOOKUP(A27,'Income Statement'!A:Y,15,FALSE))) ->  | F27: DNU | G27: DNU
A28: 51233 | B28: Food & Beverage Servers | C28: 36799 | D28: =IF(ISERROR(VLOOKUP(A28,Payroll!A:F,6,FALSE)),"",(VLOOKUP(A28,Payroll!A:F,6,FALSE))) ->  | E28: =IF(ISERROR(VLOOKUP(A28,'Income Statement'!A:Y,15,FALSE)),"",(VLOOKUP(A28,'Income Statement'!A:Y,15,FALSE))) ->  | F28: DNU | G28: DNU
A29: 51250 | B29: Activities-Supervisor | C29: 36799 | D29: =IF(ISERROR(VLOOKUP(A29,Payroll!A:F,6,FALSE)),"",(VLOOKUP(A29,Payroll!A:F,6,FALSE))) ->  | E29: =IF(ISERROR(VLOOKUP(A29,'Income Statement'!A:Y,15,FALSE)),"",(VLOOKUP(A29,'Income Statement'!A:Y,15,FALSE))) ->  | F29: Schedule | G29: Schedule
A30: 51251 | B30: Activities-staff | C30: 36799 | D30: =IF(ISERROR(VLOOKUP(A30,Payroll!A:F,6,FALSE)),"",(VLOOKUP(A30,Payroll!A:F,6,FALSE))) ->  | E30: =IF(ISERROR(VLOOKUP(A30,'Income Statement'!A:Y,15,FALSE)),"",(VLOOKUP(A30,'Income Statement'!A:Y,15,FALSE))) ->  | F30: DNU | G30: DNU
A31: 51260 | B31: Driver/Porter | C31: 36799 | D31: =IF(ISERROR(VLOOKUP(A31,Payroll!A:F,6,FALSE)),"",(VLOOKUP(A31,Payroll!A:F,6,FALSE))) ->  | E31: =IF(ISERROR(VLOOKUP(A31,'Income Statement'!A:Y,15,FALSE)),"",(VLOOKUP(A31,'Income Statement'!A:Y,15,FALSE))) ->  | F31: Schedule | G31: Schedule
A32: 51270 | B32: Payroll Bonuses | C32: 36799 | D32: =IF(ISERROR(VLOOKUP(A32,Payroll!A:F,6,FALSE)),"",(VLOOKUP(A32,Payroll!A:F,6,FALSE))) -> 5130 | E32: =IF(ISERROR(VLOOKUP(A32,'Income Statement'!A:Y,15,FALSE)),"",(VLOOKUP(A32,'Income Statement'!A:Y,15,FALSE))) -> 1966.37 | F32: Schedule | G32: Schedule
A33: 51406 | B33: Contractor Reception/FrontDesk | C33: 36799 | D33: =IF(ISERROR(VLOOKUP(A33,Payroll!A:F,6,FALSE)),"",(VLOOKUP(A33,Payroll!A:F,6,FALSE))) ->  | E33: =IF(ISERROR(VLOOKUP(A33,'Income Statement'!A:Y,15,FALSE)),"",(VLOOKUP(A33,'Income Statement'!A:Y,15,FALSE))) ->  | F33: Schedule | G33: Schedule
A34: 51450 | B34: Temp Help | C34: 36799 | D34: =IF(ISERROR(VLOOKUP(A34,Payroll!A:F,6,FALSE)),"",(VLOOKUP(A34,Payroll!A:F,6,FALSE))) ->  | E34: =IF(ISERROR(VLOOKUP(A34,'Income Statement'!A:Y,15,FALSE)),"",(VLOOKUP(A34,'Income Statement'!A:Y,15,FALSE))) -> 1941.66 | F34: Schedule | G34: Schedule
A35: 51525 | B35: Payroll (Other Enities) | C35: 36799 | D35: =IF(ISERROR(VLOOKUP(A35,Payroll!A:F,6,FALSE)),"",(VLOOKUP(A35,Payroll!A:F,6,FALSE))) ->  | E35: =IF(ISERROR(VLOOKUP(A35,'Income Statement'!A:Y,15,FALSE)),"",(VLOOKUP(A35,'Income Statement'!A:Y,15,FALSE))) ->  | F35: Schedule | G35: Schedule
A36: 51530 | B36: Payroll Taxes-Employer | C36: 36799 | D36: =IF(ISERROR(VLOOKUP(A36,Payroll!A:F,6,FALSE)),"",(VLOOKUP(A36,Payroll!A:F,6,FALSE))) -> 9767.698359 | E36: =IF(ISERROR(VLOOKUP(A36,'Income Statement'!A:Y,15,FALSE)),"",(VLOOKUP(A36,'Income Statement'!A:Y,15,FALSE))) -> 6570.47 | F36: Schedule | G36: Schedule
A37: 51531 | B37: 401k Match Co. Exp | C37: 36799 | D37: =IF(ISERROR(VLOOKUP(A37,Payroll!A:F,6,FALSE)),"",(VLOOKUP(A37,Payroll!A:F,6,FALSE))) -> 2930.309508 | E37: =IF(ISERROR(VLOOKUP(A37,'Income Statement'!A:Y,15,FALSE)),"",(VLOOKUP(A37,'Income Statement'!A:Y,15,FALSE))) -> 2437.35 | F37: Schedule | G37: Schedule
A38: 51538 | B38: W/C (Subcontractors) | C38: 36799 | D38: =IF(ISERROR(VLOOKUP(A38,Payroll!A:F,6,FALSE)),"",(VLOOKUP(A38,Payroll!A:F,6,FALSE))) ->  | E38: =IF(ISERROR(VLOOKUP(A38,'Income Statement'!A:Y,15,FALSE)),"",(VLOOKUP(A38,'Income Statement'!A:Y,15,FALSE))) ->  | F38: Schedule | G38: Schedule
A39: 51540 | B39: Workers Compensation Ins | C39: 36799 | D39: =IF(ISERROR(VLOOKUP(A39,Payroll!A:F,6,FALSE)),"",(VLOOKUP(A39,Payroll!A:F,6,FALSE))) -> 864 | E39: =IF(ISERROR(VLOOKUP(A39,'Income Statement'!A:Y,15,FALSE)),"",(VLOOKUP(A39,'Income Statement'!A:Y,15,FALSE))) -> 1527.49 | F39: Schedule | G39: Schedule
A40: 51550 | B40: UnEmployment Expense | C40: 36799 | D40: =IF(ISERROR(VLOOKUP(A40,Payroll!A:F,6,FALSE)),"",(VLOOKUP(A40,Payroll!A:F,6,FALSE))) ->  | E40: =IF(ISERROR(VLOOKUP(A40,'Income Statement'!A:Y,15,FALSE)),"",(VLOOKUP(A40,'Income Statement'!A:Y,15,FALSE))) ->  | F40: Schedule | G40: Schedule
A41: 51560 | B41: Health & Dental Ins Benefits | C41: 36799 | D41: =IF(ISERROR(VLOOKUP(A41,Payroll!A:F,6,FALSE)),"",(VLOOKUP(A41,Payroll!A:F,6,FALSE))) -> 12864 | E41: =IF(ISERROR(VLOOKUP(A41,'Income Statement'!A:Y,15,FALSE)),"",(VLOOKUP(A41,'Income Statement'!A:Y,15,FALSE))) -> 15216.66 | F41: Schedule | G41: Schedule
A42: 51561 | B42: Health Ins-COBRA | C42: 36799 | D42: =IF(ISERROR(VLOOKUP(A42,'Income Statement'!A:Y,25,FALSE)),"",(VLOOKUP(A42,'Income Statement'!A:Y,25,FALSE))) ->  | E42: =IF(ISERROR(VLOOKUP(A42,'Income Statement'!A:Y,15,FALSE)),"",(VLOOKUP(A42,'Income Statement'!A:Y,15,FALSE))) ->  | F42: Schedule | G42: Schedule
A43: 51562 | B43: Disability Insurance Benefits | C43: 36799 | D43: =IF(ISERROR(VLOOKUP(A43,'Income Statement'!A:Y,25,FALSE)),"",(VLOOKUP(A43,'Income Statement'!A:Y,25,FALSE))) ->  | E43: =IF(ISERROR(VLOOKUP(A43,'Income Statement'!A:Y,15,FALSE)),"",(VLOOKUP(A43,'Income Statement'!A:Y,15,FALSE))) ->  | F43: Schedule | G43: Schedule
A44: 51564 | B44: Life Insurance Benefits | C44: 36799 | D44: =IF(ISERROR(VLOOKUP(A44,'Income Statement'!A:Y,25,FALSE)),"",(VLOOKUP(A44,'Income Statement'!A:Y,25,FALSE))) ->  | E44: =IF(ISERROR(VLOOKUP(A44,'Income Statement'!A:Y,15,FALSE)),"",(VLOOKUP(A44,'Income Statement'!A:Y,15,FALSE))) ->  | F44: Schedule | G44: Schedule
A45: 51566 | B45: Other Benefits-Employee | C45: 36799 | D45: =IF(ISERROR(VLOOKUP(A45,'Income Statement'!A:Y,25,FALSE)),"",(VLOOKUP(A45,'Income Statement'!A:Y,25,FALSE))) ->  | E45: =IF(ISERROR(VLOOKUP(A45,'Income Statement'!A:Y,15,FALSE)),"",(VLOOKUP(A45,'Income Statement'!A:Y,15,FALSE))) ->  | F45: Schedule | G45: Schedule
A46: 51568 | B46: Wellness Health Reimb | C46: 36799 | D46: =IF(ISERROR(VLOOKUP(A46,'Income Statement'!A:Y,25,FALSE)),"",(VLOOKUP(A46,'Income Statement'!A:Y,25,FALSE))) ->  | E46: =IF(ISERROR(VLOOKUP(A46,'Income Statement'!A:Y,15,FALSE)),"",(VLOOKUP(A46,'Income Statement'!A:Y,15,FALSE))) ->  | F46: Schedule | G46: Schedule
A47: 51570 | B47: Health Ins Reimburse | C47: 36799 | D47: =IF(ISERROR(VLOOKUP(A47,'Income Statement'!A:Y,25,FALSE)),"",(VLOOKUP(A47,'Income Statement'!A:Y,25,FALSE))) ->  | E47: =IF(ISERROR(VLOOKUP(A47,'Income Statement'!A:Y,15,FALSE)),"",(VLOOKUP(A47,'Income Statement'!A:Y,15,FALSE))) ->  | F47: Schedule | G47: Schedule
A48: 51575 | B48: Payroll Reimbursements | C48: 36799 | D48: =IF(ISERROR(VLOOKUP(A48,'Income Statement'!A:Y,25,FALSE)),"",(VLOOKUP(A48,'Income Statement'!A:Y,25,FALSE))) ->  | E48: =IF(ISERROR(VLOOKUP(A48,'Income Statement'!A:Y,15,FALSE)),"",(VLOOKUP(A48,'Income Statement'!A:Y,15,FALSE))) ->  | F48: Schedule | G48: Schedule
A49: 51581 | B49: Union Health & Welfare | C49: 36799 | D49: =IF(ISERROR(VLOOKUP(A49,'Income Statement'!A:Y,25,FALSE)),"",(VLOOKUP(A49,'Income Statement'!A:Y,25,FALSE))) ->  | E49: =IF(ISERROR(VLOOKUP(A49,'Income Statement'!A:Y,15,FALSE)),"",(VLOOKUP(A49,'Income Statement'!A:Y,15,FALSE))) ->  | F49: Schedule | G49: Schedule
A50: 51582 | B50: Union Severance Fund | C50: 36799 | D50: =IF(ISERROR(VLOOKUP(A50,'Income Statement'!A:Y,25,FALSE)),"",(VLOOKUP(A50,'Income Statement'!A:Y,25,FALSE))) ->  | E50: =IF(ISERROR(VLOOKUP(A50,'Income Statement'!A:Y,15,FALSE)),"",(VLOOKUP(A50,'Income Statement'!A:Y,15,FALSE))) ->  | F50: Schedule | G50: Schedule
A51: 40003 | B51: Loss to Lease | C51: 49407 | D51: =VLOOKUP(A51,'Occupancy Budget'!$A$34:$F$36,6,FALSE) -> -19560.85383 | E51: =IF(ISERROR(VLOOKUP(A51,'Income Statement'!A:Y,15,FALSE)),"",(VLOOKUP(A51,'Income Statement'!A:Y,15,FALSE))) -> -5752 | F51: Schedule | G51: Schedule | H51: 40400 | I51: OUT-OF-STATE INCOME | J51: Head
A52: 40004 | B52: Vacancy | C52: 65535 | D52: =VLOOKUP(A52,'Occupancy Budget'!$A$34:$F$36,6,FALSE) -> -58671.36 | E52: =IF(ISERROR(VLOOKUP(A52,'Income Statement'!A:Y,15,FALSE)),"",(VLOOKUP(A52,'Income Statement'!A:Y,15,FALSE))) -> -62551.31 | F52: Schedule | G52: Schedule | H52: 40500 | I52: CONDO SALE INCOME | J52: Head
A53: 56402 | B53: Appliances MR | C53: 801923 | D53: =VLOOKUP(A53,'Make Ready'!$K$12:$P$23,6,FALSE) -> 406.116 | E53: =IF(ISERROR(VLOOKUP(A53,'Income Statement'!A:Y,15,FALSE)),"",(VLOOKUP(A53,'Income Statement'!A:Y,15,FALSE))) -> 344.52 | F53: Schedule | G53: Schedule
A54: 56405 | B54: Bath MR | C54: 801923 | D54: =VLOOKUP(A54,'Make Ready'!$K$12:$P$23,6,FALSE) -> 3895.858576 | E54: =IF(ISERROR(VLOOKUP(A54,'Income Statement'!A:Y,15,FALSE)),"",(VLOOKUP(A54,'Income Statement'!A:Y,15,FALSE))) -> 3304.97 | F54: Schedule | G54: Schedule
A55: 56410 | B55: Carpet MR | C55: 801923 | D55: =VLOOKUP(A55,'Make Ready'!$K$12:$P$23,6,FALSE) -> 174.4606061 | E55: =IF(ISERROR(VLOOKUP(A55,'Income Statement'!A:Y,15,FALSE)),"",(VLOOKUP(A55,'Income Statement'!A:Y,15,FALSE))) -> 148 | F55: Schedule | G55: Schedule
A56: 56412 | B56: Cleaning MR | C56: 801923 | D56: =VLOOKUP(A56,'Make Ready'!$K$12:$P$23,6,FALSE) -> 2964.321455 | E56: =IF(ISERROR(VLOOKUP(A56,'Income Statement'!A:Y,15,FALSE)),"",(VLOOKUP(A56,'Income Statement'!A:Y,15,FALSE))) -> 2514.72 | F56: Schedule | G56: Schedule
A57: 56413 | B57: Doors MR | C57: 801923 | D57: =VLOOKUP(A57,'Make Ready'!$K$12:$P$23,6,FALSE) -> 62.28715152 | E57: =IF(ISERROR(VLOOKUP(A57,'Income Statement'!A:Y,15,FALSE)),"",(VLOOKUP(A57,'Income Statement'!A:Y,15,FALSE))) -> 52.84 | F57: Schedule | G57: Schedule
A58: 56415 | B58: Electrical MR | C58: 801923 | D58: =VLOOKUP(A58,'Make Ready'!$K$12:$P$23,6,FALSE) -> 62.97084848 | E58: =IF(ISERROR(VLOOKUP(A58,'Income Statement'!A:Y,15,FALSE)),"",(VLOOKUP(A58,'Income Statement'!A:Y,15,FALSE))) -> 53.42 | F58: Schedule | G58: Schedule
A59: 56420 | B59: Flooring Other MR | C59: 801923 | D59: =VLOOKUP(A59,'Make Ready'!$K$12:$P$23,6,FALSE) -> 1654.570242 | E59: =IF(ISERROR(VLOOKUP(A59,'Income Statement'!A:Y,15,FALSE)),"",(VLOOKUP(A59,'Income Statement'!A:Y,15,FALSE))) -> 1403.62 | F59: Schedule | G59: Schedule
A60: 56422 | B60: Kitchen MR | C60: 801923 | D60: =VLOOKUP(A60,'Make Ready'!$K$12:$P$23,6,FALSE) -> 559.865303 | E60: =IF(ISERROR(VLOOKUP(A60,'Income Statement'!A:Y,15,FALSE)),"",(VLOOKUP(A60,'Income Statement'!A:Y,15,FALSE))) -> 474.95 | F60: Schedule | G60: Schedule
A61: 56425 | B61: Labor MR | C61: 801923 | D61: =VLOOKUP(A61,'Make Ready'!$K$12:$P$23,6,FALSE) -> 176.8181818 | E61: =IF(ISERROR(VLOOKUP(A61,'Income Statement'!A:Y,15,FALSE)),"",(VLOOKUP(A61,'Income Statement'!A:Y,15,FALSE))) -> 150 | F61: Schedule | G61: Schedule
A62: 56430 | B62: Misc MR | C62: 801923 | D62: =VLOOKUP(A62,'Make Ready'!$K$12:$P$23,6,FALSE) -> 91.43857576 | E62: =IF(ISERROR(VLOOKUP(A62,'Income Statement'!A:Y,15,FALSE)),"",(VLOOKUP(A62,'Income Statement'!A:Y,15,FALSE))) -> 77.57 | F62: Schedule | G62: Schedule
A63: 56435 | B63: Paint MR | C63: 801923 | D63: =VLOOKUP(A63,'Make Ready'!$K$12:$P$23,6,FALSE) ->  | E63: =IF(ISERROR(VLOOKUP(A63,'Income Statement'!A:Y,15,FALSE)),"",(VLOOKUP(A63,'Income Statement'!A:Y,15,FALSE))) -> 6171.85 | F63: Schedule | G63: Schedule
A64: 56440 | B64: Plumbing MR | C64: 801923 | D64: =VLOOKUP(A64,'Make Ready'!$K$12:$P$23,6,FALSE) -> 60.80187879 | E64: =IF(ISERROR(VLOOKUP(A64,'Income Statement'!A:Y,15,FALSE)),"",(VLOOKUP(A64,'Income Statement'!A:Y,15,FALSE))) -> 51.58 | F64: Schedule | G64: Schedule
A65: 56445 | B65: Vacant Electric Exp MR | C65: 801923 | D65: =IF(ISERROR(VLOOKUP(A65,'Income Statement'!A:Y,25,FALSE)),"",(VLOOKUP(A65,'Income Statement'!A:Y,25,FALSE))) ->  | E65: =IF(ISERROR(VLOOKUP(A65,'Income Statement'!A:Y,15,FALSE)),"",(VLOOKUP(A65,'Income Statement'!A:Y,15,FALSE))) ->  | F65: DNU | G65: DNU
A66: 56210 | B66: Appliance Repair Contractor | C66: 1137094 | D66: =IF(ISERROR(VLOOKUP(A66,'Income Statement'!A:Y,25,FALSE)),"",(VLOOKUP(A66,'Income Statement'!A:Y,25,FALSE))) ->  | E66: =IF(ISERROR(VLOOKUP(A66,'Income Statement'!A:Y,15,FALSE)),"",(VLOOKUP(A66,'Income Statement'!A:Y,15,FALSE))) ->  | F66: 3 yr avg | G66: Straight Line
A67: 56212 | B67: Blinds Contractor | C67: 1137094 | D67: =IF(ISERROR(VLOOKUP(A67,'Income Statement'!A:Y,25,FALSE)),"",(VLOOKUP(A67,'Income Statement'!A:Y,25,FALSE))) ->  | E67: =IF(ISERROR(VLOOKUP(A67,'Income Statement'!A:Y,15,FALSE)),"",(VLOOKUP(A67,'Income Statement'!A:Y,15,FALSE))) ->  | F67: 3 yr avg | G67: Straight Line
A68: 56213 | B68: Building Contractor | C68: 1137094 | D68: =IF(ISERROR(VLOOKUP(A68,'Income Statement'!A:Y,25,FALSE)),"",(VLOOKUP(A68,'Income Statement'!A:Y,25,FALSE))) ->  | E68: =IF(ISERROR(VLOOKUP(A68,'Income Statement'!A:Y,15,FALSE)),"",(VLOOKUP(A68,'Income Statement'!A:Y,15,FALSE))) ->  | F68: 3 yr avg | G68: Straight Line
A69: 56214 | B69: Carpentry Contractor | C69: 1137094 | D69: =IF(ISERROR(VLOOKUP(A69,'Income Statement'!A:Y,25,FALSE)),"",(VLOOKUP(A69,'Income Statement'!A:Y,25,FALSE))) -> 0.0001 | E69: =IF(ISERROR(VLOOKUP(A69,'Income Statement'!A:Y,15,FALSE)),"",(VLOOKUP(A69,'Income Statement'!A:Y,15,FALSE))) -> 0 | F69: 3 yr avg | G69: Straight Line
A70: 56215 | B70: Carpeting/Flooring Contractor | C70: 1137094 | D70: =IF(ISERROR(VLOOKUP(A70,'Income Statement'!A:Y,25,FALSE)),"",(VLOOKUP(A70,'Income Statement'!A:Y,25,FALSE))) -> 194.04 | E70: =IF(ISERROR(VLOOKUP(A70,'Income Statement'!A:Y,15,FALSE)),"",(VLOOKUP(A70,'Income Statement'!A:Y,15,FALSE))) -> 300.52 | F70: 3 yr avg | G70: Straight Line
A71: 56216 | B71: Custodial Contractor | C71: 1137094 | D71: =IF(ISERROR(VLOOKUP(A71,'Income Statement'!A:Y,25,FALSE)),"",(VLOOKUP(A71,'Income Statement'!A:Y,25,FALSE))) -> 12740 | E71: =IF(ISERROR(VLOOKUP(A71,'Income Statement'!A:Y,15,FALSE)),"",(VLOOKUP(A71,'Income Statement'!A:Y,15,FALSE))) -> 11509.76 | F71: Contract | G71: Straight Line
A72: 56217 | B72: Decorating Contractor | C72: 1137094 | D72: =IF(ISERROR(VLOOKUP(A72,'Income Statement'!A:Y,25,FALSE)),"",(VLOOKUP(A72,'Income Statement'!A:Y,25,FALSE))) -> 0.0001 | E72: =IF(ISERROR(VLOOKUP(A72,'Income Statement'!A:Y,15,FALSE)),"",(VLOOKUP(A72,'Income Statement'!A:Y,15,FALSE))) -> 18.76 | F72: 3 yr avg | G72: Straight Line
A73: 56218 | B73: Doors Contractor | C73: 1137094 | D73: =IF(ISERROR(VLOOKUP(A73,'Income Statement'!A:Y,25,FALSE)),"",(VLOOKUP(A73,'Income Statement'!A:Y,25,FALSE))) ->  | E73: =IF(ISERROR(VLOOKUP(A73,'Income Statement'!A:Y,15,FALSE)),"",(VLOOKUP(A73,'Income Statement'!A:Y,15,FALSE))) ->  | F73: 3 yr avg | G73: Straight Line
A74: 56219 | B74: Electrical Contractor | C74: 1137094 | D74: =IF(ISERROR(VLOOKUP(A74,'Income Statement'!A:Y,25,FALSE)),"",(VLOOKUP(A74,'Income Statement'!A:Y,25,FALSE))) -> 872.41 | E74: =IF(ISERROR(VLOOKUP(A74,'Income Statement'!A:Y,15,FALSE)),"",(VLOOKUP(A74,'Income Statement'!A:Y,15,FALSE))) -> 1392.22 | F74: 3 yr avg | G74: Straight Line
A75: 56220 | B75: Elevator Contractor | C75: 1137094 | D75: =IF(ISERROR(VLOOKUP(A75,'Income Statement'!A:Y,25,FALSE)),"",(VLOOKUP(A75,'Income Statement'!A:Y,25,FALSE))) ->  | E75: =IF(ISERROR(VLOOKUP(A75,'Income Statement'!A:Y,15,FALSE)),"",(VLOOKUP(A75,'Income Statement'!A:Y,15,FALSE))) ->  | F75: Contract | G75: Straight Line
A76: 56221 | B76: Exterminating Contractor | C76: 1137094 | D76: =IF(ISERROR(VLOOKUP(A76,'Income Statement'!A:Y,25,FALSE)),"",(VLOOKUP(A76,'Income Statement'!A:Y,25,FALSE))) -> 1487 | E76: =IF(ISERROR(VLOOKUP(A76,'Income Statement'!A:Y,15,FALSE)),"",(VLOOKUP(A76,'Income Statement'!A:Y,15,FALSE))) -> 1410.32 | F76: Contract | G76: Straight Line
A77: 56222 | B77: Fence Contractor | C77: 1137094 | D77: =IF(ISERROR(VLOOKUP(A77,'Income Statement'!A:Y,25,FALSE)),"",(VLOOKUP(A77,'Income Statement'!A:Y,25,FALSE))) ->  | E77: =IF(ISERROR(VLOOKUP(A77,'Income Statement'!A:Y,15,FALSE)),"",(VLOOKUP(A77,'Income Statement'!A:Y,15,FALSE))) ->  | F77: 3 yr avg | G77: Straight Line
A78: 56223 | B78: Fire System Contractor | C78: 1137094 | D78: =IF(ISERROR(VLOOKUP(A78,'Income Statement'!A:Y,25,FALSE)),"",(VLOOKUP(A78,'Income Statement'!A:Y,25,FALSE))) -> 3500 | E78: =IF(ISERROR(VLOOKUP(A78,'Income Statement'!A:Y,15,FALSE)),"",(VLOOKUP(A78,'Income Statement'!A:Y,15,FALSE))) -> 3396.97 | F78: Contract | G78: Straight Line
A79: 56224 | B79: Fire Alarm Monitoring | C79: 1137094 | D79: =IF(ISERROR(VLOOKUP(A79,'Income Statement'!A:Y,25,FALSE)),"",(VLOOKUP(A79,'Income Statement'!A:Y,25,FALSE))) -> 1620 | E79: =IF(ISERROR(VLOOKUP(A79,'Income Statement'!A:Y,15,FALSE)),"",(VLOOKUP(A79,'Income Statement'!A:Y,15,FALSE))) -> 1620 | F79: Contract | G79: Straight Line
A80: 56225 | B80: Flooring-Tile Contractor | C80: 1137094 | D80: =IF(ISERROR(VLOOKUP(A80,'Income Statement'!A:Y,25,FALSE)),"",(VLOOKUP(A80,'Income Statement'!A:Y,25,FALSE))) ->  | E80: =IF(ISERROR(VLOOKUP(A80,'Income Statement'!A:Y,15,FALSE)),"",(VLOOKUP(A80,'Income Statement'!A:Y,15,FALSE))) ->  | F80: 3 yr avg | G80: Straight Line
A81: 56226 | B81: Hardware Contractor | C81: 1137094 | D81: =IF(ISERROR(VLOOKUP(A81,'Income Statement'!A:Y,25,FALSE)),"",(VLOOKUP(A81,'Income Statement'!A:Y,25,FALSE))) ->  | E81: =IF(ISERROR(VLOOKUP(A81,'Income Statement'!A:Y,15,FALSE)),"",(VLOOKUP(A81,'Income Statement'!A:Y,15,FALSE))) ->  | F81: 3 yr avg | G81: Straight Line
A82: 56227 | B82: Hospitality Contractor | C82: 1137094 | D82: =IF(ISERROR(VLOOKUP(A82,'Income Statement'!A:Y,25,FALSE)),"",(VLOOKUP(A82,'Income Statement'!A:Y,25,FALSE))) ->  | E82: =IF(ISERROR(VLOOKUP(A82,'Income Statement'!A:Y,15,FALSE)),"",(VLOOKUP(A82,'Income Statement'!A:Y,15,FALSE))) ->  | F82: 3 yr avg | G82: Straight Line
A83: 56228 | B83: HVAC Contractor | C83: 1137094 | D83: =IF(ISERROR(VLOOKUP(A83,'Income Statement'!A:Y,25,FALSE)),"",(VLOOKUP(A83,'Income Statement'!A:Y,25,FALSE))) -> 6392.44 | E83: =IF(ISERROR(VLOOKUP(A83,'Income Statement'!A:Y,15,FALSE)),"",(VLOOKUP(A83,'Income Statement'!A:Y,15,FALSE))) -> 7988.82 | F83: 3 yr avg | G83: Straight Line
A84: 56229 | B84: Keys & Locks Contractor | C84: 1137094 | D84: =IF(ISERROR(VLOOKUP(A84,'Income Statement'!A:Y,25,FALSE)),"",(VLOOKUP(A84,'Income Statement'!A:Y,25,FALSE))) ->  | E84: =IF(ISERROR(VLOOKUP(A84,'Income Statement'!A:Y,15,FALSE)),"",(VLOOKUP(A84,'Income Statement'!A:Y,15,FALSE))) ->  | F84: 3 yr avg | G84: Straight Line
A85: 56231 | B85: Landscaping Contractor | C85: 1137094 | D85: =IF(ISERROR(VLOOKUP(A85,'Income Statement'!A:Y,25,FALSE)),"",(VLOOKUP(A85,'Income Statement'!A:Y,25,FALSE))) -> 26000 | E85: =IF(ISERROR(VLOOKUP(A85,'Income Statement'!A:Y,15,FALSE)),"",(VLOOKUP(A85,'Income Statement'!A:Y,15,FALSE))) -> 25609.22 | F85: Contract | G85: Seasonal
A86: 56232 | B86: Linen Rental | C86: 1137094 | D86: =IF(ISERROR(VLOOKUP(A86,'Income Statement'!A:Y,25,FALSE)),"",(VLOOKUP(A86,'Income Statement'!A:Y,25,FALSE))) ->  | E86: =IF(ISERROR(VLOOKUP(A86,'Income Statement'!A:Y,15,FALSE)),"",(VLOOKUP(A86,'Income Statement'!A:Y,15,FALSE))) ->  | F86: 3 yr avg | G86: Straight Line
A87: 56233 | B87: Misc Contractor | C87: 1137094 | D87: =IF(ISERROR(VLOOKUP(A87,'Income Statement'!A:Y,25,FALSE)),"",(VLOOKUP(A87,'Income Statement'!A:Y,25,FALSE))) ->  | E87: =IF(ISERROR(VLOOKUP(A87,'Income Statement'!A:Y,15,FALSE)),"",(VLOOKUP(A87,'Income Statement'!A:Y,15,FALSE))) ->  | F87: 3 yr avg | G87: Straight Line
A88: 56234 | B88: Painting Contractor | C88: 1137094 | D88: =IF(ISERROR(VLOOKUP(A88,'Income Statement'!A:Y,25,FALSE)),"",(VLOOKUP(A88,'Income Statement'!A:Y,25,FALSE))) -> 2765.67 | E88: =IF(ISERROR(VLOOKUP(A88,'Income Statement'!A:Y,15,FALSE)),"",(VLOOKUP(A88,'Income Statement'!A:Y,15,FALSE))) -> 3425 | F88: 3 yr avg | G88: Straight Line
A89: 56235 | B89: Pave&Concrete Contractor | C89: 1137094 | D89: =IF(ISERROR(VLOOKUP(A89,'Income Statement'!A:Y,25,FALSE)),"",(VLOOKUP(A89,'Income Statement'!A:Y,25,FALSE))) ->  | E89: =IF(ISERROR(VLOOKUP(A89,'Income Statement'!A:Y,15,FALSE)),"",(VLOOKUP(A89,'Income Statement'!A:Y,15,FALSE))) ->  | F89: 3 yr avg | G89: Straight Line
A90: 56236 | B90: Plumbing Contractror | C90: 1137094 | D90: =IF(ISERROR(VLOOKUP(A90,'Income Statement'!A:Y,25,FALSE)),"",(VLOOKUP(A90,'Income Statement'!A:Y,25,FALSE))) -> 5500 | E90: =IF(ISERROR(VLOOKUP(A90,'Income Statement'!A:Y,15,FALSE)),"",(VLOOKUP(A90,'Income Statement'!A:Y,15,FALSE))) -> 5363.18 | F90: 3 yr avg | G90: Straight Line
A91: 56237 | B91: Pool Contractor | C91: 1137094 | D91: =IF(ISERROR(VLOOKUP(A91,'Income Statement'!A:Y,25,FALSE)),"",(VLOOKUP(A91,'Income Statement'!A:Y,25,FALSE))) ->  | E91: =IF(ISERROR(VLOOKUP(A91,'Income Statement'!A:Y,15,FALSE)),"",(VLOOKUP(A91,'Income Statement'!A:Y,15,FALSE))) ->  | F91: Contract | G91: Seasonal
A92: 56238 | B92: DNU-Rehab of Apts Contractors (Turns) | C92: 1137094 | D92: =IF(ISERROR(VLOOKUP(A92,'Income Statement'!A:Y,25,FALSE)),"",(VLOOKUP(A92,'Income Statement'!A:Y,25,FALSE))) ->  | E92: =IF(ISERROR(VLOOKUP(A92,'Income Statement'!A:Y,15,FALSE)),"",(VLOOKUP(A92,'Income Statement'!A:Y,15,FALSE))) ->  | F92: DNU | G92: DNU
A93: 56239 | B93: Roofing Contractor | C93: 1137094 | D93: =IF(ISERROR(VLOOKUP(A93,'Income Statement'!A:Y,25,FALSE)),"",(VLOOKUP(A93,'Income Statement'!A:Y,25,FALSE))) -> 1465 | E93: =IF(ISERROR(VLOOKUP(A93,'Income Statement'!A:Y,15,FALSE)),"",(VLOOKUP(A93,'Income Statement'!A:Y,15,FALSE))) -> 1465 | F93: T12 | G93: Straight Line
A94: 56240 | B94: Security Contractor | C94: 1137094 | D94: =IF(ISERROR(VLOOKUP(A94,'Income Statement'!A:Y,25,FALSE)),"",(VLOOKUP(A94,'Income Statement'!A:Y,25,FALSE))) -> 0 | E94: =IF(ISERROR(VLOOKUP(A94,'Income Statement'!A:Y,15,FALSE)),"",(VLOOKUP(A94,'Income Statement'!A:Y,15,FALSE))) -> 555 | F94: Contract | G94: Straight Line
A95: 56241 | B95: Signs Contractor | C95: 1137094 | D95: =IF(ISERROR(VLOOKUP(A95,'Income Statement'!A:Y,25,FALSE)),"",(VLOOKUP(A95,'Income Statement'!A:Y,25,FALSE))) -> 0.0001 | E95: =IF(ISERROR(VLOOKUP(A95,'Income Statement'!A:Y,15,FALSE)),"",(VLOOKUP(A95,'Income Statement'!A:Y,15,FALSE))) -> 127.22 | F95: 3 yr avg | G95: Straight Line
A96: 56242 | B96: Snow Removal Contractor | C96: 1137094 | D96: =IF(ISERROR(VLOOKUP(A96,'Income Statement'!A:Y,25,FALSE)),"",(VLOOKUP(A96,'Income Statement'!A:Y,25,FALSE))) -> 7200 | E96: =IF(ISERROR(VLOOKUP(A96,'Income Statement'!A:Y,15,FALSE)),"",(VLOOKUP(A96,'Income Statement'!A:Y,15,FALSE))) -> 6124.14 | F96: 3 yr avg | G96: Seasonal
A97: 56243 | B97: Staff Training Contractor | C97: 1137094 | D97: =IF(ISERROR(VLOOKUP(A97,'Income Statement'!A:Y,25,FALSE)),"",(VLOOKUP(A97,'Income Statement'!A:Y,25,FALSE))) ->  | E97: =IF(ISERROR(VLOOKUP(A97,'Income Statement'!A:Y,15,FALSE)),"",(VLOOKUP(A97,'Income Statement'!A:Y,15,FALSE))) ->  | F97: 3 yr avg | G97: Straight Line
A98: 56244 | B98: Trash Removal | C98: 1137094 | D98: =IF(ISERROR(VLOOKUP(A98,'Income Statement'!A:Y,25,FALSE)),"",(VLOOKUP(A98,'Income Statement'!A:Y,25,FALSE))) -> 14300 | E98: =IF(ISERROR(VLOOKUP(A98,'Income Statement'!A:Y,15,FALSE)),"",(VLOOKUP(A98,'Income Statement'!A:Y,15,FALSE))) -> 15560.71 | F98: Contract | G98: Straight Line
A99: 56245 | B99: Windows and Glass Contractor | C99: 1137094 | D99: =IF(ISERROR(VLOOKUP(A99,'Income Statement'!A:Y,25,FALSE)),"",(VLOOKUP(A99,'Income Statement'!A:Y,25,FALSE))) -> 0.0001 | E99: =IF(ISERROR(VLOOKUP(A99,'Income Statement'!A:Y,15,FALSE)),"",(VLOOKUP(A99,'Income Statement'!A:Y,15,FALSE))) -> 0 | F99: 3 yr avg | G99: Straight Line
A100: 56246 | B100: Uptown Expenses | C100: 1137094 | D100: =IF(ISERROR(VLOOKUP(A100,'Income Statement'!A:Y,25,FALSE)),"",(VLOOKUP(A100,'Income Statement'!A:Y,25,FALSE))) ->  | E100: =IF(ISERROR(VLOOKUP(A100,'Income Statement'!A:Y,15,FALSE)),"",(VLOOKUP(A100,'Income Statement'!A:Y,15,FALSE))) ->  | F100: 3 yr avg | G100: Straight Line
A101: 56298 | B101: Repairs Other Budget | C101: 1137094 | D101: =IF(ISERROR(VLOOKUP(A101,'Income Statement'!A:Y,25,FALSE)),"",(VLOOKUP(A101,'Income Statement'!A:Y,25,FALSE))) ->  | E101: =IF(ISERROR(VLOOKUP(A101,'Income Statement'!A:Y,15,FALSE)),"",(VLOOKUP(A101,'Income Statement'!A:Y,15,FALSE))) ->  | F101: 3 yr avg | G101: Straight Line
A102: 56300 | B102: GOLF COURSE EXPS | C102: 1137094 | D102: =IF(ISERROR(VLOOKUP(A102,'Income Statement'!A:Y,25,FALSE)),"",(VLOOKUP(A102,'Income Statement'!A:Y,25,FALSE))) ->  | E102: =IF(ISERROR(VLOOKUP(A102,'Income Statement'!A:Y,15,FALSE)),"",(VLOOKUP(A102,'Income Statement'!A:Y,15,FALSE))) ->  | F102: DNU | G102: DNU
A103: 56305 | B103: Golf Course Exp - Fuel | C103: 1137094 | D103: =IF(ISERROR(VLOOKUP(A103,'Income Statement'!A:Y,25,FALSE)),"",(VLOOKUP(A103,'Income Statement'!A:Y,25,FALSE))) ->  | E103: =IF(ISERROR(VLOOKUP(A103,'Income Statement'!A:Y,15,FALSE)),"",(VLOOKUP(A103,'Income Statement'!A:Y,15,FALSE))) ->  | F103: DNU | G103: DNU
A104: 56310 | B104: Golf Course Exp - Repairs | C104: 1137094 | D104: =IF(ISERROR(VLOOKUP(A104,'Income Statement'!A:Y,25,FALSE)),"",(VLOOKUP(A104,'Income Statement'!A:Y,25,FALSE))) ->  | E104: =IF(ISERROR(VLOOKUP(A104,'Income Statement'!A:Y,15,FALSE)),"",(VLOOKUP(A104,'Income Statement'!A:Y,15,FALSE))) ->  | F104: DNU | G104: DNU
A105: 56315 | B105: Golf Course Exp - Supplies | C105: 1137094 | D105: =IF(ISERROR(VLOOKUP(A105,'Income Statement'!A:Y,25,FALSE)),"",(VLOOKUP(A105,'Income Statement'!A:Y,25,FALSE))) ->  | E105: =IF(ISERROR(VLOOKUP(A105,'Income Statement'!A:Y,15,FALSE)),"",(VLOOKUP(A105,'Income Statement'!A:Y,15,FALSE))) ->  | F105: DNU | G105: DNU
A106: 56320 | B106: Golf Course Exp - Advertising | C106: 1137094 | D106: =IF(ISERROR(VLOOKUP(A106,'Income Statement'!A:Y,25,FALSE)),"",(VLOOKUP(A106,'Income Statement'!A:Y,25,FALSE))) ->  | E106: =IF(ISERROR(VLOOKUP(A106,'Income Statement'!A:Y,15,FALSE)),"",(VLOOKUP(A106,'Income Statement'!A:Y,15,FALSE))) ->  | F106: DNU | G106: DNU
A107: 56330 | B107: Golf Course Exp - Other | C107: 1137094 | D107: =IF(ISERROR(VLOOKUP(A107,'Income Statement'!A:Y,25,FALSE)),"",(VLOOKUP(A107,'Income Statement'!A:Y,25,FALSE))) ->  | E107: =IF(ISERROR(VLOOKUP(A107,'Income Statement'!A:Y,15,FALSE)),"",(VLOOKUP(A107,'Income Statement'!A:Y,15,FALSE))) ->  | F107: DNU | G107: DNU
A108: 56335 | B108: Lounge Exp | C108: 1137094 | D108: =IF(ISERROR(VLOOKUP(A108,'Income Statement'!A:Y,25,FALSE)),"",(VLOOKUP(A108,'Income Statement'!A:Y,25,FALSE))) ->  | E108: =IF(ISERROR(VLOOKUP(A108,'Income Statement'!A:Y,15,FALSE)),"",(VLOOKUP(A108,'Income Statement'!A:Y,15,FALSE))) ->  | F108: DNU | G108: DNU
A109: 56336 | B109: Proshop Exp | C109: 1137094 | D109: =IF(ISERROR(VLOOKUP(A109,'Income Statement'!A:Y,25,FALSE)),"",(VLOOKUP(A109,'Income Statement'!A:Y,25,FALSE))) ->  | E109: =IF(ISERROR(VLOOKUP(A109,'Income Statement'!A:Y,15,FALSE)),"",(VLOOKUP(A109,'Income Statement'!A:Y,15,FALSE))) ->  | F109: DNU | G109: DNU
A110: 56340 | B110: ProShop Expense | C110: 1137094 | D110: =IF(ISERROR(VLOOKUP(A110,'Income Statement'!A:Y,25,FALSE)),"",(VLOOKUP(A110,'Income Statement'!A:Y,25,FALSE))) ->  | E110: =IF(ISERROR(VLOOKUP(A110,'Income Statement'!A:Y,15,FALSE)),"",(VLOOKUP(A110,'Income Statement'!A:Y,15,FALSE))) ->  | F110: DNU | G110: DNU
A111: 50105 | B111: Cable | C111: 2500134 | D111: =IF(ISERROR(VLOOKUP(A111,'Income Statement'!A:Y,25,FALSE)),"",(VLOOKUP(A111,'Income Statement'!A:Y,25,FALSE))) ->  | E111: =IF(ISERROR(VLOOKUP(A111,'Income Statement'!A:Y,15,FALSE)),"",(VLOOKUP(A111,'Income Statement'!A:Y,15,FALSE))) ->  | F111: T12 | G111: Based on T-12
A112: 57100 | B112: Accounting Fees | C112: 2500134 | D112: =IF(ISERROR(VLOOKUP(A112,'Income Statement'!A:Y,25,FALSE)),"",(VLOOKUP(A112,'Income Statement'!A:Y,25,FALSE))) -> 3077.51 | E112: =IF(ISERROR(VLOOKUP(A112,'Income Statement'!A:Y,15,FALSE)),"",(VLOOKUP(A112,'Income Statement'!A:Y,15,FALSE))) -> 3077.51 | F112: T12 | G112: Seasonal
A113: 57110 | B113: Advertising | C113: 2500134 | D113: =IF(ISERROR(VLOOKUP(A113,'Income Statement'!A:Y,25,FALSE)),"",(VLOOKUP(A113,'Income Statement'!A:Y,25,FALSE))) -> 4800 | E113: =IF(ISERROR(VLOOKUP(A113,'Income Statement'!A:Y,15,FALSE)),"",(VLOOKUP(A113,'Income Statement'!A:Y,15,FALSE))) -> 5395.82 | F113: T12 | G113: Straight Line
A114: 57126 | B114: Answering Service | C114: 2500134 | D114: =IF(ISERROR(VLOOKUP(A114,'Income Statement'!A:Y,25,FALSE)),"",(VLOOKUP(A114,'Income Statement'!A:Y,25,FALSE))) -> 1058.36 | E114: =IF(ISERROR(VLOOKUP(A114,'Income Statement'!A:Y,15,FALSE)),"",(VLOOKUP(A114,'Income Statement'!A:Y,15,FALSE))) -> 1058.36 | F114: T12 | G114: Straight Line
A115: 57129 | B115: Architect/Engineer | C115: 2500134 | D115: =IF(ISERROR(VLOOKUP(A115,'Income Statement'!A:Y,25,FALSE)),"",(VLOOKUP(A115,'Income Statement'!A:Y,25,FALSE))) ->  | E115: =IF(ISERROR(VLOOKUP(A115,'Income Statement'!A:Y,15,FALSE)),"",(VLOOKUP(A115,'Income Statement'!A:Y,15,FALSE))) ->  | F115: T12 | G115: Straight Line
A116: 57130 | B116: Auto Expenses | C116: 2500134 | D116: =IF(ISERROR(VLOOKUP(A116,'Income Statement'!A:Y,25,FALSE)),"",(VLOOKUP(A116,'Income Statement'!A:Y,25,FALSE))) -> 0 | E116: =IF(ISERROR(VLOOKUP(A116,'Income Statement'!A:Y,15,FALSE)),"",(VLOOKUP(A116,'Income Statement'!A:Y,15,FALSE))) -> 0 | F116: Auto Expenses
A117: 57131 | B117: Auto | C117: 2500134 | D117: =IF(ISERROR(VLOOKUP(A117,'Income Statement'!A:Y,25,FALSE)),"",(VLOOKUP(A117,'Income Statement'!A:Y,25,FALSE))) ->  | E117: =IF(ISERROR(VLOOKUP(A117,'Income Statement'!A:Y,15,FALSE)),"",(VLOOKUP(A117,'Income Statement'!A:Y,15,FALSE))) ->  | F117: T12 | G117: Straight Line
A118: 57140 | B118: Automobile-Garage | C118: 2500134 | D118: =IF(ISERROR(VLOOKUP(A118,'Income Statement'!A:Y,25,FALSE)),"",(VLOOKUP(A118,'Income Statement'!A:Y,25,FALSE))) ->  | E118: =IF(ISERROR(VLOOKUP(A118,'Income Statement'!A:Y,15,FALSE)),"",(VLOOKUP(A118,'Income Statement'!A:Y,15,FALSE))) ->  | F118: T12 | G118: Straight Line
A119: 57142 | B119: Automobile-Gas | C119: 2500134 | D119: =IF(ISERROR(VLOOKUP(A119,'Income Statement'!A:Y,25,FALSE)),"",(VLOOKUP(A119,'Income Statement'!A:Y,25,FALSE))) -> 5.57 | E119: =IF(ISERROR(VLOOKUP(A119,'Income Statement'!A:Y,15,FALSE)),"",(VLOOKUP(A119,'Income Statement'!A:Y,15,FALSE))) -> 16.71 | F119: 3 yr avg | G119: Straight Line
A120: 57144 | B120: Automobile-Insurance | C120: 2500134 | D120: =IF(ISERROR(VLOOKUP(A120,'Income Statement'!A:Y,25,FALSE)),"",(VLOOKUP(A120,'Income Statement'!A:Y,25,FALSE))) ->  | E120: =IF(ISERROR(VLOOKUP(A120,'Income Statement'!A:Y,15,FALSE)),"",(VLOOKUP(A120,'Income Statement'!A:Y,15,FALSE))) ->  | F120: T12 | G120: Straight Line
A121: 57147 | B121: Automobile-Mileage Reimb | C121: 2500134 | D121: =IF(ISERROR(VLOOKUP(A121,'Income Statement'!A:Y,25,FALSE)),"",(VLOOKUP(A121,'Income Statement'!A:Y,25,FALSE))) -> 924 | E121: =IF(ISERROR(VLOOKUP(A121,'Income Statement'!A:Y,15,FALSE)),"",(VLOOKUP(A121,'Income Statement'!A:Y,15,FALSE))) -> 924.21 | F121: 3 yr avg | G121: Straight Line
A122: 57148 | B122: Automobile-Repairs/LIMO | C122: 2500134 | D122: =IF(ISERROR(VLOOKUP(A122,'Income Statement'!A:Y,25,FALSE)),"",(VLOOKUP(A122,'Income Statement'!A:Y,25,FALSE))) ->  | E122: =IF(ISERROR(VLOOKUP(A122,'Income Statement'!A:Y,15,FALSE)),"",(VLOOKUP(A122,'Income Statement'!A:Y,15,FALSE))) ->  | F122: 3 yr avg | G122: Straight Line
A123: 57149 | B123: Automobile-Rental | C123: 2500134 | D123: =IF(ISERROR(VLOOKUP(A123,'Income Statement'!A:Y,25,FALSE)),"",(VLOOKUP(A123,'Income Statement'!A:Y,25,FALSE))) ->  | E123: =IF(ISERROR(VLOOKUP(A123,'Income Statement'!A:Y,15,FALSE)),"",(VLOOKUP(A123,'Income Statement'!A:Y,15,FALSE))) ->  | F123: 3 yr avg | G123: Straight Line
A124: 57150 | B124: Automobile-Parking and Tolls | C124: 2500134 | D124: =IF(ISERROR(VLOOKUP(A124,'Income Statement'!A:Y,25,FALSE)),"",(VLOOKUP(A124,'Income Statement'!A:Y,25,FALSE))) -> 470 | E124: =IF(ISERROR(VLOOKUP(A124,'Income Statement'!A:Y,15,FALSE)),"",(VLOOKUP(A124,'Income Statement'!A:Y,15,FALSE))) -> 470 | F124: 3 yr avg | G124: Straight Line
A125: 57155 | B125: Total Auto Expenses | C125: 2500134 | D125: =IF(ISERROR(VLOOKUP(A125,'Income Statement'!A:Y,25,FALSE)),"",(VLOOKUP(A125,'Income Statement'!A:Y,25,FALSE))) ->  | E125: =IF(ISERROR(VLOOKUP(A125,'Income Statement'!A:Y,15,FALSE)),"",(VLOOKUP(A125,'Income Statement'!A:Y,15,FALSE))) ->  | F125: T12 | G125: Straight Line
A126: 57164 | B126: Bank Charges | C126: 2500134 | D126: =IF(ISERROR(VLOOKUP(A126,'Income Statement'!A:Y,25,FALSE)),"",(VLOOKUP(A126,'Income Statement'!A:Y,25,FALSE))) -> 2600.97 | E126: =IF(ISERROR(VLOOKUP(A126,'Income Statement'!A:Y,15,FALSE)),"",(VLOOKUP(A126,'Income Statement'!A:Y,15,FALSE))) -> 2600.97 | F126: T12 | G126: Straight Line
A127: 57165 | B127: Corporate Suites | C127: 2500134 | D127: =IF(ISERROR(VLOOKUP(A127,'Income Statement'!A:Y,25,FALSE)),"",(VLOOKUP(A127,'Income Statement'!A:Y,25,FALSE))) ->  | E127: =IF(ISERROR(VLOOKUP(A127,'Income Statement'!A:Y,15,FALSE)),"",(VLOOKUP(A127,'Income Statement'!A:Y,15,FALSE))) ->  | F127: T12 | G127: Straight Line
A128: 57166 | B128: Beepers | C128: 2500134 | D128: =IF(ISERROR(VLOOKUP(A128,'Income Statement'!A:Y,25,FALSE)),"",(VLOOKUP(A128,'Income Statement'!A:Y,25,FALSE))) ->  | E128: =IF(ISERROR(VLOOKUP(A128,'Income Statement'!A:Y,15,FALSE)),"",(VLOOKUP(A128,'Income Statement'!A:Y,15,FALSE))) ->  | F128: T12 | G128: Straight Line
A129: 57167 | B129: Copier Expenses | C129: 2500134 | D129: =IF(ISERROR(VLOOKUP(A129,'Income Statement'!A:Y,25,FALSE)),"",(VLOOKUP(A129,'Income Statement'!A:Y,25,FALSE))) ->  | E129: =IF(ISERROR(VLOOKUP(A129,'Income Statement'!A:Y,15,FALSE)),"",(VLOOKUP(A129,'Income Statement'!A:Y,15,FALSE))) ->  | F129: T12 | G129: Straight Line
A130: 57169 | B130: Computer Expenses | C130: 2500134 | D130: =IF(ISERROR(VLOOKUP(A130,'Income Statement'!A:Y,25,FALSE)),"",(VLOOKUP(A130,'Income Statement'!A:Y,25,FALSE))) -> 0 | E130: =IF(ISERROR(VLOOKUP(A130,'Income Statement'!A:Y,15,FALSE)),"",(VLOOKUP(A130,'Income Statement'!A:Y,15,FALSE))) -> 0 | F130: T12 | G130: Straight Line
A131: 57170 | B131: Credit checks | C131: 2500134 | D131: =IF(ISERROR(VLOOKUP(A131,'Income Statement'!A:Y,25,FALSE)),"",(VLOOKUP(A131,'Income Statement'!A:Y,25,FALSE))) -> 1306.7 | E131: =IF(ISERROR(VLOOKUP(A131,'Income Statement'!A:Y,15,FALSE)),"",(VLOOKUP(A131,'Income Statement'!A:Y,15,FALSE))) -> 1306.7 | F131: T12 | G131: Straight Line
A132: 57172 | B132: Credit Card Fees | C132: 2500134 | D132: =IF(ISERROR(VLOOKUP(A132,'Income Statement'!A:Y,25,FALSE)),"",(VLOOKUP(A132,'Income Statement'!A:Y,25,FALSE))) ->  | E132: =IF(ISERROR(VLOOKUP(A132,'Income Statement'!A:Y,15,FALSE)),"",(VLOOKUP(A132,'Income Statement'!A:Y,15,FALSE))) ->  | F132: T12 | G132: Straight Line
A133: 57173 | B133: Cr Card Fees Reimb by Properties | C133: 2500134 | D133: =IF(ISERROR(VLOOKUP(A133,'Income Statement'!A:Y,25,FALSE)),"",(VLOOKUP(A133,'Income Statement'!A:Y,25,FALSE))) ->  | E133: =IF(ISERROR(VLOOKUP(A133,'Income Statement'!A:Y,15,FALSE)),"",(VLOOKUP(A133,'Income Statement'!A:Y,15,FALSE))) ->  | F133: T12 | G133: Straight Line
A134: 57176 | B134: Dues and Subscriptions | C134: 2500134 | D134: =IF(ISERROR(VLOOKUP(A134,'Income Statement'!A:Y,25,FALSE)),"",(VLOOKUP(A134,'Income Statement'!A:Y,25,FALSE))) -> 1133.19 | E134: =IF(ISERROR(VLOOKUP(A134,'Income Statement'!A:Y,15,FALSE)),"",(VLOOKUP(A134,'Income Statement'!A:Y,15,FALSE))) -> 1133.19 | F134: T12 | G134: Straight Line
A135: 57180 | B135: Entertainment | C135: 2500134 | D135: =IF(ISERROR(VLOOKUP(A135,'Income Statement'!A:Y,25,FALSE)),"",(VLOOKUP(A135,'Income Statement'!A:Y,25,FALSE))) ->  | E135: =IF(ISERROR(VLOOKUP(A135,'Income Statement'!A:Y,15,FALSE)),"",(VLOOKUP(A135,'Income Statement'!A:Y,15,FALSE))) ->  | F135: T12 | G135: Straight Line
A136: 57186 | B136: Equipment Rental | C136: 2500134 | D136: =IF(ISERROR(VLOOKUP(A136,'Income Statement'!A:Y,25,FALSE)),"",(VLOOKUP(A136,'Income Statement'!A:Y,25,FALSE))) ->  | E136: =IF(ISERROR(VLOOKUP(A136,'Income Statement'!A:Y,15,FALSE)),"",(VLOOKUP(A136,'Income Statement'!A:Y,15,FALSE))) ->  | F136: T12 | G136: Straight Line
A137: 57188 | B137: Equipment Repairs-Office | C137: 2500134 | D137: =IF(ISERROR(VLOOKUP(A137,'Income Statement'!A:Y,25,FALSE)),"",(VLOOKUP(A137,'Income Statement'!A:Y,25,FALSE))) ->  | E137: =IF(ISERROR(VLOOKUP(A137,'Income Statement'!A:Y,15,FALSE)),"",(VLOOKUP(A137,'Income Statement'!A:Y,15,FALSE))) ->  | F137: T12 | G137: Straight Line
A138: 57190 | B138: Collection Eviction costs | C138: 2500134 | D138: =IF(ISERROR(VLOOKUP(A138,'Income Statement'!A:Y,25,FALSE)),"",(VLOOKUP(A138,'Income Statement'!A:Y,25,FALSE))) -> 591.19 | E138: =IF(ISERROR(VLOOKUP(A138,'Income Statement'!A:Y,15,FALSE)),"",(VLOOKUP(A138,'Income Statement'!A:Y,15,FALSE))) -> 711.83 | F138: 3 yr avg | G138: Straight Line
A139: 57192 | B139: Eviction cost-Legal | C139: 2500134 | D139: =IF(ISERROR(VLOOKUP(A139,'Income Statement'!A:Y,25,FALSE)),"",(VLOOKUP(A139,'Income Statement'!A:Y,25,FALSE))) -> 10439.45 | E139: =IF(ISERROR(VLOOKUP(A139,'Income Statement'!A:Y,15,FALSE)),"",(VLOOKUP(A139,'Income Statement'!A:Y,15,FALSE))) -> 14253.55 | F139: 3 yr avg | G139: Straight Line
A140: 57193 | B140: Expense Reimb | C140: 2500134 | D140: =IF(ISERROR(VLOOKUP(A140,'Income Statement'!A:Y,25,FALSE)),"",(VLOOKUP(A140,'Income Statement'!A:Y,25,FALSE))) ->  | E140: =IF(ISERROR(VLOOKUP(A140,'Income Statement'!A:Y,15,FALSE)),"",(VLOOKUP(A140,'Income Statement'!A:Y,15,FALSE))) ->  | F140: T12 | G140: Straight Line
A141: 57196 | B141: Furniture Rental | C141: 2500134 | D141: =IF(ISERROR(VLOOKUP(A141,'Income Statement'!A:Y,25,FALSE)),"",(VLOOKUP(A141,'Income Statement'!A:Y,25,FALSE))) ->  | E141: =IF(ISERROR(VLOOKUP(A141,'Income Statement'!A:Y,15,FALSE)),"",(VLOOKUP(A141,'Income Statement'!A:Y,15,FALSE))) ->  | F141: T12 | G141: Straight Line
A142: 57198 | B142: Gifts | C142: 2500134 | D142: =IF(ISERROR(VLOOKUP(A142,'Income Statement'!A:Y,25,FALSE)),"",(VLOOKUP(A142,'Income Statement'!A:Y,25,FALSE))) ->  | E142: =IF(ISERROR(VLOOKUP(A142,'Income Statement'!A:Y,15,FALSE)),"",(VLOOKUP(A142,'Income Statement'!A:Y,15,FALSE))) ->  | F142: T12 | G142: Straight Line
A143: 57199 | B143: Internet Expense | C143: 2500134 | D143: =IF(ISERROR(VLOOKUP(A143,'Income Statement'!A:Y,25,FALSE)),"",(VLOOKUP(A143,'Income Statement'!A:Y,25,FALSE))) -> 2261.81 | E143: =IF(ISERROR(VLOOKUP(A143,'Income Statement'!A:Y,15,FALSE)),"",(VLOOKUP(A143,'Income Statement'!A:Y,15,FALSE))) -> 2261.81 | F143: T12 | G143: Straight Line
A144: 57200 | B144: Legal & Closing costs | C144: 2500134 | D144: =IF(ISERROR(VLOOKUP(A144,'Income Statement'!A:Y,25,FALSE)),"",(VLOOKUP(A144,'Income Statement'!A:Y,25,FALSE))) ->  | E144: =IF(ISERROR(VLOOKUP(A144,'Income Statement'!A:Y,15,FALSE)),"",(VLOOKUP(A144,'Income Statement'!A:Y,15,FALSE))) ->  | F144: 3 yr avg | G144: Straight Line
A145: 57210 | B145: Licenses and Fees | C145: 2500134 | D145: =IF(ISERROR(VLOOKUP(A145,'Income Statement'!A:Y,25,FALSE)),"",(VLOOKUP(A145,'Income Statement'!A:Y,25,FALSE))) -> 5518.44 | E145: =IF(ISERROR(VLOOKUP(A145,'Income Statement'!A:Y,15,FALSE)),"",(VLOOKUP(A145,'Income Statement'!A:Y,15,FALSE))) -> 5518.44 | F145: T12 | G145: Straight Line
A146: 57225 | B146: Marketing Expense | C146: 2500134 | D146: =IF(ISERROR(VLOOKUP(A146,'Income Statement'!A:Y,25,FALSE)),"",(VLOOKUP(A146,'Income Statement'!A:Y,25,FALSE))) -> 3820 | E146: =IF(ISERROR(VLOOKUP(A146,'Income Statement'!A:Y,15,FALSE)),"",(VLOOKUP(A146,'Income Statement'!A:Y,15,FALSE))) -> 4766.34 | F146: T12 | G146: Straight Line
A147: 57226 | B147: Investment Meetings Subject 2% | C147: 2500134 | D147: =IF(ISERROR(VLOOKUP(A147,'Income Statement'!A:Y,25,FALSE)),"",(VLOOKUP(A147,'Income Statement'!A:Y,25,FALSE))) ->  | E147: =IF(ISERROR(VLOOKUP(A147,'Income Statement'!A:Y,15,FALSE)),"",(VLOOKUP(A147,'Income Statement'!A:Y,15,FALSE))) ->  | F147: T12 | G147: Straight Line
A148: 57227 | B148: Meetings & Conferences | C148: 2500134 | D148: =IF(ISERROR(VLOOKUP(A148,'Income Statement'!A:Y,25,FALSE)),"",(VLOOKUP(A148,'Income Statement'!A:Y,25,FALSE))) -> 106.25 | E148: =IF(ISERROR(VLOOKUP(A148,'Income Statement'!A:Y,15,FALSE)),"",(VLOOKUP(A148,'Income Statement'!A:Y,15,FALSE))) -> 106.25 | F148: T12 | G148: Straight Line
A149: 57229 | B149: Food Service Program | C149: 2500134 | D149: =IF(ISERROR(VLOOKUP(A149,'Income Statement'!A:Y,25,FALSE)),"",(VLOOKUP(A149,'Income Statement'!A:Y,25,FALSE))) ->  | E149: =IF(ISERROR(VLOOKUP(A149,'Income Statement'!A:Y,15,FALSE)),"",(VLOOKUP(A149,'Income Statement'!A:Y,15,FALSE))) ->  | F149: T12 | G149: Straight Line
A150: 57230 | B150: Food/Coffee Service | C150: 2500134 | D150: =IF(ISERROR(VLOOKUP(A150,'Income Statement'!A:Y,25,FALSE)),"",(VLOOKUP(A150,'Income Statement'!A:Y,25,FALSE))) -> 502.14 | E150: =IF(ISERROR(VLOOKUP(A150,'Income Statement'!A:Y,15,FALSE)),"",(VLOOKUP(A150,'Income Statement'!A:Y,15,FALSE))) -> 622.38 | F150: 3 yr avg | G150: Straight Line
A151: 57231 | B151: Resident Meal Service | C151: 2500134 | D151: =IF(ISERROR(VLOOKUP(A151,'Income Statement'!A:Y,25,FALSE)),"",(VLOOKUP(A151,'Income Statement'!A:Y,25,FALSE))) ->  | E151: =IF(ISERROR(VLOOKUP(A151,'Income Statement'!A:Y,15,FALSE)),"",(VLOOKUP(A151,'Income Statement'!A:Y,15,FALSE))) ->  | F151: T12 | G151: Straight Line
A152: 57232 | B152: Miscellaneous Exp | C152: 2500134 | D152: =IF(ISERROR(VLOOKUP(A152,'Income Statement'!A:Y,25,FALSE)),"",(VLOOKUP(A152,'Income Statement'!A:Y,25,FALSE))) ->  | E152: =IF(ISERROR(VLOOKUP(A152,'Income Statement'!A:Y,15,FALSE)),"",(VLOOKUP(A152,'Income Statement'!A:Y,15,FALSE))) ->  | F152: T12 | G152: Straight Line
A153: 57233 | B153: Moving Expense | C153: 2500134 | D153: =IF(ISERROR(VLOOKUP(A153,'Income Statement'!A:Y,25,FALSE)),"",(VLOOKUP(A153,'Income Statement'!A:Y,25,FALSE))) ->  | E153: =IF(ISERROR(VLOOKUP(A153,'Income Statement'!A:Y,15,FALSE)),"",(VLOOKUP(A153,'Income Statement'!A:Y,15,FALSE))) ->  | F153: T12 | G153: Straight Line
A154: 57240 | B154: Office expenses | C154: 2500134 | D154: =IF(ISERROR(VLOOKUP(A154,'Income Statement'!A:Y,25,FALSE)),"",(VLOOKUP(A154,'Income Statement'!A:Y,25,FALSE))) -> 496.26 | E154: =IF(ISERROR(VLOOKUP(A154,'Income Statement'!A:Y,15,FALSE)),"",(VLOOKUP(A154,'Income Statement'!A:Y,15,FALSE))) -> 374.75 | F154: 3 yr avg | G154: Straight Line
A155: 57242 | B155: Paper and Forms Costs | C155: 2500134 | D155: =IF(ISERROR(VLOOKUP(A155,'Income Statement'!A:Y,25,FALSE)),"",(VLOOKUP(A155,'Income Statement'!A:Y,25,FALSE))) ->  | E155: =IF(ISERROR(VLOOKUP(A155,'Income Statement'!A:Y,15,FALSE)),"",(VLOOKUP(A155,'Income Statement'!A:Y,15,FALSE))) ->  | F155: 3 yr avg | G155: Straight Line
A156: 57246 | B156: PR Processing Fees | C156: 2500134 | D156: =IF(ISERROR(VLOOKUP(A156,'Income Statement'!A:Y,25,FALSE)),"",(VLOOKUP(A156,'Income Statement'!A:Y,25,FALSE))) -> 871.35 | E156: =IF(ISERROR(VLOOKUP(A156,'Income Statement'!A:Y,15,FALSE)),"",(VLOOKUP(A156,'Income Statement'!A:Y,15,FALSE))) -> 871.35 | F156: T12 | G156: Straight Line
A157: 57247 | B157: Photo Id's | C157: 2500134 | D157: =IF(ISERROR(VLOOKUP(A157,'Income Statement'!A:Y,25,FALSE)),"",(VLOOKUP(A157,'Income Statement'!A:Y,25,FALSE))) ->  | E157: =IF(ISERROR(VLOOKUP(A157,'Income Statement'!A:Y,15,FALSE)),"",(VLOOKUP(A157,'Income Statement'!A:Y,15,FALSE))) ->  | F157: T12 | G157: Straight Line
A158: 57249 | B158: Delivery/Freight Chgs | C158: 2500134 | D158: =IF(ISERROR(VLOOKUP(A158,'Income Statement'!A:Y,25,FALSE)),"",(VLOOKUP(A158,'Income Statement'!A:Y,25,FALSE))) ->  | E158: =IF(ISERROR(VLOOKUP(A158,'Income Statement'!A:Y,15,FALSE)),"",(VLOOKUP(A158,'Income Statement'!A:Y,15,FALSE))) ->  | F158: T12 | G158: Straight Line
A159: 57250 | B159: Postage | C159: 2500134 | D159: =IF(ISERROR(VLOOKUP(A159,'Income Statement'!A:Y,25,FALSE)),"",(VLOOKUP(A159,'Income Statement'!A:Y,25,FALSE))) ->  | E159: =IF(ISERROR(VLOOKUP(A159,'Income Statement'!A:Y,15,FALSE)),"",(VLOOKUP(A159,'Income Statement'!A:Y,15,FALSE))) ->  | F159: T12 | G159: Straight Line
A160: 57251 | B160: Postage Rental | C160: 2500134 | D160: =IF(ISERROR(VLOOKUP(A160,'Income Statement'!A:Y,25,FALSE)),"",(VLOOKUP(A160,'Income Statement'!A:Y,25,FALSE))) ->  | E160: =IF(ISERROR(VLOOKUP(A160,'Income Statement'!A:Y,15,FALSE)),"",(VLOOKUP(A160,'Income Statement'!A:Y,15,FALSE))) ->  | F160: T12 | G160: Straight Line
A161: 57252 | B161: Printing Costs | C161: 2500134 | D161: =IF(ISERROR(VLOOKUP(A161,'Income Statement'!A:Y,25,FALSE)),"",(VLOOKUP(A161,'Income Statement'!A:Y,25,FALSE))) -> 0.0001 | E161: =IF(ISERROR(VLOOKUP(A161,'Income Statement'!A:Y,15,FALSE)),"",(VLOOKUP(A161,'Income Statement'!A:Y,15,FALSE))) -> 11.32 | F161: T12 | G161: Straight Line
A162: 57257 | B162: Pentalties/Late Fees | C162: 2500134 | D162: =IF(ISERROR(VLOOKUP(A162,'Income Statement'!A:Y,25,FALSE)),"",(VLOOKUP(A162,'Income Statement'!A:Y,25,FALSE))) ->  | E162: =IF(ISERROR(VLOOKUP(A162,'Income Statement'!A:Y,15,FALSE)),"",(VLOOKUP(A162,'Income Statement'!A:Y,15,FALSE))) ->  | F162: T12 | G162: Straight Line
A163: 57260 | B163: Real Estate Commissions | C163: 2500134 | D163: =IF(ISERROR(VLOOKUP(A163,'Income Statement'!A:Y,25,FALSE)),"",(VLOOKUP(A163,'Income Statement'!A:Y,25,FALSE))) ->  | E163: =IF(ISERROR(VLOOKUP(A163,'Income Statement'!A:Y,15,FALSE)),"",(VLOOKUP(A163,'Income Statement'!A:Y,15,FALSE))) ->  | F163: T12 | G163: Straight Line
A164: 57262 | B164: Rental Bonus | C164: 2500134 | D164: =IF(ISERROR(VLOOKUP(A164,'Income Statement'!A:Y,25,FALSE)),"",(VLOOKUP(A164,'Income Statement'!A:Y,25,FALSE))) ->  | E164: =IF(ISERROR(VLOOKUP(A164,'Income Statement'!A:Y,15,FALSE)),"",(VLOOKUP(A164,'Income Statement'!A:Y,15,FALSE))) ->  | F164: T12 | G164: Straight Line
A165: 57265 | B165: Rent Subsidy | C165: 2500134 | D165: =IF(ISERROR(VLOOKUP(A165,'Income Statement'!A:Y,25,FALSE)),"",(VLOOKUP(A165,'Income Statement'!A:Y,25,FALSE))) ->  | E165: =IF(ISERROR(VLOOKUP(A165,'Income Statement'!A:Y,15,FALSE)),"",(VLOOKUP(A165,'Income Statement'!A:Y,15,FALSE))) ->  | F165: T12 | G165: Straight Line
A166: 57270 | B166: Rent | C166: 2500134 | D166: =IF(ISERROR(VLOOKUP(A166,'Income Statement'!A:Y,25,FALSE)),"",(VLOOKUP(A166,'Income Statement'!A:Y,25,FALSE))) ->  | E166: =IF(ISERROR(VLOOKUP(A166,'Income Statement'!A:Y,15,FALSE)),"",(VLOOKUP(A166,'Income Statement'!A:Y,15,FALSE))) ->  | F166: T12 | G166: Straight Line
A167: 57280 | B167: Repairs and maintenance | C167: 2500134 | D167: =IF(ISERROR(VLOOKUP(A167,'Income Statement'!A:Y,25,FALSE)),"",(VLOOKUP(A167,'Income Statement'!A:Y,25,FALSE))) ->  | E167: =IF(ISERROR(VLOOKUP(A167,'Income Statement'!A:Y,15,FALSE)),"",(VLOOKUP(A167,'Income Statement'!A:Y,15,FALSE))) ->  | F167: T12 | G167: Straight Line
A168: 57290 | B168: Resident Activities | C168: 2500134 | D168: =IF(ISERROR(VLOOKUP(A168,'Income Statement'!A:Y,25,FALSE)),"",(VLOOKUP(A168,'Income Statement'!A:Y,25,FALSE))) -> 308.36 | E168: =IF(ISERROR(VLOOKUP(A168,'Income Statement'!A:Y,15,FALSE)),"",(VLOOKUP(A168,'Income Statement'!A:Y,15,FALSE))) -> 824.77 | F168: 3 yr avg | G168: Straight Line
A169: 57291 | B169: Retirement Plan 401k Admin Fees | C169: 2500134 | D169: =IF(ISERROR(VLOOKUP(A169,'Income Statement'!A:Y,25,FALSE)),"",(VLOOKUP(A169,'Income Statement'!A:Y,25,FALSE))) -> 257.89 | E169: =IF(ISERROR(VLOOKUP(A169,'Income Statement'!A:Y,15,FALSE)),"",(VLOOKUP(A169,'Income Statement'!A:Y,15,FALSE))) -> 257.89 | F169: T12 | G169: Straight Line
A170: 57295 | B170: Software & Software Services | C170: 2500134 | D170: =IF(ISERROR(VLOOKUP(A170,'Income Statement'!A:Y,25,FALSE)),"",(VLOOKUP(A170,'Income Statement'!A:Y,25,FALSE))) -> 10550 | E170: =IF(ISERROR(VLOOKUP(A170,'Income Statement'!A:Y,15,FALSE)),"",(VLOOKUP(A170,'Income Statement'!A:Y,15,FALSE))) -> 7202.71 | F170: T12 | G170: Straight Line
A171: 57308 | B171: Training and Seminars | C171: 2500134 | D171: =IF(ISERROR(VLOOKUP(A171,'Income Statement'!A:Y,25,FALSE)),"",(VLOOKUP(A171,'Income Statement'!A:Y,25,FALSE))) -> 0 | E171: =IF(ISERROR(VLOOKUP(A171,'Income Statement'!A:Y,15,FALSE)),"",(VLOOKUP(A171,'Income Statement'!A:Y,15,FALSE))) -> 0 | F171: T12 | G171: Straight Line
A172: 57320 | B172: Travel | C172: 2500134 | D172: =IF(ISERROR(VLOOKUP(A172,'Income Statement'!A:Y,25,FALSE)),"",(VLOOKUP(A172,'Income Statement'!A:Y,25,FALSE))) ->  | E172: =IF(ISERROR(VLOOKUP(A172,'Income Statement'!A:Y,15,FALSE)),"",(VLOOKUP(A172,'Income Statement'!A:Y,15,FALSE))) ->  | F172: T12 | G172: Straight Line
A173: 57325 | B173: Telecommunications | C173: 2500134 | D173: =IF(ISERROR(VLOOKUP(A173,'Income Statement'!A:Y,25,FALSE)),"",(VLOOKUP(A173,'Income Statement'!A:Y,25,FALSE))) -> 0 | E173: =IF(ISERROR(VLOOKUP(A173,'Income Statement'!A:Y,15,FALSE)),"",(VLOOKUP(A173,'Income Statement'!A:Y,15,FALSE))) -> 0 | F173: T12 | G173: Straight Line
A174: 57340 | B174: Telephone: Land Line | C174: 2500134 | D174: =IF(ISERROR(VLOOKUP(A174,'Income Statement'!A:Y,25,FALSE)),"",(VLOOKUP(A174,'Income Statement'!A:Y,25,FALSE))) -> 4185.33 | E174: =IF(ISERROR(VLOOKUP(A174,'Income Statement'!A:Y,15,FALSE)),"",(VLOOKUP(A174,'Income Statement'!A:Y,15,FALSE))) -> 4185.33 | F174: T12 | G174: Straight Line
A175: 57341 | B175: Telephone Maintenance | C175: 2500134 | D175: =IF(ISERROR(VLOOKUP(A175,'Income Statement'!A:Y,25,FALSE)),"",(VLOOKUP(A175,'Income Statement'!A:Y,25,FALSE))) ->  | E175: =IF(ISERROR(VLOOKUP(A175,'Income Statement'!A:Y,15,FALSE)),"",(VLOOKUP(A175,'Income Statement'!A:Y,15,FALSE))) ->  | F175: T12 | G175: Straight Line
A176: 57342 | B176: Telephone:Mobile | C176: 2500134 | D176: =IF(ISERROR(VLOOKUP(A176,'Income Statement'!A:Y,25,FALSE)),"",(VLOOKUP(A176,'Income Statement'!A:Y,25,FALSE))) -> 279.74 | E176: =IF(ISERROR(VLOOKUP(A176,'Income Statement'!A:Y,15,FALSE)),"",(VLOOKUP(A176,'Income Statement'!A:Y,15,FALSE))) -> 279.74 | F176: T12 | G176: Straight Line
A177: 57344 | B177: Total Telecommunications | C177: 2500134 | D177: =IF(ISERROR(VLOOKUP(A177,'Income Statement'!A:Y,25,FALSE)),"",(VLOOKUP(A177,'Income Statement'!A:Y,25,FALSE))) ->  | E177: =IF(ISERROR(VLOOKUP(A177,'Income Statement'!A:Y,15,FALSE)),"",(VLOOKUP(A177,'Income Statement'!A:Y,15,FALSE))) ->  | F177: T12 | G177: Straight Line
A178: 57345 | B178: Temp Help (<=2015) | C178: 2500134 | D178: =IF(ISERROR(VLOOKUP(A178,'Income Statement'!A:Y,25,FALSE)),"",(VLOOKUP(A178,'Income Statement'!A:Y,25,FALSE))) ->  | E178: =IF(ISERROR(VLOOKUP(A178,'Income Statement'!A:Y,15,FALSE)),"",(VLOOKUP(A178,'Income Statement'!A:Y,15,FALSE))) ->  | F178: DNU | G178: DNU
A179: 57350 | B179: Uniforms | C179: 2500134 | D179: =IF(ISERROR(VLOOKUP(A179,'Income Statement'!A:Y,25,FALSE)),"",(VLOOKUP(A179,'Income Statement'!A:Y,25,FALSE))) -> 154 | E179: =IF(ISERROR(VLOOKUP(A179,'Income Statement'!A:Y,15,FALSE)),"",(VLOOKUP(A179,'Income Statement'!A:Y,15,FALSE))) -> 154 | F179: T12 | G179: Straight Line
A180: 57355 | B180: Utility Mgmt & Billing Fees (YES) | C180: 2500134 | D180: =IF(ISERROR(VLOOKUP(A180,'Income Statement'!A:Y,25,FALSE)),"",(VLOOKUP(A180,'Income Statement'!A:Y,25,FALSE))) -> 4570.93 | E180: =IF(ISERROR(VLOOKUP(A180,'Income Statement'!A:Y,15,FALSE)),"",(VLOOKUP(A180,'Income Statement'!A:Y,15,FALSE))) -> 4570.93 | F180: T12 | G180: Straight Line
A181: 57620 | B181: Condominium fee | C181: 2500134 | D181: =IF(ISERROR(VLOOKUP(A181,'Income Statement'!A:Y,25,FALSE)),"",(VLOOKUP(A181,'Income Statement'!A:Y,25,FALSE))) ->  | E181: =IF(ISERROR(VLOOKUP(A181,'Income Statement'!A:Y,15,FALSE)),"",(VLOOKUP(A181,'Income Statement'!A:Y,15,FALSE))) ->  | F181: T12 | G181: Straight Line
A182: 57998 | B182: General&Admin Other Budget | C182: 2500134 | D182: =IF(ISERROR(VLOOKUP(A182,'Income Statement'!A:Y,25,FALSE)),"",(VLOOKUP(A182,'Income Statement'!A:Y,25,FALSE))) ->  | E182: =IF(ISERROR(VLOOKUP(A182,'Income Statement'!A:Y,15,FALSE)),"",(VLOOKUP(A182,'Income Statement'!A:Y,15,FALSE))) ->  | F182: T12 | G182: Straight Line
A183: 40009 | B183: Roof Rental Income | C183: 5287936 | D183: =IF(ISERROR(VLOOKUP(A183,'Income Statement'!A:Y,25,FALSE)),"",(VLOOKUP(A183,'Income Statement'!A:Y,25,FALSE))) ->  | E183: =IF(ISERROR(VLOOKUP(A183,'Income Statement'!A:Y,15,FALSE)),"",(VLOOKUP(A183,'Income Statement'!A:Y,15,FALSE))) ->  | F183: T12 | G183: Straight Line | H183: 50155 | I183: CORP SUITES | J183: Head
A184: 40007 | B184: Commercial Space Income | C184: 5296274 | D184: =IF(ISERROR(VLOOKUP(A184,'Income Statement'!A:Y,25,FALSE)),"",(VLOOKUP(A184,'Income Statement'!A:Y,25,FALSE))) ->  | E184: =IF(ISERROR(VLOOKUP(A184,'Income Statement'!A:Y,15,FALSE)),"",(VLOOKUP(A184,'Income Statement'!A:Y,15,FALSE))) ->  | F184: T12 | G184: Straight Line | H184: 50001 | I184: OPERATING EXPENSES | J184: Head
A185: 40110 | B185: Community Room non-income unit | C185: 6299648 | D185: =IF(ISERROR(VLOOKUP(A185,'Income Statement'!A:Y,25,FALSE)),"",(VLOOKUP(A185,'Income Statement'!A:Y,25,FALSE))) ->  | E185: =IF(ISERROR(VLOOKUP(A185,'Income Statement'!A:Y,15,FALSE)),"",(VLOOKUP(A185,'Income Statement'!A:Y,15,FALSE))) ->  | F185: 3 yr avg | G185: Straight Line | H185: 56199 | I185: TOTAL SUPPLIES | J185: Tot
A186: 40130 | B186: Employee non income unit | C186: 6299648 | D186: =IF(ISERROR(VLOOKUP(A186,'Income Statement'!A:Y,25,FALSE)),"",(VLOOKUP(A186,'Income Statement'!A:Y,25,FALSE))) -> -10856.31 | E186: =IF(ISERROR(VLOOKUP(A186,'Income Statement'!A:Y,15,FALSE)),"",(VLOOKUP(A186,'Income Statement'!A:Y,15,FALSE))) -> -10856.31 | F186: T12 | G186: Straight Line | H186: 56299 | I186: TOTAL REPAIRS | J186: Tot
A187: 40132 | B187: Non-employee non income unit | C187: 6299648 | D187: =IF(ISERROR(VLOOKUP(A187,'Income Statement'!A:Y,25,FALSE)),"",(VLOOKUP(A187,'Income Statement'!A:Y,25,FALSE))) ->  | E187: =IF(ISERROR(VLOOKUP(A187,'Income Statement'!A:Y,15,FALSE)),"",(VLOOKUP(A187,'Income Statement'!A:Y,15,FALSE))) ->  | F187: 3 yr avg | G187: Straight Line | H187: 56350 | I187: TOTAL GOLF COURSE EXP | J187: Tot
A188: 40136 | B188: Exercise room non-income unit | C188: 6299648 | D188: =IF(ISERROR(VLOOKUP(A188,'Income Statement'!A:Y,25,FALSE)),"",(VLOOKUP(A188,'Income Statement'!A:Y,25,FALSE))) ->  | E188: =IF(ISERROR(VLOOKUP(A188,'Income Statement'!A:Y,15,FALSE)),"",(VLOOKUP(A188,'Income Statement'!A:Y,15,FALSE))) ->  | F188: T12 | G188: Straight Line | H188: 56499 | I188: TOTAL MAKE READY COSTS | J188: Tot
A189: 40140 | B189: Miscellaneous non income unit | C189: 6299648 | D189: =IF(ISERROR(VLOOKUP(A189,'Income Statement'!A:Y,25,FALSE)),"",(VLOOKUP(A189,'Income Statement'!A:Y,25,FALSE))) ->  | E189: =IF(ISERROR(VLOOKUP(A189,'Income Statement'!A:Y,15,FALSE)),"",(VLOOKUP(A189,'Income Statement'!A:Y,15,FALSE))) ->  | F189: T12 | G189: Straight Line | H189: 57155 | I189: Total Auto Expenses | J189: Tot
A190: 40150 | B190: Office non-income unit | C190: 6299648 | D190: =IF(ISERROR(VLOOKUP(A190,'Income Statement'!A:Y,25,FALSE)),"",(VLOOKUP(A190,'Income Statement'!A:Y,25,FALSE))) -> -3738.78 | E190: =IF(ISERROR(VLOOKUP(A190,'Income Statement'!A:Y,15,FALSE)),"",(VLOOKUP(A190,'Income Statement'!A:Y,15,FALSE))) -> -3738.78 | F190: T12 | G190: Straight Line | H190: 57344 | I190: Total Telecommunications | J190: Tot
A191: 40160 | B191: Sample non-income unit | C191: 6299648 | D191: =IF(ISERROR(VLOOKUP(A191,'Income Statement'!A:Y,25,FALSE)),"",(VLOOKUP(A191,'Income Statement'!A:Y,25,FALSE))) ->  | E191: =IF(ISERROR(VLOOKUP(A191,'Income Statement'!A:Y,15,FALSE)),"",(VLOOKUP(A191,'Income Statement'!A:Y,15,FALSE))) ->  | F191: T12 | G191: Straight Line | H191: 57999 | I191: TOTAL GENERAL & ADMINISTRATIVE | J191: Tot
A192: 40164 | B192: Shop non-income unit | C192: 6299648 | D192: =IF(ISERROR(VLOOKUP(A192,'Income Statement'!A:Y,25,FALSE)),"",(VLOOKUP(A192,'Income Statement'!A:Y,25,FALSE))) ->  | E192: =IF(ISERROR(VLOOKUP(A192,'Income Statement'!A:Y,15,FALSE)),"",(VLOOKUP(A192,'Income Statement'!A:Y,15,FALSE))) ->  | F192: T12 | G192: Straight Line | H192: 58999 | I192: TOTAL OPERATING EXPENSES | J192: Tot
A193: 40168 | B193: Storage non-income unit | C193: 6299648 | D193: =IF(ISERROR(VLOOKUP(A193,'Income Statement'!A:Y,25,FALSE)),"",(VLOOKUP(A193,'Income Statement'!A:Y,25,FALSE))) ->  | E193: =IF(ISERROR(VLOOKUP(A193,'Income Statement'!A:Y,15,FALSE)),"",(VLOOKUP(A193,'Income Statement'!A:Y,15,FALSE))) ->  | F193: T12 | G193: Straight Line | H193: 59999 | I193: NET OPERATING INCOME | J193: Tot
A194: 50160 | B194: Furniture Rental - Corp Suites | C194: 6740479 | D194: =IF(ISERROR(VLOOKUP(A194,'Income Statement'!A:Y,25,FALSE)),"",(VLOOKUP(A194,'Income Statement'!A:Y,25,FALSE))) ->  | E194: =IF(ISERROR(VLOOKUP(A194,'Income Statement'!A:Y,15,FALSE)),"",(VLOOKUP(A194,'Income Statement'!A:Y,15,FALSE))) ->  | F194: T12 | G194: Straight Line
A195: 50165 | B195: Cable Exp - Corp Suites | C195: 6740479 | D195: =IF(ISERROR(VLOOKUP(A195,'Income Statement'!A:Y,25,FALSE)),"",(VLOOKUP(A195,'Income Statement'!A:Y,25,FALSE))) ->  | E195: =IF(ISERROR(VLOOKUP(A195,'Income Statement'!A:Y,15,FALSE)),"",(VLOOKUP(A195,'Income Statement'!A:Y,15,FALSE))) ->  | F195: T12 | G195: Straight Line
A196: 50170 | B196: Telephone Exp - Corp Suites | C196: 6740479 | D196: =IF(ISERROR(VLOOKUP(A196,'Income Statement'!A:Y,25,FALSE)),"",(VLOOKUP(A196,'Income Statement'!A:Y,25,FALSE))) ->  | E196: =IF(ISERROR(VLOOKUP(A196,'Income Statement'!A:Y,15,FALSE)),"",(VLOOKUP(A196,'Income Statement'!A:Y,15,FALSE))) ->  | F196: T12 | G196: Straight Line
A197: 50175 | B197: Electric - Corp Suites | C197: 6740479 | D197: =IF(ISERROR(VLOOKUP(A197,'Income Statement'!A:Y,25,FALSE)),"",(VLOOKUP(A197,'Income Statement'!A:Y,25,FALSE))) ->  | E197: =IF(ISERROR(VLOOKUP(A197,'Income Statement'!A:Y,15,FALSE)),"",(VLOOKUP(A197,'Income Statement'!A:Y,15,FALSE))) ->  | F197: T12 | G197: Straight Line
A198: 50190 | B198: Other Exp - Corp Suites | C198: 6740479 | D198: =IF(ISERROR(VLOOKUP(A198,'Income Statement'!A:Y,25,FALSE)),"",(VLOOKUP(A198,'Income Statement'!A:Y,25,FALSE))) ->  | E198: =IF(ISERROR(VLOOKUP(A198,'Income Statement'!A:Y,15,FALSE)),"",(VLOOKUP(A198,'Income Statement'!A:Y,15,FALSE))) ->  | F198: T12 | G198: Straight Line
A199: 50130 | B199: Water Expense (some incl sewer) | C199: 7884319 | D199: =IF(ISERROR(VLOOKUP(A199,'Income Statement'!A:Y,25,FALSE)),"",(VLOOKUP(A199,'Income Statement'!A:Y,25,FALSE))) -> 31505.45455 | E199: =IF(ISERROR(VLOOKUP(A199,'Income Statement'!A:Y,15,FALSE)),"",(VLOOKUP(A199,'Income Statement'!A:Y,15,FALSE))) -> 36855.24 | F199: T12 | G199: Based on T-12
A200: 56110 | B200: Appliance Repair Supplies | C200: 8696052 | D200: =IF(ISERROR(VLOOKUP(A200,'Income Statement'!A:Y,25,FALSE)),"",(VLOOKUP(A200,'Income Statement'!A:Y,25,FALSE))) -> 158.22 | E200: =IF(ISERROR(VLOOKUP(A200,'Income Statement'!A:Y,15,FALSE)),"",(VLOOKUP(A200,'Income Statement'!A:Y,15,FALSE))) -> 0 | F200: 3 yr avg | G200: Straight Line
A201: 56112 | B201: Blinds Supplies | C201: 8696052 | D201: =IF(ISERROR(VLOOKUP(A201,'Income Statement'!A:Y,25,FALSE)),"",(VLOOKUP(A201,'Income Statement'!A:Y,25,FALSE))) -> 0.0001 | E201: =IF(ISERROR(VLOOKUP(A201,'Income Statement'!A:Y,15,FALSE)),"",(VLOOKUP(A201,'Income Statement'!A:Y,15,FALSE))) -> 0 | F201: 3 yr avg | G201: Straight Line
... 160 more rows

Sheet DETAIL IS REPORT
A1: Willow Bend (120)
A2: Budget Season Report - Enter end of year date
A3: Period = Dec 2024
A4: Book = Accrual ; Tree = mgr_is
C5: 2024 Est/Act | D5: Variance $ 2025 Bud vs 2024 Act/Bud | E5: Variance % 2025 Bud vs 2024 Act/Bud | F5: 2025 Budget | G5: Variance
A6: 39999 | B6: INCOME | G6: =F6-#REF! -> 
A7: 40001 | B7: Market Rent | C7: 1042190 | D7: -1042190 | E7: -100 | F7: =VLOOKUP(A7,Methodology!A:D,4,FALSE) -> 1100088 | G7: =F7-C7 -> 57898
A8: 40003 | B8: Loss to Lease | C8: 10958.45 | D8: -10958.45 | E8: -100 | F8: =VLOOKUP(A8,Methodology!A:D,4,FALSE) -> -19560.85383 | G8: =F8-C8 -> -30519.30383
A9: 40004 | B9: Vacancy | C9: -66794.07 | D9: 66794.07 | E9: -100 | F9: =VLOOKUP(A9,Methodology!A:D,4,FALSE) -> -58671.36 | G9: 8122.71
A10: 40005 | B10: Late charge income | C10: 10509 | D10: -10509 | E10: -100 | F10: =VLOOKUP(A10,Methodology!A:D,4,FALSE) -> 12500 | G10: 1991 | H10: =+G10 -> 1991 | I10: =+F10 -> 12500 | J10: =+E10 -> -100
A11: 40006 | B11: Check fee income | C11: -320 | D11: 320 | E11: -100 | F11: =VLOOKUP(A11,Methodology!A:D,4,FALSE) -> 0.0001 | G11: 320.0001 | H11: 320.0001 | I11: 0.0001 | J11: -100
A12: 40008 | B12: Court cost fee income | C12: 8167.8 | D12: -8167.8 | E12: -100 | F12: =VLOOKUP(A12,Methodology!A:D,4,FALSE) -> 6737.12 | G12: -1430.68 | H12: -1430.68 | I12: 6737.12 | J12: -100
A13: 40010 | B13: Damage incomes | C13: 6945 | D13: -6945 | E13: -100 | F13: =VLOOKUP(A13,Methodology!A:D,4,FALSE) -> 9582.33 | G13: 2637.33 | H13: 2637.33 | I13: 9582.33 | J13: -100
A14: 40020 | B14: Pet fee income | C14: 2417.71 | D14: -2417.71 | E14: -100 | F14: =VLOOKUP(A14,Methodology!A:D,4,FALSE) -> 2683.85 | G14: 266.14 | H14: 266.14 | I14: 2683.85 | J14: -100
A15: 40021 | B15: Early Lease Termination fees | C15: 2001.65 | D15: -2001.65 | E15: -100 | F15: =VLOOKUP(A15,Methodology!A:D,4,FALSE) -> 2500 | G15: 498.35 | H15: 498.35 | I15: 2500 | J15: -100
A16: 40024 | B16: Application fee income | C16: 2816.65 | D16: -2816.65 | E16: -100 | F16: =VLOOKUP(A16,Methodology!A:D,4,FALSE) -> 2000 | G16: -816.65 | H16: -816.65 | I16: 2000 | J16: -100
A17: 40053 | B17: Laundry and vending income | C17: 11199.14 | D17: -11199.14 | E17: -100 | F17: =VLOOKUP(A17,Methodology!A:D,4,FALSE) -> 10745.26 | G17: -453.88 | H17: -453.88 | I17: 10745.26 | J17: -100
A18: 40056 | B18: Telecom marketing income | C18: 2534.21 | D18: -2534.21 | E18: -100 | F18: =VLOOKUP(A18,Methodology!A:D,4,FALSE) -> 2677.83 | G18: 143.62
A19: 40130 | B19: Employee non income unit | C19: -12442.73 | D19: 12442.73 | E19: -100 | F19: =VLOOKUP(A19,Methodology!A:D,4,FALSE) -> -10856.31 | G19: 1586.42 | H19: =+G19 -> 1586.42 | I19: =+F19 -> -10856.31 | J19: =+E19 -> -100
A20: 40150 | B20: Office non-income unit | C20: -3713.61 | D20: 3713.61 | E20: -100 | F20: =VLOOKUP(A20,Methodology!A:D,4,FALSE) -> -3738.78 | G20: -25.17
A21: 40206 | B21: Discounts-Government | C21: -850.6 | D21: 850.6 | E21: -100 | F21: =VLOOKUP(A21,Methodology!A:D,4,FALSE) -> -848.85 | G21: 1.75
A22: 40210 | B22: Concessions-Marketing | C22: -1833.35 | D22: 1833.35 | E22: -100 | F22: =VLOOKUP(A22,Methodology!A:D,4,FALSE) -> -1000 | G22: 833.35
A23: 40214 | B23: Concession-Inconvenience | C23: 0 | D23: 0 | E23: 0 | F23: =VLOOKUP(A23,Methodology!A:D,4,FALSE) -> 0.0001 | G23: 0.0001
A24: 40302 | B24: Renters Ins Income | C24: 265.31 | D24: -265.31 | E24: -100 | F24: =VLOOKUP(A24,Methodology!A:D,4,FALSE) -> 623.67 | G24: 358.36
A25: 40347 | B25: Allowance for Doubtful Accounts | C25: 13393.09 | D25: -13393.09 | E25: -100 | F25: =VLOOKUP(A25,Methodology!A:D,4,FALSE) ->  | H25: =+G25 ->  | I25: =+F25 ->  | J25: =+E25 -> -100
A26: 40350 | B26: Bad Debts-Rent & Utils | C26: -66843.12 | D26: 66843.12 | E26: -100 | F26: =VLOOKUP(A26,Methodology!A:D,4,FALSE) -> -42681.18 | G26: 24161.94
A27: 40351 | B27: Recovery Bad Debt | C27: 2919.61 | D27: -2919.61 | E27: -100 | F27: =VLOOKUP(A27,Methodology!A:D,4,FALSE) -> 2057.25 | G27: -862.36
A28: 40352 | B28: Bad Debts-Termination Fee | C28: -1222.5 | D28: 1222.5 | E28: -100 | F28: =VLOOKUP(A28,Methodology!A:D,4,FALSE) -> -2934.1 | G28: -1711.6
A29: 40398 | B29: Rent Adjustment | C29: -1125.54 | D29: 1125.54 | E29: -100 | F29: =VLOOKUP(A29,Methodology!A:D,4,FALSE) -> 0 | G29: 1125.54
A30: 49999 | B30: TOTAL INCOME | C30: 961172.1 | D30: -961172.1 | E30: -100 | F30: =VLOOKUP(A30,Methodology!A:D,4,FALSE) -> 
A31: 50001 | B31: OPERATING EXPENSES | F31: =VLOOKUP(A31,Methodology!A:D,4,FALSE) -> 
A32: 50100 | B32: UTILITIES | F32: =VLOOKUP(A32,Methodology!A:D,4,FALSE) -> 
A33: 50110 | B33: Electric Expense | C33: 7854.34 | D33: 7854.34 | E33: 100 | F33: =VLOOKUP(A33,Methodology!A:D,4,FALSE) -> 8600 | G33: 745.66
A34: 50111 | B34: Electric Income | C34: -1241.09 | D34: -1241.09 | E34: -100 | F34: =VLOOKUP(A34,Methodology!A:D,4,FALSE) -> 0.0001 | G34: 1241.0901
A35: 50120 | B35: Gas Expense | C35: 36606 | D35: 36606 | E35: 100 | F35: =VLOOKUP(A35,Methodology!A:D,4,FALSE) -> 41859.42 | G35: 5253.42
A36: 50121 | B36: Gas Income | C36: -39171.27 | D36: -39171.27 | E36: -100 | F36: =VLOOKUP(A36,Methodology!A:D,4,FALSE) -> -41612.54 | G36: -2441.27
A37: 50130 | B37: Water Expense (some incl sewer) | C37: 38020.41 | D37: 38020.41 | E37: 100 | F37: =VLOOKUP(A37,Methodology!A:D,4,FALSE) -> 31505.45455 | G37: -6514.955455
A38: 50140 | B38: Sewer Expense | C38: 10478.87 | D38: 10478.87 | E38: 100 | F38: =VLOOKUP(A38,Methodology!A:D,4,FALSE) -> 11007.66 | G38: 528.79
A39: 50150 | B39: TOTAL UTILITIES | C39: 52547.26 | D39: 52547.26 | E39: 100 | F39: =VLOOKUP(A39,Methodology!A:D,4,FALSE) -> 
A40: 51000 | B40: PAYROLL EXPENSE | F40: =VLOOKUP(A40,Methodology!A:D,4,FALSE) -> 
A41: 51202 | B41: Community Managers | C41: 13749.71 | D41: 13749.71 | E41: 100 | F41: =VLOOKUP(A41,Methodology!A:D,4,FALSE) -> 18733.07853 | G41: 4983.368526
A42: 51204 | B42: Assistant Managers | C42: 12265.1 | D42: 12265.1 | E42: 100 | F42: =VLOOKUP(A42,Methodology!A:D,4,FALSE) -> 13453.02076 | G42: 1187.920756
A43: 51205 | B43: Resident Services | C43: 8491.75 | D43: 8491.75 | E43: 100 | F43: =VLOOKUP(A43,Methodology!A:D,4,FALSE) -> 10620.80586 | G43: 2129.05586
A44: 51210 | B44: Maintenance-super | C44: 12806.28 | D44: 12806.28 | E44: 100 | F44: =VLOOKUP(A44,Methodology!A:D,4,FALSE) -> 13486.7376 | G44: 680.4576
A45: 51211 | B45: Maintenance-staff | C45: 31789.33 | D45: 31789.33 | E45: 100 | F45: =VLOOKUP(A45,Methodology!A:D,4,FALSE) -> 33750.56084 | G45: 1961.230844
A46: 51270 | B46: Payroll Bonuses | C46: 2784.87 | D46: 2784.87 | E46: 100 | F46: =VLOOKUP(A46,Methodology!A:D,4,FALSE) -> 5130 | G46: 2345.13
A47: 51450 | B47: Temp Help | C47: 2592.13 | D47: 2592.13 | E47: 100 | F47: =VLOOKUP(A47,Methodology!A:D,4,FALSE) -> 
A48: 51530 | B48: Payroll Taxes-Employer | C48: 7431.44 | D48: 7431.44 | E48: 100 | F48: =VLOOKUP(A48,Methodology!A:D,4,FALSE) -> 9767.698359 | G48: 2336.258359
A49: 51531 | B49: 401k Match Co. Exp | C49: 2525.34 | D49: 2525.34 | E49: 100 | F49: =VLOOKUP(A49,Methodology!A:D,4,FALSE) -> 2930.309508 | G49: 404.9695076
A50: 51540 | B50: Workers Compensation Ins | C50: 1573.42 | D50: 1573.42 | E50: 100 | F50: =VLOOKUP(A50,Methodology!A:D,4,FALSE) -> 864 | G50: -709.42
A51: 51560 | B51: Health & Dental Ins Benefits | C51: 15064.69 | D51: 15064.69 | E51: 100 | F51: =VLOOKUP(A51,Methodology!A:D,4,FALSE) -> 12864 | G51: -2200.69
A52: 51999 | B52: TOTAL PAYROLL EXPENSE | C52: 0 | D52: 0 | E52: N/A | F52: =VLOOKUP(A52,Methodology!A:D,4,FALSE) -> 
A53: 55000 | B53: FIXED EXPENSES | F53: =VLOOKUP(A53,Methodology!A:D,4,FALSE) -> 
A54: 55010 | B54: Real estate taxes | C54: 65157.84 | D54: 65157.84 | E54: 100 | F54: =VLOOKUP(A54,Methodology!A:D,4,FALSE) -> 65157.89 | G54: 0.05
A55: 55030 | B55: Bond Expense | C55: 860.16 | D55: 860.16 | E55: 100 | F55: =VLOOKUP(A55,Methodology!A:D,4,FALSE) -> 885.9648 | G55: 25.8048
A56: 55040 | B56: Ins-Bldg/Fire-Liab-Boiler-Machinery | C56: 69380.09 | D56: 69380.09 | E56: 100 | F56: =VLOOKUP(A56,Methodology!A:D,4,FALSE) -> 82300 | G56: 12919.91
A57: 55050 | B57: Management fees | C57: 72263.32 | D57: 72263.32 | E57: 100 | F57: =VLOOKUP(A57,Methodology!A:D,4,FALSE) -> 44195.05644 | G57: -28068.26356
A58: 55999 | B58: TOTAL FIXED EXPENSES | C58: 0 | D58: 0 | E58: N/A | F58: =VLOOKUP(A58,Methodology!A:D,4,FALSE) -> 
A59: 56000 | B59: SUPPLIES | F59: =VLOOKUP(A59,Methodology!A:D,4,FALSE) -> 
A60: 56110 | B60: Appliance Repair Supplies | C60: 102.5 | D60: 102.5 | E60: 100 | F60: =VLOOKUP(A60,Methodology!A:D,4,FALSE) -> 158.22 | G60: 55.72
A61: 56113 | B61: Building Supplies | C61: 20.17 | D61: 20.17 | E61: 100 | F61: =VLOOKUP(A61,Methodology!A:D,4,FALSE) -> 209.02 | G61: 188.85
A62: 56114 | B62: Carpentry Supplies | C62: 207.5 | D62: 207.5 | E62: 100 | F62: =VLOOKUP(A62,Methodology!A:D,4,FALSE) -> 409.64 | G62: 202.14
A63: 56116 | B63: Custodial Supplies | C63: 507.89 | D63: 507.89 | E63: 100 | F63: =VLOOKUP(A63,Methodology!A:D,4,FALSE) -> 630.32 | G63: 122.43
A64: 56117 | B64: Decorating Supplies | C64: 33.5 | D64: 33.5 | E64: 100 | F64: =VLOOKUP(A64,Methodology!A:D,4,FALSE) -> 0.0001 | G64: -33.4999
A65: 56118 | B65: Doors Supplies | C65: 90.4 | D65: 90.4 | E65: 100 | F65: =VLOOKUP(A65,Methodology!A:D,4,FALSE) -> 160.42 | G65: 70.02
A66: 56119 | B66: Electrical Supplies | C66: 1519.36 | D66: 1519.36 | E66: 100 | F66: =VLOOKUP(A66,Methodology!A:D,4,FALSE) -> 1483.45 | G66: -35.91
A67: 56123 | B67: Fire Protection Supplies | C67: 370.39 | D67: 370.39 | E67: 100 | F67: =VLOOKUP(A67,Methodology!A:D,4,FALSE) -> 273.32 | G67: -97.07
A68: 56125 | B68: Flooring-Tile Supplies | C68: 138.26 | D68: 138.26 | E68: 100 | F68: =VLOOKUP(A68,Methodology!A:D,4,FALSE) -> 170.69 | G68: 32.43
A69: 56128 | B69: HVAC Supplies | C69: 162.63 | D69: 162.63 | E69: 100 | F69: =VLOOKUP(A69,Methodology!A:D,4,FALSE) -> 355.29 | G69: 192.66
A70: 56129 | B70: Keys & Locks Supplies | C70: 274.05 | D70: 274.05 | E70: 100 | F70: =VLOOKUP(A70,Methodology!A:D,4,FALSE) -> 637.07 | G70: 363.02
A71: 56131 | B71: Landscaping Supplies | C71: 287.01 | D71: 287.01 | E71: 100 | F71: =VLOOKUP(A71,Methodology!A:D,4,FALSE) -> 283.74 | G71: -3.27
A72: 56133 | B72: Misc Supplies | C72: 94.2 | D72: 94.2 | E72: 100 | F72: =VLOOKUP(A72,Methodology!A:D,4,FALSE) -> 154.89 | G72: =F72-C72 -> 60.69
A73: 56134 | B73: Painting Supplies | C73: -27.96 | D73: -27.96 | E73: -100 | F73: =VLOOKUP(A73,Methodology!A:D,4,FALSE) -> 286.6 | G73: 314.56
A74: 56136 | B74: Plumbing Supplies | C74: 2327.23 | D74: 2327.23 | E74: 100 | F74: =VLOOKUP(A74,Methodology!A:D,4,FALSE) -> 2146.01 | G74: -181.22
A75: 56141 | B75: Signs Supplies | C75: 0 | D75: 0 | E75: N/A | F75: =VLOOKUP(A75,Methodology!A:D,4,FALSE) -> 0.0001 | G75: 0.0001
A76: 56142 | B76: Snow Removal Supplies | C76: 224.75 | D76: 224.75 | E76: 100 | F76: =VLOOKUP(A76,Methodology!A:D,4,FALSE) -> 236.98 | G76: 12.23
A77: 56150 | B77: Air conditioners | C77: 2559.11 | D77: 2559.11 | E77: 100 | F77: =VLOOKUP(A77,Methodology!A:D,4,FALSE) -> 2409.49 | G77: -149.62
A78: 56151 | B78: Dishwashers | C78: 257.1 | D78: 257.1 | E78: 100 | F78: =VLOOKUP(A78,Methodology!A:D,4,FALSE) -> 273.24 | G78: 16.14
A79: 56152 | B79: Garbage disposals | C79: 532.84 | D79: 532.84 | E79: 100 | F79: =VLOOKUP(A79,Methodology!A:D,4,FALSE) -> 351.15 | G79: -181.69
A80: 56153 | B80: Microwaves | C80: 563.59 | D80: 563.59 | E80: 100 | F80: =VLOOKUP(A80,Methodology!A:D,4,FALSE) -> 464.04 | G80: -99.55
A81: 56154 | B81: Ranges/ovens | C81: 556.25 | D81: 556.25 | E81: 100 | F81: =VLOOKUP(A81,Methodology!A:D,4,FALSE) -> 1478.24 | G81: 921.99
A82: 56155 | B82: Refrigerators | C82: 1313.57 | D82: 1313.57 | E82: 100 | F82: =VLOOKUP(A82,Methodology!A:D,4,FALSE) -> 1233 | G82: -80.57
A83: 56199 | B83: TOTAL SUPPLIES | C83: 0 | D83: 0 | E83: N/A | F83: =VLOOKUP(A83,Methodology!A:D,4,FALSE) -> 
A84: 56200 | B84: REPAIRS | F84: =VLOOKUP(A84,Methodology!A:D,4,FALSE) -> 
A85: 56215 | B85: Carpeting/Flooring Contractor | C85: 300.52 | D85: 300.52 | E85: 100 | F85: =VLOOKUP(A85,Methodology!A:D,4,FALSE) -> 194.04 | G85: -106.48
A86: 56216 | B86: Custodial Contractor | C86: 11721.16 | D86: 11721.16 | E86: 100 | F86: =VLOOKUP(A86,Methodology!A:D,4,FALSE) -> 12740 | G86: 1018.84
A87: 56217 | B87: Decorating Contractor | C87: 18.76 | D87: 18.76 | E87: 100 | F87: =VLOOKUP(A87,Methodology!A:D,4,FALSE) -> 0.0001 | G87: -18.7599
A88: 56219 | B88: Electrical Contractor | C88: 1756.82 | D88: 1756.82 | E88: 100 | F88: =VLOOKUP(A88,Methodology!A:D,4,FALSE) -> 872.41 | G88: -884.41
A89: 56221 | B89: Exterminating Contractor | C89: 1438.37 | D89: 1438.37 | E89: 100 | F89: =VLOOKUP(A89,Methodology!A:D,4,FALSE) -> 1487 | G89: 48.63
A90: 56223 | B90: Fire System Contractor | C90: 4926.12 | D90: 4926.12 | E90: 100 | F90: =VLOOKUP(A90,Methodology!A:D,4,FALSE) -> 3500 | G90: -1426.12
A91: 56224 | B91: Fire Alarm Monitoring | C91: 675 | D91: 675 | E91: 100 | F91: =VLOOKUP(A91,Methodology!A:D,4,FALSE) -> 1620 | G91: 945
A92: 56228 | B92: HVAC Contractor | C92: 8520.47 | D92: 8520.47 | E92: 100 | F92: =VLOOKUP(A92,Methodology!A:D,4,FALSE) -> 6392.44 | G92: -2128.03
A93: 56231 | B93: Landscaping Contractor | C93: 22595.29 | D93: 22595.29 | E93: 100 | F93: =VLOOKUP(A93,Methodology!A:D,4,FALSE) -> 26000 | G93: 3404.71
A94: 56234 | B94: Painting Contractor | C94: 3146.65 | D94: 3146.65 | E94: 100 | F94: =VLOOKUP(A94,Methodology!A:D,4,FALSE) -> 2765.67 | G94: -380.98
A95: 56236 | B95: Plumbing Contractror | C95: 7142.78 | D95: 7142.78 | E95: 100 | F95: =VLOOKUP(A95,Methodology!A:D,4,FALSE) -> 5500 | G95: -1642.78
A96: 56239 | B96: Roofing Contractor | C96: 300 | D96: 300 | E96: 100 | F96: =VLOOKUP(A96,Methodology!A:D,4,FALSE) -> 1465 | G96: 1165
A97: 56240 | B97: Security Contractor | C97: 555 | D97: 555 | E97: 100 | F97: =VLOOKUP(A97,Methodology!A:D,4,FALSE) -> 0 | G97: -555
A98: 56241 | B98: Signs Contractor | C98: 0 | D98: 0 | E98: N/A | F98: =VLOOKUP(A98,Methodology!A:D,4,FALSE) -> 0.0001 | G98: 0.0001
A99: 56242 | B99: Snow Removal Contractor | C99: 9224.15 | D99: 9224.15 | E99: 100 | F99: =VLOOKUP(A99,Methodology!A:D,4,FALSE) -> 7200 | G99: -2024.15
A100: 56244 | B100: Trash Removal | C100: 14363.91 | D100: 14363.91 | E100: 100 | F100: =VLOOKUP(A100,Methodology!A:D,4,FALSE) -> 14300 | G100: -63.91
A101: 56245 | B101: Windows and Glass Contractor | C101: 143.35 | D101: 143.35 | E101: 100 | F101: =VLOOKUP(A101,Methodology!A:D,4,FALSE) -> 0.0001 | G101: -143.3499
A102: 56299 | B102: TOTAL REPAIRS | C102: 0 | D102: 0 | E102: N/A | F102: =VLOOKUP(A102,Methodology!A:D,4,FALSE) -> 0 | G102: 0
A103: 56400 | B103: MAKE READY | F103: =VLOOKUP(A103,Methodology!A:D,4,FALSE) -> 
A104: 56402 | B104: Appliances Make Ready | C104: 1805.96 | D104: 1805.96 | E104: 100 | F104: =VLOOKUP(A104,Methodology!A:D,4,FALSE) -> 406.116 | G104: -1399.844
A105: 56405 | B105: Bath MR | C105: 5004.14 | D105: 5004.14 | E105: 100 | F105: =VLOOKUP(A105,Methodology!A:D,4,FALSE) -> 3895.858576 | G105: -1108.281424
A106: 56410 | B106: Carpet MR | C106: 584.58 | D106: 584.58 | E106: 100 | F106: =VLOOKUP(A106,Methodology!A:D,4,FALSE) -> 174.4606061 | G106: -410.1193939
A107: 56412 | B107: Cleaning Make Ready | C107: 3546.08 | D107: 3546.08 | E107: 100 | F107: =VLOOKUP(A107,Methodology!A:D,4,FALSE) -> 2964.321455 | G107: -581.7585455
A108: 56413 | B108: Doors Make Ready | C108: 0 | D108: 0 | E108: N/A | F108: =VLOOKUP(A108,Methodology!A:D,4,FALSE) -> 62.28715152 | G108: 62.28715152
A109: 56415 | B109: Electrical MR | C109: 0 | D109: 0 | E109: N/A | F109: =VLOOKUP(A109,Methodology!A:D,4,FALSE) -> 62.97084848 | G109: 62.97084848
A110: 56420 | B110: Flooring Other MR | C110: 1771.86 | D110: 1771.86 | E110: 100 | F110: =VLOOKUP(A110,Methodology!A:D,4,FALSE) -> 1654.570242 | G110: -117.2897576
A111: 56422 | B111: Kitchen Make Ready | C111: 715.57 | D111: 715.57 | E111: 100 | F111: =VLOOKUP(A111,Methodology!A:D,4,FALSE) -> 559.865303 | G111: -155.704697
A112: 56425 | B112: Labor MR | C112: 357.04 | D112: 357.04 | E112: 100 | F112: =VLOOKUP(A112,Methodology!A:D,4,FALSE) -> 176.8181818 | G112: -180.2218182
A113: 56430 | B113: Misc MR | C113: 487.82 | D113: 487.82 | E113: 100 | F113: =VLOOKUP(A113,Methodology!A:D,4,FALSE) -> 91.43857576 | G113: -396.3814242
A114: 56435 | B114: Paint MR | C114: 8892.38 | D114: 8892.38 | E114: 100 | F114: =VLOOKUP(A114,Methodology!A:D,4,FALSE) -> 
A115: 56440 | B115: Plumbing MR | C115: 0 | D115: 0 | E115: N/A | F115: =VLOOKUP(A115,Methodology!A:D,4,FALSE) -> 60.80187879 | G115: 60.80187879
A116: 56499 | B116: Total Make Ready | C116: 0 | D116: 0 | E116: N/A | F116: =VLOOKUP(A116,Methodology!A:D,4,FALSE) -> 
A117: 57000 | B117: GENERAL & ADMINISTRATIVE | F117: =VLOOKUP(A117,Methodology!A:D,4,FALSE) -> 
A118: 57100 | B118: Accounting Fees | C118: 2950 | D118: 2950 | E118: 100 | F118: =VLOOKUP(A118,Methodology!A:D,4,FALSE) -> 3077.51 | G118: 127.51
A119: 57110 | B119: Advertising | C119: 5166.07 | D119: 5166.07 | E119: 100 | F119: =VLOOKUP(A119,Methodology!A:D,4,FALSE) -> 4800 | G119: -366.07
A120: 57126 | B120: Answering Service | C120: 1035.76 | D120: 1035.76 | E120: 100 | F120: =VLOOKUP(A120,Methodology!A:D,4,FALSE) -> 1058.36 | G120: 22.6
A121: 57130 | B121: Auto Expenses | F121: =VLOOKUP(A121,Methodology!A:D,4,FALSE) -> 0 | G121: 0
A122: 57142 | B122: Automobile-Gas | C122: 16.71 | D122: 16.71 | E122: 100 | F122: =VLOOKUP(A122,Methodology!A:D,4,FALSE) -> 5.57 | G122: -11.14
A123: 57147 | B123: Automobile-Mileage Reimb | C123: 679.06 | D123: 679.06 | E123: 100 | F123: =VLOOKUP(A123,Methodology!A:D,4,FALSE) -> 924 | G123: 244.94
A124: 57150 | B124: Automobile-Parking and Tolls | C124: 0 | D124: 0 | E124: N/A | F124: =VLOOKUP(A124,Methodology!A:D,4,FALSE) -> 470 | G124: 470
A125: 57164 | B125: Bank Charges | C125: 3656.83 | D125: 3656.83 | E125: 100 | F125: =VLOOKUP(A125,Methodology!A:D,4,FALSE) -> 2600.97 | G125: -1055.86
A126: 57170 | B126: Credit checks | C126: 1892.59 | D126: 1892.59 | E126: 100 | F126: =VLOOKUP(A126,Methodology!A:D,4,FALSE) -> 1306.7 | G126: -585.89
A127: 57176 | B127: Dues and Subscriptions | C127: 1267.48 | D127: 1267.48 | E127: 100 | F127: =VLOOKUP(A127,Methodology!A:D,4,FALSE) -> 1133.19 | G127: -134.29
A128: 57190 | B128: Eviction costs | C128: 950.98 | D128: 950.98 | E128: 100 | F128: =VLOOKUP(A128,Methodology!A:D,4,FALSE) -> 591.19 | G128: -359.79
A129: 57192 | B129: Eviction costs-Legal | C129: 11303.9 | D129: 11303.9 | E129: 100 | F129: =VLOOKUP(A129,Methodology!A:D,4,FALSE) -> 10439.45 | G129: -864.45
A130: 57199 | B130: Internet Expense | C130: 2271.5 | D130: 2271.5 | E130: 100 | F130: =VLOOKUP(A130,Methodology!A:D,4,FALSE) -> 2261.81 | G130: -9.69
A131: 57210 | B131: Licenses and Fees | C131: 4556 | D131: 4556 | E131: 100 | F131: =VLOOKUP(A131,Methodology!A:D,4,FALSE) -> 5518.44 | G131: 962.44
A132: 57225 | B132: Marketing Expense | C132: 5183.05 | D132: 5183.05 | E132: 100 | F132: =VLOOKUP(A132,Methodology!A:D,4,FALSE) -> 3820 | G132: -1363.05
A133: 57227 | B133: Meetings & Conferences | C133: 106.25 | D133: 106.25 | E133: 100 | F133: =VLOOKUP(A133,Methodology!A:D,4,FALSE) -> 106.25 | G133: 0
A134: 57230 | B134: Food/Coffee Service | C134: 518.49 | D134: 518.49 | E134: 100 | F134: =VLOOKUP(A134,Methodology!A:D,4,FALSE) -> 502.14 | G134: -16.35
A135: 57240 | B135: Office expenses | C135: 348.83 | D135: 348.83 | E135: 100 | F135: =VLOOKUP(A135,Methodology!A:D,4,FALSE) -> 496.26 | G135: 147.43
A136: 57246 | B136: PR Service Fees | C136: 654.05 | D136: 654.05 | E136: 100 | F136: =VLOOKUP(A136,Methodology!A:D,4,FALSE) -> 871.35 | G136: =F136-C136 -> 217.3
A137: 57252 | B137: Printing Costs | C137: 11.32 | D137: 11.32 | E137: 100 | F137: =VLOOKUP(A137,Methodology!A:D,4,FALSE) -> 0.0001 | G137: -11.3199
A138: 57290 | B138: Resident Activities | C138: 612.55 | D138: 612.55 | E138: 100 | F138: =VLOOKUP(A138,Methodology!A:D,4,FALSE) -> 308.36 | G138: -304.19
A139: 57291 | B139: Retirement Plan 401k Admin Fees | C139: 285.49 | D139: 285.49 | E139: 100 | F139: =VLOOKUP(A139,Methodology!A:D,4,FALSE) -> 257.89 | G139: -27.6
A140: 57295 | B140: Software & Software Services | C140: 6496.93 | D140: 6496.93 | E140: 100 | F140: =VLOOKUP(A140,Methodology!A:D,4,FALSE) -> 10550 | G140: 4053.07
A141: 57325 | B141: Telecommunications | F141: =VLOOKUP(A141,Methodology!A:D,4,FALSE) -> 0 | G141: 0
A142: 57340 | B142: Telephone: Land Line | C142: 3990.28 | D142: 3990.28 | E142: 100 | F142: =VLOOKUP(A142,Methodology!A:D,4,FALSE) -> 4185.33 | G142: 195.05
A143: 57342 | B143: Telephone:Mobile | C143: 274.53 | D143: 274.53 | E143: 100 | F143: =VLOOKUP(A143,Methodology!A:D,4,FALSE) -> 279.74 | G143: 5.21
A144: 57350 | B144: Uniforms | C144: 108.03 | D144: 108.03 | E144: 100 | F144: =VLOOKUP(A144,Methodology!A:D,4,FALSE) -> 154 | G144: 45.97
A145: 57355 | B145: Utility Mgmt & Billing Fees(YES) | C145: 4203.46 | D145: 4203.46 | E145: 100 | F145: =VLOOKUP(A145,Methodology!A:D,4,FALSE) -> 4570.93 | G145: 367.47
A146: 57999 | B146: TOTAL GENERAL & ADMINISTRATIVE | C146: 0 | D146: 0 | E146: N/A | F146: =VLOOKUP(A146,Methodology!A:D,4,FALSE) -> 
A147: 58999 | B147: TOTAL OPERATING EXPENSES | C147: 551930.99 | D147: 551930.99 | E147: 100 | F147: =VLOOKUP(A147,Methodology!A:D,4,FALSE) -> 
A148: 59999 | B148: NET OPERATING INCOME | C148: 409241.11 | D148: 409241.11 | E148: 100 | F148: =VLOOKUP(A148,Methodology!A:D,4,FALSE) -> 
A149: 69999 | B149: NET INCOME AFTER UPGRADES | C149: 409241.11 | D149: 409241.11 | E149: 100 | F149: =VLOOKUP(A149,Methodology!A:D,4,FALSE) -> 
F150: =VLOOKUP(A150,Methodology!A:D,4,FALSE) -> 
F151: =VLOOKUP(A151,Methodology!A:D,4,FALSE) -> 

Sheet Summary NOI Report Support (hidden)
A1: Willow Bend (120)
A2: Budget Season Report - Enter end of year date
A3: Period = Dec 2024
A4: Book = Accrual ; Tree = summary_noi
C5: 2025 Budget | D5: 2024 Budget | E5: T12 (nov23-oct24) Actual | F5: 2024 Est/Act | G5: Variance $ 2025 Bud vs 2024 Act/Bud | H5: Variance % 2025 Bud vs 2024 Act/Bud
A6: 39999 | B6: OPERATING INCOME
A7: 40001 | B7: Market Rent | C7: 0 | D7: 1048608 | E7: 1054200 | F7: 1054248 | G7: -1054248 | H7: -100
A8: 40003 | B8: Loss to Lease | C8: 0 | D8: 12875.56 | E8: -15023 | F8: -7109.18 | G8: 7109.18 | H8: -100
A9: 40004 | B9: Vacancy | C9: 0 | D9: -58547.28 | E9: -55555 | F9: -55607.5 | G9: 55607.5 | H9: -100
A10: 40053 | B10: Laundry/Vend Inc | C10: 0 | D10: 9900 | E10: 10526 | F10: 11255.93 | G10: -11255.93 | H10: -100
B11: Non-Inc Units | C11: 0 | D11: -16788 | E11: -10019.88 | F11: -10994.49 | G11: 10994.49 | H11: -100
B12: Concessions | C12: 0 | D12: -2852.04 | E12: -1849.9 | F12: -2183.94 | G12: 2183.94 | H12: -100
B13: Bad Debts | C13: 0 | D13: -53909 | E13: -41847.32 | F13: -40260.13 | G13: 40260.13 | H13: -100
B14: Misc Inc & Fees | C14: 0 | D14: 33036.96 | E14: 44430.77 | F14: 32691.9 | G14: -32691.9 | H14: -100
A15: 49999 | B15: TOTAL OP INCOME | C15: 0 | D15: 972324.2 | E15: 984861.67 | F15: 982040.59 | G15: -982040.59 | H15: -100
B16: OPERATING EXPENSES
A17: 50110 | B17: Electric Exp | C17: 0 | D17: 7700 | E17: 8559.06 | F17: 8148.09 | G17: 8148.09 | H17: 100
A18: 50111 | B18: Electric Inc | C18: 0 | D18: 0 | E18: -2718.97 | F18: -2000.13 | G18: -2000.13 | H18: -100
A19: 50120 | B19: Gas Exp | C19: 0 | D19: 37637.77 | E19: 43330.79 | F19: 38497.6 | G19: 38497.6 | H19: 100
A20: 50121 | B20: Gas Inc | C20: 0 | D20: -38155.15 | E20: -41502.85 | F20: -40270.24 | G20: -40270.24 | H20: -100
A21: 50130 | B21: Water & Sewer | C21: 0 | D21: 32551 | E21: 40871.49 | F21: 40459.02 | G21: 40459.02 | H21: 100
A22: 50140 | B22: Sewer Expense | C22: 0 | D22: 11348.04 | E22: 11806.97 | F22: 11572.7 | G22: 11572.7 | H22: 100
B23: Payroll & Benefits | C23: 0 | D23: 116941.86 | E23: 108261.13 | F23: =109743.28-1000 -> 108743.28 | G23: 109743.28 | H23: 100
A24: 55010 | B24: Real Estate Taxes | C24: 0 | D24: 65157.84 | E24: 65157.89 | F24: 65157.84 | G24: 65157.84 | H24: 100
A25: 55040 | B25: Insurance Exp | C25: 0 | D25: 70622.33 | E25: 72531.26 | F25: 70240.25 | G25: 70240.25 | H25: 100
A26: 55050 | B26: Mgmt Fees | C26: 0 | D26: 72133.56 | E26: 73775.83 | F26: 74286.66 | G26: 74286.66 | H26: 100
B27: Supplies | C27: 0 | D27: 14303.2 | E27: 10645.7 | F27: 11498.4 | G27: 11498.4 | H27: 100
B28: Repairs | C28: 0 | D28: 73890.08 | E28: 87646.44 | F28: 84338.16 | G28: 84338.16 | H28: 100
A29: 56400 | B29: Make Ready | C29: 0 | D29: 32415.31 | E29: 13649.53 | F29: 15289.7 | G29: 15289.7 | H29: 100
B30: General & Admin | C30: 0 | D30: 58104.08 | E30: 60562.12 | F30: 57270.49 | G30: 57270.49 | H30: 100
A31: 58999 | B31: TOTAL OP EXPENSE | C31: 0 | D31: 554649.92 | E31: 552576.39 | F31: =SUM(F17:F30) -> 543231.82 | G31: 544231.82 | H31: 100
A32: 59999 | B32: NET OPERATING INC | C32: 0 | D32: 417674.28 | E32: 432285.28 | F32: =F15-F31 -> 438808.77 | G32: 437808.77 | H32: 100

Sheet Report Instructions (hidden)
A1: Running Avg Occupancy History Report in Yardi
A3: Residential Analytics
A4: Prop: | B4: .allresd
A5: Group By: | B5: Area
A6: Report Type: | B6: 12 Month Occupancy
A7: Summarize By: | B7: UnitCount
A8: Show: | B8: Grids
A10: Run for prior two years. | B10: Move third year data to first row in 'Avg Occupancy History' tab. Ensure avg percentages are being calculated for all three years and not hard-coded.
A12: Running Move-In Report
A13: Reports > Property - Residential > Move In Report
A14: All statuses except 'CANCELLED' and 'DENIED'
A15: Period: | B15: 06/01/2021 - 05/31/2024
A16: Destination: | B16: Save to Excel File
A18: Data > Text to Column > "Other", "/", Highlight cells in column H of tenant move-ins. Import to budget template by Prop.
A20: Running Renewal Rates & Move-Outs
A22: Reports > Property - Residential > Move Out Report
A23: Prop: | B23: .allresd
A24: Period: | B24: 08/01/2023 - 07/31/2024
B26: Run for 2023 > Subtotal by Property > Import to budget template by Prop.
A28: Running MR Reno Data Report
A30: Financial Analytics > Financial Reports
A31: Prop: | B31: .allresd
A32: Book: | B32: Accrual
A33: Account Tree: | B33: ysi_is
A34: Report Type: | B34: Property Comparison
A35: Period: | B35: 08/2023 - 07/2024
A36: Report Columns | B36: Actual
A37: Show: | B37: Grid, Decimals, Suppress Zero, Acct.Code
A38: Save to Excel
A40: Delete everything aside from MR accounts and CapX accounts. Import to budget template.
A42: Running General Ledger Analytic Reports
A43: General Ledger Analytics > Financial Reports - General Ledger
A44: Prop: | B44: .allresd
A45: Book: | B45: Accrual
A46: From Period: | B46: 08/2023 - 07/2024
A47: From GL Acct: | B47: Marketing (57225), Advertising (57110), Software (57295)
A49: Utilize PivotTable for Debit/Credit totals
A50: Delete rows 1-5 and row 2
A51: Highlight columns A:H
A52: Insert > 'PivotTable'
A53: Choose fields to add to report: Property, Person/Description, Debit/Credit
A54: Copy data to adjacent columns to manipulate data as needed. Import to budget template.
A56: Running Income Statement Analysis Report by Property
A57: Custom Financial Analytics
A58: Prop: | B58: Enter Prop
A59: Book: | B59: Accrual
A60: Report Template: | B60: IsRpt
A61: Period: | B61: 07/2024
A62: Account Tree: | B62: mgr_is
A64: Suppress Zero
A65: Show Grid
A66: Show Account: | B66: ShowColumn
A67: Export to Excel by Clicking "Excel"
A68: Delete "36.Mo Trailing Totals". Import to Budget by Prop in 'Income Statement' tab. Delete all previous entered data. Bring down IF formula for all cells in Mgr Override column. Ensure no essential data to the formulas of the cells are deleted or unaligned.

Sheet Occupancy Budget
A1: ='Discussion Items'!A1 -> Willow Bend
C2: IF YOU HAVE A QUESTION or DISAGREE WITH A GRAY CELL CALL STEPHEN
A3: Occupancy Budget 2025 | C3: YOU MUST INPUT ALL ORANGE HIGHLIGHTED CELLS!
A4: * Note: GPR is Market Rent minus Loss to Lease | C4: YOU CAN OVERWRITE ALL BLUE HIGHLIGHTED CELLS!
A5: * Note: Rental Income is Market Rent minus Loss to Lease minus Vacancy Loss | C5: YARDI IMPORT TEMPLATE - GREEN HIGHLIGHTED CELLS!
A6: Instructions | C6: Market Rent | D6: Avg Actual Rent including vacant at market rent | G6: Replacement rent % (Market rent vs Actual rent)
A7: Enter from weekly box score. | B7: Avg Rent (Market Rent/Units) | C7: 1389 | D7: 1324.87 | F7: In reference to new move-ins | G7: =(C7-D7)/D7 -> 0.04840474915
A8: Enter from Yardi income statement for the most recently closed month. | B8: GPR (Market Rent - Loss to Lease) | C8: =VLOOKUP(A1,'GPR Growth Budget'!A:D,4,FALSE) -> 87499 | E8: 2025 GPR Growth | H8: Avg occupancy T12
A9: Enter from weekly box score. | B9: Trend % (Estimated Occupancy % at year end) | C9: 0.9696 | E9: (2025 Dec GPR Budget vs 2024 Oct estimated GPR) | F9: (2025 Dec GPR Budget vs 2024's most recent closed month's GPR Actual)
B10: # units occupied | C10: =C11*C9 -> 63.9936 | E10: =(N26-VLOOKUP(A1,'GPR Growth Budget'!A:D,4,FALSE))/VLOOKUP(A1,'GPR Growth Budget'!A:D,4,FALSE) -> 0.04683736012 | F10: =(N26-C8)/C8 -> 0.04683736012
B11: Total # units | C11: =VLOOKUP(A1,'Renewal Rate-Moveouts'!B:C,2,FALSE) -> 66
C12: JAN | D12: FEB | E12: MAR | F12: APR | G12: MAY | H12: JUN | I12: JUL | J12: AUG | K12: SEP | L12: OCT | M12: NOV | N12: DEC | O12: Tot/Avg
A13: Enter the budgeted increase renewal % you plan to apply to each month | B13: Renewal Increase % | C13: 0.039 | D13: 0.039 | E13: 0.039 | F13: 0.039 | G13: 0.039 | H13: 0.039 | I13: 0.039 | J13: 0.039 | K13: 0.039 | L13: 0.039 | M13: 0.039 | N13: 0.039 | O13: =AVERAGE(C13:N13) -> 0.039 | P13: Renewal %
A14: Avg Rent with the renewal increase % included | B14: Renewal Rents | C14: =(1+C13)*$D$7 -> 1376.53993 | D14: =(1+D13)*$D$7 -> 1376.53993 | E14: 1376.53993 | F14: 1376.53993 | G14: 1376.53993 | H14: 1376.53993 | I14: 1376.53993 | J14: 1376.53993 | K14: 1376.53993 | L14: 1376.53993 | M14: 1376.53993 | N14: 1376.53993 | O14: 1376.53993
B15: Weighted Avg Replacement Rent Increase % | C15: =+W28 -> 0.09126773101 | D15: =+C15 -> 0.09126773101 | E15: 0.09126773101 | F15: 0.09126773101 | G15: 0.09126773101 | H15: 0.09126773101 | I15: 0.09126773101 | J15: 0.09126773101 | K15: 0.09126773101 | L15: 0.09126773101 | M15: 0.09126773101 | N15: 0.09126773101 | O15: 0.09126773101 | P15: Replacement Rent %
A16: Avg Rent with the new move in % included | B16: Replacement Rents | C16: =(1+C15)*$D$7 -> 1445.787879 | D16: =(1+D15)*$D$7 -> 1445.787879 | E16: 1445.787879 | F16: 1445.787879 | G16: 1445.787879 | H16: 1445.787879 | I16: 1445.787879 | J16: 1445.787879 | K16: 1445.787879 | L16: 1445.787879 | M16: 1445.787879 | N16: 1445.787879 | O16: 1445.787879 | T16: Replacement Rent Calculation
U17: $ Amount | V17: Units Affected | W17: Total | X17: % of Replacement Rent Increase % | Y17: Comments
A18: Enter the budgeted occupancy % you recommend. Use the Avg Occupancy History tab as a reference. | B18: Occupancy % | C18: 95 | D18: 95 | E18: 94 | F18: 94 | G18: 94.5 | H18: 95.5 | I18: 95 | J18: 95 | K18: 95 | L18: 95 | M18: 94 | N18: 94 | O18: =AVERAGE(C18:N18) -> 94.66666667 | T18: Avg Loss to Lease (Market Rent - Actual Rent) | U18: =+C7-D7 -> 64.13 | V18: =+moveout -> 10 | W18: =+U18*V18 -> 641.3 | X18: =+(W18/moveout)/$D$7 -> 0.04840474915
B19: 3 yr avg Occupancy | C19: =VLOOKUP($A$1,'Avg Occupancy History'!$B:$P,4,FALSE) -> 89.38343333 | D19: =VLOOKUP($A$1,'Avg Occupancy History'!$B:$P,5,FALSE) -> 90.21326667 | E19: =VLOOKUP($A$1,'Avg Occupancy History'!$B:$P,6,FALSE) -> 91.81646667 | F19: =VLOOKUP($A$1,'Avg Occupancy History'!$B:$P,7,FALSE) -> 93.1846 | G19: =VLOOKUP($A$1,'Avg Occupancy History'!$B:$P,8,FALSE) -> 94.97403333 | H19: =VLOOKUP($A$1,'Avg Occupancy History'!$B:$P,9,FALSE) -> 96.14706667 | I19: =VLOOKUP($A$1,'Avg Occupancy History'!$B:$P,10,FALSE) -> 95.0616 | J19: =VLOOKUP($A$1,'Avg Occupancy History'!$B:$P,11,FALSE) -> 96.77146667 | K19: =VLOOKUP($A$1,'Avg Occupancy History'!$B:$P,12,FALSE) -> 96.395 | L19: =VLOOKUP($A$1,'Avg Occupancy History'!$B:$P,13,FALSE) -> 94.6 | M19: =VLOOKUP($A$1,'Avg Occupancy History'!$B:$P,14,FALSE) -> 92.8 | N19: =VLOOKUP($A$1,'Avg Occupancy History'!$B:$P,15,FALSE) -> 89.465 | O19: =AVERAGE(C19:N19) -> 93.40099444 | T19: Override Avg Loss to Lease calculation from above (leave blank if no override) | V19: =+moveout -> 10 | W19: =+U19*V19 -> 0 | X19: 0
A20: Displays the # of move ins you need to achieve the occupancy % you entered | B20: Move Ins | C20: =ROUND(($C$11*(C18/100))-($C$10-C22),0) -> 0 | D20: =ROUND(($C$11*(D18/100))-(($C$11*(C18/100))-D22),0) -> 1 | E20: =ROUND(($C$11*(E18/100))-(($C$11*(D18/100))-E22),0) -> 1 | F20: 1 | G20: 2 | H20: 2 | I20: 0 | J20: 1 | K20: 1 | L20: 1 | M20: 0 | N20: 0 | O20: =SUM(C20:N20) -> 10 | T20: Plank Amenity Charge | U20: =+'Make Ready'!G28 -> 50 | V20: =+'Make Ready'!D28 -> 1.768181818 | W20: =+U20*V20 -> 88.40909091 | X20: 0.006673038933
A21: Based on Move-in report for the last 3 years | B21: 3 yr avg of Move-ins | C21: =COUNTIF('Move In History'!$H$8:$H$100000,1)/3 -> 1 | D21: =COUNTIF('Move In History'!$H$8:$H$100000,2)/3 -> 1.333333333 | E21: =COUNTIF('Move In History'!$H$8:$H$100000,3)/3 -> 2 | F21: =COUNTIF('Move In History'!$H$8:$H$100000,4)/3 -> 2.666666667 | G21: =COUNTIF('Move In History'!$H$8:$H$100000,5)/3 -> 1.333333333 | H21: =COUNTIF('Move In History'!$H$8:$H$100000,6)/3 -> 1.333333333 | I21: =COUNTIF('Move In History'!$H$8:$H$100000,7)/3 -> 1.333333333 | J21: =COUNTIF('Move In History'!$H$8:$H$100000,8)/3 -> 1.333333333 | K21: =COUNTIF('Move In History'!$H$8:$H$100000,9)/3 -> 0.6666666667 | L21: =COUNTIF('Move In History'!$H$8:$H$100000,10)/3 -> 1 | M21: =COUNTIF('Move In History'!$H$8:$H$100000,11)/3 -> 1 | N21: =COUNTIF('Move In History'!$H$8:$H$100000,12)/3 -> 0.6666666667 | O21: =SUM(C21:N21) -> 15.66666667 | T21: Countertop Amenity Charge | U21: =+'Make Ready'!G29 -> 25 | V21: =+'Make Ready'!D29 -> 1.178787879 | W21: 29.46969697 | X21: 0.002224346311
A22: Displays the # of move outs you will have based lease expirations minus renewals | B22: Move Outs | C22: =C24-C23 -> 1.272727273 | D22: =D24-D23 -> 1.272727273 | E22: 1.696969697 | F22: 1.272727273 | G22: 2.121212121 | H22: 1.272727273 | I22: 0.6363636364 | J22: 1.484848485 | K22: 1.060606061 | L22: 1.060606061 | M22: 0.4242424242 | N22: 0.2121212121 | O22: =SUM(C22:N22) -> 13.78787879 | T22: Appliance Pkg Amenity Charge | U22: =+'Make Ready'!G30 -> 25 | V22: =+'Make Ready'!D30 -> 0 | W22: 0 | X22: 0
A23: Displays the # of renewals based on the renewal rate % & lease expirations | B23: Renewals | C23: =C24*C25 -> 4.727272727 | D23: =D24*D25 -> 4.727272727 | E23: 6.303030303 | F23: 4.727272727 | G23: 7.878787879 | H23: 4.727272727 | I23: 2.363636364 | J23: 5.515151515 | K23: 3.939393939 | L23: 3.939393939 | M23: 1.575757576 | N23: 0.7878787879 | O23: 51.21212121 | T23: Reno Amenity Charge | U23: =+Renovations!D23 -> 225 | V23: =+Renovations!D7 -> 2 | W23: 450 | X23: 0.03396559662
A24: Corporate manually entered the # of lease expirations from your rent roll | B24: Lease Expirations from Rent Roll | C24: =VLOOKUP($A$1,'Lease Expirations'!$B:$P,2,FALSE) -> 6 | D24: =VLOOKUP($A$1,'Lease Expirations'!$B:$P,3,FALSE) -> 6 | E24: =VLOOKUP($A$1,'Lease Expirations'!$B:$P,4,FALSE) -> 8 | F24: =VLOOKUP($A$1,'Lease Expirations'!$B:$P,5,FALSE) -> 6 | G24: =VLOOKUP($A$1,'Lease Expirations'!$B:$P,6,FALSE) -> 10 | H24: =VLOOKUP($A$1,'Lease Expirations'!$B:$P,7,FALSE) -> 6 | I24: =VLOOKUP($A$1,'Lease Expirations'!$B:$P,8,FALSE) -> 3 | J24: =VLOOKUP($A$1,'Lease Expirations'!$B:$P,9,FALSE) -> 7 | K24: =VLOOKUP($A$1,'Lease Expirations'!$B:$P,10,FALSE) -> 5 | L24: =VLOOKUP($A$1,'Lease Expirations'!$B:$P,11,FALSE) -> 5 | M24: =VLOOKUP($A$1,'Lease Expirations'!$B:$P,12,FALSE) -> 2 | N24: =VLOOKUP($A$1,'Lease Expirations'!$B:$P,13,FALSE) -> 1 | O24: 65 | T24: Extra Row | W24: 0 | X24: 0
A25: Displays the T12 average renewal rate % | B25: Renewal % | C25: =VLOOKUP(A1,'Renewal Rate-Moveouts'!B:K,10,FALSE) -> 0.7878787879 | D25: =C25 -> 0.7878787879 | E25: =D25 -> 0.7878787879 | F25: 0.7878787879 | G25: 0.7878787879 | H25: 0.7878787879 | I25: 0.7878787879 | J25: 0.7878787879 | K25: 0.7878787879 | L25: 0.7878787879 | M25: 0.7878787879 | N25: 0.7878787879 | O25: =AVERAGE(C25:N25) -> 0.7878787879 | T25: Extra Row | W25: 0 | X25: 0
A26: Displays budgeted GPR | B26: GPR (Market Rent - Loss to Lease) | C26: =(C8-(C22*$D$7)-(C23*$D$7))+(C20*C16)+(C23*C14)+((C22-C20)*$C$7) -> 87824.87785 | D26: =(C26-(D22*$D$7)-(D23*$D$7))+(D20*D16)+(D23*D14)+((D22-D20)*$C$7) -> 88207.54358 | E26: 88698.83526 | F26: 89081.50099 | G26: 89738.2065 | H26: 90177.66011 | I26: 90340.59903 | J26: 90777.57774 | K26: 91105.93049 | L26: 91434.28325 | M26: 91542.9092 | N26: 91597.22217 | O26: =SUM(C26:N26) -> 1080527.146 | T26: Total | U26: =SUM(U18:U25) -> 389.13 | V26: =SUM(V18:V25)-V19 -> 14.9469697 | W26: =SUM(W18:W25) -> 1209.178788 | X26: =SUM(X18:X25) -> 0.09126773101
A27: Displays the # of vacants units based on the inverse occupancy % | B27: Vacant Units | C27: =$C$11*(1-(C18/100)) -> 3.3 | D27: 3.3 | E27: 3.96 | F27: 3.96 | G27: 3.63 | H27: 2.97 | I27: 3.3 | J27: 3.3 | K27: 3.3 | L27: 3.3 | M27: 3.96 | N27: 3.96 | O27: 42.24 | T27: Avg Increase/unit $ (Total/Move-ins) | W27: =+W26/moveout -> 120.9178788
A28: Displays # of vacant units times Avg Rent from box score | B28: Vacancy | C28: =C27*$C$7 -> 4583.7 | D28: 4583.7 | E28: 5500.44 | F28: 5500.44 | G28: 5042.07 | H28: 4125.33 | I28: 4583.7 | J28: 4583.7 | K28: 4583.7 | L28: 4583.7 | M28: 5500.44 | N28: 5500.44 | O28: 58671.36 | T28: Avg Increase/unit % (Avg Inc $/Actual Rent) | W28: =+W27/D7 -> 0.09126773101
B29: water/sewer passthrough | H29: =+((H20+H23)*40) -> 269.0909091 | I29: =+((I20+I23)*40)+H29 -> 363.6363636 | J29: 624.2424242 | K29: 821.8181818 | L29: 1019.393939 | M29: 1082.424242 | N29: 1113.939394 | O29: =SUM(E29:N29) -> 5294.545455
C31: NOTE: You have to copy and paste cell values only before importing into Yardi to get rid of the formulas
A32: 1 | B32: 2 | C32: 3 | D32: 4 | E32: 5 | F32: 6 | G32: 7 | H32: 8 | I32: 9 | J32: 10 | K32: 11 | L32: 12 | M32: 13 | N32: 14 | O32: 15 | P32: 16 | Q32: 17 | R32: 18
A33: Acct # | B33: Name | C33: D | D33: N | E33: Last Yr | F33: Totals | G33: Jan | H33: Feb | I33: Mar | J33: Apr | K33: May | L33: Jun | M33: Jul | N33: Aug | O33: Sep | P33: Oct | Q33: Nov | R33: Dec
A34: 40001 | B34: Market Rent | F34: =SUM(G34:R34) -> 1100088 | G34: =C7*C11 -> 91674 | H34: =G34 -> 91674 | I34: =H34 -> 91674 | J34: =I34 -> 91674 | K34: 91674 | L34: 91674 | M34: 91674 | N34: 91674 | O34: 91674 | P34: 91674 | Q34: 91674 | R34: 91674
A35: 40003 | B35: Loss to Lease | F35: =SUM(G35:R35) -> -19560.85383 | G35: =C26-G34 -> -3849.122149 | H35: -3466.456419 | I35: -2975.164739 | J35: -2592.49901 | K35: -1935.793501 | L35: -1496.339892 | M35: -1333.400967 | N35: -896.4222618 | O35: -568.0695073 | P35: -239.7167527 | Q35: -131.0908024 | R35: -76.77782727
A36: 40004 | B36: Vacancy | F36: =SUM(G36:R36) -> -58671.36 | G36: =-C28 -> -4583.7 | H36: -4583.7 | I36: -5500.44 | J36: -5500.44 | K36: -5042.07 | L36: -4125.33 | M36: -4583.7 | N36: -4583.7 | O36: -4583.7 | P36: -4583.7 | Q36: -5500.44 | R36: -5500.44

Sheet Avg Occupancy History (hidden)
A1: =+'Discussion Items'!A1 -> Willow Bend
A3: Occupancy % History - January 2022 to Aug 2024
A5: Property | B5: Name | C5: Units | D5: Year | E5: Jan | F5: Feb | G5: Mar | H5: Apr | I5: May | J5: Jun | K5: Jul | L5: Aug | M5: Sep | N5: Oct | O5: Nov | P5: Dec
A6: 107 | C6: 31 | D6: 2022 | E6: 100 | F6: 100 | G6: 99.69 | H6: 96.77 | I6: 97.4 | J6: 97.1 | K6: 99.9 | L6: 95.84 | M6: 96.77 | N6: 96.77 | O6: 96.77 | P6: 93.96
A7: 107 | C7: 31 | D7: 2023 | E7: 96.15 | F7: 94.01 | G7: 93.13 | H7: 89.25 | I7: 87.1 | J7: 87.47 | K7: 93.45 | L7: 97.08 | M7: 96.77 | N7: 96.57 | O7: 95.81 | P7: 93.37
A8: 107 | C8: 31 | D8: 2024 | E8: 87.3 | F8: 87.99 | G8: 87.41 | H8: 92.69 | I8: 94.17 | J8: 94.3 | K8: 96.77 | L8: 95.56
A9: 107 Average | B9: Elkins Park | E9: =AVERAGE(E6:E8) -> 94.48333333 | F9: =AVERAGE(F6:F8) -> 94 | G9: 93.41 | H9: 92.90333333 | I9: 92.89 | J9: 92.95666667 | K9: 96.70666667 | L9: 96.16 | M9: 96.77 | N9: 96.67 | O9: 96.29 | P9: 93.665
A10: 113 | C10: 210 | D10: 2022 | E10: 95.88 | F10: 97.21 | G10: 96.18 | H10: 95.69 | I10: 94.67 | J10: 96.56 | K10: 96.97 | L10: 96.24 | M10: 96.92 | N10: 95.73 | O10: 94.67 | P10: 94.56
A11: 113 | C11: 210 | D11: 2023 | E11: 94.29 | F11: 94.21 | G11: 93.64 | H11: 94.29 | I11: 94.11 | J11: 94.33 | K11: 96.93 | L11: 98.79 | M11: 98.16 | N11: 98.43 | O11: 96.05 | P11: 95.12
A12: 113 | C12: 210 | D12: 2024 | E12: 94.29 | F12: 94.21 | G12: 93.64 | H12: 94.29 | I12: 94.11 | J12: 94.33 | K12: 96.93 | L12: 98.79
A13: 113 Average | B13: Bromley House | E13: =AVERAGE(E10:E12) -> 94.82 | F13: =AVERAGE(F10:F12) -> 95.21 | G13: 94.48666667 | H13: 94.75666667 | I13: 94.29666667 | J13: 95.07333333 | K13: 96.94333333 | L13: 97.94 | M13: 97.54 | N13: 97.08 | O13: 95.36 | P13: 94.84
A14: 114 | C14: 195 | D14: 2022 | E14: 96.01 | F14: 97.06 | G14: 93.72 | H14: 94.08 | I14: 95.56 | J14: 97.07 | K14: 95.05 | L14: 92.28 | M14: 93.27 | N14: 94.77 | O14: 93.86 | P14: 91.76
A15: 114 | C15: 195 | D15: 2023 | E15: 91.69 | F15: 93.65 | G15: 94.46 | H15: 96.55 | I15: 96.99 | J15: 95.36 | K15: 95.9 | L15: 91.6 | M15: 91.25 | N15: 93.04 | O15: 94.15 | P15: 95.12
A16: 114 | C16: 195 | D16: 2024 | E16: 96.4467 | F16: 97.2251 | G16: 97.8135 | H16: 97.3434 | I16: 97.0916 | J16: 96.7857 | K16: 41.754 | L16: 12.7551
A17: 114 Average | B17: 7400 Roosevelt | E17: =AVERAGE(E14:E16) -> 94.71556667 | F17: =AVERAGE(F14:F16) -> 95.97836667 | G17: 95.33116667 | H17: 95.99113333 | I17: 96.5472 | J17: 96.40523333 | K17: 77.568 | L17: 65.54503333 | M17: 92.26 | N17: 93.905 | O17: 94.005 | P17: 93.44
A18: 116 | C18: 43 | D18: 2022 | E18: 100 | F18: 100 | G18: 98.96 | H18: 97.67 | I18: 96.55 | J18: 94.11 | K18: 93.1 | L18: 96.25 | M18: 93.02 | N18: 91.15 | O18: 88.29 | P18: 89.65
A19: 116 | C19: 43 | D19: 2023 | E19: 90.18 | F19: 95.1 | G19: 96.7 | H19: 97.67 | I19: 96.47 | J19: 95.42 | K19: 97.67 | L19: 95.14 | M19: 95.35 | N19: 94.45 | O19: 94.81 | P19: 91.6
A20: 116 | C20: 43 | D20: 2024 | E20: 89.7974 | F20: 89.0938 | G20: 88.8972 | H20: 89.0866 | I20: 88.8222 | J20: 87.2868 | K20: 90.0975 | L20: 91.2978
A21: 116 Average | B21: Eola Park | E21: =AVERAGE(E18:E20) -> 93.3258 | F21: =AVERAGE(F18:F20) -> 94.73126667 | G21: 94.8524 | H21: 94.80886667 | I21: 93.9474 | J21: 92.27226667 | K21: 93.6225 | L21: 94.22926667 | M21: 94.185 | N21: 92.8 | O21: 91.55 | P21: 90.625
A22: 117 | C22: 229 | D22: 2022 | E22: 96.31 | F22: 96.29 | G22: 97.77 | H22: 96.52 | I22: 97.28 | J22: 95.74 | K22: 95.04 | L22: 95.36 | M22: 95.93 | N22: 95.14 | O22: 94.17 | P22: 92.56
A23: 117 | C23: 229 | D23: 2023 | E23: 92.19 | F23: 91.63 | G23: 92.22 | H23: 94.09 | I23: 94.61 | J23: 95.65 | K23: 94.58 | L23: 96.16 | M23: 95.28 | N23: 93.86 | O23: 94.09 | P23: 96.35
A24: 117 | C24: 229 | D24: 2024 | E24: 96.2765 | F24: 96.4167 | G24: 96.7043 | H24: 96.4197 | I24: 96.2843 | J24: 95.08 | K24: 94.7642 | L24: 95.7213
A25: 117 Average | B25: Warrington Crossings | E25: =AVERAGE(E22:E24) -> 94.9255 | F25: =AVERAGE(F22:F24) -> 94.7789 | G25: 95.56476667 | H25: 95.67656667 | I25: 96.0581 | J25: 95.49 | K25: 94.79473333 | L25: 95.7471 | M25: 95.605 | N25: 94.5 | O25: 94.13 | P25: 94.455
A26: 120 | C26: 66 | D26: 2022 | E26: 92.44 | F26: 93.94 | G26: 95.26 | H26: 96.98 | I26: 95.73 | J26: 91.57 | K26: 89.64 | L26: 93.5 | M26: 95.81 | N26: 93.01 | O26: 89.34 | P26: 85.14
A27: 120 | C27: 66 | D27: 2023 | E27: 85.29 | F27: 86.47 | G27: 90.6 | H27: 94.19 | I27: 97.11 | J27: 99.75 | K27: 97.06 | L27: 97.01 | M27: 96.98 | N27: 96.19 | O27: 96.26 | P27: 93.79
A28: 120 | C28: 66 | D28: 2024 | E28: 90.4203 | F28: 90.2298 | G28: 89.5894 | H28: 88.3838 | I28: 92.0821 | J28: 97.1212 | K28: 98.4848 | L28: 99.8044
A29: 120 Average | B29: Willow Bend | E29: =AVERAGE(E26:E28) -> 89.38343333 | F29: =AVERAGE(F26:F28) -> 90.21326667 | G29: 91.81646667 | H29: 93.1846 | I29: 94.97403333 | J29: 96.14706667 | K29: 95.0616 | L29: 96.77146667 | M29: 96.395 | N29: 94.6 | O29: 92.8 | P29: 89.465
A30: 122 | C30: 68 | D30: 2022 | E30: 98.54 | F30: 98.32 | G30: 96.77 | H30: 97.16 | I30: 98.72 | J30: 95.8 | K30: 98.39 | L30: 99.67 | M30: 98.53 | N30: 98.39 | O30: 96.96 | P30: 94.26
A31: 122 | C31: 68 | D31: 2023 | E31: 94.07 | F31: 91.81 | G31: 89.99 | H31: 89.71 | I31: 91.75 | J31: 95.27 | K31: 95.59 | L31: 94.69 | M31: 94.56 | N31: 92.5 | O31: 94.07 | P31: 91.89
A32: 122 | C32: 68 | D32: 2024 | E32: 94.165 | F32: 95.6521 | G32: 95.2224 | H32: 96.4215 | I32: 94.2816 | J32: 94.5588 | K32: 96.3946 | L32: 97.7851
A33: 122 Average | B33: Sedgwick Gardens | E33: =AVERAGE(E30:E32) -> 95.59166667 | F33: =AVERAGE(F30:F32) -> 95.2607 | G33: 93.99413333 | H33: 94.4305 | I33: 94.9172 | J33: 95.2096 | K33: 96.79153333 | L33: 97.3817 | M33: 96.545 | N33: 95.445 | O33: 95.515 | P33: 93.075
A34: 123 | C34: 18 | D34: 2022 | E34: 100 | F34: 100 | G34: 100 | H34: 96.67 | I34: 88.71 | J34: 85.74 | K34: 85.84 | L34: 88.24 | M34: 85.4 | N34: 89.07 | O34: 88.7 | P34: 83.33
A35: 123 | C35: 18 | D35: 2023 | E35: 88.89 | F35: 91.47 | G35: 88.89 | H35: 88.89 | I35: 97.31 | J35: 94.44 | K35: 93.73 | L35: 85.84 | M35: 88.15 | N35: 88.89 | O35: 88.89 | P35: 94.44
A36: 123 | C36: 18 | D36: 2024 | E36: 97.6702 | F36: 94.4444 | G36: 93.0107 | H36: 94.4444 | I36: 94.2652 | J36: 86.1111 | K36: 83.3333 | L36: 83.3333
A37: 123 Average | B37: Sedgwick Terrace | E37: =AVERAGE(E34:E36) -> 95.52006667 | F37: =AVERAGE(F34:F36) -> 95.3048 | G37: 93.9669 | H37: 93.3348 | I37: 93.4284 | J37: 88.7637 | K37: 87.63443333 | L37: 85.80443333 | M37: 86.775 | N37: 88.98 | O37: 88.795 | P37: 88.885
A38: 125 | C38: 61 | D38: 2022 | E38: 95.08 | F38: 98.19 | G38: 98.36 | H38: 98.25 | I38: 94.36 | J38: 92.35 | K38: 96.77 | L38: 95.67 | M38: 93.48 | N38: 88.84 | O38: 86.99 | P38: 90.16
A39: 125 | C39: 61 | D39: 2023 | E39: 95.72 | F39: 95.16 | G39: 96.36 | H39: 96.02 | I39: 95.41 | J39: 96.34 | K39: 90.39 | L39: 90.48 | M39: 94.09 | N39: 91.94 | O39: 91.94 | P39: 91.8
A40: 125 | C40: 61 | D40: 2024 | E40: 92.4378 | F40: 93.4927 | G40: 91.9354 | H40: 92.484 | I40: 91.5192 | J40: 94.612 | K40: 94.0243 | L40: 96.7213
A41: 125 Average | B41: Gardens of Mt Airy | E41: =+AVERAGE(E38:E40) -> 94.4126 | F41: =+AVERAGE(F38:F40) -> 95.61423333 | G41: 95.5518 | H41: 95.58466667 | I41: 93.76306667 | J41: 94.434 | K41: 93.7281 | L41: 94.29043333 | M41: 93.785 | N41: 90.39 | O41: 89.465 | P41: 90.98
A42: 129 | C42: 216 | D42: 2022 | E42: 96.12 | F42: 97.08 | G42: 97.2 | H42: 95.25 | I42: 93.3 | J42: 93.79 | K42: 92.5 | L42: 92.84 | M42: 95.18 | N42: 94.27 | O42: 92.31 | P42: 93.12
A43: 129 | C43: 216 | D43: 2023 | E43: 95.02 | F43: 95.41 | G43: 95.81 | H43: 96.73 | I43: 97.55 | J43: 96.76 | K43: 95.47 | L43: 94.69 | M43: 92.4 | N43: 89.69 | O43: 88.37 | P43: 89.52
A44: 129 | C44: 216 | D44: 2024 | E44: 90.0014 | F44: 90.3754 | G44: 93.5859 | H44: 95.2006 | I44: 97.4282 | J44: 97.463 | K44: 95.3703 | L44: 94.3739
A45: 129 Average | B45: Gateway Enclaves | E45: =+AVERAGE(E42:E44) -> 93.7138 | F45: =+AVERAGE(F42:F44) -> 94.28846667 | G45: 95.53196667 | H45: 95.72686667 | I45: 96.09273333 | J45: 96.00433333 | K45: 94.44676667 | L45: 93.96796667 | M45: 93.79 | N45: 91.98 | O45: 90.34 | P45: 91.32
A46: 131 | C46: 158 | D46: 2022 | E46: 96.39 | F46: 96.19 | G46: 95.71 | H46: 96.41 | I46: 95.53 | J46: 96.5 | K46: 96.88 | L46: 95.67 | M46: 96.35 | N46: 95.68 | O46: 94.2 | P46: 93.55
A47: 131 | C47: 158 | D47: 2023 | E47: 94.62 | F47: 94.67 | G47: 94.92 | H47: 96.18 | I47: 95.96 | J47: 95.48 | K47: 96.33 | L47: 95.15 | M47: 94.18 | N47: 93.71 | O47: 93.48 | P47: 92.22
A48: 131 | C48: 158 | D48: 2024 | E48: 90.7792 | F48: 89.8632 | G48: 91.0167 | H48: 91.9198 | I48: 91.8059 | J48: 92.4758 | K48: 92.6849 | L48: 92.8629
A49: 131 Average | B49: Haverford Court | E49: =+AVERAGE(E46:E48) -> 93.92973333 | F49: =+AVERAGE(F46:F48) -> 93.5744 | G49: 93.88223333 | H49: 94.8366 | I49: 94.43196667 | J49: 94.8186 | K49: 95.2983 | L49: 94.56096667 | M49: 95.265 | N49: 94.695 | O49: 93.84 | P49: 92.885
A50: 135 | C50: 120 | D50: 2022 | E50: 99.97 | F50: 98.45 | G50: 97.58 | H50: 97.75 | I50: 97.74 | J50: 99.11 | K50: 98.82 | L50: 96.67 | M50: 96 | N50: 95.91 | O50: 93.33 | P50: 93.01
A51: 135 | C51: 120 | D51: 2023 | E51: 91.75 | F51: 91.7 | G51: 92.34 | H51: 92.03 | I51: 92.02 | J51: 93.99 | K51: 94.73 | L51: 94.26 | M51: 94.43 | N51: 93.61 | O51: 93.59 | P51: 94.17
A52: 135 | C52: 120 | D52: 2024 | E52: 94.3817 | F52: 95.0028 | G52: 95.0146 | H52: 93.1101 | I52: 95.4301 | J52: 95.1185 | K52: 96.7785 | L52: 96.9623
A53: 135 Average | B53: Longwood Manor | E53: =AVERAGE(E50:E52) -> 95.36723333 | F53: =AVERAGE(F50:F52) -> 95.05093333 | G53: 94.9782 | H53: 94.2967 | I53: 95.06336667 | J53: 96.07283333 | K53: 96.77616667 | L53: 95.9641 | M53: 95.215 | N53: 94.76 | O53: 93.46 | P53: 93.59
A54: 136 | C54: 399 | D54: 2022 | E54: 96.25 | F54: 96.21 | G54: 95.52 | H54: 96.37 | I54: 95.75 | J54: 96.34 | K54: 94.19 | L54: 92.04 | M54: 92.91 | N54: 93.74 | O54: 93.19 | P54: 94.46
A55: 136 | C55: 399 | D55: 2023 | E55: 95.52 | F55: 96.89 | G55: 96.14 | H55: 97.28 | I55: 97.3 | J55: 95.89 | K55: 95.88 | L55: 95.56 | M55: 94.88 | N55: 94.78 | O55: 94.65 | P55: 94.04
A56: 136 | C56: 399 | D56: 2024 | E56: 93.896 | F56: 91.2763 | G56: 91.1141 | H56: 93.8865 | I56: 93.7726 | J56: 94.3624 | K56: 95.5872 | L56: 97.5351
A57: 136 Average | B57: Gateway Towers | E57: =AVERAGE(E54:E56) -> 95.222 | F57: =AVERAGE(F54:F56) -> 94.7921 | G57: 94.25803333 | H57: 95.8455 | I57: 95.60753333 | J57: 95.5308 | K57: 95.21906667 | L57: 95.04503333 | M57: 93.895 | N57: 94.26 | O57: 93.92 | P57: 94.25
A58: 138 | C58: 52 | D58: 2022 | E58: 94.81 | F58: 93.48 | G58: 92.89 | H58: 90.66 | I58: 97.17 | J58: 97.89 | K58: 94.32 | L58: 94.62 | M58: 92.03 | N58: 88.36 | O58: 88.59 | P58: 87.16
A59: 138 | C59: 52 | D59: 2023 | E59: 84.3 | F59: 84.2 | G59: 87.9 | H59: 88.46 | I59: 87.03 | J59: 89.62 | K59: 85.48 | L59: 84.62 | M59: 87.24 | N59: 90.45 | O59: 95.45 | P59: 96.77
A60: 138 | C60: 52 | D60: 2024 | E60: 96.0297 | F60: 94.1644 | G60: 91.5632 | H60: 89.3494 | I60: 91.8266 | J60: 90.8632 | K60: 89.0653 | L60: 88.4615
A61: 138 Average | B61: Gateway Airport | E61: =AVERAGE(E58:E60) -> 91.71323333 | F61: =AVERAGE(F58:F60) -> 90.6148 | G61: 90.7844 | H61: 89.4898 | I61: 92.00886667 | J61: 92.79106667 | K61: 89.62176667 | L61: 89.23383333 | M61: 89.635 | N61: 89.405 | O61: 92.02 | P61: 91.965
A62: 141 | C62: 225 | D62: 2022 | E62: 96.69 | F62: 96.48 | G62: 96.24 | H62: 96.11 | I62: 95.15 | J62: 93.38 | K62: 91.82 | L62: 91.51 | M62: 90.76 | N62: 91.79 | O62: 93.18 | P62: 94.39
A63: 141 | C63: 225 | D63: 2023 | E63: 96.13 | F63: 92.98 | G63: 91.58 | H63: 92.83 | I63: 93.22 | J63: 95.2 | K63: 95.22 | L63: 92.19 | M63: 94.48 | N63: 93.27 | O63: 93.64 | P63: 92.49
A64: 141 | C64: 225 | D64: 2024 | E64: 90.8663 | F64: 91.2416 | G64: 88.9142 | H64: 90.1946 | I64: 91.5031 | J64: 92.6618 | K64: 92.9189 | L64: 92.0673
A65: 141 Average | B65: YoNo | E65: =AVERAGE(E62:E64) -> 94.5621 | F65: =AVERAGE(F62:F64) -> 93.5672 | G65: 92.24473333 | H65: 93.04486667 | I65: 93.29103333 | J65: 93.74726667 | K65: 93.31963333 | L65: 91.92243333 | M65: 92.62 | N65: 92.53 | O65: 93.41 | P65: 93.44
A66: 142 | C66: 216 | D66: 2022 | E66: 93.25 | F66: 92.88 | G66: 93.86 | H66: 94.15 | I66: 97.38 | J66: 96.86 | K66: 96.83 | L66: 95.9 | M66: 94.03 | N66: 92.74 | O66: 92.01 | P66: 91.21
A67: 142 | C67: 216 | D67: 2023 | E67: 91.45 | F67: 88.15 | G67: 85.69 | H67: 84.95 | I67: 87.08 | J67: 86.88 | K67: 88.37 | L67: 89.82 | M67: 87.78 | N67: 90 | O67: 91.77 | P67: 93.75
A68: 142 | C68: 216 | D68: 2024 | E68: 92.9169 | F68: 92.5902 | G68: 92.597 | H68: 90.9984 | I68: 91.4043 | J68: 90.9063 | K68: 89.6567 | L68: 89.6567
A69: 142 Average | B69: Yorkhouse South | E69: =AVERAGE(E66:E68) -> 92.53896667 | F69: =AVERAGE(F66:F68) -> 91.20673333 | G69: 90.71566667 | H69: 90.0328 | I69: 91.95476667 | J69: 91.54876667 | K69: 91.6189 | L69: 91.79223333 | M69: 90.905 | N69: 91.37 | O69: 91.89 | P69: 92.48
A70: 145 | C70: 312 | D70: 2022 | E70: 97.57 | F70: 97.89 | G70: 97.24 | H70: 97.64 | I70: 94.87 | J70: 95.33 | K70: 96.77 | L70: 96.02 | M70: 96.36 | N70: 96.91 | O70: 95.55 | P70: 96.17
A71: 145 | C71: 312 | D71: 2023 | E71: 95.91 | F71: 96.32 | G71: 95.93 | H71: 95.83 | I71: 93.72 | J71: 92.95 | K71: 92.61 | L71: 94.09 | M71: 94.11 | N71: 94.25 | O71: 93.96 | P71: 93.94
A72: 145 | C72: 312 | D72: 2024 | E72: 94.4906 | F72: 93.5724 | G72: 93.8049 | H72: 96.3661 | I72: 95.2138 | J72: 94.1511 | K72: 95.9724 | L72: 96.8183
A73: 145 Average | B73: Joshua House | E73: =AVERAGE(E70:E72) -> 95.9902 | F73: =AVERAGE(F70:F72) -> 95.92746667 | G73: 95.6583 | H73: 96.61203333 | I73: 94.60126667 | J73: 94.1437 | K73: 95.11746667 | L73: 95.64276667 | M73: 95.235 | N73: 95.58 | O73: 94.755 | P73: 95.055
A74: 147 | C74: 117 | D74: 2022 | E74: 93.16 | F74: 94.47 | G74: 93.54 | H74: 95.38 | I74: 94.17 | J74: 94.95 | K74: 94.7 | L74: 95.17 | M74: 94.5 | N74: 95.24 | O74: 95.7 | P74: 94.73
A75: 147 | C75: 117 | D75: 2023 | E75: 95.48 | F75: 94.98 | G75: 93.53 | H75: 93.55 | I75: 95.62 | J75: 94.22 | K75: 91.25 | L75: 90.24 | M75: 92.77 | N75: 95.4 | O75: 94.35 | P75: 93.54
A76: 147 | C76: 117 | D76: 2024 | E76: 95.0054 | F76: 96.8777 | G76: 98.7633 | H76: 97.3811 | I76: 96.5119 | J76: 97.6923 | K76: 96.1392 | L76: 98.1251
A77: 147 Average | B77: Fountain Gardens | E77: =AVERAGE(E74:E76) -> 94.54846667 | F77: =AVERAGE(F74:F76) -> 95.44256667 | G77: 95.27776667 | H77: 95.43703333 | I77: 95.43396667 | J77: 95.62076667 | K77: 94.02973333 | L77: 94.5117 | M77: 93.635 | N77: 95.32 | O77: 95.025 | P77: 94.135
A78: 152 | C78: 112 | D78: 2022 | E78: 93.35 | F78: 94.04 | G78: 93.69 | H78: 93.39 | I78: 91.41 | J78: 89 | K78: 88.66 | L78: 90.3 | M78: 89.79 | N78: 88.41 | O78: 87.14 | P78: 86.29
A79: 152 | C79: 112 | D79: 2023 | E79: 83.93 | F79: 82.11 | G79: 80.1 | H79: 82.47 | I79: 85.45 | J79: 89.85 | K79: 89.73 | L79: 92.01 | M79: 93.23 | N79: 94.16 | O79: 97.08 | P79: 94.3
A80: 152 | C80: 112 | D80: 2024 | E80: 92.8571 | F80: 90.1477 | G80: 88.8984 | H80: 87.0392 | I80: 88.1846 | J80: 91.2797 | K80: 93.7266 | L80: 92.1529
A81: 152 Average | B81: Academia Suites | E81: =AVERAGE(E78:E80) -> 90.0457 | F81: =AVERAGE(F78:F80) -> 88.7659 | G81: 87.5628 | H81: 87.63306667 | I81: 88.3482 | J81: 90.04323333 | K81: 90.70553333 | L81: 91.48763333 | M81: 91.51 | N81: 91.285 | O81: 92.11 | P81: 90.295
A82: 155 | C82: 77 | D82: 2022 | E82: 97.74 | F82: 99.21 | G82: 96.98 | H82: 95.78 | I82: 94.36 | J82: 93.55 | K82: 92.75 | L82: 90.99 | M82: 93.18 | N82: 93.51 | O82: 89.11 | P82: 85.61
A83: 155 | C83: 77 | D83: 2023 | E83: 84.65 | F83: 87.73 | G83: 92.17 | H83: 94.7 | I83: 94.98 | J83: 94.67 | K83: 97.75 | L83: 99.29 | M83: 98.7 | N83: 98.45 | O83: 95.71 | P83: 93.77
A84: 155 | C84: 77 | D84: 2024 | E84: 93.7682 | F84: 91.0714 | G84: 92.4394 | H84: 93.3737 | I84: 95.0372 | J84: 96.923 | K84: 96.5517 | L84: 97.4025
A85: 155 Average | B85: Rosedale Court | E85: =AVERAGE(E82:E84) -> 92.05273333 | F85: =AVERAGE(F82:F84) -> 92.67046667 | G85: 93.86313333 | H85: 94.6179 | I85: 94.7924 | J85: 95.04766667 | K85: 95.6839 | L85: 95.89416667 | M85: 95.94 | N85: 95.98 | O85: 92.41 | P85: 89.69
A86: 157 | C86: 536 | D86: 2022 | E86: 98.25 | F86: 98.14 | G86: 98.86 | H86: 98.04 | I86: 97.22 | J86: 96.81 | K86: 96.38 | L86: 96.08 | M86: 94.87 | N86: 95.48 | O86: 94.01 | P86: 94.03
A87: 157 | C87: 536 | D87: 2023 | E87: 94.29 | F87: 94.62 | G87: 94.61 | H87: 94.91 | I87: 95.65 | J87: 95.7 | K87: 94.73 | L87: 92.96 | M87: 91.96 | N87: 91.38 | O87: 92.31 | P87: 94.37
A88: 157 | C88: 536 | D88: 2024 | E88: 94.4337 | F88: 94.4805 | G88: 94.2988 | H88: 94.0147 | I88: 93.0078 | J88: 91.6507 | K88: 92.046 | L88: 94.946
A89: 157 Average | B89: Meadowbrook Apts | E89: =AVERAGE(E86:E88) -> 95.6579 | F89: =AVERAGE(F86:F88) -> 95.74683333 | G89: 95.92293333 | H89: 95.6549 | I89: 95.2926 | J89: 94.72023333 | K89: 94.38533333 | L89: 94.662 | M89: 93.415 | N89: 93.43 | O89: 93.16 | P89: 94.2
A90: 170 | C90: 100 | D90: 2022 | E90: 97.38 | F90: 96.15 | G90: 94.41 | H90: 96.49 | I90: 97.9 | J90: 96.39 | K90: 95.81 | L90: 94.87 | M90: 92.74 | N90: 94 | O90: 95.6 | P90: 91.68
A91: 170 | C91: 100 | D91: 2023 | E91: 92 | F91: 94 | G91: 94.23 | H91: 98.1 | I91: 98.39 | J91: 97.43 | K91: 93.03 | L91: 91.42 | M91: 93.77 | N91: 93.1 | O91: 94.1 | P91: 92.1
A92: 170 | C92: 100 | D92: 2024 | E92: 91.387 | F92: 91.4482 | G92: 92.4864 | H92: 94.9666 | I92: 92.7313 | J92: 95.3789 | K92: 96.1055 | L92: 98
A93: 170 Average | B93: Mt Airy Place | E93: =AVERAGE(E90:E92) -> 93.589 | F93: =AVERAGE(F90:F92) -> 93.86606667 | G93: 93.7088 | H93: 96.51886667 | I93: 96.34043333 | J93: 96.39963333 | K93: 94.98183333 | L93: 94.76333333 | M93: 93.255 | N93: 93.55 | O93: 94.85 | P93: 91.89
A94: 173 | C94: 38 | D94: 2022 | E94: 100 | F94: 96.98 | G94: 95.73 | H94: 97.37 | I94: 97.37 | J94: 97.37 | K94: 91.95 | L94: 92.92 | M94: 99.47 | N94: 99.32 | O94: 99.13 | P94: 97.72
A95: 173 | C95: 38 | D95: 2023 | E95: 100 | F95: 98.59 | G95: 95.32 | H95: 93.14 | I95: 94.8 | J95: 94.71 | K95: 94.57 | L95: 93.29 | M95: 94.67 | N95: 95.82 | O95: 97.37 | P95: 98.3
A96: 173 | C96: 38 | D96: 2024 | E96: 97.3684 | F96: 94.646 | G96: 90.5772 | H96: 92.1052 | I96: 93.3447 | J96: 92.5569 | K96: 94.3123 | L96: 86.9269
A97: 173 Average | B97: Overlook Hills | E97: =AVERAGE(E94:E96) -> 99.1228 | F97: =AVERAGE(F94:F96) -> 96.73866667 | G97: 93.87573333 | H97: 94.20506667 | I97: 95.17156667 | J97: 94.87896667 | K97: 93.61076667 | L97: 91.04563333 | M97: 97.07 | N97: 97.57 | O97: 98.25 | P97: 98.01
A98: 175 | C98: 1112 | D98: 2022 | E98: 96 | F98: 95.64 | G98: 95.81 | H98: 95.47 | I98: 94.36 | J98: 92.13 | K98: 91.34 | L98: 95.11 | M98: 95.77 | N98: 95.32 | O98: 95.15 | P98: 95.04
A99: 175 | C99: 1112 | D99: 2023 | E99: 94.53 | F99: 95.48 | G99: 94.99 | H99: 94.57 | I99: 93.32 | J99: 90.33 | K99: 90.44 | L99: 92.73 | M99: 92.98 | N99: 93.39 | O99: 92.45 | P99: 92.39
A100: 175 | C100: 1112 | D100: 2024 | E100: 92.5298 | F100: 93.1622 | G100: 93.4418 | H100: 93.1676 | I100: 93.4062 | J100: 92.4509 | K100: 92.5073 | L100: 93.569
A101: 175 Average | B101: Towers at Wyncote | E101: =AVERAGE(E98:E100) -> 94.35326667 | F101: =AVERAGE(F98:F100) -> 94.76073333 | G101: 94.74726667 | H101: 94.40253333 | I101: 93.6954 | J101: 91.63696667 | K101: 91.4291 | L101: 93.803 | M101: 94.375 | N101: 94.355 | O101: 93.8 | P101: 93.715
A102: 185 | C102: 628 | D102: 2022 | E102: 87.14 | F102: 89.57 | G102: 90.76 | H102: 90.43 | I102: 89.81 | J102: 91.4 | K102: 91.81 | L102: 92.01 | M102: 92.7 | N102: 91.52 | O102: 90.46 | P102: 89.74
A103: 185 | C103: 628 | D103: 2023 | E103: 90.32 | F103: 91.19 | G103: 89.9 | H103: 90.75 | I103: 92.88 | J103: 93.81 | K103: 91.75 | L103: 92.84 | M103: 92.62 | N103: 92.06 | O103: 92.8 | P103: 92.86
A104: 185 | C104: 628 | D104: 2024 | E104: 92.3289 | F104: 93.3655 | G104: 92.2872 | H104: 93.297 | I104: 91.9949 | J104: 91.8458 | K104: 91.5803 | L104: 91.2969
A105: 185 Average | B105: 251 Dekalb | E105: =AVERAGE(E102:E104) -> 89.92963333 | F105: =AVERAGE(F102:F104) -> 91.37516667 | G105: 90.9824 | H105: 91.49233333 | I105: 91.56163333 | J105: 92.35193333 | K105: 91.71343333 | L105: 92.04896667 | M105: 92.66 | N105: 91.79 | O105: 91.63 | P105: 91.3
A106: 188 | C106: 150 | D106: 2022 | E106: 98.43 | F106: 96.95 | G106: 97.44 | H106: 98 | I106: 98.25 | J106: 98 | K106: 98.04 | L106: 97.03 | M106: 97.04 | N106: 94.69 | O106: 93.33 | P106: 93.66
A107: 188 | C107: 150 | D107: 2023 | E107: 92.65 | F107: 93.45 | G107: 94.13 | H107: 93.12 | I107: 92.46 | J107: 91.49 | K107: 94.47 | L107: 95.47 | M107: 95.29 | N107: 95.59 | O107: 96.18 | P107: 95.59
A108: 188 | C108: 150 | D108: 2024 | E108: 96.4062 | F108: 96.1009 | G108: 93.1686 | H108: 91.0714 | I108: 90.6236 | J108: 92.4465 | K108: 93.6586 | L108: 93.1397
A109: 188 Average | B109: Stanbridge Crossings | E109: =AVERAGE(E106:E108) -> 95.82873333 | F109: =AVERAGE(F106:F108) -> 95.5003 | G109: 94.91286667 | H109: 94.0638 | I109: 93.77786667 | J109: 93.97883333 | K109: 95.38953333 | L109: 95.21323333 | M109: 96.165 | N109: 95.14 | O109: 94.755 | P109: 94.625
A110: 190 | C110: 92 | D110: 2022 | E110: 98.02 | F110: 97.57 | G110: 95.3 | H110: 93.12 | I110: 94.84 | J110: 93.19 | K110: 92.45 | L110: 91.57 | M110: 90.19 | N110: 88.28 | O110: 90.22 | P110: 90.33
A111: 190 | C111: 92 | D111: 2023 | E111: 92.3 | F111: 91.11 | G111: 94.45 | H111: 94.62 | I111: 94.35 | J111: 94.05 | K111: 95.73 | L111: 94.57 | M111: 96.42 | N111: 96.53 | O111: 95.7 | P111: 95.77
A112: 190 | C112: 92 | D112: 2024 | E112: 96.5313 | F112: 96.7741 | G112: 94.2074 | H112: 93.1541 | I112: 93.2708 | J112: 93.9426 | K112: 92.6812 | L112: 94.3114
A113: 190 Average | B113: Regency House | E113: =AVERAGE(E110:E112) -> 95.6171 | F113: =AVERAGE(F110:F112) -> 95.15136667 | G113: 94.65246667 | H113: 93.63136667 | I113: 94.1536 | J113: 93.72753333 | K113: 93.6204 | L113: 93.4838 | M113: 93.305 | N113: 92.405 | O113: 92.96 | P113: 93.05
A114: 191 | C114: 305 | D114: 2022 | E114: 97.73 | F114: 97.79 | G114: 96.04 | H114: 95.28 | I114: 93.46 | J114: 92.13 | K114: 89.86 | L114: 90.75 | M114: 90.59 | N114: 93.21 | O114: 94.27 | P114: 93.89
A115: 191 | C115: 305 | D115: 2023 | E115: 93.52 | F115: 91.43 | G115: 90.61 | H115: 91.3 | I115: 93.83 | J115: 96.89 | K115: 96.68 | L115: 94.69 | M115: 92.53 | N115: 90.38 | O115: 88.19 | P115: 88.64
A116: 191 | C116: 305 | D116: 2024 | E116: 89.492 | F116: 91.515 | G116: 94.4192 | H116: 95.8092 | I116: 97.9822 | J116: 96.3539 | K116: 94.9926 | L116: 95.7073
A117: 191 Average | B117: 450 Green | E117: =AVERAGE(E114:E116) -> 93.58066667 | F117: =AVERAGE(F114:F116) -> 93.57833333 | G117: 93.68973333 | H117: 94.12973333 | I117: 95.09073333 | J117: 95.12463333 | K117: 93.8442 | L117: 93.71576667 | M117: 91.56 | N117: 91.795 | O117: 91.23 | P117: 91.265
A118: 192 | C118: 49 | D118: 2022 | E118: 97.96 | F118: 94.29 | G118: 94.52 | H118: 94.65 | I118: 95.92 | J118: 97.28 | K118: 96.84 | L118: 97.89 | M118: 94.42 | N118: 93.81 | O118: 91.84 | P118: 92.36
A119: 192 | C119: 49 | D119: 2023 | E119: 92.69 | F119: 95.34 | G119: 94.34 | H119: 94.56 | I119: 95.92 | J119: 94.15 | K119: 89.99 | L119: 92.96 | M119: 93.95 | N119: 95.92 | O119: 96.67 | P119: 95.92
A120: 192 | C120: 49 | D120: 2024 | E120: 93.9433 | F120: 91.8367 | G120: 91.8367 | H120: 91.5646 | I120: 91.9684 | J120: 96.6666 | K120: 98.1566 | L120: 95.9183
A121: 192 Average | B121: Westgate Arms | E121: =AVERAGE(E118:E120) -> 94.86443333 | F121: =AVERAGE(F118:F120) -> 93.82223333 | G121: 93.56556667 | H121: 93.59153333 | I121: 94.6028 | J121: 96.0322 | K121: 94.99553333 | L121: 95.58943333 | M121: 94.185 | N121: 94.865 | O121: 94.255 | P121: 94.14
A122: 193 | C122: 270 | D122: 2022 | E122: 94.94 | F122: 95.96 | G122: 97.65 | H122: 98.83 | I122: 97.39 | J122: 96.32 | K122: 96.69 | L122: 96.38 | M122: 95.8 | N122: 93.73 | O122: 93.48 | P122: 93.85
A123: 193 | C123: 270 | D123: 2023 | E123: 93.92 | F123: 94.72 | G123: 94.04 | H123: 95.17 | I123: 95.9 | J123: 95.24 | K123: 94.77 | L123: 94.31 | M123: 93.09 | N123: 93 | O123: 93.53 | P123: 93.9
A124: 193 | C124: 270 | D124: 2024 | E124: 94.2054 | F124: 94.8659 | G124: 94.0262 | H124: 95.3098 | I124: 94.4663 | J124: 93.8991 | K124: 94.2744 | L124: 95.2058
A125: 193 Average | B125: Park at Westminster | E125: =AVERAGE(E122:E124) -> 94.35513333 | F125: =AVERAGE(F122:F124) -> 95.18196667 | G125: 95.23873333 | H125: 96.4366 | I125: 95.91876667 | J125: 95.15303333 | K125: 95.2448 | L125: 95.2986 | M125: 94.445 | N125: 93.365 | O125: 93.505 | P125: 93.875

Sheet Move In History (hidden)
A1: LINDY - Move In Report
A2: Property=.allresd AND Status='Current','Past','Future','Eviction','Notice','Vacant','Applicant','Wait List' AND Move In=06/01/2021-05/31/2024
K5: Email
A6: Code | B6: Unit | C6: Unit Type | D6: Unit SQFT | E6: First Name | F6: Last Name | G6: Status | H6: Move In | K6: Address
A7: 120
A8: t0036596 | B8: B205 | C8: wb1bd1bt | D8: 661 | E8: Ilchan | F8: Kim | G8: Current | H8: 6 | I8: 8 | J8: 2021 | K8: kic413@yahoo.com
A9: t0036385 | B9: C204 | C9: wb1bd1bt | D9: 661 | E9: Willie | F9: Spencer | G9: Past | H9: 6 | I9: 19 | J9: 2021 | K9: mightyeagle27@yahoo.com
A10: t0037348 | B10: A302 | C10: wb2bd2bt | D10: 950 | E10: Janan | F10: Green-Ashton | G10: Past | H10: 8 | I10: 5 | J10: 2021 | K10: janan.ashton@gmail.com
A11: t0037484 | B11: B102 | C11: wb2bd2bt | D11: 950 | E11: Perpetue-Etienne | F11: Charles | G11: Current | H11: 8 | I11: 31 | J11: 2021 | K11: perpetuecharles.re@gmail.com
A12: t0037765 | B12: A207 | C12: wb2bd1bt | D12: 950 | E12: Judiene | F12: Gordon | G12: Past | H12: 9 | I12: 23 | J12: 2021 | K12: judieneg@gmail.com
A13: t0037806 | B13: B304 | C13: wb1bd1bt | D13: 661 | E13: Christine | F13: Thomas | G13: Notice | H13: 10 | I13: 1 | J13: 2021 | K13: cthomas081996@gmail.com
A14: t0037823 | B14: A205 | C14: wb1bd1bt | D14: 661 | E14: Bolatito | F14: Bello | G14: Current | H14: 11 | I14: 1 | J14: 2021 | K14: temitopebolatito@yahoo.com
A15: t0038043 | B15: B107 | C15: wb2bd1bt | D15: 950 | E15: Brent | F15: Baum | G15: Past | H15: 11 | I15: 27 | J15: 2021 | K15: brent.c.baum@gmail.com
A16: t0038178 | B16: C306 | C16: wb2bd2bt | D16: 950 | E16: Christal | F16: Hall | G16: Past | H16: 11 | I16: 27 | J16: 2021 | K16: christal.hall@aol.com
A17: t0038635 | B17: B208 | C17: wb1bd1bt | D17: 661 | E17: Shawn | F17: Lightner | G17: Current | H17: 2 | I17: 1 | J17: 2022 | K17: slightner14@gmail.com
A18: t0038535 | B18: B202 | C18: wb2bd2bt | D18: 950 | E18: Coleen | F18: Herndon | G18: Current | H18: 3 | I18: 11 | J18: 2022 | K18: cyherndon66@icloud.com
A19: t0038784 | B19: C107 | C19: wb2bd1bt | D19: 950 | E19: Brenda | F19: Brown | G19: Past | H19: 3 | I19: 25 | J19: 2022 | K19: bren06321@gmail.com
A20: t0038958 | B20: C208 | C20: wb1bd1bt | D20: 661 | E20: David | F20: Cobb | G20: Current | H20: 4 | I20: 1 | J20: 2022 | K20: mrdhc2002@gmail.com
A21: t0038987 | B21: C201 | C21: wb1bd1bt | D21: 661 | E21: Dionna | F21: Burwell | G21: Past | H21: 4 | I21: 1 | J21: 2022 | K21: dionnaburwell@yahoo.com
A22: t0040089 | B22: A202 | C22: wb2bd2bt | D22: 950 | E22: Sarbreck | F22: Brown | G22: Past | H22: 6 | I22: 17 | J22: 2022 | K22: sarbreckb@yahoo.com
A23: t0040936 | B23: B301 | C23: wb1bd1bt | D23: 661 | E23: Sabriyya | F23: Williams | G23: Past | H23: 7 | I23: 13 | J23: 2022 | K23: kareemakwilliams@gmail.com
A24: t0040749 | B24: A305 | C24: wb1bd1bt | D24: 661 | E24: Florcie | F24: Desouvre | G24: Current | H24: 7 | I24: 16 | J24: 2022 | K24: florcied@hotmail.com
A25: t0040752 | B25: A301 | C25: wb1bd1bt | D25: 661 | E25: Raven | F25: Bacote | G25: Current | H25: 7 | I25: 31 | J25: 2022 | K25: ravenbacote@yahoo.com
A26: t0041236 | B26: C305 | C26: wb1bd1bt | D26: 661 | E26: Mister | F26: Murrell | G26: Current | H26: 8 | I26: 13 | J26: 2022 | K26: mistermurrell@icloud.com
A27: t0041214 | B27: A208 | C27: wb1bd1bt | D27: 661 | E27: Kay-Ann | F27: Khan | G27: Current | H27: 8 | I27: 29 | J27: 2022 | K27: kayann92@gmail.com
A28: t0041335 | B28: C101 | C28: wb1bd1bt | D28: 661 | E28: Kyle | F28: Jones | G28: Current | H28: 9 | I28: 1 | J28: 2022 | K28: uptownjones2020@yahoo.com
A29: t0041109 | B29: A201 | C29: wb1bd1bt | D29: 661 | E29: Jyaire | F29: Bovell | G29: Current | H29: 10 | I29: 15 | J29: 2022 | K29: jaibovell27@gmail.com
A30: t0042285 | B30: C107 | C30: wb2bd1bt | D30: 950 | E30: Mingon | F30: Woods | G30: Current | H30: 12 | I30: 1 | J30: 2022 | K30: mingonwoods@yahoo.com
A31: t0042388 | B31: B303 | C31: wb2bd1bt | D31: 950 | E31: Renz Angelo | F31: Alvarico | G31: Current | H31: 12 | I31: 28 | J31: 2022 | K31: loserenz@gmail.com
A32: t0042422 | B32: A302 | C32: wb2bd2bt | D32: 950 | E32: Tyshee | F32: Mason | G32: Past | H32: 1 | I32: 1 | J32: 2023 | K32: tyshee62@gmail.com
A33: t0042678 | B33: C103 | C33: wb2bd1bt | D33: 950 | E33: Asia | F33: El | G33: Current | H33: 2 | I33: 1 | J33: 2023 | K33: asiamel749@gmail.com
A34: t0042994 | B34: B201 | C34: wb1bd1bt | D34: 661 | E34: Cianni | F34: Hudson | G34: Past | H34: 2 | I34: 10 | J34: 2023 | K34: ciannihudson123@gmail.com
A35: t0042925 | B35: C105 | C35: wb1bd1bt | D35: 661 | E35: Kayla | F35: Gay | G35: Past | H35: 2 | I35: 18 | J35: 2023 | K35: kayla.gay3@gmail.com
A36: t0042607 | B36: C302 | C36: wb2bd2bt | D36: 950 | E36: Elisha | F36: McDowell | G36: Current | H36: 3 | I36: 1 | J36: 2023 | K36: elisha.mcdowell@yahoo.com
A37: t0042848 | B37: B206 | C37: wb2bd2bt | D37: 950 | E37: Zoe | F37: Cousins | G37: Current | H37: 3 | I37: 1 | J37: 2023 | K37: ztcousins@gmail.com
A38: t0043314 | B38: B103 | C38: wb2bd1bt | D38: 950 | E38: Nevaeh | F38: Peterson | G38: Current | H38: 3 | I38: 18 | J38: 2023 | K38: nevaehpeterson1234@gmail.com
A39: t0043228 | B39: A206 | C39: wb2bd2bt | D39: 950 | E39: Samantha | F39: Suragh | G39: Current | H39: 4 | I39: 1 | J39: 2023 | K39: samanthadrew86@gmail.com
A40: t0043343 | B40: A207 | C40: wb2bd1bt | D40: 950 | E40: Syreeta | F40: Henderson | G40: Current | H40: 4 | I40: 1 | J40: 2023 | K40: syreetahenderson@yahoo.com
A41: t0043454 | B41: B107 | C41: wb2bd1bt | D41: 950 | E41: Raqueeda | F41: Sistrunk | G41: Current | H41: 4 | I41: 14 | J41: 2023 | K41: raqueedasistrunk@yahoo.com
A42: t0043598 | B42: C201 | C42: wb1bd1bt | D42: 661 | E42: Steven | F42: Lee | G42: Current | H42: 4 | I42: 15 | J42: 2023 | K42: stevenlee277@gmail.com
A43: t0043500 | B43: A307 | C43: wb2bd1bt | D43: 950 | E43: Unique | F43: Nettles | G43: Past | H43: 4 | I43: 30 | J43: 2023 | K43: nettlesunique@yahoo.com
A44: t0044289 | B44: C204 | C44: wb1bd1bt | D44: 661 | E44: Quanesha | F44: Lighty | G44: Current | H44: 5 | I44: 31 | J44: 2023 | K44: quaneshalighty21@gmail.com
A45: t0044086 | B45: B204 | C45: wb1bd1bt | D45: 661 | E45: Jaleesa | F45: Belizaire | G45: Current | H45: 6 | I45: 1 | J45: 2023 | K45: belizaire90@icloud.com
A46: t0043976 | B46: A202 | C46: wb2bd2bt | D46: 950 | E46: Valerie | F46: Stevens-Graves | G46: Current | H46: 7 | I46: 14 | J46: 2023 | K46: valeriekstevens@hotmail.com
A47: t0045800 | B47: C205 | C47: wb1bd1bt | D47: 661 | E47: Kevin | F47: Mahoney | G47: Current | H47: 10 | I47: 21 | J47: 2023 | K47: Kevin.mahone19@gmail.com
A48: t0046470 | B48: C206 | C48: wb2bd2bt | D48: 950 | E48: Tanisha | F48: Rawls | G48: Current | H48: 1 | I48: 18 | J48: 2024 | K48: tanisharawls11@gmail.com
A49: t0046794 | B49: C306 | C49: wb2bd2bt | D49: 950 | E49: Niyah | F49: Young | G49: Current | H49: 1 | I49: 31 | J49: 2024 | K49: niyah.young501@gmail.com
A50: t0047183 | B50: A107 | C50: wb2bd1bt | D50: 950 | E50: Shaquan | F50: Darden | G50: Current | H50: 3 | I50: 1 | J50: 2024 | K50: d.shaquan1995@gmail.com
A51: t0047594 | B51: A101 | C51: wb1bd1bt | D51: 661 | E51: Tyriqa | F51: Washington | G51: Current | H51: 4 | I51: 30 | J51: 2024 | K51: twashington647@gmail.com
A52: t0047818 | B52: A302 | C52: wb2bd2bt | D52: 950 | E52: Anthony | F52: Cole | G52: Current | H52: 5 | I52: 4 | J52: 2024 | K52: terrellcole7@gmail.com
A53: t0047928 | B53: B301 | C53: wb1bd1bt | D53: 661 | E53: Kevin | F53: Thomas | G53: Current | H53: 5 | I53: 17 | J53: 2024 | K53: Vinnyprice34@aol.com
A54: t0047969 | B54: C106 | C54: wb2bd2bt | D54: 950 | E54: Thomas | F54: Murphy | G54: Current | H54: 5 | I54: 20 | J54: 2024 | K54: thomasmurphy230@gmail.com
A55: Total 120

Sheet GPR Growth Budget
B1: Oct 2024 actual
B2: Market Rent | C2: Loss to Lease | D2: GPR SUBTOTAL
A3: Elkins Park | D3: 47147
A4: Bromley House | B4: 301318.5 | C4: -8038.41 | D4: 290697
A5: 7400 Roosevelt | B5: 291643.95 | C5: -421.1 | D5: 271341
A6: Eola Park | B6: 52080.74 | C6: -2399.29 | D6: 50050
A7: Warrington Crossings | B7: 377179.03 | C7: -8569.57 | D7: 371248
A8: Willow Bend | B8: 85602 | C8: 2522.78 | D8: 87499
A9: Sedgwick Gardens | B9: 103020 | C9: -5365.3 | D9: 94202
A10: Sedgwick Terrace | B10: 22394.88 | C10: -31.69 | D10: 23254
A11: Gardens of Mt Airy | B11: 73354.94 | C11: -1944.35 | D11: 71954
A12: Gateway Enclaves | B12: 418389.84 | C12: 19417.07 | D12: 416874
A13: Haverford Court | B13: 243528.56 | C13: -6031.33 | D13: 239380.89
A14: Longwood Manor | B14: 170400 | C14: -18074.73 | D14: 155197
A15: Gateway Towers | B15: 548932.23 | C15: 41489.67 | D15: 586159
A16: Gateway Airport | B16: 114400 | C16: -25826.63 | D16: 103148.73
A17: Yorkhouse North | B17: 251898.75 | C17: 7290.4 | D17: 246478
A18: Yorkhouse South | B18: 254016 | C18: 8143.42 | D18: 268226
A19: Joshua House | B19: 472832.88 | C19: -29110.74 | D19: 433404.53
A20: Fountain Gardens | B20: 145583.1 | C20: -5.09 | D20: 149872
A21: Academia Suites | B21: 118672.96 | C21: -3086.29 | D21: 117628
A22: Rosedale Court | B22: 118489.91 | C22: -2647.9 | D22: 114670
A23: Meadowbrook Apts | B23: 1158853.44 | C23: -66543.59 | D23: 1042181.01
A24: Mt Airy Arms | B24: 123815 | C24: -6962.29 | D24: 118937.34
A25: Overlook Hills | B25: 50768 | C25: -2319.65 | D25: 50608
A26: Wyncote Towers | B26: 2344896.64 | C26: -53067.45 | D26: 2127275
A27: 251 Dekalb | B27: 1136052 | C27: 83466.7 | D27: 1195014
A28: Stanbridge Apts | B28: 224400 | C28: -11732.59 | D28: 217596
A29: Regency House | B29: 100771.08 | C29: 1375.62 | D29: 106161
A30: 450 Green Apts | B30: 452244.85 | C30: -6580.26 | D30: 423325
A31: Westgate Arms | B31: 70049.91 | C31: 204.99 | D31: 67411
A32: Park at Westminster | B32: 511920 | C32: 4274.15 | D32: 514542

Sheet Renewal Rate-Moveouts (hidden)
A1: ='Discussion Items'!A1 -> Willow Bend
A4: Move Out History - January 2022 to July 2024
D7: 08/2023 - 07/2024 | F7: 2023 | H7: 2022 | J7: 2022 to Trailing 12
A8: Property | B8: Prop Name | C8: Units | D8: Moveouts | E8: Renewal Rate % | F8: Moveouts | G8: Renewal Rate % | H8: Moveouts | I8: Renewal Rate % | J8: Average Moveouts | K8: Average Renewal Rate %
A9: 107 | B9: Elkins Park | C9: 31 | D9: 9 | E9: =1-(D9/C9) -> 0.7096774194 | F9: 9 | G9: =1-(F9/C9) -> 0.7096774194 | H9: 5 | I9: =1-(H9/C9) -> 0.8387096774 | J9: =AVERAGE(D9,F9,H9) -> 7.666666667 | K9: =(C9-J9)/C9 -> 0.752688172
A10: 113 | B10: Bromley House | C10: 210 | D10: 43 | E10: =1-(D10/C10) -> 0.7952380952 | F10: 37 | G10: =1-(F10/C10) -> 0.8238095238 | H10: 49 | I10: =1-(H10/C10) -> 0.7666666667 | J10: =AVERAGE(D10,F10,H10) -> 43 | K10: =(C10-J10)/C10 -> 0.7952380952
A11: 114 | B11: 7400 Roosevelt | C11: 195 | D11: 205 | E11: -0.05128205128 | F11: 68 | G11: 0.6512820513 | H11: 62 | I11: 0.6820512821 | J11: 111.6666667 | K11: 0.4273504274
A12: 116 | B12: Eola Park | C12: 43 | D12: 12 | E12: 0.7209302326 | F12: 9 | G12: 0.7906976744 | H12: 9 | I12: 0.7906976744 | J12: 10 | K12: 0.7674418605
A13: 117 | B13: Warrington Crossings | C13: 229 | D13: 66 | E13: 0.711790393 | F13: 66 | G13: 0.711790393 | H13: 60 | I13: 0.7379912664 | J13: 64 | K13: 0.7205240175
A14: 120 | B14: Willow Bend | C14: 66 | D14: 10 | E14: 0.8484848485 | F14: 13 | G14: 0.803030303 | H14: 19 | I14: 0.7121212121 | J14: 14 | K14: 0.7878787879
A15: 122 | B15: Sedgwick Gardens | C15: 68 | D15: 15 | E15: 0.7794117647 | F15: 12 | G15: 0.8235294118 | H15: 10 | I15: 0.8529411765 | J15: 12.33333333 | K15: 0.818627451
A16: 123 | B16: Sedgwick Terrace | C16: 18 | D16: 5 | E16: 0.7222222222 | F16: 5 | G16: 0.7222222222 | H16: 10 | I16: 0.4444444444 | J16: 6.666666667 | K16: 0.6296296296
A17: 125 | B17: Gardens of Mt. Airy | C17: 61 | D17: 11 | E17: 0.8196721311 | F17: 13 | G17: 0.7868852459 | H17: 12 | I17: 0.8032786885 | J17: 12 | K17: 0.8032786885
A18: 129 | B18: Gateway Enclaves | C18: 216 | D18: 109 | E18: 0.4953703704 | F18: 98 | G18: 0.5462962963 | H18: 96 | I18: 0.5555555556 | J18: 101 | K18: 0.5324074074
A19: 131 | B19: Haverford Court | C19: 158 | D19: 25 | E19: 0.8417721519 | F19: 31 | G19: 0.8037974684 | H19: 34 | I19: 0.7848101266 | J19: 30 | K19: 0.8101265823
A20: 135 | B20: Longwood Manor | C20: 120 | D20: 14 | E20: 0.8833333333 | F20: 15 | G20: 0.875 | H20: 15 | I20: 0.875 | J20: 14.66666667 | K20: 0.8777777778
A21: 136 | B21: Gateway Towers | C21: 399 | D21: 138 | E21: 0.6541353383 | F21: 143 | G21: 0.64160401 | H21: 126 | I21: 0.6842105263 | J21: 135.6666667 | K21: 0.6599832916
A22: 138 | B22: Gateway Airport | C22: 52 | D22: 12 | E22: 0.7692307692 | F22: 10 | G22: 0.8076923077 | H22: 9 | I22: 0.8269230769 | J22: 10.33333333 | K22: 0.8012820513
A23: 141 | B23: Yorkhouse North | C23: 225 | D23: 85 | E23: 0.6222222222 | F23: 105 | G23: 0.5333333333 | H23: 99 | I23: 0.56 | J23: 96.33333333 | K23: 0.5718518519
A24: 142 | B24: Yorkhouse South | C24: 216 | D24: 43 | E24: 0.8009259259 | F24: 48 | G24: 0.7777777778 | H24: 49 | I24: 0.7731481481 | J24: 46.66666667 | K24: 0.7839506173
A25: 145 | B25: Joshua House | C25: 312 | D25: 110 | E25: 0.6474358974 | F25: 117 | G25: 0.625 | H25: 86 | I25: 0.7243589744 | J25: 104.3333333 | K25: 0.6655982906
A26: 147 | B26: Fountain Gardens | C26: 117 | D26: 20 | E26: 0.8290598291 | F26: 28 | G26: 0.7606837607 | H26: 23 | I26: 0.8034188034 | J26: 23.66666667 | K26: 0.7977207977
A27: 152 | B27: Academia Suites | C27: 112 | D27: 29 | E27: 0.7410714286 | F27: 31 | G27: 0.7232142857 | H27: 39 | I27: 0.6517857143 | J27: 33 | K27: 0.7053571429
A28: 155 | B28: Rosedale Court | C28: 77 | D28: 21 | E28: 0.7272727273 | F28: 21 | G28: 0.7272727273 | H28: 27 | I28: 0.6493506494 | J28: 23 | K28: 0.7012987013
A29: 157 | B29: Meadowbrook Apts | C29: 536 | D29: 171 | E29: 0.6809701493 | F29: 153 | G29: 0.7145522388 | H29: 158 | I29: 0.7052238806 | J29: 160.6666667 | K29: 0.7002487562
A30: 170 | B30: Mt. Airy Place | C30: 100 | D30: 15 | E30: 0.85 | F30: 17 | G30: 0.83 | H30: 21 | I30: 0.79 | J30: 17.66666667 | K30: 0.8233333333
A31: 173 | B31: Overlook Hills | C31: 38 | D31: 11 | E31: 0.7105263158 | F31: 9 | G31: 0.7631578947 | H31: 8 | I31: 0.7894736842 | J31: 9.333333333 | K31: 0.7543859649
A32: 175 | B32: Wyncote Towers | C32: 1112 | D32: 364 | E32: 0.6726618705 | F32: 423 | G32: 0.6196043165 | H32: 387 | I32: 0.6519784173 | J32: 391.3333333 | K32: 0.6480815348
A33: 185 | B33: 251 Dekalb | C33: 628 | D33: 332 | E33: 0.4713375796 | F33: 331 | G33: 0.4729299363 | H33: 226 | I33: 0.6401273885 | J33: 296.3333333 | K33: 0.5281316348
A34: 188 | B34: Stanbridge Apts | C34: 150 | D34: 41 | E34: 0.7266666667 | F34: 43 | G34: 0.7133333333 | H34: 38 | I34: 0.7466666667 | J34: 40.66666667 | K34: 0.7288888889
A35: 190 | B35: Regency House | C35: 92 | D35: 17 | E35: 0.8152173913 | F35: 17 | G35: 0.8152173913 | H35: 33 | I35: 0.6413043478 | J35: 22.33333333 | K35: 0.7572463768
A36: 191 | B36: 450 Green Apts | C36: 305 | D36: 115 | E36: 0.6229508197 | F36: 110 | G36: 0.6393442623 | H36: 95 | I36: 0.6885245902 | J36: 106.6666667 | K36: 0.650273224
A37: 192 | B37: Westgate Arms | C37: 49 | D37: 14 | E37: 0.7142857143 | F37: 11 | G37: 0.7755102041 | H37: 11 | I37: 0.7755102041 | J37: 12 | K37: 0.7551020408
A38: 193 | B38: Park at Westminster | C38: 270 | D38: 88 | E38: 0.6740740741 | F38: 85 | G38: 0.6851851852 | H38: 72 | I38: 0.7333333333 | J38: 81.66666667 | K38: 0.6975308642

Sheet Payroll
A1: ='[1]Payroll Main'!H8 -> 120
A3: YOU MUST INPUT ALL ORANGE HIGHLIGHTED CELLS!
A4: YARDI IMPORT TEMPLATE - GREEN HIGHLIGHTED CELLS!
D6: Pulled from Payroll Main Input Tab | K6: 3 PAYS | P6: 3 PAYS
C7: Notes | D7: Monthly | E7: Yearly | F7: Proof | G7: Jan | H7: Feb | I7: Mar | J7: Apr | K7: May | L7: Jun | M7: Jul | N7: Aug | O7: Sep | P7: Oct | Q7: Nov | R7: Dec
A8: 51000 | B8: PAYROLL EXPENSE
A9: 51202 | B9: Community Managers | D9: ='[1]Payroll Main'!N9 -> 1561.089877 | E9: =+D9*12 -> 18733.07853 | F9: =SUM(G9:R9) -> 18733.07853 | G9: =+$E9/26*2 -> 1441.00604 | H9: 1441.00604 | I9: 1441.00604 | J9: 1441.00604 | K9: =+$E9/26*3 -> 2161.509061 | L9: =+$E9/26*2 -> 1441.00604 | M9: =+$E9/26*2 -> 1441.00604 | N9: =+$E9/26*2 -> 1441.00604 | O9: 1441.00604 | P9: =+$E9/26*3 -> 2161.509061 | Q9: =+$E9/26*2 -> 1441.00604 | R9: =+$E9/26*2 -> 1441.00604
A10: 51203 | B10: Office Payroll | D10: =SUM('[1]Payroll Main'!N10:N11) -> 208.565 | E10: =+D10*12 -> 2502.78 | F10: =SUM(G10:R10) -> 2502.78 | G10: 192.5215385 | H10: 192.5215385 | I10: 192.5215385 | J10: 192.5215385 | K10: =+$E10/26*3 -> 288.7823077 | L10: =+$E10/26*2 -> 192.5215385 | M10: 192.5215385 | N10: 192.5215385 | O10: 192.5215385 | P10: =+$E10/26*3 -> 288.7823077 | Q10: =+$E10/26*2 -> 192.5215385 | R10: 192.5215385
A11: 51204 | B11: Assistant Managers | D11: ='[1]Payroll Main'!N12 -> 1121.085063 | E11: 13453.02076 | F11: 13453.02076 | G11: 1034.84775 | H11: 1034.84775 | I11: 1034.84775 | J11: 1034.84775 | K11: 1552.271626 | L11: 1034.84775 | M11: 1034.84775 | N11: 1034.84775 | O11: 1034.84775 | P11: 1552.271626 | Q11: 1034.84775 | R11: 1034.84775
A12: 51205 | B12: Resident Services | D12: =SUM('[1]Payroll Main'!N13:N19) -> 885.067155 | E12: 10620.80586 | F12: 10620.80586 | G12: 816.9850662 | H12: 816.9850662 | I12: 816.9850662 | J12: 816.9850662 | K12: 1225.477599 | L12: 816.9850662 | M12: 816.9850662 | N12: 816.9850662 | O12: 816.9850662 | P12: 1225.477599 | Q12: 816.9850662 | R12: 816.9850662
A13: 51206 | B13: Reception/Front Desk | D13: =SUM('[1]Payroll Main'!N20:N23) -> 0 | E13: 0 | F13: 0 | G13: 0 | H13: 0 | I13: 0 | J13: 0 | K13: 0 | L13: 0 | M13: 0 | N13: 0 | O13: 0 | P13: 0 | Q13: 0 | R13: 0
A14: 51209 | B14: Maint-Manager | D14: ='[1]Payroll Main'!N24 -> 0 | E14: 0 | F14: 0 | G14: 0 | H14: 0 | I14: 0 | J14: 0 | K14: 0 | L14: 0 | M14: 0 | N14: 0 | O14: 0 | P14: 0 | Q14: 0 | R14: 0
A15: 51210 | B15: Maint-Superintendant | D15: =SUM('[1]Payroll Main'!N25:N26) -> 1123.8948 | E15: 13486.7376 | F15: 13486.7376 | G15: 1037.441354 | H15: 1037.441354 | I15: 1037.441354 | J15: 1037.441354 | K15: 1556.162031 | L15: 1037.441354 | M15: 1037.441354 | N15: 1037.441354 | O15: 1037.441354 | P15: 1556.162031 | Q15: 1037.441354 | R15: 1037.441354
A16: 51211 | B16: Maint-Staff | D16: =SUM('[1]Payroll Main'!N27:N35) -> 2812.546737 | E16: 33750.56084 | F16: 33750.56084 | G16: 2596.196988 | H16: 2596.196988 | I16: 2596.196988 | J16: 2596.196988 | K16: 3894.295482 | L16: 2596.196988 | M16: 2596.196988 | N16: 2596.196988 | O16: 2596.196988 | P16: 3894.295482 | Q16: 2596.196988 | R16: 2596.196988
A17: 51213 | B17: Janitorial | D17: =SUM('[1]Payroll Main'!N36:N37) -> 0 | E17: =+D17*12 -> 0 | F17: =SUM(G17:R17) -> 0 | G17: 0 | H17: 0 | I17: 0 | J17: 0 | K17: 0 | L17: 0 | M17: 0 | N17: 0 | O17: 0 | P17: 0 | Q17: 0 | R17: 0
A18: 51215 | B18: Groundskeeping | D18: =SUM('[1]Payroll Main'!N38:N39) -> 0 | E18: 0 | F18: 0 | G18: 0 | H18: 0 | I18: 0 | J18: 0 | K18: 0 | L18: 0 | M18: 0 | N18: 0 | O18: 0 | P18: 0 | Q18: 0 | R18: 0
A19: 51270 | B19: Payroll Bonus | D19: =E19/12 -> 427.5 | E19: =SUM(G19:R19) -> 5130 | F19: =SUM(G19:R19) -> 5130 | G19: =($C$50/12)+($C$51/12) -> 152.5 | H19: =($C$50/12)+($C$51/12)+((C52/5)*2) -> 1472.5 | I19: =($C$50/12)+($C$51/12) -> 152.5 | J19: =($C$50/12)+($C$51/12) -> 152.5 | K19: =($C$50/12)+($C$51/12)+($C$52/5) -> 812.5 | L19: =($C$50/12)+($C$51/12) -> 152.5 | M19: =($C$50/12)+($C$51/12) -> 152.5 | N19: =($C$50/12)+($C$51/12)+($C$52/5) -> 812.5 | O19: =($C$50/12)+($C$51/12) -> 152.5 | P19: =($C$50/12)+($C$51/12) -> 152.5 | Q19: =($C$50/12)+($C$51/12)+($C$52/5) -> 812.5 | R19: =($C$50/12)+($C$51/12) -> 152.5
B20: Subtotal | D20: =SUM(D9:D19) -> 8139.748632 | E20: =SUM(E9:E19) -> 97676.98359 | F20: =SUM(F9:F19) -> 97676.98359 | G20: =SUM(G9:G19) -> 7271.498737 | H20: 8591.498737 | I20: 7271.498737 | J20: 7271.498737 | K20: 11490.99811 | L20: 7271.498737 | M20: 7271.498737 | N20: 7931.498737 | O20: 7271.498737 | P20: 10830.99811 | Q20: 7931.498737 | R20: 7271.498737
E21: =+D21*12 -> 0 | F21: =SUM(G21:R21) -> 0 | G21: =+$E21/26*2 -> 0 | H21: =+$E21/26*2 -> 0 | I21: =+$E21/26*3 -> 0 | J21: =+$E21/26*2 -> 0 | K21: =+$E21/26*2 -> 0 | L21: =+$E21/26*2 -> 0 | M21: =+$E21/26*2 -> 0 | N21: =+$E21/26*2 -> 0 | O21: =+$E21/26*3 -> 0 | P21: =+$E21/26*2 -> 0 | Q21: 0 | R21: 0
A22: 51530 | B22: Payroll Taxes-Employer - (10%) | C22: 0.1 | D22: =D20*C22 -> 813.9748632 | E22: =+D22*12 -> 9767.698359 | F22: =SUM(G22:R22) -> 9767.698359 | G22: =+$E22/26*2 -> 751.3614122 | H22: 751.3614122 | I22: 751.3614122 | J22: 751.3614122 | K22: =+$E22/26*3 -> 1127.042118 | L22: =+$E22/26*2 -> 751.3614122 | M22: =+$E22/26*2 -> 751.3614122 | N22: 751.3614122 | O22: 751.3614122 | P22: =+$E22/26*3 -> 1127.042118 | Q22: 751.3614122 | R22: 751.3614122
A23: 51531 | B23: 401k Match Co. Exp - (3%) | C23: 0.03 | D23: =D20*C23 -> 244.192459 | E23: 2930.309508 | F23: 2930.309508 | G23: 225.4084237 | H23: 225.4084237 | I23: 225.4084237 | J23: 225.4084237 | K23: =+$E23/26*3 -> 338.1126355 | L23: =+$E23/26*2 -> 225.4084237 | M23: 225.4084237 | N23: 225.4084237 | O23: 225.4084237 | P23: =+$E23/26*3 -> 338.1126355 | Q23: 225.4084237 | R23: 225.4084237
A24: 51540 | B24: Workers Compensation Ins (By Dept) | D24: 72 | E24: 864 | F24: =SUM(G24:R24) -> 864 | G24: 66.46153846 | H24: 66.46153846 | I24: 66.46153846 | J24: 66.46153846 | K24: =+$E24/26*3 -> 99.69230769 | L24: =+$E24/26*2 -> 66.46153846 | M24: 66.46153846 | N24: 66.46153846 | O24: 66.46153846 | P24: =+$E24/26*3 -> 99.69230769 | Q24: 66.46153846 | R24: 66.46153846
A25: 51560 | B25: Health & Dental Ins Benefits (INPUT) | D25: 1072 | E25: 12864 | F25: =SUM(G25:R25) -> 12864 | G25: =+D25 -> 1072 | H25: =+G25 -> 1072 | I25: =+H25 -> 1072 | J25: =+I25 -> 1072 | K25: =+J25 -> 1072 | L25: =+K25 -> 1072 | M25: =+L25 -> 1072 | N25: 1072 | O25: 1072 | P25: 1072 | Q25: 1072 | R25: 1072
B26: Total | D26: =SUM(D20:D25) -> 10341.91595 | E26: 124102.9915 | F26: 124102.9915 | G26: 9386.730112 | H26: 10706.73011 | I26: 9386.730112 | J26: 9386.730112 | K26: 14127.84517 | L26: 9386.730112 | M26: 9386.730112 | N26: 10046.73011 | O26: 9386.730112 | P26: 13467.84517 | Q26: 10046.73011 | R26: 9386.730112
A29: 1 | B29: 2 | C29: 3 | D29: 4 | E29: 5 | F29: 6 | G29: 7 | H29: 8 | I29: 9 | J29: 10 | K29: 11 | L29: 12 | M29: 13 | N29: 14 | O29: 15 | P29: 16 | Q29: 17 | R29: 18
A30: Acct # | B30: Name | C30: D | D30: N | E30: Last Yr | F30: Totals | G30: Jan | H30: Feb | I30: Mar | J30: Apr | K30: May | L30: Jun | M30: Jul | N30: Aug | O30: Sep | P30: Oct | Q30: Nov | R30: Dec
A31: 51202 | B31: Community Managers | F31: =SUM(G31:R31) -> 18733.07853 | G31: =+G9 -> 1441.00604 | H31: =+H9 -> 1441.00604 | I31: 1441.00604 | J31: 1441.00604 | K31: 2161.509061 | L31: 1441.00604 | M31: 1441.00604 | N31: 1441.00604 | O31: 1441.00604 | P31: 2161.509061 | Q31: 1441.00604 | R31: 1441.00604
A32: 51203 | B32: Office Payroll | F32: =SUM(G32:R32) -> 2502.78 | G32: =+G10 -> 192.5215385 | H32: 192.5215385 | I32: 192.5215385 | J32: 192.5215385 | K32: 288.7823077 | L32: 192.5215385 | M32: 192.5215385 | N32: 192.5215385 | O32: 192.5215385 | P32: 288.7823077 | Q32: 192.5215385 | R32: 192.5215385
A33: 51204 | B33: Assistant Managers | F33: 13453.02076 | G33: 1034.84775 | H33: 1034.84775 | I33: 1034.84775 | J33: 1034.84775 | K33: 1552.271626 | L33: 1034.84775 | M33: 1034.84775 | N33: 1034.84775 | O33: 1034.84775 | P33: 1552.271626 | Q33: 1034.84775 | R33: 1034.84775
A34: 51205 | B34: Resident Services | F34: 10620.80586 | G34: 816.9850662 | H34: 816.9850662 | I34: 816.9850662 | J34: 816.9850662 | K34: 1225.477599 | L34: 816.9850662 | M34: 816.9850662 | N34: 816.9850662 | O34: 816.9850662 | P34: 1225.477599 | Q34: 816.9850662 | R34: 816.9850662
A35: 51206 | B35: Reception/Front Desk | F35: 0 | G35: 0 | H35: 0 | I35: 0 | J35: 0 | K35: 0 | L35: 0 | M35: 0 | N35: 0 | O35: 0 | P35: 0 | Q35: 0 | R35: 0
A36: 51209 | B36: Maint-Manager | F36: 0 | G36: 0 | H36: 0 | I36: 0 | J36: 0 | K36: 0 | L36: 0 | M36: 0 | N36: 0 | O36: 0 | P36: 0 | Q36: 0 | R36: 0
A37: 51210 | B37: Maint-Superintendant | F37: 13486.7376 | G37: 1037.441354 | H37: 1037.441354 | I37: 1037.441354 | J37: 1037.441354 | K37: 1556.162031 | L37: 1037.441354 | M37: 1037.441354 | N37: 1037.441354 | O37: 1037.441354 | P37: 1556.162031 | Q37: 1037.441354 | R37: 1037.441354
A38: 51211 | B38: Maint-Staff | F38: 33750.56084 | G38: 2596.196988 | H38: 2596.196988 | I38: 2596.196988 | J38: 2596.196988 | K38: 3894.295482 | L38: 2596.196988 | M38: 2596.196988 | N38: 2596.196988 | O38: 2596.196988 | P38: 3894.295482 | Q38: 2596.196988 | R38: 2596.196988
A39: 51213 | B39: Janitorial | F39: 0 | G39: 0 | H39: 0 | I39: 0 | J39: 0 | K39: 0 | L39: 0 | M39: 0 | N39: 0 | O39: 0 | P39: 0 | Q39: 0 | R39: 0
A40: 51215 | B40: Groundskeeping | F40: 0 | G40: 0 | H40: 0 | I40: 0 | J40: 0 | K40: 0 | L40: 0 | M40: 0 | N40: 0 | O40: 0 | P40: 0 | Q40: 0 | R40: 0
A41: 51270 | B41: Payroll Bonuses | F41: =SUM(G41:R41) -> 5130 | G41: =+G19 -> 152.5 | H41: 1472.5 | I41: 152.5 | J41: 152.5 | K41: 812.5 | L41: 152.5 | M41: 152.5 | N41: 812.5 | O41: 152.5 | P41: 152.5 | Q41: 812.5 | R41: 152.5
A42: 51530 | B42: Payroll Taxes-Employer | F42: =SUM(G42:R42) -> 9767.698359 | G42: =+G22 -> 751.3614122 | H42: =+H22 -> 751.3614122 | I42: 751.3614122 | J42: 751.3614122 | K42: 1127.042118 | L42: 751.3614122 | M42: 751.3614122 | N42: 751.3614122 | O42: 751.3614122 | P42: 1127.042118 | Q42: 751.3614122 | R42: 751.3614122
A43: 51531 | B43: 401k Match Co. Exp | F43: =SUM(G43:R43) -> 2930.309508 | G43: =+G23 -> 225.4084237 | H43: 225.4084237 | I43: 225.4084237 | J43: 225.4084237 | K43: 338.1126355 | L43: 225.4084237 | M43: 225.4084237 | N43: 225.4084237 | O43: 225.4084237 | P43: 338.1126355 | Q43: 225.4084237 | R43: 225.4084237
A44: 51540 | B44: Workers Compensation Ins | F44: =SUM(G44:R44) -> 864 | G44: =+G24 -> 66.46153846 | H44: 66.46153846 | I44: 66.46153846 | J44: 66.46153846 | K44: 99.69230769 | L44: 66.46153846 | M44: 66.46153846 | N44: 66.46153846 | O44: 66.46153846 | P44: 99.69230769 | Q44: 66.46153846 | R44: 66.46153846
A45: 51560 | B45: Health & Dental Ins Benefits | F45: =SUM(G45:R45) -> 12864 | G45: =+G25 -> 1072 | H45: 1072 | I45: 1072 | J45: 1072 | K45: 1072 | L45: 1072 | M45: 1072 | N45: 1072 | O45: 1072 | P45: 1072 | Q45: 1072 | R45: 1072
B49: Payroll Bonuses
B50: Leasing | C50: =75*10 -> 750 | D50: 10 move-ins
B51: Econ Occ | C51: 1080 | D51: 94% Econ Occ
B52: NOI | C52: 3300 | D52: 97% NOI
B53: Total | C53: =SUM(C50:C52) -> 5130

Sheet Make Ready
A1: ='Discussion Items'!A1 -> Willow Bend
A3: YOU MUST INPUT ALL ORANGE HIGHLIGHTED CELLS!
A4: YOU CAN OVERWRITE ALL BLUE HIGHLIGHTED CELLS!
A5: YARDI IMPORT TEMPLATE - GREEN HIGHLIGHTED CELLS!
A7: # of move outs budgeted in 2025 occupancy tab | D7: ='Occupancy Budget'!O22 -> 13.78787879 | K7: 1 | L7: 2 | M7: 3 | N7: 4 | O7: 5 | P7: 6 | Q7: 7 | R7: 8 | S7: 9 | T7: 10 | U7: 11 | V7: 12 | W7: 13 | X7: 14 | Y7: 15 | Z7: 16 | AA7: 17 | AB7: 18
A8: Budgeted renovations units in 2025 | D8: =P10 -> 2 | K8: Acct # | L8: Name | M8: D | N8: N | O8: Last Yr | P8: Totals | Q8: Jan | R8: Feb | S8: Mar | T8: Apr | U8: May | V8: Jun | W8: Jul | X8: Aug | Y8: Sep | Z8: Oct | AA8: Nov | AB8: Dec
A9: Budgeted make ready units in 2025 | D9: =D7-D8 -> 11.78787879 | L9: # of move outs from occupancy tab | P9: =SUM(Q9:AB9) -> 13.78787879 | Q9: ='Occupancy Budget'!C22 -> 1.272727273 | R9: ='Occupancy Budget'!D22 -> 1.272727273 | S9: ='Occupancy Budget'!E22 -> 1.696969697 | T9: ='Occupancy Budget'!F22 -> 1.272727273 | U9: ='Occupancy Budget'!G22 -> 2.121212121 | V9: ='Occupancy Budget'!H22 -> 1.272727273 | W9: ='Occupancy Budget'!I22 -> 0.6363636364 | X9: ='Occupancy Budget'!J22 -> 1.484848485 | Y9: ='Occupancy Budget'!K22 -> 1.060606061 | Z9: ='Occupancy Budget'!L22 -> 1.060606061 | AA9: ='Occupancy Budget'!M22 -> 0.4242424242 | AB9: ='Occupancy Budget'!N22 -> 0.2121212121
A10: Actual renos during the period 08.2023-07.2024 | D10: 0 | L10: Budgeted renovations units in 2025 | P10: =SUM(Q10:AB10) -> 2 | U10: 1 | V10: 1
A11: Account # | B11: Account Name | C11: Make Ready Spend 08.2023-07.2024 | D11: # Make Readies 08.2023-07.2024 | E11: Suggested Cost per unit | F11: Override Cost per unit | G11: Explanation (overrides in col F must be explained) | H11: Suggested Cost per Unit unless Override is entered | I11: # of Make Readies budgeted for 2025 | J11: Total Budgeted cost 2025 | L11: # of make readies per month | P11: =P9-P10 -> 11.78787879 | Q11: 1.272727273 | R11: 1.272727273 | S11: 1.696969697 | T11: 1.272727273 | U11: 1.121212121 | V11: 0.2727272727 | W11: 0.6363636364 | X11: 1.484848485 | Y11: 1.060606061 | Z11: 1.060606061 | AA11: 0.4242424242 | AB11: 0.2121212121
A12: 56402 | B12: Appliances | C12: =HLOOKUP($A$1,'Make Ready_Reno Data'!$5:$24,4,FALSE) -> 344.52 | D12: =(VLOOKUP($A$1,'Renewal Rate-Moveouts'!$B:$E,3,FALSE))-D10 -> 10 | E12: =C12/D12 -> 34.452 | G12: =IF(ISBLANK(F12)," ",'Income Statement'!$Z$1) ->  | H12: =IF(F12=0,E12,F12) -> 34.452 | I12: =$D$7-$D$8 -> 11.78787879 | J12: =H12*I12 -> 406.116 | K12: =+A12 -> 56402 | L12: =+B12 -> Appliances | P12: =SUM(Q12:AB12) -> 406.116 | Q12: =$H12*Q$11 -> 43.848 | R12: =$H12*R$11 -> 43.848 | S12: 58.464 | T12: 43.848 | U12: 38.628 | V12: 9.396 | W12: 21.924 | X12: 51.156 | Y12: 36.54 | Z12: 36.54 | AA12: 14.616 | AB12: 7.308
A13: 56405 | B13: Bath MR | C13: =HLOOKUP($A$1,'Make Ready_Reno Data'!$5:$24,5,FALSE) -> 3304.97 | D13: =D12 -> 10 | E13: =C13/D13 -> 330.497 | G13: =IF(ISBLANK(F13)," ",'Income Statement'!$Z$1) ->  | H13: =IF(F13=0,E13,F13) -> 330.497 | I13: =$D$7-$D$8 -> 11.78787879 | J13: =H13*I13 -> 3895.858576 | K13: 56405 | L13: Bath MR | P13: =SUM(Q13:AB13) -> 3895.858576 | Q13: =$H13*Q$11 -> 420.6325455 | R13: 420.6325455 | S13: 560.8433939 | T13: 420.6325455 | U13: 370.5572424 | V13: 90.13554545 | W13: 210.3162727 | X13: 490.7379697 | Y13: 350.5271212 | Z13: 350.5271212 | AA13: 140.2108485 | AB13: 70.10542424
A14: 56410 | B14: Carpet MR | C14: =HLOOKUP($A$1,'Make Ready_Reno Data'!$5:$24,6,FALSE) -> 148 | D14: =D13 -> 10 | E14: 14.8 | G14: =IF(ISBLANK(F14)," ",'Income Statement'!$Z$1) ->  | H14: 14.8 | I14: 11.78787879 | J14: 174.4606061 | K14: 56410 | L14: Carpet MR | P14: 174.4606061 | Q14: 18.83636364 | R14: 18.83636364 | S14: 25.11515152 | T14: 18.83636364 | U14: 16.59393939 | V14: 4.036363636 | W14: 9.418181818 | X14: 21.97575758 | Y14: 15.6969697 | Z14: 15.6969697 | AA14: 6.278787879 | AB14: 3.139393939
A15: 56412 | B15: Cleaning MR | C15: =HLOOKUP($A$1,'Make Ready_Reno Data'!$5:$24,7,FALSE) -> 2514.72 | D15: =D14 -> 10 | E15: 251.472 | G15: =IF(ISBLANK(F15)," ",'Income Statement'!$Z$1) ->  | H15: 251.472 | I15: 11.78787879 | J15: 2964.321455 | K15: 56412 | L15: Cleaning MR | P15: 2964.321455 | Q15: 320.0552727 | R15: 320.0552727 | S15: 426.7403636 | T15: 320.0552727 | U15: 281.9534545 | V15: 68.58327273 | W15: 160.0276364 | X15: 373.3978182 | Y15: 266.7127273 | Z15: 266.7127273 | AA15: 106.6850909 | AB15: 53.34254545
A16: 56413 | B16: Doors MR | C16: =HLOOKUP($A$1,'Make Ready_Reno Data'!$5:$24,8,FALSE) -> 52.84 | D16: 10 | E16: 5.284 | G16: =IF(ISBLANK(F16)," ",'Income Statement'!$Z$1) ->  | H16: 5.284 | I16: 11.78787879 | J16: 62.28715152 | K16: 56413 | L16: Doors MR | P16: 62.28715152 | Q16: 6.725090909 | R16: 6.725090909 | S16: 8.966787879 | T16: 6.725090909 | U16: =$H16*U$11 -> 5.924484848 | V16: =$H16*V$11 -> 1.441090909 | W16: 3.362545455 | X16: 7.845939394 | Y16: 5.604242424 | Z16: 5.604242424 | AA16: 2.24169697 | AB16: 1.120848485
A17: 56415 | B17: Electrical MR | C17: =HLOOKUP($A$1,'Make Ready_Reno Data'!$5:$24,9,FALSE) -> 53.42 | D17: 10 | E17: 5.342 | G17: =IF(ISBLANK(F17)," ",'Income Statement'!$Z$1) ->  | H17: 5.342 | I17: 11.78787879 | J17: 62.97084848 | K17: 56415 | L17: Electrical MR | P17: 62.97084848 | Q17: 6.798909091 | R17: 6.798909091 | S17: 9.065212121 | T17: 6.798909091 | U17: 5.989515152 | V17: 1.456909091 | W17: 3.399454545 | X17: 7.932060606 | Y17: 5.665757576 | Z17: 5.665757576 | AA17: 2.26630303 | AB17: 1.133151515
A18: 56420 | B18: Flooring MR | C18: =HLOOKUP($A$1,'Make Ready_Reno Data'!$5:$24,10,FALSE) -> 1403.62 | D18: 10 | E18: 140.362 | G18: =IF(ISBLANK(F18)," ",'Income Statement'!$Z$1) ->  | H18: 140.362 | I18: 11.78787879 | J18: 1654.570242 | K18: 56420 | L18: Flooring MR | P18: 1654.570242 | Q18: 178.6425455 | R18: 178.6425455 | S18: 238.1900606 | T18: 178.6425455 | U18: 157.3755758 | V18: 38.28054545 | W18: 89.32127273 | X18: 208.416303 | Y18: 148.8687879 | Z18: 148.8687879 | AA18: 59.54751515 | AB18: 29.77375758
A19: 56422 | B19: Kitchen MR | C19: =HLOOKUP($A$1,'Make Ready_Reno Data'!$5:$24,11,FALSE) -> 474.95 | D19: 10 | E19: =C19/D19 -> 47.495 | G19: =IF(ISBLANK(F19)," ",'Income Statement'!$Z$1) ->  | H19: 47.495 | I19: 11.78787879 | J19: 559.865303 | K19: 56422 | L19: Kitchen MR | P19: 559.865303 | Q19: 60.44818182 | R19: 60.44818182 | S19: 80.59757576 | T19: 60.44818182 | U19: 53.2519697 | V19: 12.95318182 | W19: 30.22409091 | X19: 70.52287879 | Y19: 50.37348485 | Z19: 50.37348485 | AA19: 20.14939394 | AB19: 10.07469697
A20: 56425 | B20: Labor MR | C20: =HLOOKUP($A$1,'Make Ready_Reno Data'!$5:$24,12,FALSE) -> 150 | D20: 10 | E20: 15 | G20: =IF(ISBLANK(F20)," ",'Income Statement'!$Z$1) ->  | H20: 15 | I20: 11.78787879 | J20: 176.8181818 | K20: 56425 | L20: Labor MR | P20: 176.8181818 | Q20: 19.09090909 | R20: 19.09090909 | S20: 25.45454545 | T20: 19.09090909 | U20: 16.81818182 | V20: 4.090909091 | W20: 9.545454545 | X20: 22.27272727 | Y20: 15.90909091 | Z20: 15.90909091 | AA20: 6.363636364 | AB20: 3.181818182
A21: 56430 | B21: Misc MR | C21: =HLOOKUP($A$1,'Make Ready_Reno Data'!$5:$24,13,FALSE) -> 77.57 | D21: 10 | E21: 7.757 | G21: =IF(ISBLANK(F21)," ",'Income Statement'!$Z$1) ->  | H21: 7.757 | I21: 11.78787879 | J21: 91.43857576 | K21: 56430 | L21: Misc MR | P21: 91.43857576 | Q21: 9.872545455 | R21: 9.872545455 | S21: 13.16339394 | T21: 9.872545455 | U21: 8.697242424 | V21: 2.115545455 | W21: 4.936272727 | X21: 11.5179697 | Y21: 8.227121212 | Z21: 8.227121212 | AA21: 3.290848485 | AB21: 1.645424242
A22: 56435 | B22: Paint MR | C22: =HLOOKUP($A$1,'Make Ready_Reno Data'!$5:$24,14,FALSE) -> 6171.85 | D22: 10 | E22: 617.185 | G22: timing in T12 | I22: 11.78787879 | K22: 56435 | L22: Paint MR | P22: =SUM(Q22:AB22) -> 
A23: 56440 | B23: Plumbing MR | C23: =HLOOKUP($A$1,'Make Ready_Reno Data'!$5:$24,15,FALSE) -> 51.58 | D23: 10 | E23: 5.158 | G23: =IF(ISBLANK(F23)," ",'Income Statement'!$Z$1) ->  | H23: 5.158 | I23: 11.78787879 | J23: 60.80187879 | K23: 56440 | L23: Plumbing MR | P23: 60.80187879 | Q23: =$H23*Q$11 -> 6.564727273 | R23: 6.564727273 | S23: 8.752969697 | T23: 6.564727273 | U23: 5.783212121 | V23: 1.406727273 | W23: 3.282363636 | X23: 7.658848485 | Y23: 5.470606061 | Z23: 5.470606061 | AA23: 2.188242424 | AB23: 1.094121212
B24: Total Make Ready | C24: =SUM(C12:C23) -> 14748.04 | E24: =SUM(E12:E23) -> 1474.804 | H24: =SUM(H12:H23) -> 857.619 | J24: =SUM(J12:J23) ->  | L24: Total Make Ready | P24: =SUM(P12:P23) ->  | Q24: =SUM(Q12:Q23) ->  | R24: =SUM(R12:R23) -> 
C26: Make Ready Units with Capital Items
A27: Account # | B27: Account Name | C27: Budgeted Cost per Unit | D27: # of units budgeted for 2025 | E27: % of make ready units receiving item | F27: Total Cost | G27: Additional Amenity Charge | H27: Amenity Payback
A28: 60102 | B28: Make Ready Plank Flooring | C28: 2200 | D28: =('Make Ready'!D7-'Make Ready'!D8)*E28 -> 1.768181818 | E28: 0.15 | F28: =C28*D28 -> 3890 | G28: 50 | H28: =(C28/G28)/12 -> 3.666666667 | K28: 60102 | L28: Make Ready Plank Flooring | P28: =SUM(Q28:AB28) -> 3890 | Q28: =$F28/12 -> 324.1666667 | R28: =$F28/12 -> 324.1666667 | S28: 324.1666667 | T28: 324.1666667 | U28: 324.1666667 | V28: 324.1666667 | W28: 324.1666667 | X28: 324.1666667 | Y28: 324.1666667 | Z28: 324.1666667 | AA28: 324.1666667 | AB28: 324.1666667
A29: 60102 | B29: Make Ready Countertops | C29: 1200 | D29: =('Make Ready'!D7-'Make Ready'!D8)*E29 -> 1.178787879 | E29: 0.1 | F29: =C29*D29 -> 1414.545455 | G29: 25 | H29: =(C29/G29)/12 -> 4 | K29: 60102 | L29: Make Ready Countertops | P29: =SUM(Q29:AB29) -> 1414.545455 | Q29: =$F29/12 -> 117.8787879 | R29: 117.8787879 | S29: 117.8787879 | T29: 117.8787879 | U29: 117.8787879 | V29: 117.8787879 | W29: 117.8787879 | X29: 117.8787879 | Y29: 117.8787879 | Z29: 117.8787879 | AA29: 117.8787879 | AB29: 117.8787879
A30: 60102 | B30: Make Ready Appliance Package | C30: 0 | D30: =('Make Ready'!D7-'Make Ready'!D8)*E30 -> 0 | E30: 0 | F30: =C30*D30 -> 0 | G30: 25 | H30: 0 | K30: 60102 | L30: Make Ready Appliance Package | P30: 0 | Q30: 0 | R30: 0 | S30: 0 | T30: 0 | U30: 0 | V30: 0 | W30: 0 | X30: 0 | Y30: 0 | Z30: 0 | AA30: 0 | AB30: 0
B31: Total | C31: =SUM(C28:C30) -> 3400 | F31: =SUM(F28:F30) -> 5304.545455 | K31: 60102 | L31: MR Unit CapX Items | P31: =SUM(P28:P30) -> 5304.545455 | Q31: =SUM(Q28:Q30) -> 442.0454545 | R31: 442.0454545 | S31: 442.0454545 | T31: 442.0454545 | U31: 442.0454545 | V31: 442.0454545 | W31: 442.0454545 | X31: 442.0454545 | Y31: 442.0454545 | Z31: 442.0454545 | AA31: 442.0454545 | AB31: 442.0454545

Sheet Renovations
A1: ='Discussion Items'!A1 -> Willow Bend
A3: YOU MUST INPUT ALL ORANGE HIGHLIGHTED CELLS!
A4: YARDI IMPORT TEMPLATE - GREEN HIGHLIGHTED CELLS!
G5: 1 | H5: 2 | I5: 3 | J5: 4 | K5: 5 | L5: 6 | M5: 7 | N5: 8 | O5: 9 | P5: 10 | Q5: 11 | R5: 12 | S5: 13 | T5: 14 | U5: 15 | V5: 16 | W5: 17 | X5: 18
A6: # of move outs budgeted in 2025 occupancy tab | D6: ='Occupancy Budget'!O22 -> 13.78787879 | G6: Acct # | H6: Name | I6: D | J6: N | K6: Last Yr | L6: Totals | M6: Jan | N6: Feb | O6: Mar | P6: Apr | Q6: May | R6: Jun | S6: Jul | T6: Aug | U6: Sep | V6: Oct | W6: Nov | X6: Dec
A7: Budgeted renovations units in 2025 | D7: =L8 -> 2 | H7: # of move outs from occupancy tab | L7: =SUM(M7:X7) -> 13.78787879 | M7: ='Occupancy Budget'!C22 -> 1.272727273 | N7: ='Occupancy Budget'!D22 -> 1.272727273 | O7: ='Occupancy Budget'!E22 -> 1.696969697 | P7: ='Occupancy Budget'!F22 -> 1.272727273 | Q7: ='Occupancy Budget'!G22 -> 2.121212121 | R7: ='Occupancy Budget'!H22 -> 1.272727273 | S7: ='Occupancy Budget'!I22 -> 0.6363636364 | T7: ='Occupancy Budget'!J22 -> 1.484848485 | U7: ='Occupancy Budget'!K22 -> 1.060606061 | V7: ='Occupancy Budget'!L22 -> 1.060606061 | W7: ='Occupancy Budget'!M22 -> 0.4242424242 | X7: ='Occupancy Budget'!N22 -> 0.2121212121
A8: Actual renos during the period 08.2023-07.2024 | D8: ='Make Ready'!D10 -> 0 | H8: Budgeted renovations units in 2025 | L8: =SUM(M8:X8) -> 2 | M8: ='Make Ready'!Q10 -> 0 | N8: ='Make Ready'!R10 -> 0 | O8: ='Make Ready'!S10 -> 0 | P8: ='Make Ready'!T10 -> 0 | Q8: ='Make Ready'!U10 -> 1 | R8: ='Make Ready'!V10 -> 1 | S8: ='Make Ready'!W10 -> 0 | T8: ='Make Ready'!X10 -> 0 | U8: ='Make Ready'!Y10 -> 0 | V8: ='Make Ready'!Z10 -> 0 | W8: ='Make Ready'!AA10 -> 0 | X8: ='Make Ready'!AB10 -> 0
A9: Account # | B9: Account Name | C9: Cost per unit T12 | D9: Cost per Unit Budget 2025 | E9: # of units budgeted for 2025 | F9: Total Cost
B10: Appliances | C10: N/A | D10: 2300 | E10: =$D$7 -> 2 | F10: =D10*E10 -> 4600 | H10: =+B10 -> Appliances | L10: =SUM(M10:X10) -> 4600 | M10: =$D10*M$8 -> 0 | N10: 0 | O10: 0 | P10: 0 | Q10: 2300 | R10: 2300 | S10: 0 | T10: 0 | U10: 0 | V10: 0 | W10: 0 | X10: 0
B11: Bath | C11: N/A | D11: 4000 | E11: 2 | F11: 8000 | H11: Bath | L11: 8000 | M11: 0 | N11: 0 | O11: 0 | P11: 0 | Q11: 4000 | R11: 4000 | S11: 0 | T11: 0 | U11: 0 | V11: 0 | W11: 0 | X11: 0
B12: Carpet | C12: N/A | D12: 0 | E12: 2 | F12: 0 | H12: Carpet | L12: 0 | M12: 0 | N12: 0 | O12: 0 | P12: 0 | Q12: 0 | R12: 0 | S12: 0 | T12: 0 | U12: 0 | V12: 0 | W12: 0 | X12: 0
B13: Cleaning | C13: N/A | D13: 150 | E13: 2 | F13: 300 | H13: Cleaning | L13: 300 | M13: 0 | N13: 0 | O13: 0 | P13: 0 | Q13: 150 | R13: 150 | S13: 0 | T13: 0 | U13: 0 | V13: 0 | W13: 0 | X13: 0
B14: Doors | C14: N/A | D14: 400 | E14: 2 | F14: 800 | H14: Doors | L14: 800 | M14: 0 | N14: 0 | O14: 0 | P14: 0 | Q14: 400 | R14: 400 | S14: 0 | T14: 0 | U14: 0 | V14: 0 | W14: 0 | X14: 0
B15: Electrical | C15: N/A | D15: 900 | E15: 2 | F15: 1800 | H15: Electrical | L15: 1800 | M15: 0 | N15: 0 | O15: 0 | P15: 0 | Q15: 900 | R15: 900 | S15: 0 | T15: 0 | U15: 0 | V15: 0 | W15: 0 | X15: 0
B16: Flooring | C16: N/A | D16: 2800 | E16: 2 | F16: 5600 | H16: Flooring | L16: 5600 | M16: 0 | N16: 0 | O16: 0 | P16: 0 | Q16: 2800 | R16: 2800 | S16: 0 | T16: 0 | U16: 0 | V16: 0 | W16: 0 | X16: 0
B17: Kitchen | C17: N/A | D17: 3800 | E17: 2 | F17: 7600 | H17: Kitchen | L17: 7600 | M17: 0 | N17: 0 | O17: 0 | P17: 0 | Q17: 3800 | R17: 3800 | S17: 0 | T17: 0 | U17: 0 | V17: 0 | W17: 0 | X17: 0
B18: Labor | C18: N/A | D18: 7000 | E18: 2 | F18: 14000 | H18: Labor | L18: 14000 | M18: 0 | N18: 0 | O18: 0 | P18: 0 | Q18: 7000 | R18: 7000 | S18: 0 | T18: 0 | U18: 0 | V18: 0 | W18: 0 | X18: 0
B19: Misc | C19: N/A | D19: 0 | E19: 2 | F19: 0 | H19: Misc | L19: 0 | M19: 0 | N19: 0 | O19: 0 | P19: 0 | Q19: 0 | R19: 0 | S19: 0 | T19: 0 | U19: 0 | V19: 0 | W19: 0 | X19: 0
B20: Paint | C20: N/A | D20: 1000 | E20: 2 | F20: 2000 | H20: Paint | L20: 2000 | M20: 0 | N20: 0 | O20: 0 | P20: 0 | Q20: 1000 | R20: 1000 | S20: 0 | T20: 0 | U20: 0 | V20: 0 | W20: 0 | X20: 0
B21: Plumbing | C21: N/A | D21: 600 | E21: 2 | F21: 1200 | H21: Plumbing | L21: 1200 | M21: 0 | N21: 0 | O21: 0 | P21: 0 | Q21: 600 | R21: 600 | S21: 0 | T21: 0 | U21: 0 | V21: 0 | W21: 0 | X21: 0
A22: 60147 | B22: Rehab of Apts - (All Costs) | C22: =HLOOKUP(A1,'Make Ready_Reno Data'!5:28,24,FALSE)/D8 ->  | D22: =SUM(D10:D21) -> 22950 | F22: =SUM(F10:F21) -> 45900 | G22: =+A22 -> 60147 | H22: Rehab of Apts - (All Costs) | L22: =SUM(L10:L21) -> 45900 | M22: =SUM(M10:M21) -> 0 | N22: 0 | O22: 0 | P22: 0 | Q22: 22950 | R22: 22950 | S22: 0 | T22: 0 | U22: 0 | V22: 0 | W22: 0 | X22: 0
C23: Additional Amenity Charge | D23: 225
C24: Amenity Payback | D24: =(D22/D23)/12 -> 8.5

Sheet Make Ready_Reno Data (hidden)
A1: All Residential Properties (.allresd)
A2: Property Comparison
A3: Period = Aug 2023-Jul 2024
A4: Book = Accrual ; Tree = ysi_is
C5: Elkins Park | D5: Bromley House | E5: 7400 Roosevelt | F5: Eola Park | G5: Warrington Crossings | H5: Willow Bend | I5: Sedgwick Gardens | J5: Sedgwick Terrace | K5: Gardens of Mt Airy | L5: Gateway Enclaves | M5: Haverford Court | N5: Longwood Manor | O5: Gateway Towers | P5: Gateway Airport | Q5: Yorkhouse North | R5: Yorkhouse South | S5: Joshua House | T5: Fountain Gardens | U5: Academia Suites | V5: Rosedale Court | W5: Meadowbrook Apts | X5: Mt Airy Arms | Y5: Overlook Hills | Z5: Wyncote Towers | AA5: 251 Dekalb | AB5: Stanbridge Apts | AC5: Regency House | AD5: 450 Green Apts | AE5: Westgate Arms | AF5: Park at Westminster
C6: Actual | D6: Actual | E6: Actual | F6: Actual | G6: Actual | H6: Actual | I6: Actual | J6: Actual | K6: Actual | L6: Actual | M6: Actual | N6: Actual | O6: Actual | Q6: Actual | R6: Actual | S6: Actual | T6: Actual | U6: Actual | V6: Actual | W6: Actual | X6: Actual | Y6: Actual | Z6: Actual | AA6: Actual | AB6: Actual | AC6: Actual | AD6: Actual | AE6: Actual | AF6: Actual
A7: 56400 | B7: MAKE READY
A8: 56402 | B8: Appliances MR | C8: 679.26 | D8: 7473.98 | E8: 95.4 | F8: 2069.54 | G8: 4241.66 | H8: 344.52 | I8: 501.12 | J8: 0 | K8: 1218.24 | L8: 4344.17 | M8: 0 | N8: 0 | O8: 8556.48 | P8: 2845.74 | Q8: 9921.66 | R8: 6762.96 | S8: 2114.05 | T8: 0 | U8: 4062.75 | V8: 3470.72 | W8: 8145.65 | X8: 4008.98 | Y8: 1085.44 | Z8: 34970.41 | AA8: 0 | AB8: 4323.13 | AC8: 4149.34 | AD8: 39126.19 | AE8: 4488.82 | AF8: 3652.13 | AG8: =SUM(C8:AF8) -> 162652.34
A9: 56405 | B9: Bath MR | C9: 4954.39 | D9: 14644.96 | E9: 16445.03 | F9: 2832.44 | G9: 6481.09 | H9: 3304.97 | I9: 1814.8 | J9: 472.91 | K9: 2553.28 | L9: 3948.1 | M9: 1574.46 | N9: 2217.7 | O9: 12642.87 | P9: 223.97 | Q9: 16188.42 | R9: 9131.82 | S9: 35297.47 | T9: 803.83 | U9: 7627.86 | V9: 1408.69 | W9: 27469.79 | X9: 9263.17 | Y9: 1348.43 | Z9: 44063.1 | AA9: 88758.51 | AB9: 12633.01 | AC9: 4448.78 | AD9: 41267.14 | AE9: 3274.11 | AF9: 9264.4 | AG9: =SUM(C9:AF9) -> 386359.5
A10: 56410 | B10: Carpet MR | C10: 1155 | D10: 14628.15 | E10: 825 | F10: 3628.75 | G10: 2102.9 | H10: 148 | I10: 0 | J10: 0 | K10: 1800.57 | L10: 71904.12 | M10: 1485.16 | N10: 2653.75 | O10: 25494 | P10: 2309.79 | Q10: 0 | R10: 0 | S10: 3853.97 | T10: 2523 | U10: 0 | V10: 976.25 | W10: -5035.73 | X10: 770 | Y10: 605 | Z10: 96648.46 | AA10: 5971.25 | AB10: 11890.68 | AC10: 3928.12 | AD10: 38611.25 | AE10: 3588.45 | AF10: 4262.5 | AG10: 296728.39
A11: 56412 | B11: Cleaning MR | C11: 3105.24 | D11: 10022.32 | E11: 9855.04 | F11: 2442.24 | G11: 11895.4 | H11: 2514.72 | I11: 2938.88 | J11: 337.92 | K11: 1853.44 | L11: 10936.62 | M11: 5691.76 | N11: 3201.33 | O11: 18204.62 | P11: 2750.5 | Q11: 16593.96 | R11: 5660.27 | S11: 25961.78 | T11: 5554.31 | U11: 8610 | V11: 4641.17 | W11: 20758.18 | X11: 4788.36 | Y11: 2550.09 | Z11: 66617.24 | AA11: 50688.94 | AB11: 7740.14 | AC11: 5084.16 | AD11: 31691.78 | AE11: 3006.71 | AF11: 18237.08 | AG11: 363934.2
A12: 56413 | B12: Doors MR | C12: 3682.23 | D12: 1261.42 | E12: 68.89 | F12: 904.26 | G12: 520 | H12: 52.84 | I12: 0 | J12: 1154.76 | K12: 517.61 | L12: 843.49 | M12: 592.92 | N12: 150 | O12: 540.5 | P12: 0 | Q12: 3641.64 | R12: 1180.2 | S12: 1226.96 | T12: 133.6 | U12: 100 | V12: 3579.34 | W12: 3197.63 | X12: 0 | Y12: 861.36 | Z12: 14385.63 | AA12: 2688.5 | AB12: 2338.99 | AC12: 481.04 | AD12: 7496.94 | AE12: 1200.08 | AF12: 330.11 | AG12: 53130.94
A13: 56415 | B13: Electrical MR | C13: 2045.92 | D13: 2040.4 | E13: 2613.79 | F13: 1572.42 | G13: 1505.66 | H13: 53.42 | I13: 421.65 | J13: 0 | K13: 100 | L13: 2351.58 | M13: 1227.32 | N13: 532.98 | O13: 8846.06 | P13: 1053.08 | Q13: 3068.98 | R13: 1938.2 | S13: 3646.92 | T13: 508.71 | U13: 1688.37 | V13: 2312.27 | W13: 6431.61 | X13: 555.72 | Y13: 234.19 | Z13: 11768.24 | AA13: 4410.26 | AB13: 483.13 | AC13: 1235.7 | AD13: 7645.1 | AE13: 267.04 | AF13: 942 | AG13: 71500.72
A14: 56420 | B14: Flooring Other MR | C14: 0 | D14: 2990 | E14: 59.22 | F14: 1098.81 | G14: 0 | H14: 1403.62 | I14: 1639.32 | J14: 256 | K14: 251.45 | L14: 0 | M14: 0 | N14: 0 | O14: 850.13 | P14: 0 | Q14: 3291.1 | R14: 287.45 | S14: 0 | T14: 0 | U14: 225 | V14: 36.17 | W14: 1960.22 | X14: 5257.6 | Y14: -1271.45 | Z14: 5840.28 | AA14: 3827.62 | AB14: 1973.62 | AC14: 150 | AD14: 6752.39 | AE14: 0 | AF14: 175 | AG14: 37053.55
A15: 56422 | B15: Kitchen MR | C15: 1507.86 | D15: 4260.69 | E15: 786.12 | F15: 586.38 | G15: 63.39 | H15: 474.95 | I15: 824.54 | J15: 0 | K15: 635.94 | L15: 0 | M15: 212.24 | N15: 124.15 | O15: 324.14 | P15: 0 | Q15: 1346.08 | R15: 2099.76 | S15: 595.07 | T15: 601.24 | U15: 648.71 | V15: 1799.33 | W15: -471.08 | X15: 396.9 | Y15: 186.44 | Z15: 27178.73 | AA15: 15681.82 | AB15: 2627.45 | AC15: 287.71 | AD15: 1966.12 | AE15: 134.71 | AF15: 116.41 | AG15: 64995.8
A16: 56425 | B16: Labor MR | C16: 4190 | D16: 0 | E16: 7760 | F16: 1860 | G16: 250 | H16: 150 | I16: 0 | J16: 0 | K16: 0 | L16: 0 | M16: 2570 | N16: 4475 | O16: 320 | P16: 400 | Q16: 3639 | R16: 0 | S16: 20140 | T16: 4105 | U16: 1205 | V16: 0 | W16: 3080 | X16: 1335 | Y16: 0 | Z16: 125 | AA16: 0 | AB16: 4280 | AC16: 80 | AD16: 10590.09 | AE16: 1740 | AF16: 10352.68 | AG16: 82646.77
A17: 56430 | B17: Misc MR | C17: 5073.89 | D17: 1559.57 | E17: 0 | F17: 749.84 | G17: 1524.79 | H17: 77.57 | I17: 420.82 | J17: 233.95 | K17: 784.11 | L17: 746.39 | M17: 324.22 | N17: 0 | O17: 6315.88 | P17: 618.45 | Q17: 1986.9 | R17: 514.9 | S17: 0 | T17: 0 | U17: 1004.22 | V17: 3806.43 | W17: 3243.68 | X17: 1132.25 | Y17: 3738.8 | Z17: 20778.48 | AA17: 2258.23 | AB17: 3555.64 | AC17: 29.38 | AD17: 9110.84 | AE17: 123.64 | AF17: 4589.46 | AG17: 74302.33
A18: 56435 | B18: Paint MR | C18: 6690.19 | D18: 37281.29 | E18: 41569.8 | F18: 10644.76 | G18: 52529.57 | H18: 6171.85 | I18: 7481.18 | J18: 2950 | K18: 4955.26 | L18: 68251.34 | M18: 22690.05 | N18: 12878.14 | O18: 93752.12 | P18: 17161.56 | Q18: 46614.49 | R18: 22459.3 | S18: 74387.18 | T18: 14077.07 | U18: 18304.61 | V18: 13336.65 | W18: 85017.21 | X18: 10832.73 | Y18: 3335 | Z18: 175322.03 | AA18: 222845.29 | AB18: 22488.83 | AC18: 15614.5 | AD18: 95900.91 | AE18: 12857.87 | AF18: 80028.86 | AG18: 1298429.64
A19: 56440 | B19: Plumbing MR | C19: 1422.38 | D19: 867.88 | E19: 706.07 | F19: 34.82 | G19: 1841.95 | H19: 51.58 | I19: 162.44 | J19: 51.58 | K19: 75.22 | L19: 7195.22 | M19: 682.67 | N19: 1018 | O19: 15304.48 | P19: 515.41 | Q19: 2816.02 | R19: 4740.4 | S19: 1155.68 | T19: 940.73 | U19: 681.56 | V19: 45.44 | W19: 21930.17 | X19: 220.54 | Y19: 132.87 | Z19: 24246.49 | AA19: 1934.61 | AB19: 0 | AC19: 17.58 | AD19: 11378.3 | AE19: 213.85 | AF19: 3447.96 | AG19: 103831.9
A20: 56445 | B20: Vacant Electric Exp MR | C20: 0 | D20: 0 | E20: 0 | F20: 0 | G20: 0 | H20: 0 | I20: 0 | J20: 0 | K20: 0 | L20: 943.99 | M20: 0 | N20: 0 | O20: 1317.58 | P20: 0 | Q20: 0 | R20: 0 | S20: 0 | T20: 0 | U20: 0 | V20: 0 | W20: 0 | X20: 0 | Y20: 0 | Z20: 0 | AA20: 0 | AB20: 0 | AC20: 0 | AD20: 0 | AE20: 0 | AF20: 0
A21: 56499 | B21: TOTAL MAKE READY COSTS | C21: =SUM(C8:C20) -> 34506.36 | D21: =SUM(D8:D20) -> 97030.66 | E21: 80784.36 | F21: 28424.26 | G21: 82956.41 | H21: 14748.04 | I21: 16204.75 | J21: 5457.12 | K21: 14745.12 | L21: 171465.02 | M21: 37050.8 | N21: 27251.05 | O21: 192468.86 | P21: 27878.5 | Q21: 109108.25 | R21: 54775.26 | S21: 168379.08 | T21: 29247.49 | U21: 44158.08 | V21: 35412.46 | W21: 175727.33 | X21: 38561.25 | Y21: 12806.17 | Z21: 521944.09 | AA21: 399065.03 | AB21: 74334.62 | AC21: 35506.31 | AD21: 301537.05 | AE21: 30895.28 | AF21: 135398.59 | AG21: =SUM(AG8:AG19) -> 2995566.08
C23: Actual | D23: Actual | E23: Actual | F23: Actual | G23: Actual | H23: Actual | I23: Actual | J23: Actual | K23: Actual | L23: Actual | M23: Actual | N23: Actual | O23: Actual | Q23: Actual | R23: Actual | S23: Actual | T23: Actual | U23: Actual | V23: Actual | W23: Actual | X23: Actual | Y23: Actual | Z23: Actual | AA23: Actual | AB23: Actual | AC23: Actual | AD23: Actual | AE23: Actual | AF23: Actual
A24: 60100 | B24: Bathroom Renovation | C24: 0 | D24: 0 | E24: 905.48 | F24: 0 | G24: 0 | H24: 0 | I24: 0 | J24: 0 | K24: 0 | L24: 0 | M24: 0 | N24: 0 | O24: 0 | P24: 0 | Q24: 0 | R24: 0 | S24: 2200 | T24: 0 | U24: 0 | V24: 0 | W24: 1026.79 | X24: 0 | Y24: 0 | Z24: 3200 | AA24: 0 | AB24: 0 | AC24: 0 | AD24: 0 | AE24: 0 | AF24: 893.89 | AG24: 8226.16
A25: 60101 | B25: Occ Unit CapX Items | C25: 325 | D25: 7152.3 | E25: 6375.2 | F25: 0 | G25: 4737.68 | H25: 0 | I25: 0 | J25: 0 | K25: 0 | L25: 6881.3 | M25: 13658.89 | N25: 0 | O25: 0 | P25: 0 | Q25: 4740.64 | R25: 852.5 | S25: 6017.03 | T25: 0 | U25: 2522.48 | V25: 0 | W25: 91869.79 | X25: 0 | Y25: 5476.77 | Z25: 43409.45 | AA25: 69579.34 | AB25: 18052.66 | AC25: 2987.12 | AD25: 8691.12 | AE25: 2103.9 | AF25: 22332.89 | AG25: 317766.06
A26: 60102 | B26: MR Unit CapX Items | C26: 21186.89 | D26: 15904.99 | E26: 134004.67 | F26: 3375.25 | G26: 73551.66 | H26: 21604.88 | I26: 8626.58 | J26: 3865.36 | K26: 13528.49 | L26: 62359.22 | M26: 47298.95 | N26: 41302.76 | O26: 132242.71 | P26: 59693.01 | Q26: 120463.08 | R26: 55310.55 | S26: 393484.59 | T26: 47879.14 | U26: 22873.47 | V26: 22830.35 | W26: 142408.74 | X26: 24518.55 | Y26: 7083.67 | Z26: 491386.02 | AA26: 148157.74 | AB26: 52670.7 | AC26: 7921.67 | AD26: 165076.33 | AE26: 37302.71 | AF26: 126452.55 | AG26: 2504365.28
A27: 60103 | B27: Full Bath Reno | C27: 0 | D27: 0 | E27: 710 | F27: 0 | G27: 16.13 | H27: 19696.59 | I27: 0 | J27: 6821.35 | K27: 0 | L27: 0 | M27: 0 | N27: 0 | O27: 12214.31 | P27: 0 | Q27: 0 | R27: 0 | S27: 0 | T27: 0 | U27: 2325.8 | V27: 13144.91 | W27: 0 | X27: 27887.62 | Y27: 0 | Z27: 2073.36 | AA27: 0 | AB27: 15660.83 | AC27: 0 | AD27: 0 | AE27: 0 | AF27: 8978.01 | AG27: 109528.91
A28: 60104 | B28: Full Kitchen Reno | C28: 0 | D28: 9488.6 | E28: 0 | F28: 0 | G28: 0 | H28: 0 | I28: 0 | J28: 1100 | K28: 3000 | L28: 0 | M28: 0 | N28: 0 | O28: 0 | P28: 1441.8 | Q28: 509.47 | R28: 0 | S28: 0 | T28: 0 | U28: 0 | V28: 0 | W28: 0 | X28: 14297.71 | Y28: 6120.63 | Z28: 0 | AA28: 973.09 | AB28: 0 | AC28: 5089.1 | AD28: 7778.61 | AE28: 0 | AF28: 0 | AG28: 49799.01
A29: 60147 | B29: Rehab of Apts - (All Costs) | C29: 0 | D29: 30921.65 | E29: 7036.92 | F29: 20723.17 | G29: 75830.4 | H29: 0 | I29: 0 | J29: 0 | K29: -25000 | L29: 64683.07 | M29: 67040.11 | N29: 18324.7 | O29: 330836.43 | P29: 68074.82 | Q29: 17250.15 | R29: 2910.36 | S29: 65841.64 | T29: 63533.06 | U29: 3125 | V29: 52208.11 | W29: 334331.54 | X29: 57912.61 | Y29: 2911.8 | Z29: 132558.94 | AA29: 4733.31 | AB29: 139057.07 | AC29: 0 | AD29: 34557.14 | AE29: 0 | AF29: 271930.42 | AG29: 1841332.42
C30: =SUM(C24:C29) -> 21511.89 | D30: =SUM(D24:D29) -> 63467.54 | E30: 149032.27 | F30: 24098.42 | G30: 154135.87 | H30: 41301.47 | I30: 8626.58 | J30: 11786.71 | K30: -8471.51 | L30: 133923.59 | M30: 127997.95 | N30: 59627.46 | O30: 475293.45 | Q30: 142963.34 | R30: 59073.41 | S30: 467543.26 | T30: 111412.2 | U30: 30846.75 | V30: 88183.37 | W30: 569636.86 | X30: 124616.49 | Y30: 21592.87 | Z30: 672627.77 | AA30: 223443.48 | AB30: 225441.26 | AC30: 15997.89 | AD30: 216103.2 | AE30: 39406.61 | AF30: 430587.76 | AG30: =SUM(AG24:AG29) -> 4831017.84

Sheet Income Statement
A1: Willow Bend (120) | S1: 3 yr avg | T1: Methodology Formula | V1: YOU MUST INPUT ALL ORANGE HIGHLIGHTED CELLS! | Z1: MUST ENTER NOTE-OVERRIDE WAS ENTERED
A2: Income Statement Analysis Report by Property | S2: T12 | T2: Methodology Formula | V2: YOU CAN OVERWRITE ALL BLUE HIGHLIGHTED CELLS! | Z2: MUST ENTER CONTRACT AMOUNT
A3: Period = Jul 2024 | S3: 3% Increase | T3: Methodology Formula | U3: 5% Increase | V3: YARDI IMPORT TEMPLATE - GREEN HIGHLIGHTED CELLS!
A4: Book = Accrual ; Tree = mgr_is | S4: Schedule/Contract | T4: Methodology Formula | U4: When zeroing out an account use .001 and not 0
C5: 08/2023 | D5: 09/2023 | E5: 10/2023 | F5: 11/2023 | G5: 12/2023 | H5: 01/2024 | I5: 02/2024 | J5: 03/2024 | K5: 04/2024 | L5: 05/2024 | M5: 06/2024 | N5: 07/2024 | O5: 12 Mo. Trailing Tot | P5: 36 Mo. Trailing Avg/Yr | Q5: 2023 Actual | R5: 2022 Actual | S5: Methodology | T5: 2025 Suggested Budget | U5: 2025 Mgr Override Budget | V5: 2025 Suggested Budget vs 2025 Mgr Override Budget Variance | W5: 2025 Suggested Budget vs 2025 Mgr Override Budget Variance % | X5: Explanation (overrides in col U must be explained) | Y5: Suggested Budget unless Mgr Override is used
A6: 39999 | B6: INCOME | S6: =VLOOKUP(A6,Methodology!A:F,6,FALSE) ->  | T6: =IF($S6=$S$1,$P6,IF($S6=$S$2,$O6,IF($S6=$S$3,($O6*1.03),0))) ->  | Y6: =IF(ISERROR(IF(U6=0,T6,U6)),"",(IF(U6=0,T6,U6))) -> 
A7: 40001 | B7: Market Rent | C7: 86385 | D7: 86385 | E7: 87285 | F7: 87360 | G7: 87360 | H7: 86610 | I7: 85620 | J7: 84600 | K7: 84650 | L7: 86450 | M7: 87620 | N7: 89720 | O7: 1040045 | P7: 1042309 | Q7: 1032135 | R7: 1065268 | S7: =VLOOKUP(A7,Methodology!A:F,6,FALSE) -> Schedule | T7: 0 | V7: =IF(U7=0,0,U7-T7) -> 0 | W7: =(V7/T7) ->  | X7: =IF(U7=""," ",$Z$1) ->  | Y7: =IF(ISERROR(IF(U7=0,T7,U7)),"",(IF(U7=0,T7,U7))) -> 0
A8: 40002 | B8: Rental Income | C8: 0 | D8: 0 | E8: 0 | F8: 0 | G8: 0 | H8: 0 | I8: 0 | J8: 0 | K8: 0 | L8: 0 | M8: 0 | N8: 0 | O8: 0 | P8: 11.67 | Q8: 0 | R8: 0 | S8: =VLOOKUP(A8,Methodology!A:F,6,FALSE) -> DNU | T8: 0 | V8: =IF(U8=0,0,U8-T8) -> 0 | W8: =(V8/T8) ->  | X8: =IF(U8=""," ",$Z$1) ->  | Y8: =IF(ISERROR(IF(U8=0,T8,U8)),"",(IF(U8=0,T8,U8))) -> 0
A9: 40003 | B9: Loss to Lease | C9: -901 | D9: -741 | E9: -1378 | F9: -1267 | G9: -1544 | H9: -974 | I9: 416 | J9: 1545 | K9: 2065 | L9: 330 | M9: -722 | N9: -2581 | O9: -5752 | P9: -51865.65 | Q9: -13504 | R9: -103177 | S9: =VLOOKUP(A9,Methodology!A:F,6,FALSE) -> Schedule | T9: 0 | V9: 0 | Y9: =IF(ISERROR(IF(U9=0,T9,U9)),"",(IF(U9=0,T9,U9))) -> 0
A10: 40004 | B10: Vacancy | C10: -2630.26 | D10: -2506.3 | E10: -3343.86 | F10: -3418.67 | G10: -5267.23 | H10: -8535.9 | I10: -8471.56 | J10: -7583.39 | K10: -10028.8 | L10: -6810.82 | M10: -2610.3 | N10: -1344.22 | O10: -62551.31 | P10: -67766.29 | Q10: -60994.5 | R10: -79456.8 | S10: =VLOOKUP(A10,Methodology!A:F,6,FALSE) -> Schedule | T10: 0 | V10: 0 | Y10: 0
A11: 40005 | B11: Late charge income | C11: 1000 | D11: 1200 | E11: 1100 | F11: 1000 | G11: 1250 | H11: 900 | I11: 850 | J11: 1100 | K11: 550 | L11: 900 | M11: 909.75 | N11: 778.4 | O11: 11538.15 | P11: 11096.05 | Q11: 11500 | R11: 12550 | S11: =VLOOKUP(A11,Methodology!A:F,6,FALSE) -> 3 yr avg | T11: 11096.05 | U11: =MAX(C11:N11)*12-2500 -> 12500 | V11: 1403.95 | W11: 0.1265270074 | X11: increased late fees mid 2024, so took the highest amount in the T12 times 12 months. The increase is still getting phased in, so it is difficult to calculate | Y11: 12500
A12: 40006 | B12: Check fee income | C12: 10 | D12: 70 | E12: 165 | F12: 30 | G12: 20 | H12: 30 | I12: -645 | J12: 0 | K12: 30 | L12: 175 | M12: 70 | N12: 20 | O12: -25 | P12: 276.67 | Q12: 695 | R12: 350 | S12: =VLOOKUP(A12,Methodology!A:F,6,FALSE) -> 3 yr avg | T12: 276.67 | U12: 0.0001 | V12: -276.6699 | W12: -0.9999996386 | X12: MUST ENTER NOTE-OVERRIDE WAS ENTERED | Y12: 0.0001
A13: 40008 | B13: Court cost fee income | C13: 823.5 | D13: 906.75 | E13: 1052.5 | F13: 1333.1 | G13: 1058.35 | H13: 1298.75 | I13: 441.6 | J13: 1226.5 | K13: 1381.25 | L13: 386.6 | M13: 290 | N13: 434.75 | O13: 10633.65 | P13: 6737.12 | Q13: 7478.95 | R13: 6801.95 | S13: =VLOOKUP(A13,Methodology!A:F,6,FALSE) -> 3 yr avg | T13: 6737.12 | V13: 0 | W13: 0 | Y13: 6737.12
A14: 40010 | B14: Damage incomes | C14: 0 | D14: 275 | E14: 395 | F14: 100 | G14: 11415 | H14: 3460 | I14: 0 | J14: 0 | K14: 1495 | L14: 175 | M14: 175 | N14: 0 | O14: 17490 | P14: 9582.33 | Q14: 14210 | R14: 4580 | S14: =VLOOKUP(A14,Methodology!A:F,6,FALSE) -> 3 yr avg | T14: 9582.33 | V14: 0 | W14: 0 | Y14: 9582.33
A15: 40020 | B15: Pet fee income | C15: 125 | D15: 125 | E15: 435.65 | F15: 155 | G15: 153.39 | H15: 130 | I15: 130 | J15: 130 | K15: 130 | L15: 130 | M15: 824 | N15: 215.81 | O15: 2683.85 | P15: 2205.07 | Q15: 2219.69 | R15: 1739.27 | S15: =VLOOKUP(A15,Methodology!A:F,6,FALSE) -> T12 | T15: 2683.85 | U15: =IF(T15<(N15*12),N15*12,T15) -> 2683.85 | V15: 0 | W15: 0 | X15: increased pet fees mid 2024, so took the higher amount between the T12 & July annualized The increase is still getting phased in, so it is difficult to calculate | Y15: 2683.85
A16: 40021 | B16: Early Lease Termination fees | C16: 0 | D16: 0 | E16: 0 | F16: 0 | G16: 0 | H16: 0 | I16: 0 | J16: 0 | K16: 0 | L16: 0 | M16: 0 | N16: 0 | O16: 0 | P16: 4717.72 | Q16: 2538.61 | R16: 2977.84 | S16: =VLOOKUP(A16,Methodology!A:F,6,FALSE) -> 3 yr avg | T16: 4717.72 | U16: 2500 | V16: -2217.72 | W16: -0.4700830062 | X16: $0 in T12 so cut the 3 yr avg in half | Y16: 2500
A17: 40022 | B17: short-term/mm fee | C17: 0 | D17: 0 | E17: 0 | F17: 0 | G17: 0 | H17: 0 | I17: 0 | J17: 0 | K17: 0 | L17: 0 | M17: 0 | N17: 0 | O17: 0 | P17: 205 | Q17: 0 | R17: 465 | S17: =VLOOKUP(A17,Methodology!A:F,6,FALSE) -> T12 | T17: 0 | V17: 0 | Y17: 0
A18: 40024 | B18: Application fee income | C18: 0 | D18: 0 | E18: 100 | F18: 200 | G18: 50 | H18: 250 | I18: 200 | J18: 300 | K18: 450 | L18: 300 | M18: 75 | N18: 75 | O18: 2000 | P18: 2016.67 | Q18: 2150 | R18: 1700 | S18: =VLOOKUP(A18,Methodology!A:F,6,FALSE) -> T12 | T18: 2000 | V18: 0 | W18: 0 | Y18: 2000
A19: 40053 | B19: Laundry and vending income | C19: -254.7 | D19: 1484.29 | E19: 1521.46 | F19: 320.07 | G19: 600 | H19: 1402 | I19: 600 | J19: 843.07 | K19: 946.64 | L19: 819.81 | M19: 600 | N19: 1862.62 | O19: 10745.26 | P19: 9292.21 | Q19: 9777.89 | R19: 7954 | S19: =VLOOKUP(A19,Methodology!A:F,6,FALSE) -> T12 | T19: 10745.26 | V19: 0 | W19: 0 | Y19: 10745.26
A20: 40056 | B20: Telecom marketing income | C20: 1245.54 | D20: -687.72 | E20: 198 | F20: 187.8 | G20: 200 | H20: 200 | I20: 149.78 | J20: 200 | K20: 200 | L20: 284.43 | M20: 250 | N20: 250 | O20: 2677.83 | P20: 3131.94 | Q20: 3709.96 | R20: 2667.03 | S20: =VLOOKUP(A20,Methodology!A:F,6,FALSE) -> T12 | T20: 2677.83 | V20: 0 | W20: 0 | Y20: 2677.83
A21: 40130 | B21: Employee non income unit | C21: -558.42 | D21: -1359.14 | E21: -755.09 | F21: -633.93 | G21: -567 | H21: -1404.33 | I21: -842.75 | J21: -845.27 | K21: -527.05 | L21: -674 | M21: -926 | N21: -1763.33 | O21: -10856.31 | P21: -9207.1 | Q21: -10600.88 | R21: -7188.7 | S21: =VLOOKUP(A21,Methodology!A:F,6,FALSE) -> T12 | T21: -10856.31 | V21: 0 | W21: 0 | Y21: -10856.31
A22: 40150 | B22: Office non-income unit | C22: -307.08 | D22: -319.4 | E22: -311.23 | F22: -311.23 | G22: -311.23 | H22: -311.23 | I22: -311.23 | J22: -311.23 | K22: -311.23 | L22: -311.23 | M22: -311.23 | N22: -311.23 | O22: -3738.78 | P22: -3635.4 | Q22: -3717.12 | R22: -3498.6 | S22: =VLOOKUP(A22,Methodology!A:F,6,FALSE) -> T12 | T22: -3738.78 | V22: 0 | W22: 0 | Y22: -3738.78
A23: 40206 | B23: Discounts-Government | C23: -70.65 | D23: -70.65 | E23: -70.65 | F23: -70.65 | G23: -70.65 | H23: -70.65 | I23: -70.65 | J23: -70.65 | K23: -70.65 | L23: -71 | M23: -71 | N23: -71 | O23: -848.85 | P23: -1189.34 | Q23: -968.83 | R23: -1487.6 | S23: =VLOOKUP(A23,Methodology!A:F,6,FALSE) -> T12 | T23: -848.85 | V23: 0 | W23: 0 | Y23: -848.85
A24: 40210 | B24: Concessions-Marketing | C24: 0 | D24: 0 | E24: 0 | F24: 0 | G24: 0 | H24: 0 | I24: -500 | J24: 0 | K24: -500 | L24: 0 | M24: 0 | N24: 0 | O24: -1000 | P24: -1675 | Q24: -3500 | R24: -525 | S24: =VLOOKUP(A24,Methodology!A:F,6,FALSE) -> T12 | T24: -1000 | V24: 0 | W24: 0 | Y24: -1000
A25: 40214 | B25: Concession-Inconvenience | C25: 0 | D25: 0 | E25: -200 | F25: 0 | G25: 0 | H25: 0 | I25: 0 | J25: 0 | K25: 0 | L25: 0 | M25: 0 | N25: 0 | O25: -200 | P25: -236.67 | Q25: -200 | R25: 0 | S25: =VLOOKUP(A25,Methodology!A:F,6,FALSE) -> T12 | T25: -200 | U25: 0.0001 | V25: 200.0001 | W25: -1.0000005 | X25: MUST ENTER NOTE-OVERRIDE WAS ENTERED | Y25: 0.0001
A26: 40302 | B26: Renters Ins Income | C26: 92.79 | D26: 100.8 | E26: 72.38 | F26: 51.64 | G26: 40.75 | H26: 39.73 | I26: 53.54 | J26: 82.31 | K26: 1.2 | L26: 81.75 | M26: 23.65 | N26: -16.87 | O26: 623.67 | P26: 416 | Q26: 542.01 | R26: 267.05 | S26: =VLOOKUP(A26,Methodology!A:F,6,FALSE) -> T12 | T26: 623.67 | V26: 0 | W26: 0 | Y26: 623.67
A27: 40303 | B27: Forfeit Sec Deposit Inc | C27: 0 | D27: 0 | E27: 0 | F27: 0 | G27: 0 | H27: 0 | I27: 0 | J27: 0 | K27: 0 | L27: 0 | M27: 0 | N27: 0 | O27: 0 | P27: 2.27 | Q27: 6.8 | R27: -75.17 | S27: =VLOOKUP(A27,Methodology!A:F,6,FALSE) -> T12 | T27: 0 | V27: 0 | Y27: 0
A28: 40347 | B28: Allowance for Doubtful Accounts | C28: -1269.32 | D28: -5048.39 | E28: -561.75 | F28: -13968.59 | G28: 9378 | H28: 8524.69 | I28: -761.64 | J28: 5630.04 | K28: -2168.19 | L28: 2168.19 | M28: 0 | N28: 0 | O28: 1923.04 | P28: 4237.51 | Q28: 4592.97 | R28: 1644.94 | S28: =VLOOKUP(A28,Methodology!A:F,6,FALSE) ->  | V28: 0
A29: 40350 | B29: Bad Debts-Rent & Utils | C29: 0 | D29: 0 | E29: 0 | F29: 0 | G29: -2648.1 | H29: 0 | I29: -32752.56 | J29: -10124.79 | K29: 0 | L29: -7634.85 | M29: -2048.42 | N29: 0 | O29: -55208.72 | P29: -52681.18 | Q29: -40801.82 | R29: -64536.42 | S29: =VLOOKUP(A29,Methodology!A:F,6,FALSE) -> 3 yr avg | T29: -52681.18 | U29: =T29+10000 -> -42681.18 | V29: 10000 | W29: -0.1898211088 | X29: MUST ENTER NOTE-OVERRIDE WAS ENTERED | Y29: -42681.18
A30: 40351 | B30: Recovery Bad Debt | C30: 0 | D30: 620 | E30: 0 | F30: 0 | G30: 0 | H30: 275 | I30: 137 | J30: 687 | K30: 0 | L30: 444.36 | M30: 0 | N30: 0 | O30: 2163.36 | P30: 2057.25 | Q30: 1518.48 | R30: 3109.91 | S30: =VLOOKUP(A30,Methodology!A:F,6,FALSE) -> 3 yr avg | T30: 2057.25 | V30: 0 | W30: 0 | Y30: 2057.25
A31: 40352 | B31: Bad Debts-Termination Fee | C31: 0 | D31: 0 | E31: 0 | F31: 0 | G31: 0 | H31: 0 | I31: 0 | J31: 0 | K31: 0 | L31: 0 | M31: 0 | N31: 0 | O31: 0 | P31: -2934.1 | Q31: -1112.67 | R31: -6724.63 | S31: =VLOOKUP(A31,Methodology!A:F,6,FALSE) -> 3 yr avg | T31: -2934.1 | V31: 0 | W31: 0 | Y31: -2934.1
A32: 40398 | B32: Rent Adjustment | C32: 0 | D32: 0 | E32: 0 | F32: 0 | G32: 0 | H32: 0 | I32: 0 | J32: 0 | K32: -1125.54 | L32: 0 | M32: 0 | N32: 0 | O32: -1125.54 | P32: -486.54 | Q32: 0 | R32: 0 | S32: =VLOOKUP(A32,Methodology!A:F,6,FALSE) -> DNU | T32: 0 | V32: 0 | Y32: 0
A33: 49999 | B33: TOTAL INCOME | C33: 83690.4 | D33: 80434.24 | E33: 85704.41 | F33: 71067.54 | G33: 101117.28 | H33: 91824.06 | I33: 44242.53 | J33: 77408.59 | K33: 77167.63 | L33: 77143.24 | M33: 84148.45 | N33: 87268.93 | O33: 961217.3 | P33: 906617.19 | Q33: 957675.54 | R33: 845405.07 | S33: =VLOOKUP(A33,Methodology!A:F,6,FALSE) ->  | V33: 0
A34: 50001 | B34: OPERATING EXPENSES | S34: =VLOOKUP(A34,Methodology!A:F,6,FALSE) ->  | V34: 0
A35: 50100 | B35: UTILITIES | S35: =VLOOKUP(A35,Methodology!A:F,6,FALSE) ->  | V35: 0
A36: 50110 | B36: Electric Expense | C36: 1045.27 | D36: 440.3 | E36: 853.8 | F36: 968.17 | G36: 596.48 | H36: 811.55 | I36: 785.98 | J36: 828.15 | K36: 720.73 | L36: 714.1 | M36: 646.47 | N36: 207.46 | O36: 8618.46 | P36: 8044.87 | Q36: 8746.66 | R36: 7734.04 | S36: =VLOOKUP(A36,Methodology!A:F,6,FALSE) -> T12 | T36: 8618.46 | U36: 8600 | V36: -18.46 | W36: -0.002141913985 | X36: removed VCR & increased supply rate | Y36: 8600
A37: 50111 | B37: Electric Income | C37: -391.24 | D37: -314.08 | E37: -437.56 | F37: -271.32 | G37: -447.52 | H37: -200.69 | I37: -227.57 | J37: 0 | K37: 0 | L37: -353.73 | M37: -239.57 | N37: -219.53 | O37: -3102.81 | P37: -1656.05 | Q37: -3001.67 | R37: -725.4 | S37: =VLOOKUP(A37,Methodology!A:F,6,FALSE) -> T12 | T37: -3102.81 | U37: 0.0001 | V37: 3102.8101 | W37: -1.000000032 | X37: removed VCR | Y37: 0.0001
A38: 50120 | B38: Gas Expense | C38: 662.88 | D38: 823.16 | E38: 1034.19 | F38: 3248.01 | G38: 7942.92 | H38: 8895.99 | I38: 8290.15 | J38: 7156.51 | K38: 4166.61 | L38: 502.55 | M38: -1211.12 | N38: 347.57 | O38: 41859.42 | P38: 37598.77 | Q38: 43902.87 | R38: 32732.6 | S38: =VLOOKUP(A38,Methodology!A:F,6,FALSE) -> T12 | T38: 41859.42 | V38: 0 | W38: 0 | Y38: 41859.42
A39: 50121 | B39: Gas Income | C39: -1037.86 | D39: -1037.86 | E39: -1149.65 | F39: -1071.84 | G39: -2183.53 | H39: -4721.43 | I39: -6138.81 | J39: -7427.13 | K39: -7144.84 | L39: -4181.68 | M39: -3801.7 | N39: -1716.21 | O39: -41612.54 | P39: -35809.06 | Q39: -48254.92 | R39: -22588.36 | S39: =VLOOKUP(A39,Methodology!A:F,6,FALSE) -> T12 | T39: -41612.54 | V39: 0 | W39: 0 | Y39: -41612.54
A40: 50130 | B40: Water Expense (some incl sewer) | C40: 4328.36 | D40: 1445.2 | E40: 2974.8 | F40: 4050.87 | G40: 2066.6 | H40: 1774.91 | I40: 1796.96 | J40: 4087.27 | K40: 2808.63 | L40: 6478.98 | M40: 1500.98 | N40: 3541.68 | O40: 36855.24 | P40: 35722.44 | Q40: 31385.45 | R40: 34800.97 | S40: =VLOOKUP(A40,Methodology!A:F,6,FALSE) -> T12 | T40: 36855.24 | U40: =36800-'Occupancy Budget'!O29 -> 31505.45455 | V40: -5349.785455 | W40: -0.1451567119 | X40: net of passthrough | Y40: 31505.45455
A41: 50140 | B41: Sewer Expense | C41: 1790.61 | D41: 413.75 | E41: 927.17 | F41: 1487.12 | G41: 638.49 | H41: 588.79 | I41: 849.11 | J41: 1310.56 | K41: 834.31 | L41: 1615.3 | M41: 606.33 | N41: -53.88 | O41: 11007.66 | P41: 11044.98 | Q41: 11820.23 | R41: 11089.93 | S41: =VLOOKUP(A41,Methodology!A:F,6,FALSE) -> T12 | T41: 11007.66 | V41: 0 | W41: 0 | Y41: 11007.66
A42: 50150 | B42: TOTAL UTILITIES | C42: 6398.02 | D42: 1770.47 | E42: 4202.75 | F42: 8411.01 | G42: 8613.44 | H42: 7149.12 | I42: 5355.82 | J42: 5955.36 | K42: 1385.44 | L42: 4775.52 | M42: -2498.61 | N42: 2107.09 | O42: 53625.43 | P42: 54945.94 | Q42: 44598.62 | R42: 63043.78 | S42: =VLOOKUP(A42,Methodology!A:F,6,FALSE) ->  | V42: 0
A43: 51000 | B43: PAYROLL EXPENSE | S43: =VLOOKUP(A43,Methodology!A:F,6,FALSE) ->  | V43: 0
A44: 51201 | B44: Executive Management | C44: 0 | D44: 0 | E44: 0 | F44: 0 | G44: 0 | H44: 0 | I44: 0 | J44: 0 | K44: 0 | L44: 0 | M44: 0 | N44: 0 | O44: 0 | P44: 103.38 | Q44: 0 | R44: 310.13 | S44: =VLOOKUP(A44,Methodology!A:F,6,FALSE) -> DNU | T44: 0 | V44: 0 | Y44: 0
A45: 51202 | B45: Community Managers | C45: 1068.44 | D45: 1062.43 | E45: 1062.44 | F45: 1062.44 | G45: 1593.65 | H45: 1062.44 | I45: 936.93 | J45: 1330.56 | K45: 1053.36 | L45: 1607.76 | M45: 1003.12 | N45: 741.51 | O45: 13585.08 | P45: 13145.16 | Q45: 13820.81 | R45: 12956.28 | S45: =VLOOKUP(A45,Methodology!A:F,6,FALSE) -> Schedule | T45: 0 | V45: 0 | Y45: 0
A46: 51203 | B46: Office Payroll | C46: 0 | D46: 0 | E46: 0 | F46: 0 | G46: 0 | H46: 0 | I46: 0 | J46: 0 | K46: 0 | L46: 0 | M46: 0 | N46: 0 | O46: 0 | P46: 76.93 | Q46: 0 | R46: 74.65 | S46: =VLOOKUP(A46,Methodology!A:F,6,FALSE) -> Schedule | T46: 0 | V46: 0 | Y46: 0
A47: 51204 | B47: Assistant Managers | C47: 807.2 | D47: 829.78 | E47: 802.14 | F47: 820.61 | G47: 1297.55 | H47: 820.61 | I47: 1179.39 | J47: 1579.5 | K47: 886.25 | L47: 1314.5 | M47: 878.25 | N47: 907.5 | O47: 12123.28 | P47: 11223.31 | Q47: 10657.5 | R47: 10543.81 | S47: =VLOOKUP(A47,Methodology!A:F,6,FALSE) -> Schedule | T47: 0 | V47: 0 | Y47: 0
A48: 51205 | B48: Resident Services | C48: 0 | D48: 557.14 | E48: 756 | F48: 757.8 | G48: 1146.16 | H48: 757.8 | I48: -757.8 | J48: 610.2 | K48: 748.8 | L48: 1127.72 | M48: 755.79 | N48: 755.8 | O48: 7215.41 | P48: 5303.82 | Q48: 8132.2 | R48: 3602.98 | S48: =VLOOKUP(A48,Methodology!A:F,6,FALSE) -> Schedule | T48: 0 | V48: 0 | Y48: 0
A49: 51209 | B49: Maint Manager | C49: 0 | D49: 0 | E49: 0 | F49: 0 | G49: 0 | H49: 0 | I49: 0 | J49: 0 | K49: 0 | L49: 0 | M49: 0 | N49: 0 | O49: 0 | P49: 226.52 | Q49: 21.64 | R49: 274.01 | S49: =VLOOKUP(A49,Methodology!A:F,6,FALSE) -> Schedule | T49: 0 | V49: 0 | Y49: 0
A50: 51210 | B50: Maintenance-super | C50: 952.56 | D50: 952.56 | E50: 1002.96 | F50: 1053.36 | G50: 1617.35 | H50: 1053.36 | I50: 271.56 | J50: 1497.78 | K50: 864.09 | L50: 1422.03 | M50: 934.86 | N50: 799.89 | O50: 12422.36 | P50: 7696.03 | Q50: 12415.5 | R50: 2680.12 | S50: =VLOOKUP(A50,Methodology!A:F,6,FALSE) -> Schedule | T50: 0 | V50: 0 | Y50: 0
A51: 51211 | B51: Maintenance-staff | C51: 2419.51 | D51: 2449.74 | E51: 2428.16 | F51: 2426.89 | G51: 4580.5 | H51: 2426.89 | I51: 1862.57 | J51: 2632.61 | K51: 2412.42 | L51: 3539.71 | M51: 2375.65 | N51: 2547.98 | O51: 32102.63 | P51: 34930.4 | Q51: 28632.28 | R51: 41468.36 | S51: =VLOOKUP(A51,Methodology!A:F,6,FALSE) -> Schedule | T51: 0 | V51: 0 | Y51: 0
A52: 51270 | B52: Payroll Bonuses | C52: 100 | D52: 1174 | E52: 75 | F52: 125 | G52: 90 | H52: 125 | I52: 625 | J52: -378.9 | K52: 31.27 | L52: 0 | M52: 0 | N52: 0 | O52: 1966.37 | P52: 2872.79 | Q52: 3368 | R52: 3023 | S52: =VLOOKUP(A52,Methodology!A:F,6,FALSE) -> Schedule | T52: 0 | V52: 0 | Y52: 0
A53: 51450 | B53: Temp Help | C53: 283.53 | D53: 0 | E53: 0 | F53: 0 | G53: -934 | H53: 0 | I53: 2444.28 | J53: 63.37 | K53: 21.12 | L53: 21.12 | M53: 21.12 | N53: 21.12 | O53: 1941.66 | P53: 3881.92 | Q53: 4911.46 | R53: 4142.16 | S53: =VLOOKUP(A53,Methodology!A:F,6,FALSE) -> Schedule | T53: =IF($S53=$S$1,$P53,IF($S53=$S$2,$O53,IF($S53=$S$3,($O53*1.03),0))) -> 0 | V53: 0 | Y53: 0
A54: 51530 | B54: Payroll Taxes-Employer | C54: 418.35 | D54: 573.81 | E54: 515.19 | F54: 525.97 | G54: 869.3 | H54: 596.97 | I54: 395.19 | J54: 571.96 | K54: 477.09 | L54: 706.69 | M54: 472.9 | N54: 447.05 | O54: 6570.47 | P54: 6841.29 | Q54: 7357.81 | R54: 7149.65 | S54: =VLOOKUP(A54,Methodology!A:F,6,FALSE) -> Schedule | T54: 0 | V54: 0 | Y54: 0
A55: 51531 | B55: 401k Match Co. Exp | C55: 164.26 | D55: 180.77 | E55: 160.9 | F55: 175.47 | G55: 359.7 | H55: 175.47 | I55: 123.27 | J55: 201.13 | K55: 199.25 | L55: 303.39 | M55: 200.21 | N55: 193.53 | O55: 2437.35 | P55: 2349.2 | Q55: 2249.72 | R55: 2434.11 | S55: =VLOOKUP(A55,Methodology!A:F,6,FALSE) -> Schedule | T55: =IF($S55=$S$1,$P55,IF($S55=$S$2,$O55,IF($S55=$S$3,($O55*1.03),0))) -> 0 | V55: 0 | Y55: 0
A56: 51540 | B56: Workers Compensation Ins | C56: 172.59 | D56: 195.22 | E56: 95.8 | F56: 99.51 | G56: 179.99 | H56: 99.51 | I56: 102.41 | J56: 120.11 | K56: 118.07 | L56: 176.48 | M56: 95.87 | N56: 71.93 | O56: 1527.49 | P56: 2259.25 | Q56: 1884.74 | R56: 2917.27 | S56: =VLOOKUP(A56,Methodology!A:F,6,FALSE) -> Schedule | T56: =IF($S56=$S$1,$P56,IF($S56=$S$2,$O56,IF($S56=$S$3,($O56*1.03),0))) -> 0 | V56: 0 | Y56: 0
A57: 51560 | B57: Health & Dental Ins Benefits | C57: 1156.27 | D57: 1158.33 | E57: 1155.76 | F57: 1375.31 | G57: 1370.9 | H57: 1375.31 | I57: 1317.93 | J57: 1308 | K57: 1265.89 | L57: 1299.8 | M57: 1241.06 | N57: 1192.1 | O57: 15216.66 | P57: 12358.29 | Q57: 12526.35 | R57: 11322.84 | S57: =VLOOKUP(A57,Methodology!A:F,6,FALSE) -> Schedule | T57: =IF($S57=$S$1,$P57,IF($S57=$S$2,$O57,IF($S57=$S$3,($O57*1.03),0))) -> 0 | V57: 0 | Y57: 0
A58: 51999 | B58: TOTAL PAYROLL EXPENSE | C58: 7542.71 | D58: 9133.78 | E58: 8054.35 | F58: 8422.36 | G58: 12171.1 | H58: 8493.36 | I58: 8500.73 | J58: 9536.32 | K58: 8077.61 | L58: 11519.2 | M58: 7978.83 | N58: 7678.41 | O58: 107108.76 | P58: 103268.28 | Q58: 105978.01 | R58: 102899.37 | S58: =VLOOKUP(A58,Methodology!A:F,6,FALSE) ->  | T58: =IF($S58=$S$1,$P58,IF($S58=$S$2,$O58,IF($S58=$S$3,($O58*1.03),0))) ->  | V58: 0
A59: 55000 | B59: FIXED EXPENSES | S59: =VLOOKUP(A59,Methodology!A:F,6,FALSE) ->  | T59: =IF($S59=$S$1,$P59,IF($S59=$S$2,$O59,IF($S59=$S$3,($O59*1.03),IF(S59=U3,(O59*1.05),0)))) ->  | V59: 0
A60: 55010 | B60: Real estate taxes | C60: 5429.82 | D60: 5429.82 | E60: 5429.82 | F60: 5429.82 | G60: 5429.87 | H60: 5429.82 | I60: 5429.82 | J60: 5429.82 | K60: 5429.82 | L60: 5429.82 | M60: 5429.82 | N60: 5429.82 | O60: 65157.89 | P60: 64291.28 | Q60: 65157.89 | R60: 63322.75 | S60: =VLOOKUP(A60,Methodology!A:F,6,FALSE) -> 3% Increase | T60: 67112.6267 | U60: 65157.89 | V60: -1954.7367 | W60: -0.02912621359 | X60: Calculated using 2025 Assessment | Y60: 65157.89
A61: 55030 | B61: Bond Expense | C61: 0 | D61: 0 | E61: 0 | F61: 0 | G61: 0 | H61: 0 | I61: 0 | J61: 860.16 | K61: 0 | L61: 0 | M61: 0 | N61: 0 | O61: 860.16 | P61: 1109.57 | Q61: 1205.84 | R61: 1262.72 | S61: =VLOOKUP(A61,Methodology!A:F,6,FALSE) -> 3% Increase | T61: 885.9648 | V61: 0 | W61: 0 | Y61: 885.9648
A62: 55040 | B62: Ins-Bldg/Fire-Liab-Boiler-Machinery | C62: 4953.16 | D62: 4953.16 | E62: 4953.16 | F62: 4953.16 | G62: 10296.79 | H62: 4953.16 | I62: 4953.16 | J62: 4953.16 | K62: 4953.16 | L62: 4953.16 | M62: 5085.24 | N62: 7131.7 | O62: 67092.17 | P62: 54835.28 | Q62: 59438 | R62: 47708 | S62: =VLOOKUP(A62,Methodology!A:F,6,FALSE) -> 5% Increase | T62: 0 | U62: 82300 | V62: 82300 | X62: MUST ENTER NOTE-OVERRIDE WAS ENTERED | Y62: 82300
A63: 55050 | B63: Management fees | C63: 6148.88 | D63: 6148.88 | E63: 5809.8 | F63: 5799.6 | G63: 5711.83 | H63: 5726.79 | I63: 5819.1 | J63: 6013.77 | K63: 6035.92 | L63: 6035.92 | M63: 6241.44 | N63: 6334.73 | O63: 71826.66 | P63: 68106.14 | Q63: 71216.54 | R63: 64723.78 | S63: =VLOOKUP(A63,Methodology!A:F,6,FALSE) -> Formula | T63: 0 | V63: 0 | Y63: 0
A64: 55999 | B64: TOTAL FIXED EXPENSES | C64: 16531.86 | D64: 16531.86 | E64: 16192.78 | F64: 16182.58 | G64: 21438.49 | H64: 16109.77 | I64: 16202.08 | J64: 17256.91 | K64: 16418.9 | L64: 16418.9 | M64: 16756.5 | N64: 18896.25 | O64: 204936.88 | P64: 188342.27 | Q64: 197018.27 | R64: 177017.25 | S64: =VLOOKUP(A64,Methodology!A:F,6,FALSE) ->  | V64: 0
A65: 56000 | B65: SUPPLIES | S65: =VLOOKUP(A65,Methodology!A:F,6,FALSE) ->  | V65: 0
A66: 56110 | B66: Appliance Repair Supplies | C66: 0 | D66: 0 | E66: 0 | F66: 0 | G66: 0 | H66: 0 | I66: 0 | J66: 0 | K66: 0 | L66: 0 | M66: 0 | N66: 0 | O66: 0 | P66: 158.22 | Q66: 86.71 | R66: 181.92 | S66: =VLOOKUP(A66,Methodology!A:F,6,FALSE) -> 3 yr avg | T66: 158.22 | V66: 0 | W66: 0 | Y66: 158.22
A67: 56112 | B67: Blinds Supplies | C67: 0 | D67: 0 | E67: 0 | F67: 0 | G67: 0 | H67: 0 | I67: 0 | J67: 0 | K67: 0 | L67: 0 | M67: 0 | N67: 0 | O67: 0 | P67: 40.62 | Q67: 0 | R67: 121.85 | S67: =VLOOKUP(A67,Methodology!A:F,6,FALSE) -> 3 yr avg | T67: 40.62 | U67: 0.0001 | V67: -40.6199 | W67: -0.9999975382 | X67: MUST ENTER NOTE-OVERRIDE WAS ENTERED | Y67: 0.0001
A68: 56113 | B68: Building Supplies | C68: 0 | D68: 0 | E68: 0 | F68: 0 | G68: 548.13 | H68: 0 | I68: 0 | J68: 26.52 | K68: -37.08 | L68: 0 | M68: 0 | N68: 30.73 | O68: 568.3 | P68: 209.02 | Q68: 548.13 | R68: 58.75 | S68: =VLOOKUP(A68,Methodology!A:F,6,FALSE) -> 3 yr avg | T68: 209.02 | V68: 0 | W68: 0 | Y68: 209.02
A69: 56114 | B69: Carpentry Supplies | C69: 0 | D69: 42.37 | E69: 0 | F69: 0 | G69: 0 | H69: 0 | I69: 0 | J69: 0 | K69: 0 | L69: 0 | M69: 0 | N69: 0 | O69: 42.37 | P69: 409.64 | Q69: 74.37 | R69: 887.57 | S69: =VLOOKUP(A69,Methodology!A:F,6,FALSE) -> 3 yr avg | T69: 409.64 | V69: 0 | W69: 0 | Y69: 409.64
A70: 56115 | B70: Carpeting Supplies | C70: 0 | D70: 0 | E70: 0 | F70: 0 | G70: 0 | H70: 0 | I70: 0 | J70: 0 | K70: 0 | L70: 0 | M70: 0 | N70: 0 | O70: 0 | P70: 10.43 | Q70: 0 | R70: 31.28 | S70: =VLOOKUP(A70,Methodology!A:F,6,FALSE) -> 3 yr avg | T70: 10.43 | U70: 0.0001 | V70: -10.4299 | W70: -0.9999904123 | X70: MUST ENTER NOTE-OVERRIDE WAS ENTERED | Y70: 0.0001
A71: 56116 | B71: Custodial Supplies | C71: 47.27 | D71: 30.24 | E71: 0 | F71: 0 | G71: 141.84 | H71: 28.32 | I71: 14.1 | J71: 120.87 | K71: 0 | L71: 0 | M71: 18.75 | N71: 0 | O71: 401.39 | P71: 630.32 | Q71: 369.94 | R71: 1140.35 | S71: =VLOOKUP(A71,Methodology!A:F,6,FALSE) -> 3 yr avg | T71: 630.32 | V71: 0 | W71: 0 | Y71: 630.32
A72: 56117 | B72: Decorating Supplies | C72: 0 | D72: 0 | E72: 0 | F72: 0 | G72: 0 | H72: 0 | I72: 0 | J72: 0 | K72: 0 | L72: 0 | M72: 33.5 | N72: 0 | O72: 33.5 | P72: 11.17 | Q72: 0 | R72: 0 | S72: =VLOOKUP(A72,Methodology!A:F,6,FALSE) -> 3 yr avg | T72: 11.17 | U72: 0.0001 | V72: =IF(U72=0,0,U72-T72) -> -11.1699 | W72: =(V72/T72) -> -0.9999910474 | X72: =IF(U72=""," ",$Z$1) -> MUST ENTER NOTE-OVERRIDE WAS ENTERED | Y72: =IF(ISERROR(IF(U72=0,T72,U72)),"",(IF(U72=0,T72,U72))) -> 0.0001
A73: 56118 | B73: Doors Supplies | C73: 0 | D73: 204.26 | E73: 0 | F73: 0 | G73: 0 | H73: 0 | I73: 0 | J73: 0 | K73: 0 | L73: 0 | M73: 0 | N73: 0 | O73: 204.26 | P73: 160.42 | Q73: 204.26 | R73: 222.51 | S73: =VLOOKUP(A73,Methodology!A:F,6,FALSE) -> 3 yr avg | T73: 160.42 | V73: 0 | W73: 0 | Y73: 160.42
A74: 56119 | B74: Electrical Supplies | C74: 468.35 | D74: 0 | E74: 0 | F74: 0 | G74: 64.13 | H74: 124.2 | I74: 112.91 | J74: 0 | K74: 0 | L74: 183.92 | M74: 0 | N74: 232.93 | O74: 1186.44 | P74: 1483.45 | Q74: 1736.74 | R74: 1889.96 | S74: =VLOOKUP(A74,Methodology!A:F,6,FALSE) -> 3 yr avg | T74: 1483.45 | V74: 0 | W74: 0 | Y74: 1483.45
A75: 56120 | B75: Elevator Supplies | C75: 0 | D75: 0 | E75: 0 | F75: 0 | G75: 0 | H75: 0 | I75: 0 | J75: 0 | K75: 0 | L75: 0 | M75: 0 | N75: 0 | O75: 0 | P75: 86.48 | Q75: 0 | R75: 230.04 | S75: =VLOOKUP(A75,Methodology!A:F,6,FALSE) -> 3 yr avg | T75: 86.48 | V75: 0 | W75: 0 | Y75: 86.48
A76: 56121 | B76: Exterminating Supplies | C76: 0 | D76: 0 | E76: 0 | F76: 0 | G76: 0 | H76: 0 | I76: 0 | J76: 0 | K76: 0 | L76: 0 | M76: 0 | N76: 0 | O76: 0 | P76: 5.02 | Q76: 0 | R76: 15.07 | S76: =VLOOKUP(A76,Methodology!A:F,6,FALSE) -> 3 yr avg | T76: 5.02 | U76: 0.0001 | V76: -5.0199 | W76: -0.9999800797 | X76: MUST ENTER NOTE-OVERRIDE WAS ENTERED | Y76: 0.0001
A77: 56122 | B77: Fence & Gate Supplies | C77: 0 | D77: 0 | E77: 0 | F77: 0 | G77: 0 | H77: 0 | I77: 0 | J77: 0 | K77: 0 | L77: 0 | M77: 0 | N77: 0 | O77: 0 | P77: 12.71 | Q77: 38.13 | R77: 0 | S77: =VLOOKUP(A77,Methodology!A:F,6,FALSE) -> 3 yr avg | T77: 12.71 | U77: 0.0001 | V77: -12.7099 | W77: -0.9999921322 | X77: MUST ENTER NOTE-OVERRIDE WAS ENTERED | Y77: 0.0001
A78: 56123 | B78: Fire Protection Supplies | C78: 0 | D78: 0 | E78: 0 | F78: 0 | G78: 0 | H78: 0 | I78: 0 | J78: 0 | K78: 0 | L78: 27.76 | M78: 0 | N78: 246.78 | O78: 274.54 | P78: 273.32 | Q78: 0 | R78: 545.41 | S78: =VLOOKUP(A78,Methodology!A:F,6,FALSE) -> 3 yr avg | T78: 273.32 | V78: 0 | W78: 0 | Y78: 273.32
A79: 56125 | B79: Flooring-Tile Supplies | C79: 0 | D79: 0 | E79: 0 | F79: 0 | G79: 0 | H79: 0 | I79: 0 | J79: 0 | K79: 0 | L79: 77.86 | M79: 0 | N79: 0 | O79: 77.86 | P79: 170.69 | Q79: 0 | R79: 434.21 | S79: =VLOOKUP(A79,Methodology!A:F,6,FALSE) -> 3 yr avg | T79: 170.69 | V79: 0 | W79: 0 | Y79: 170.69
A80: 56127 | B80: Hospitality Supplies | C80: 0 | D80: 0 | E80: 0 | F80: 0 | G80: 0 | H80: 0 | I80: 0 | J80: 0 | K80: 0 | L80: 0 | M80: 0 | N80: 0 | O80: 0 | P80: 17.23 | Q80: 0 | R80: 51.7 | S80: =VLOOKUP(A80,Methodology!A:F,6,FALSE) -> 3 yr avg | T80: 17.23 | U80: 0.0001 | V80: -17.2299 | W80: -0.9999941962 | X80: MUST ENTER NOTE-OVERRIDE WAS ENTERED | Y80: 0.0001
A81: 56128 | B81: HVAC Supplies | C81: 0 | D81: 0 | E81: 0 | F81: 558.63 | G81: 0 | H81: 0 | I81: 0 | J81: 0 | K81: 43.03 | L81: 0 | M81: 0 | N81: 0 | O81: 601.66 | P81: 355.29 | Q81: 650.98 | R81: 371.87 | S81: =VLOOKUP(A81,Methodology!A:F,6,FALSE) -> 3 yr avg | T81: 355.29 | V81: 0 | W81: 0 | Y81: 355.29
A82: 56129 | B82: Keys & Locks Supplies | C82: 247.35 | D82: 0 | E82: 0 | F82: 0 | G82: 0 | H82: 0 | I82: 16.95 | J82: 0 | K82: 0 | L82: 0 | M82: 0 | N82: 0 | O82: 264.3 | P82: 637.07 | Q82: 1483.17 | R82: 411.09 | S82: =VLOOKUP(A82,Methodology!A:F,6,FALSE) -> 3 yr avg | T82: 637.07 | V82: 0 | W82: 0 | Y82: 637.07
A83: 56131 | B83: Landscaping Supplies | C83: 0 | D83: 0 | E83: 0 | F83: 0 | G83: 0 | H83: 0 | I83: 0 | J83: 0 | K83: 0 | L83: 0 | M83: 253.51 | N83: 0 | O83: 253.51 | P83: 283.74 | Q83: 597.71 | R83: 0 | S83: =VLOOKUP(A83,Methodology!A:F,6,FALSE) -> 3 yr avg | T83: 283.74 | V83: 0 | W83: 0 | Y83: 283.74
A84: 56133 | B84: Misc Supplies | C84: 0 | D84: 0 | E84: 0 | F84: 0 | G84: 0 | H84: 0 | I84: 0 | J84: 0 | K84: 0 | L84: 0 | M84: 34.6 | N84: 0 | O84: 34.6 | P84: 154.89 | Q84: 198.48 | R84: 231.6 | S84: =VLOOKUP(A84,Methodology!A:F,6,FALSE) -> 3 yr avg | T84: 154.89 | V84: 0 | W84: 0 | Y84: 154.89
A85: 56134 | B85: Painting Supplies | C85: 467.67 | D85: 130.29 | E85: 0 | F85: 0 | G85: 0 | H85: 0 | I85: 0 | J85: -199.43 | K85: 12.72 | L85: 0 | M85: 0 | N85: 0 | O85: 411.25 | P85: 286.6 | Q85: 715.59 | R85: 330.93 | S85: =VLOOKUP(A85,Methodology!A:F,6,FALSE) -> 3 yr avg | T85: 286.6 | V85: 0 | W85: 0 | Y85: 286.6
A86: 56136 | B86: Plumbing Supplies | C86: 0 | D86: 0 | E86: 37.98 | F86: 0 | G86: 229.42 | H86: 1200.08 | I86: 2.88 | J86: 0 | K86: 74.75 | L86: -21.03 | M86: 0 | N86: 79.7 | O86: 1603.78 | P86: 2146.01 | Q86: 863.28 | R86: 4073.43 | S86: =VLOOKUP(A86,Methodology!A:F,6,FALSE) -> 3 yr avg | T86: 2146.01 | V86: 0 | W86: 0 | Y86: 2146.01
A87: 56141 | B87: Signs Supplies | C87: 0 | D87: 0 | E87: 0 | F87: 0 | G87: 29.25 | H87: 0 | I87: 0 | J87: 0 | K87: 0 | L87: 0 | M87: 0 | N87: 0 | O87: 29.25 | P87: 23.83 | Q87: 71.49 | R87: 0 | S87: =VLOOKUP(A87,Methodology!A:F,6,FALSE) -> 3 yr avg | T87: 23.83 | U87: 0.0001 | V87: -23.8299 | W87: -0.9999958036 | X87: MUST ENTER NOTE-OVERRIDE WAS ENTERED | Y87: 0.0001
A88: 56142 | B88: Snow Removal Supplies | C88: 0 | D88: 0 | E88: 0 | F88: 0 | G88: 0 | H88: 35.15 | I88: 0 | J88: 0 | K88: 0 | L88: 0 | M88: 0 | N88: 0 | O88: 35.15 | P88: 236.98 | Q88: 0 | R88: 0 | S88: =VLOOKUP(A88,Methodology!A:F,6,FALSE) -> 3 yr avg | T88: 236.98 | V88: 0 | W88: 0 | Y88: 236.98
A89: 56145 | B89: Windows & Glass Supplies | C89: 0 | D89: 0 | E89: 0 | F89: 0 | G89: 0 | H89: 0 | I89: 0 | J89: 0 | K89: 0 | L89: 0 | M89: 0 | N89: 0 | O89: 0 | P89: 17.82 | Q89: 0 | R89: 53.45 | S89: =VLOOKUP(A89,Methodology!A:F,6,FALSE) -> 3 yr avg | T89: 17.82 | U89: 0.0001 | V89: -17.8199 | W89: -0.9999943883 | X89: MUST ENTER NOTE-OVERRIDE WAS ENTERED | Y89: 0.0001
A90: 56150 | B90: Air conditioners | C90: 0 | D90: 0 | E90: 0 | F90: 0 | G90: 0 | H90: 0 | I90: 0 | J90: 0 | K90: 0 | L90: 0 | M90: 0 | N90: 1805.76 | O90: 1805.76 | P90: 2409.49 | Q90: 1278.1 | R90: 4144.6 | S90: =VLOOKUP(A90,Methodology!A:F,6,FALSE) -> 3 yr avg | T90: 2409.49 | V90: 0 | W90: 0 | Y90: 2409.49
A91: 56151 | B91: Dishwashers | C91: 0 | D91: 0 | E91: 0 | F91: 0 | G91: 0 | H91: 0 | I91: 0 | J91: 0 | K91: 0 | L91: 0 | M91: 0 | N91: 0 | O91: 0 | P91: 273.24 | Q91: 0 | R91: 819.72 | S91: =VLOOKUP(A91,Methodology!A:F,6,FALSE) -> 3 yr avg | T91: 273.24 | V91: 0 | W91: 0 | Y91: 273.24
A92: 56152 | B92: Garbage disposals | C92: 251.83 | D92: 0 | E92: 0 | F92: 0 | G92: 0 | H92: 0 | I92: 0 | J92: 0 | K92: 0 | L92: 489.49 | M92: 0 | N92: 0 | O92: 741.32 | P92: 351.15 | Q92: 563.95 | R92: 0 | S92: =VLOOKUP(A92,Methodology!A:F,6,FALSE) -> 3 yr avg | T92: 351.15 | V92: 0 | W92: 0 | Y92: 351.15
A93: 56153 | B93: Microwaves | C93: 0 | D93: 0 | E93: 0 | F93: 0 | G93: 0 | H93: 0 | I93: 0 | J93: 0 | K93: 0 | L93: 0 | M93: 0 | N93: 429.84 | O93: 429.84 | P93: 464.04 | Q93: 0 | R93: 962.28 | S93: =VLOOKUP(A93,Methodology!A:F,6,FALSE) -> 3 yr avg | T93: 464.04 | V93: 0 | W93: 0 | Y93: 464.04
A94: 56154 | B94: Ranges/ovens | C94: 0 | D94: 882.36 | E94: 0 | F94: 0 | G94: 0 | H94: 0 | I94: 0 | J94: 0 | K94: 0 | L94: 0 | M94: 0 | N94: 0 | O94: 882.36 | P94: 1478.24 | Q94: 882.36 | R94: 3552.36 | S94: =VLOOKUP(A94,Methodology!A:F,6,FALSE) -> 3 yr avg | T94: 1478.24 | V94: 0 | W94: 0 | Y94: 1478.24
A95: 56155 | B95: Refrigerators | C95: 0 | D95: 0 | E95: 0 | F95: 0 | G95: 0 | H95: 0 | I95: 0 | J95: 0 | K95: 0 | L95: 0 | M95: 646.92 | N95: 0 | O95: 646.92 | P95: 1233 | Q95: 0 | R95: 3052.08 | S95: =VLOOKUP(A95,Methodology!A:F,6,FALSE) -> 3 yr avg | T95: 1233 | V95: 0 | W95: 0 | Y95: 1233
A96: 56199 | B96: TOTAL SUPPLIES | C96: 1482.47 | D96: 1289.52 | E96: 37.98 | F96: 558.63 | G96: 1012.77 | H96: 1387.75 | I96: 146.84 | J96: -52.04 | K96: 93.42 | L96: 758 | M96: 987.28 | N96: 2825.74 | O96: 10528.36 | P96: 14030.12 | Q96: 10363.39 | R96: 23814.03 | S96: =VLOOKUP(A96,Methodology!A:F,6,FALSE) ->  | V96: 0
A97: 56200 | B97: REPAIRS | S97: =VLOOKUP(A97,Methodology!A:F,6,FALSE) ->  | V97: 0
A98: 56214 | B98: Carpentry Contractor | C98: 0 | D98: 0 | E98: 0 | F98: 0 | G98: 0 | H98: 0 | I98: 0 | J98: 0 | K98: 0 | L98: 0 | M98: 0 | N98: 0 | O98: 0 | P98: 25.21 | Q98: 0 | R98: 75.64 | S98: =VLOOKUP(A98,Methodology!A:F,6,FALSE) -> 3 yr avg | T98: 25.21 | U98: 0.0001 | V98: -25.2099 | W98: -0.9999960333 | X98: n/a | Y98: 0.0001
A99: 56215 | B99: Carpeting/Flooring Contractor | C99: 0 | D99: 0 | E99: 0 | F99: 0 | G99: 0 | H99: 0 | I99: 0 | J99: 0 | K99: 0 | L99: 0 | M99: 0 | N99: 300.52 | O99: 300.52 | P99: 194.04 | Q99: 0 | R99: 281.6 | S99: =VLOOKUP(A99,Methodology!A:F,6,FALSE) -> 3 yr avg | T99: 194.04 | V99: 0 | W99: 0 | X99: =IF(U99=""," ",$Z$1) ->  | Y99: 194.04
A100: 56216 | B100: Custodial Contractor | C100: 793.6 | D100: 1064.96 | E100: 793.6 | F100: 1018.88 | G100: 962.56 | H100: 1382.4 | I100: 793.6 | J100: 936.96 | K100: 793.6 | L100: 793.6 | M100: 588.8 | N100: 1587.2 | O100: 11509.76 | P100: 11390.29 | Q100: 11242.24 | R100: 11280.64 | S100: =VLOOKUP(A100,Methodology!A:F,6,FALSE) -> Contract | T100: 0 | U100: 12740 | V100: 12740 | X100: Contract plus $500 misc | Y100: 12740
A101: 56217 | B101: Decorating Contractor | C101: 0 | D101: 0 | E101: 0 | F101: 0 | G101: 0 | H101: 0 | I101: 0 | J101: 0 | K101: 0 | L101: 0 | M101: 18.76 | N101: 0 | O101: 18.76 | P101: 6.25 | Q101: 0 | R101: 0 | S101: =VLOOKUP(A101,Methodology!A:F,6,FALSE) -> 3 yr avg | T101: 6.25 | U101: 0.0001 | V101: -6.2499 | W101: -0.999984 | X101: n/a | Y101: 0.0001
A102: 56219 | B102: Electrical Contractor | C102: 0 | D102: 0 | E102: 0 | F102: 0 | G102: 0 | H102: 1392.22 | I102: 0 | J102: 0 | K102: 0 | L102: 0 | M102: 0 | N102: 0 | O102: 1392.22 | P102: 872.41 | Q102: 0 | R102: 1225 | S102: =VLOOKUP(A102,Methodology!A:F,6,FALSE) -> 3 yr avg | T102: 872.41 | V102: 0 | W102: 0 | Y102: 872.41
A103: 56221 | B103: Exterminating Contractor | C103: 113.56 | D103: 113.56 | E103: 113.56 | F103: 113.56 | G103: 113.56 | H103: 120.36 | I103: 120.36 | J103: 120.36 | K103: 120.36 | L103: 120.36 | M103: 120.36 | N103: 120.36 | O103: 1410.32 | P103: 1434.19 | Q103: 1352.76 | R103: 1387.54 | S103: =VLOOKUP(A103,Methodology!A:F,6,FALSE) -> Contract | T103: 0 | U103: 1487 | V103: 1487 | X103: Contract | Y103: 1487
A104: 56223 | B104: Fire System Contractor | C104: 0 | D104: 0 | E104: 0 | F104: 0 | G104: 0 | H104: 642.5 | I104: 0 | J104: 2754.47 | K104: 0 | L104: 0 | M104: 0 | N104: 0 | O104: 3396.97 | P104: 3632.03 | Q104: 3632.62 | R104: 3866.51 | S104: =VLOOKUP(A104,Methodology!A:F,6,FALSE) -> Contract | T104: 0 | U104: 3500 | V104: 3500 | X104: Contract plus misc repairs | Y104: 3500
A105: 56224 | B105: Fire Alarm Monitoring | C105: 0 | D105: 0 | E105: 0 | F105: 1620 | G105: 0 | H105: 0 | I105: 0 | J105: 0 | K105: 0 | L105: 0 | M105: 0 | N105: 0 | O105: 1620 | P105: 664.67 | Q105: 1620 | R105: 1166 | S105: =VLOOKUP(A105,Methodology!A:F,6,FALSE) -> Contract | T105: 0 | U105: 1620 | V105: 1620 | X105: 12 month trailing | Y105: 1620
A106: 56228 | B106: HVAC Contractor | C106: 372.67 | D106: 372.67 | E106: 372.67 | F106: 372.67 | G106: 372.67 | H106: 372.67 | I106: 1274.89 | J106: 2115.67 | K106: 372.67 | L106: 1244.23 | M106: 372.67 | N106: 372.67 | O106: 7988.82 | P106: 6392.44 | Q106: 4641.6 | R106: 6618.6 | S106: =VLOOKUP(A106,Methodology!A:F,6,FALSE) -> 3 yr avg | T106: 6392.44 | V106: 0 | W106: 0 | Y106: 6392.44
A107: 56231 | B107: Landscaping Contractor | C107: 2449.87 | D107: 2297.02 | E107: 3161.02 | F107: 2549.02 | G107: 432 | H107: 0 | I107: 0 | J107: 2285 | K107: 2283.55 | L107: 2453.7 | M107: 2756.02 | N107: 4942.02 | O107: 25609.22 | P107: 20869.99 | Q107: 20733.71 | R107: 18193.55 | S107: =VLOOKUP(A107,Methodology!A:F,6,FALSE) -> Contract | T107: 0 | U107: 26000 | V107: 26000 | X107: Tree removal | Y107: 26000
A108: 56234 | B108: Painting Contractor | C108: 150 | D108: 450 | E108: 0 | F108: 0 | G108: 475 | H108: 0 | I108: 0 | J108: 0 | K108: 275 | L108: 0 | M108: 2075 | N108: 0 | O108: 3425 | P108: 2765.67 | Q108: 3972 | R108: 1975 | S108: =VLOOKUP(A108,Methodology!A:F,6,FALSE) -> 3 yr avg | T108: 2765.67 | V108: 0 | W108: 0 | Y108: 2765.67
A109: 56236 | B109: Plumbing Contractror | C109: 0 | D109: 0 | E109: 0 | F109: 0 | G109: 0 | H109: 0 | I109: 450 | J109: 777 | K109: 0 | L109: 1537.18 | M109: 2304 | N109: 295 | O109: 5363.18 | P109: 4000.32 | Q109: 2373 | R109: 2784.78 | S109: =VLOOKUP(A109,Methodology!A:F,6,FALSE) -> 3 yr avg | T109: 4000.32 | U109: 5500 | V109: 1499.68 | W109: 0.3748900088 | X109: Jetting due 2025 | Y109: 5500
A110: 56239 | B110: Roofing Contractor | C110: 0 | D110: 400 | E110: 0 | F110: 0 | G110: 765 | H110: 0 | I110: 300 | J110: 0 | K110: 0 | L110: 0 | M110: 0 | N110: 0 | O110: 1465 | P110: 641.67 | Q110: 1165 | R110: 460 | S110: =VLOOKUP(A110,Methodology!A:F,6,FALSE) -> T12 | T110: 1465 | V110: 0 | W110: 0 | Y110: 1465
A111: 56240 | B111: Security Contractor | C111: 0 | D111: 0 | E111: 0 | F111: 0 | G111: 0 | H111: 555 | I111: 0 | J111: 0 | K111: 0 | L111: 0 | M111: 0 | N111: 0 | O111: 555 | P111: 185 | Q111: 0 | R111: 0 | S111: =VLOOKUP(A111,Methodology!A:F,6,FALSE) -> Contract | T111: 0 | V111: 0 | Y111: 0
A112: 56241 | B112: Signs Contractor | C112: 0 | D112: 0 | E112: 127.22 | F112: 0 | G112: 0 | H112: 0 | I112: 0 | J112: 0 | K112: 0 | L112: 0 | M112: 0 | N112: 0 | O112: 127.22 | P112: 69.38 | Q112: 127.22 | R112: 80.92 | S112: =VLOOKUP(A112,Methodology!A:F,6,FALSE) -> 3 yr avg | T112: 69.38 | U112: 0.0001 | V112: -69.3799 | W112: -0.9999985587 | X112: MUST ENTER NOTE-OVERRIDE WAS ENTERED | Y112: 0.0001
A113: 56242 | B113: Snow Removal Contractor | C113: 0 | D113: 0 | E113: 0 | F113: 0 | G113: 0 | H113: 4639.14 | I113: 1485 | J113: 0 | K113: 0 | L113: 0 | M113: 0 | N113: 0 | O113: 6124.14 | P113: 5111.38 | Q113: 720 | R113: 8490 | S113: =VLOOKUP(A113,Methodology!A:F,6,FALSE) -> 3 yr avg | T113: 5111.38 | U113: 7200 | V113: 2088.62 | W113: 0.4086215464 | X113: T12/2022 | Y113: 7200
A114: 56244 | B114: Trash Removal | C114: 1138.36 | D114: 1013.36 | E114: 1013.36 | F114: 1013.36 | G114: 3348.36 | H114: 1598.36 | I114: 1038.36 | J114: 1013.36 | K114: 1013.36 | L114: 1013 | M114: 300.36 | N114: 2057.11 | O114: 15560.71 | P114: 15670.47 | Q114: 16137.48 | R114: 15334.12 | S114: =VLOOKUP(A114,Methodology!A:F,6,FALSE) -> Contract | T114: 0 | U114: 14300 | V114: 14300 | X114: Contract plus bulk | Y114: 14300
A115: 56245 | B115: Windows and Glass Contractor | C115: 0 | D115: 0 | E115: 0 | F115: 0 | G115: 0 | H115: 0 | I115: 0 | J115: 0 | K115: 0 | L115: 0 | M115: 0 | N115: 0 | O115: 0 | P115: 199.9 | Q115: 0 | R115: 351 | S115: =VLOOKUP(A115,Methodology!A:F,6,FALSE) -> 3 yr avg | T115: 199.9 | U115: 0.0001 | V115: -199.8999 | W115: -0.9999994997 | X115: n/a | Y115: 0.0001
A116: 56299 | B116: TOTAL REPAIRS | C116: 5018.06 | D116: 5711.57 | E116: 5581.43 | F116: 6687.49 | G116: 6469.15 | H116: 10702.65 | I116: 5462.21 | J116: 10002.82 | K116: 4858.54 | L116: 7162.07 | M116: 8535.97 | N116: 9674.88 | O116: 85866.84 | P116: 74125.3 | Q116: 67717.63 | R116: 73570.9 | S116: =VLOOKUP(A116,Methodology!A:F,6,FALSE) -> TOTAL REPAIRS | T116: 0 | V116: 0 | Y116: 0
A117: 56400 | B117: MAKE READY | S117: =VLOOKUP(A117,Methodology!A:F,6,FALSE) ->  | V117: 0
A118: 56402 | B118: Appliances Make Ready | C118: 0 | D118: 0 | E118: 0 | F118: 0 | G118: 0 | H118: 0 | I118: 344.52 | J118: 0 | K118: 0 | L118: 0 | M118: 0 | N118: 0 | O118: 344.52 | P118: 4520.3 | Q118: 3175.2 | R118: 9672.91 | S118: =VLOOKUP(A118,Methodology!A:F,6,FALSE) -> Schedule | T118: 0 | V118: 0 | Y118: 0
A119: 56405 | B119: Bath MR | C119: 108.18 | D119: 13.52 | E119: 0 | F119: 0 | G119: 298.22 | H119: 690.47 | I119: 512 | J119: 1012 | K119: 19.61 | L119: 632.5 | M119: 0 | N119: 18.47 | O119: 3304.97 | P119: 5484.91 | Q119: 1862.56 | R119: 9735.51 | S119: =VLOOKUP(A119,Methodology!A:F,6,FALSE) -> Schedule | T119: 0 | V119: 0 | Y119: 0
A120: 56410 | B120: Carpet MR | C120: 148 | D120: 0 | E120: 0 | F120: 0 | G120: 0 | H120: 0 | I120: 0 | J120: 0 | K120: 0 | L120: 0 | M120: 0 | N120: 0 | O120: 148 | P120: 2776.42 | Q120: 921.88 | R120: 3268.24 | S120: =VLOOKUP(A120,Methodology!A:F,6,FALSE) -> Schedule | T120: 0 | V120: 0 | Y120: 0
A121: 56412 | B121: Cleaning Make Ready | C121: 0 | D121: 430.08 | E121: 0 | F121: 0 | G121: 0 | H121: 404.48 | I121: 927.52 | J121: 348.16 | K121: 0 | L121: 0 | M121: 404.48 | N121: 0 | O121: 2514.72 | P121: 3695.71 | Q121: 3007.52 | R121: 4269.52 | S121: =VLOOKUP(A121,Methodology!A:F,6,FALSE) -> Schedule | T121: 0 | V121: 0 | Y121: 0
A122: 56413 | B122: Doors Make Ready | C122: 0 | D122: 0 | E122: 0 | F122: 52.84 | G122: 0 | H122: 0 | I122: 0 | J122: 0 | K122: 0 | L122: 0 | M122: 0 | N122: 0 | O122: 52.84 | P122: 543.37 | Q122: 52.84 | R122: 1335.57 | S122: =VLOOKUP(A122,Methodology!A:F,6,FALSE) -> Schedule | T122: =IF($S122=$S$1,$P122,IF($S122=$S$2,$O122,IF($S122=$S$3,($O122*1.03),0))) -> 0 | V122: 0 | Y122: 0
A123: 56415 | B123: Electrical MR | C123: 53.42 | D123: 0 | E123: 0 | F123: 0 | G123: 0 | H123: 0 | I123: 0 | J123: 0 | K123: 0 | L123: 0 | M123: 0 | N123: 0 | O123: 53.42 | P123: 233.94 | Q123: 53.42 | R123: 613.89 | S123: =VLOOKUP(A123,Methodology!A:F,6,FALSE) -> Schedule | T123: 0 | V123: 0 | Y123: 0
A124: 56420 | B124: Flooring Other MR | C124: 0 | D124: 552.45 | E124: 0 | F124: 0 | G124: 7.14 | H124: 593.95 | I124: 250.08 | J124: 0 | K124: 0 | L124: 0 | M124: 0 | N124: 0 | O124: 1403.62 | P124: 1634.45 | Q124: 1409.51 | R124: 2613.75 | S124: =VLOOKUP(A124,Methodology!A:F,6,FALSE) -> Schedule | T124: 0 | V124: 0 | Y124: 0
A125: 56422 | B125: Kitchen Make Ready | C125: 0 | D125: 0 | E125: 0 | F125: 0 | G125: 0 | H125: 0 | I125: 0 | J125: 229.43 | K125: 14.62 | L125: 0 | M125: 0 | N125: 230.9 | O125: 474.95 | P125: 792.96 | Q125: 212.37 | R125: 1431.17 | S125: =VLOOKUP(A125,Methodology!A:F,6,FALSE) -> Schedule | T125: 0 | V125: 0 | Y125: 0
A126: 56425 | B126: Labor MR | C126: 0 | D126: 0 | E126: 0 | F126: 0 | G126: 0 | H126: 0 | I126: 0 | J126: 150 | K126: 0 | L126: 0 | M126: 0 | N126: 0 | O126: 150 | P126: 520.2 | Q126: 425 | R126: 320 | S126: =VLOOKUP(A126,Methodology!A:F,6,FALSE) -> Schedule | T126: 0 | V126: 0 | Y126: 0
A127: 56430 | B127: Misc MR | C127: 0 | D127: 0 | E127: 0 | F127: 0 | G127: 0 | H127: 77.57 | I127: 0 | J127: 0 | K127: 0 | L127: 0 | M127: 0 | N127: 0 | O127: 77.57 | P127: 1619.61 | Q127: 0 | R127: 3893.17 | S127: =VLOOKUP(A127,Methodology!A:F,6,FALSE) -> Schedule | T127: 0 | V127: 0 | Y127: 0
A128: 56435 | B128: Paint MR | C128: 0 | D128: 0 | E128: 471.86 | F128: 1000 | G128: 0 | H128: 1100 | I128: 390.67 | J128: 1950 | K128: 0 | L128: 1259.32 | M128: 0 | N128: 0 | O128: 6171.85 | P128: 8499.33 | Q128: 5121.86 | R128: 12091.21 | S128: =VLOOKUP(A128,Methodology!A:F,6,FALSE) -> Schedule | T128: 0 | V128: 0 | Y128: 0
A129: 56440 | B129: Plumbing MR | C129: 0 | D129: 51.58 | E129: 0 | F129: 0 | G129: 0 | H129: 0 | I129: 0 | J129: 0 | K129: 0 | L129: 0 | M129: 0 | N129: 0 | O129: 51.58 | P129: 206.58 | Q129: 51.58 | R129: 428.83 | S129: =VLOOKUP(A129,Methodology!A:F,6,FALSE) -> Schedule | T129: 0 | V129: 0 | Y129: 0
A130: 56499 | B130: Total Make Ready | C130: 309.6 | D130: 1047.63 | E130: 471.86 | F130: 1052.84 | G130: 305.36 | H130: 2866.47 | I130: 2424.79 | J130: 3689.59 | K130: 34.23 | L130: 1891.82 | M130: 404.48 | N130: 249.37 | O130: 14748.04 | P130: 30527.78 | Q130: 16293.74 | R130: 49673.77 | S130: =VLOOKUP(A130,Methodology!A:F,6,FALSE) ->  | V130: 0
A131: 57000 | B131: GENERAL & ADMINISTRATIVE | S131: =VLOOKUP(A131,Methodology!A:F,6,FALSE) ->  | V131: 0
A132: 57100 | B132: Accounting Fees | C132: 0 | D132: 0 | E132: 127.51 | F132: 0 | G132: 0 | H132: 0 | I132: 0 | J132: 0 | K132: 2950 | L132: 0 | M132: 0 | N132: 0 | O132: 3077.51 | P132: 2950.73 | Q132: 2877.51 | R132: 2888.48 | S132: =VLOOKUP(A132,Methodology!A:F,6,FALSE) -> T12 | T132: 3077.51 | V132: 0 | W132: 0 | Y132: 3077.51
A133: 57110 | B133: Advertising | C133: 117.66 | D133: 145 | E133: 131.64 | F133: 165.72 | G133: 2039.73 | H133: 239.31 | I133: 215.49 | J133: 768.66 | K133: -175.32 | L133: 185.14 | M133: 1412.94 | N133: 149.85 | O133: 5395.82 | P133: 4255.73 | Q133: 7141.47 | R133: 2403.2 | S133: =VLOOKUP(A133,Methodology!A:F,6,FALSE) -> T12 | T133: 5395.82 | U133: 4800 | V133: -595.82 | W133: -0.1104225122 | X133: see tab | Y133: 4800
A134: 57126 | B134: Answering Service | C134: 84.8 | D134: 91.22 | E134: 84.8 | F134: 94.75 | G134: 92.03 | H134: 92.03 | I134: 84.8 | J134: 94.73 | K134: 84.8 | L134: 84.8 | M134: 84.8 | N134: 84.8 | O134: 1058.36 | P134: 688.33 | Q134: 941.34 | R134: 271.95 | S134: =VLOOKUP(A134,Methodology!A:F,6,FALSE) -> T12 | T134: 1058.36 | V134: 0 | W134: 0 | Y134: 1058.36
A135: 57130 | B135: Auto Expenses | S135: =VLOOKUP(A135,Methodology!A:F,6,FALSE) -> Auto Expenses | T135: 0 | V135: 0 | Y135: 0
A136: 57142 | B136: Automobile-Gas | C136: 0 | D136: 0 | E136: 0 | F136: 0 | G136: 0 | H136: 16.71 | I136: 0 | J136: 0 | K136: 0 | L136: 0 | M136: 0 | N136: 0 | O136: 16.71 | P136: 5.57 | Q136: 0 | R136: 0 | S136: =VLOOKUP(A136,Methodology!A:F,6,FALSE) -> 3 yr avg | T136: 5.57 | V136: =IF(U136=0,0,U136-T136) -> 0 | W136: =(V136/T136) -> 0 | X136: =IF(U136=""," ",$Z$1) ->  | Y136: =IF(ISERROR(IF(U136=0,T136,U136)),"",(IF(U136=0,T136,U136))) -> 5.57
A137: 57147 | B137: Automobile-Mileage Reimb | C137: 68.57 | D137: 84.84 | E137: 173.08 | F137: 68.88 | G137: 73.93 | H137: 21.6 | I137: 100.29 | J137: 72.32 | K137: 21.6 | L137: 104.03 | M137: 18.76 | N137: 116.31 | O137: 924.21 | P137: 668.59 | Q137: 872.86 | R137: 455.66 | S137: =VLOOKUP(A137,Methodology!A:F,6,FALSE) -> 3 yr avg | T137: 668.59 | U137: 924 | V137: 255.41 | W137: 0.3820128928 | X137: T12 | Y137: 924
A138: 57150 | B138: Automobile-Parking and Tolls | C138: 20 | D138: 0 | E138: 0 | F138: 450 | G138: 0 | H138: 0 | I138: 0 | J138: 0 | K138: 0 | L138: 0 | M138: 0 | N138: 0 | O138: 470 | P138: 169.33 | Q138: 470 | R138: 38 | S138: =VLOOKUP(A138,Methodology!A:F,6,FALSE) -> 3 yr avg | T138: 169.33 | U138: 470 | V138: 300.67 | W138: 1.77564519 | X138: T12 | Y138: 470
A139: 57164 | B139: Bank Charges | C139: 224.21 | D139: 55.05 | E139: 400.9 | F139: 211.37 | G139: 158.46 | H139: 303.28 | I139: 165.75 | J139: 169.67 | K139: 216.98 | L139: 243.15 | M139: 237.9 | N139: 214.25 | O139: 2600.97 | P139: 3594.27 | Q139: 3041.75 | R139: 4943.24 | S139: =VLOOKUP(A139,Methodology!A:F,6,FALSE) -> T12 | T139: 2600.97 | V139: 0 | W139: 0 | Y139: 2600.97
A140: 57169 | B140: Computer Expenses | C140: 0 | D140: 0 | E140: 0 | F140: 0 | G140: 0 | H140: 0 | I140: 0 | J140: 0 | K140: 0 | L140: 0 | M140: 0 | N140: 0 | O140: 0 | P140: 6.88 | Q140: 0 | R140: 20.64 | S140: =VLOOKUP(A140,Methodology!A:F,6,FALSE) -> T12 | T140: 0 | V140: 0 | Y140: 0
A141: 57170 | B141: Credit checks | C141: 66.17 | D141: 66.17 | E141: 66.17 | F141: 44 | G141: 27 | H141: 220.51 | I141: 154.17 | J141: 172.17 | K141: 126.17 | L141: 232.17 | M141: 82 | N141: 50 | O141: 1306.7 | P141: 1515.84 | Q141: 1732.7 | R141: 1257.52 | S141: =VLOOKUP(A141,Methodology!A:F,6,FALSE) -> T12 | T141: 1306.7 | V141: 0 | W141: 0 | Y141: 1306.7
A142: 57176 | B142: Dues and Subscriptions | C142: 37.5 | D142: 37.5 | E142: 37.5 | F142: 37.5 | G142: 170.71 | H142: 26.4 | I142: 26.4 | J142: 26.4 | K142: 651.4 | L142: 29.08 | M142: 26.4 | N142: 26.4 | O142: 1133.19 | P142: 1004.68 | Q142: 1382.14 | R142: 819.41 | S142: =VLOOKUP(A142,Methodology!A:F,6,FALSE) -> T12 | T142: 1133.19 | V142: 0 | W142: 0 | Y142: 1133.19
A143: 57190 | B143: Eviction costs | C143: 0 | D143: 327.5 | E143: 0 | F143: 0 | G143: 0 | H143: 0 | I143: 0 | J143: 0 | K143: 0 | L143: 384.33 | M143: 0 | N143: 0 | O143: 711.83 | P143: 591.19 | Q143: 776.74 | R143: 612.5 | S143: =VLOOKUP(A143,Methodology!A:F,6,FALSE) -> 3 yr avg | T143: 591.19 | V143: 0 | W143: 0 | Y143: 591.19
A144: 57192 | B144: Eviction costs-Legal | C144: 2628.75 | D144: 764.55 | E144: 1592.5 | F144: 1637.1 | G144: 701.75 | H144: 111.6 | I144: 1450.35 | J144: 726.85 | K144: 1582.45 | L144: 450 | M144: 1766.2 | N144: 841.45 | O144: 14253.55 | P144: 10439.45 | Q144: 11637.75 | R144: 11463.6 | S144: =VLOOKUP(A144,Methodology!A:F,6,FALSE) -> 3 yr avg | T144: 10439.45 | V144: 0 | W144: 0 | Y144: 10439.45
A145: 57199 | B145: Internet Expense | C145: 188.76 | D145: 189.12 | E145: 187.66 | F145: 189.11 | G145: 189.01 | H145: 188.83 | I145: 189.45 | J145: 188.55 | K145: 187.92 | L145: 187.72 | M145: 187.72 | N145: 187.96 | O145: 2261.81 | P145: 2152.49 | Q145: 2241.55 | R145: 2203.99 | S145: =VLOOKUP(A145,Methodology!A:F,6,FALSE) -> T12 | T145: 2261.81 | V145: 0 | W145: 0 | Y145: 2261.81
A146: 57210 | B146: Licenses and Fees | C146: 0 | D146: 0 | E146: 0 | F146: 962.44 | G146: 0 | H146: 3506 | I146: 750 | J146: 0 | K146: 0 | L146: 300 | M146: 0 | N146: 0 | O146: 5518.44 | P146: 4552.05 | Q146: 5120.44 | R146: 3702.86 | S146: =VLOOKUP(A146,Methodology!A:F,6,FALSE) -> T12 | T146: 5518.44 | V146: 0 | W146: 0 | Y146: 5518.44
A147: 57225 | B147: Marketing Expense | C147: 216.83 | D147: 353.59 | E147: 220.95 | F147: 197.35 | G147: 779.17 | H147: 531.4 | I147: 198.83 | J147: 198.83 | K147: 522.83 | L147: 198.83 | M147: 746.91 | N147: 600.82 | O147: 4766.34 | P147: 4787 | Q147: 5397.93 | R147: 4082.91 | S147: =VLOOKUP(A147,Methodology!A:F,6,FALSE) -> T12 | T147: 4766.34 | U147: 3820 | V147: -946.34 | W147: -0.1985464738 | X147: see tab | Y147: 3820
A148: 57227 | B148: Meetings & Conferences | C148: 0 | D148: 0 | E148: 0 | F148: 0 | G148: 0 | H148: 0 | I148: 0 | J148: 0 | K148: 0 | L148: 0 | M148: 106.25 | N148: 0 | O148: 106.25 | P148: 77.08 | Q148: 0 | R148: 125 | S148: =VLOOKUP(A148,Methodology!A:F,6,FALSE) -> T12 | T148: 106.25 | V148: 0 | W148: 0 | Y148: 106.25
A149: 57230 | B149: Food/Coffee Service | C149: 46.26 | D149: 66.29 | E149: 43.07 | F149: 20.04 | G149: 94.88 | H149: 20.02 | I149: 25.36 | J149: 32.66 | K149: 37.48 | L149: 102.16 | M149: 77.82 | N149: 56.34 | O149: 622.38 | P149: 502.14 | Q149: 613.11 | R149: 541.46 | S149: =VLOOKUP(A149,Methodology!A:F,6,FALSE) -> 3 yr avg | T149: 502.14 | V149: 0 | W149: 0 | Y149: 502.14
A150: 57240 | B150: Office expenses | C150: 0 | D150: 0 | E150: 0 | F150: 173.25 | G150: 29.77 | H150: 23.88 | I150: 10.97 | J150: 104.6 | K150: 0 | L150: 32.28 | M150: 0 | N150: 0 | O150: 374.75 | P150: 496.26 | Q150: 791.23 | R150: 396.66 | S150: =VLOOKUP(A150,Methodology!A:F,6,FALSE) -> 3 yr avg | T150: 496.26 | V150: 0 | W150: 0 | Y150: 496.26
A151: 57246 | B151: PR Service Fees | C151: 83.53 | D151: 145.61 | E151: 98.28 | F151: 96.9 | G151: 177.98 | H151: 96.9 | I151: -34.75 | J151: 20.12 | K151: 19.31 | L151: 13.47 | M151: 108.27 | N151: 45.73 | O151: 871.35 | P151: 1123.59 | Q151: 1242.59 | R151: 1294.57 | S151: =VLOOKUP(A151,Methodology!A:F,6,FALSE) -> T12 | T151: 871.35 | V151: 0 | W151: 0 | Y151: 871.35
A152: 57252 | B152: Printing Costs | C152: 0 | D152: 0 | E152: 0 | F152: 0 | G152: 0 | H152: 0 | I152: 0 | J152: 0 | K152: 10.9 | L152: 0.42 | M152: 0 | N152: 0 | O152: 11.32 | P152: 3.77 | Q152: 0 | R152: 0 | S152: =VLOOKUP(A152,Methodology!A:F,6,FALSE) -> T12 | T152: 11.32 | U152: 0.0001 | V152: -11.3199 | W152: -0.9999911661 | X152: MUST ENTER NOTE-OVERRIDE WAS ENTERED | Y152: 0.0001
A153: 57290 | B153: Resident Activities | C153: 68.98 | D153: 0 | E153: 0 | F153: 87.48 | G153: 55.76 | H153: 0 | I153: 0 | J153: 0 | K153: 539.09 | L153: 73.46 | M153: 0 | N153: 0 | O153: 824.77 | P153: 308.36 | Q153: 293.59 | R153: 18.95 | S153: =VLOOKUP(A153,Methodology!A:F,6,FALSE) -> 3 yr avg | T153: 308.36 | V153: 0 | W153: 0 | Y153: 308.36
A154: 57291 | B154: Retirement Plan 401k Admin Fees | C154: 0 | D154: 0 | E154: 63.25 | F154: 0 | G154: 0 | H154: 67.9 | I154: 0 | J154: 0 | K154: 60.62 | L154: 0 | M154: 0 | N154: 66.12 | O154: 257.89 | P154: 213.95 | Q154: 281.7 | R154: 132.63 | S154: =VLOOKUP(A154,Methodology!A:F,6,FALSE) -> T12 | T154: 257.89 | V154: 0 | W154: 0 | Y154: 257.89
A155: 57295 | B155: Software & Software Services | C155: 786.61 | D155: 828.13 | E155: 658.8 | F155: 534.78 | G155: 577.06 | H155: 322.71 | I155: 894.47 | J155: 491.64 | K155: 472.52 | L155: 571.63 | M155: 737.22 | N155: 327.14 | O155: 7202.71 | P155: 6753.24 | Q155: 7232.86 | R155: 7201.32 | S155: =VLOOKUP(A155,Methodology!A:F,6,FALSE) -> T12 | T155: 7202.71 | U155: 10550 | V155: 3347.29 | W155: 0.464726471 | X155: see tab | Y155: 10550
A156: 57308 | B156: Training and Seminars | C156: 0 | D156: 0 | E156: 0 | F156: 0 | G156: 0 | H156: 0 | I156: 0 | J156: 0 | K156: 0 | L156: 0 | M156: 0 | N156: 0 | O156: 0 | P156: 3.33 | Q156: 0 | R156: 10 | S156: =VLOOKUP(A156,Methodology!A:F,6,FALSE) -> T12 | T156: 0 | V156: 0 | Y156: 0
A157: 57325 | B157: Telecommunications | S157: =VLOOKUP(A157,Methodology!A:F,6,FALSE) -> T12 | T157: 0 | V157: 0 | Y157: 0
A158: 57340 | B158: Telephone: Land Line | C158: 293.55 | D158: 293.61 | E158: 357.7 | F158: 357.58 | G158: 357.61 | H158: 357.67 | I158: 357.64 | J158: 359.22 | K158: 357.29 | L158: 357.29 | M158: 367.29 | N158: 368.88 | O158: 4185.33 | P158: 3444.81 | Q158: 3660.4 | R158: 3004.12 | S158: =VLOOKUP(A158,Methodology!A:F,6,FALSE) -> T12 | T158: 4185.33 | V158: 0 | W158: 0 | Y158: 4185.33
A159: 57342 | B159: Telephone:Mobile | C159: 19.64 | D159: 26 | E159: 20.33 | F159: 19.62 | G159: 19.62 | H159: 29.33 | I159: 23.62 | J159: 21.1 | K159: 24.12 | L159: 27.03 | M159: 23.13 | N159: 26.2 | O159: 279.74 | P159: 687.01 | Q159: 367.55 | R159: 1134.83 | S159: =VLOOKUP(A159,Methodology!A:F,6,FALSE) -> T12 | T159: 279.74 | V159: 0 | W159: 0 | Y159: 279.74
A160: 57350 | B160: Uniforms | C160: 0 | D160: 0 | E160: 0 | F160: 0 | G160: 45.97 | H160: 13.13 | I160: 0 | J160: 0 | K160: 0 | L160: 0 | M160: 80.16 | N160: 14.74 | O160: 154 | P160: 90.7 | Q160: 127.94 | R160: 0 | S160: =VLOOKUP(A160,Methodology!A:F,6,FALSE) -> T12 | T160: 154 | V160: 0 | W160: 0 | Y160: 154
A161: 57355 | B161: Utility Mgmt & Billing Fees(YES) | C161: 384.97 | D161: 391.91 | E161: 422.59 | F161: 413.72 | G161: 449.28 | H161: 335.16 | I161: 389.8 | J161: 263.5 | K161: 336.55 | L161: 423.25 | M161: 404.9 | N161: 355.3 | O161: 4570.93 | P161: 3748.3 | Q161: 4617.66 | R161: 3366.27 | S161: =VLOOKUP(A161,Methodology!A:F,6,FALSE) -> T12 | T161: 4570.93 | V161: 0 | W161: 0 | Y161: 4570.93
A162: 57999 | B162: TOTAL GENERAL & ADMINISTRATIVE | C162: 5336.79 | D162: 3866.09 | E162: 4686.73 | F162: 5761.59 | G162: 6039.72 | H162: 6524.37 | I162: 5002.64 | J162: 3711.02 | K162: 8026.71 | L162: 4000.24 | M162: 6468.67 | N162: 3532.29 | O162: 62956.86 | P162: 54834.69 | Q162: 62862.81 | R162: 52389.77 | S162: =VLOOKUP(A162,Methodology!A:F,6,FALSE) ->  | V162: 0
A163: 58999 | B163: TOTAL OPERATING EXPENSES | C163: 42619.51 | D163: 39350.92 | E163: 39227.88 | F163: 47076.5 | G163: 56050.03 | H163: 53233.49 | I163: 43095.11 | J163: 50099.98 | K163: 38894.85 | L163: 46525.75 | M163: 38633.12 | N163: 44964.03 | O163: 539771.17 | P163: 520074.38 | Q163: 504832.47 | R163: 542408.87 | S163: =VLOOKUP(A163,Methodology!A:F,6,FALSE) ->  | V163: 0
A164: 59999 | B164: NET OPERATING INCOME | C164: 41070.89 | D164: 41083.32 | E164: 46476.53 | F164: 23991.04 | G164: 45067.25 | H164: 38590.57 | I164: 1147.42 | J164: 27308.61 | K164: 38272.78 | L164: 30617.49 | M164: 45515.33 | N164: 42304.9 | O164: 421446.13 | P164: 386542.8 | Q164: 452843.07 | R164: 302996.2 | S164: =VLOOKUP(A164,Methodology!A:F,6,FALSE) ->  | V164: 0
A165: 60000 | B165: UPGRADES & NON-RECURRING EXP. | S165: =VLOOKUP(A165,Methodology!A:F,6,FALSE) ->  | V165: 0
A166: 60099 | B166: Appliance Upgrades | C166: 0 | D166: 0 | E166: 0 | F166: 0 | G166: 0 | H166: 0 | I166: 0 | J166: 0 | K166: 0 | L166: 0 | M166: 0 | N166: 0 | O166: 0 | P166: 581.04 | Q166: 0 | R166: 0 | S166: =VLOOKUP(A166,Methodology!A:F,6,FALSE) ->  | V166: 0
A167: 60100 | B167: Bathroom Renovation | S167: =VLOOKUP(A167,Methodology!A:F,6,FALSE) ->  | V167: 0
A168: 60102 | B168: MR Unit CapX Items | C168: 0 | D168: 0 | E168: 0 | F168: 3165 | G168: 0 | H168: 2319.75 | I168: 3683.03 | J168: 5916 | K168: 0 | L168: 2330.45 | M168: 1490 | N168: 2700.65 | O168: 21604.88 | P168: 23118.11 | Q168: 18298.37 | R168: 20306.46 | S168: =VLOOKUP(A168,Methodology!A:F,6,FALSE) ->  | V168: 0
A169: 60103 | B169: Full Bath Reno | C169: 0 | D169: 0 | E169: 0 | F169: 0 | G169: 0 | H169: 5562.75 | I169: 0 | J169: 14133.84 | K169: 0 | L169: 0 | M169: 0 | N169: 0 | O169: 19696.59 | P169: 23086.98 | Q169: 14143.41 | R169: 35420.94 | S169: =VLOOKUP(A169,Methodology!A:F,6,FALSE) ->  | V169: 0
A170: 60104 | B170: Full Kitchen Reno | C170: 0 | D170: 0 | E170: 0 | F170: 0 | G170: 0 | H170: 0 | I170: 0 | J170: 0 | K170: 0 | L170: 0 | M170: 0 | N170: 0 | O170: 0 | P170: 9376.03 | Q170: 0 | R170: 15046.65 | S170: =VLOOKUP(A170,Methodology!A:F,6,FALSE) ->  | V170: 0
A171: 60109 | B171: Common Area Upgrade | C171: 0 | D171: 0 | E171: 0 | F171: 0 | G171: 0 | H171: 0 | I171: 2850.1 | J171: 0 | K171: 0 | L171: 0 | M171: 5178.32 | N171: 0 | O171: 8028.42 | P171: 28648.53 | Q171: 18900.42 | R171: 55443.34 | S171: =VLOOKUP(A171,Methodology!A:F,6,FALSE) ->  | V171: 0
A172: 60112 | B172: Doors and Door Hardware | C172: 0 | D172: 0 | E172: 0 | F172: 0 | G172: 0 | H172: 0 | I172: 0 | J172: 0 | K172: 0 | L172: 0 | M172: 0 | N172: 0 | O172: 0 | P172: 3158.56 | Q172: 0 | R172: 9475.68 | S172: =VLOOKUP(A172,Methodology!A:F,6,FALSE) ->  | V172: 0
A173: 60113 | B173: Electricial Upgrades | C173: 0 | D173: 1554.36 | E173: 0 | F173: 0 | G173: 0 | H173: 0 | I173: 0 | J173: 0 | K173: 0 | L173: 0 | M173: 2572.8 | N173: 0 | O173: 4127.16 | P173: 1375.72 | Q173: 1554.36 | R173: 0 | S173: =VLOOKUP(A173,Methodology!A:F,6,FALSE) ->  | V173: 0
A174: 60116 | B174: Equipment Purchases | C174: 0 | D174: 0 | E174: 0 | F174: 0 | G174: 0 | H174: 0 | I174: 0 | J174: 0 | K174: 0 | L174: 0 | M174: 0 | N174: 0 | O174: 0 | P174: 197.07 | Q174: 591.21 | R174: 0 | S174: =VLOOKUP(A174,Methodology!A:F,6,FALSE) ->  | V174: 0
A175: 60119 | B175: Property Damage | C175: 0 | D175: 0 | E175: 0 | F175: 2287.6 | G175: 0 | H175: 0 | I175: 0 | J175: 0 | K175: 0 | L175: 0 | M175: 2150 | N175: 1418.24 | O175: 5855.84 | P175: 1951.95 | Q175: 2287.6 | R175: 0 | S175: =VLOOKUP(A175,Methodology!A:F,6,FALSE) ->  | V175: 0
A176: 60120 | B176: Fire Protection | C176: 0 | D176: 0 | E176: 1591.49 | F176: 0 | G176: 0 | H176: 0 | I176: 0 | J176: 0 | K176: 0 | L176: 0 | M176: 0 | N176: 0 | O176: 1591.49 | P176: 590.37 | Q176: 1610.61 | R176: 0 | S176: =VLOOKUP(A176,Methodology!A:F,6,FALSE) ->  | V176: 0
A177: 60131 | B177: Landscaping & Fencing | C177: 0 | D177: 0 | E177: 0 | F177: 0 | G177: 0 | H177: 0 | I177: 0 | J177: 700 | K177: 0 | L177: 0 | M177: 0 | N177: 0 | O177: 700 | P177: 10619.05 | Q177: 16223.15 | R177: 14609 | S177: =VLOOKUP(A177,Methodology!A:F,6,FALSE) ->  | V177: 0
A178: 60132 | B178: Light Fixtures | C178: 0 | D178: 0 | E178: 943.76 | F178: 0 | G178: 0 | H178: 0 | I178: 0 | J178: 0 | K178: 0 | L178: 0 | M178: 0 | N178: 0 | O178: 943.76 | P178: 597.45 | Q178: 943.76 | R178: 848.58 | S178: =VLOOKUP(A178,Methodology!A:F,6,FALSE) ->  | V178: 0
A179: 60133 | B179: Lock Upgrades | C179: 0 | D179: 2392.18 | E179: 0 | F179: 0 | G179: 0 | H179: 0 | I179: 0 | J179: 0 | K179: 0 | L179: 0 | M179: 0 | N179: 0 | O179: 2392.18 | P179: 797.39 | Q179: 2392.18 | R179: 0 | S179: =VLOOKUP(A179,Methodology!A:F,6,FALSE) ->  | V179: 0
A180: 60136 | B180: Masonary Repairs/Restoration | C180: 0 | D180: 0 | E180: 0 | F180: 0 | G180: 0 | H180: 525 | I180: 0 | J180: 0 | K180: 375 | L180: 0 | M180: 0 | N180: 0 | O180: 900 | P180: 300 | Q180: 0 | R180: 0 | S180: =VLOOKUP(A180,Methodology!A:F,6,FALSE) ->  | V180: 0
A181: 60140 | B181: Miscellaneous | C181: 0 | D181: 0 | E181: 0 | F181: 0 | G181: 9050 | H181: 0 | I181: 0 | J181: 45.2 | K181: 0 | L181: 0 | M181: 0 | N181: 0 | O181: 9095.2 | P181: 3806.73 | Q181: 9050 | R181: 0 | S181: =VLOOKUP(A181,Methodology!A:F,6,FALSE) ->  | V181: 0
A182: 60142 | B182: Paving & Concrete | C182: 0 | D182: 0 | E182: 21000 | F182: 0 | G182: 31962.3 | H182: 0 | I182: 0 | J182: 0 | K182: 0 | L182: 0 | M182: 0 | N182: 0 | O182: 52962.3 | P182: 24404.57 | Q182: 52962.3 | R182: 0 | S182: =VLOOKUP(A182,Methodology!A:F,6,FALSE) ->  | V182: 0
A183: 60147 | B183: Rehab of Apts Contractors | C183: 0 | D183: 0 | E183: 0 | F183: 0 | G183: 0 | H183: 0 | I183: 0 | J183: 0 | K183: 0 | L183: 0 | M183: 0 | N183: 0 | O183: 0 | P183: 32804.41 | Q183: 66557.52 | R183: 21217.51 | S183: =VLOOKUP(A183,Methodology!A:F,6,FALSE) ->  | V183: 0
A184: 60148 | B184: Roofing | C184: 0 | D184: 0 | E184: 0 | F184: 0 | G184: 0 | H184: 0 | I184: 0 | J184: 0 | K184: 0 | L184: 0 | M184: 0 | N184: 0 | O184: 0 | P184: 14166.67 | Q184: 0 | R184: 42500 | S184: =VLOOKUP(A184,Methodology!A:F,6,FALSE) ->  | V184: 0
A185: 60150 | B185: Signs | C185: 0 | D185: 0 | E185: 0 | F185: 0 | G185: 0 | H185: 0 | I185: 0 | J185: 0 | K185: 0 | L185: 0 | M185: 0 | N185: 0 | O185: 0 | P185: 11.34 | Q185: 0 | R185: 34.03 | S185: =VLOOKUP(A185,Methodology!A:F,6,FALSE) ->  | V185: 0
A186: 60998 | B186: Capital Expense Reclass | C186: 0 | D186: 0 | E186: 0 | F186: 0 | G186: -89000 | H186: 0 | I186: 0 | J186: 0 | K186: 0 | L186: 0 | M186: 0 | N186: 0 | O186: -89000 | P186: -96234 | Q186: -89000 | R186: -121107 | S186: =VLOOKUP(A186,Methodology!A:F,6,FALSE) ->  | T186: =IF($S186=$S$1,$P186,IF($S186=$S$2,$O186,IF($S186=$S$3,($O186*1.03),0))) ->  | V186: 0
A187: 60999 | B187: TOTAL UPGRADES & NON-RECURRING EXP. | C187: 0 | D187: 3946.54 | E187: 23535.25 | F187: 5452.6 | G187: -47987.7 | H187: 8407.5 | I187: 6533.13 | J187: 20795.04 | K187: 375 | L187: 2330.45 | M187: 11391.12 | N187: 4118.89 | O187: 38897.82 | P187: 83357.96 | Q187: 116514.89 | R187: 93795.19 | S187: =VLOOKUP(A187,Methodology!A:F,6,FALSE) ->  | V187: 0
A188: 69999 | B188: NET INCOME AFTER UPGRADES | C188: 41070.89 | D188: 37136.78 | E188: 22941.28 | F188: 18538.44 | G188: 93054.95 | H188: 30183.07 | I188: -5385.71 | J188: 6513.57 | K188: 37897.78 | L188: 28287.04 | M188: 34124.21 | N188: 38186.01 | O188: 382548.31 | P188: 303184.84 | Q188: 336328.18 | R188: 209201.01 | S188: =VLOOKUP(A188,Methodology!A:F,6,FALSE) ->  | V188: 0
S189: =VLOOKUP(A189,Methodology!A:F,6,FALSE) ->  | V189: 0
S190: =VLOOKUP(A190,Methodology!A:F,6,FALSE) ->  | V190: 0
S191: =VLOOKUP(A191,Methodology!A:F,6,FALSE) ->  | V191: 0
S192: =VLOOKUP(A192,Methodology!A:F,6,FALSE) ->  | V192: 0
S193: =VLOOKUP(A193,Methodology!A:F,6,FALSE) ->  | V193: 0
S194: =VLOOKUP(A194,Methodology!A:F,6,FALSE) ->  | V194: 0
S195: =VLOOKUP(A195,Methodology!A:F,6,FALSE) ->  | V195: 0
S196: =VLOOKUP(A196,Methodology!A:F,6,FALSE) ->  | V196: 0
S197: =VLOOKUP(A197,Methodology!A:F,6,FALSE) ->  | V197: 0
S198: =VLOOKUP(A198,Methodology!A:F,6,FALSE) ->  | V198: 0
S199: =VLOOKUP(A199,Methodology!A:F,6,FALSE) ->  | V199: 0
S200: =VLOOKUP(A200,Methodology!A:F,6,FALSE) ->  | V200: =IF(U200=0,0,U200-T200) -> 0 | W200: =(V200/T200) ->  | X200: =IF(U200=""," ",$Z$1) ->  | Y200: =IF(ISERROR(IF(U200=0,T200,U200)),"",(IF(U200=0,T200,U200))) -> 
... 100 more rows

Sheet Water Consumption
A1: Water Consumption Assumptions
A3: Property # | B3: Property Name | C3: Unit Count | D3: Bedroom Count | E3: Avg Bedroom Count Per Unit | F3: Gal/Unit/Day using 100 gal per bedroom | G3: Total Annual Consumption | H3: Total Monthly Consumption | I3: Cost/Usage | J3: Annual Cost (MAX) | K3: Monthly Cost (MAX)
A4: 107 | B4: Elkins Park | C4: =+'[2]107'!B10 -> 31 | D4: 47 | E4: =+D4/C4 -> 1.516129032 | F4: =+E4*100 -> 151.6129032 | G4: =+(F4*C4)*365 -> 1715500 | H4: =+G4/12 -> 142958.3333 | I4: 0.01276666667 | J4: =+K4*12 -> 21901.21667 | K4: =+H4*I4 -> 1825.101389
A5: 113 | B5: Bromley House | C5: =+'[2]113'!B13 -> 210 | D5: =+'[2]113'!C13 -> 298 | E5: 1.419047619 | F5: 141.9047619 | G5: 10877000 | H5: 906416.6667 | I5: 0.01253333333 | J5: 136325.0667 | K5: =+H5*I5 -> 11360.42222
A6: 114 | B6: 7400 Roosevelt | C6: =+'[2]114'!B13 -> 196 | D6: =+'[2]114'!C13 -> 315 | E6: 1.607142857 | F6: 160.7142857 | G6: 11497500 | H6: 958125 | I6: 0.01216666667 | J6: 139886.25 | K6: 11657.1875
A7: 116 | B7: Eola Park | C7: =+'[2]116'!B11 -> 43 | D7: =+'[2]116'!C11 -> 50 | E7: 1.162790698 | F7: 116.2790698 | G7: 1825000 | H7: 152083.3333 | I7: 0.01333333333 | J7: 24333.33333 | K7: 2027.777778
A8: 117 | B8: Warrington Crossings | C8: =+'[2]117'!B17 -> 229 | D8: =+'[2]117'!C17 -> 339 | E8: 1.480349345 | F8: 148.0349345 | G8: 12373500 | H8: 1031125 | I8: 0.0016 | J8: 19797.6 | K8: 1649.8
A9: 120 | B9: Willow Bend | C9: =+'[2]120'!B10 -> 66 | D9: =+'[2]120'!C10 -> 102 | E9: 1.545454545 | F9: 154.5454545 | G9: 3723000 | H9: 310250 | I9: 0.01326666667 | J9: 49391.8 | K9: 4115.983333
A10: 122 | B10: Sedgwick Gardens | C10: =+'[2]122'!B11 -> 68 | D10: =+'[2]122'!C11 -> 80 | E10: 1.176470588 | F10: 117.6470588 | G10: 2920000 | H10: 243333.3333 | I10: 0.01283333333 | J10: 37473.33333 | K10: 3122.777778
A11: 123 | B11: Sedgwick Terrace | C11: =+'[2]123'!B9 -> 18 | D11: =+'[2]123'!C9 -> 32 | E11: 1.777777778 | F11: 177.7777778 | G11: 1168000 | H11: 97333.33333 | I11: 0.01326666667 | J11: 15495.46667 | K11: 1291.288889
A12: 125 | B12: Gardens of Mt Airy | C12: =+'[2]125'!B13 -> 61 | D12: =+'[2]125'!C13 -> 77 | E12: 1.262295082 | F12: 126.2295082 | G12: 2810500 | H12: 234208.3333 | I12: 0.01246666667 | J12: 35037.56667 | K12: 2919.797222
A13: 129 | B13: Gateway Enclaves | C13: =+'[2]129'!B14 -> 216 | D13: =+'[2]129'!C14 -> 402 | E13: 1.861111111 | F13: 186.1111111 | G13: 14673000 | H13: 1222750 | I13: 0.0129 | J13: 189281.7 | K13: 15773.475
A14: 131 | B14: Haverford Court | C14: =+'[2]131'!B12 -> 158 | D14: =+'[2]131'!C12 -> 246 | E14: 1.556962025 | F14: 155.6962025 | G14: 8979000 | H14: 748250 | I14: 0.01226666667 | J14: 110142.4 | K14: 9178.533333
A15: 135 | B15: Longwood Manor | C15: =+'[2]135'!B11 -> 120 | D15: =+'[2]135'!C11 -> 180 | E15: 1.5 | F15: 150 | G15: 6570000 | H15: 547500 | I15: 0.01263333333 | J15: 83001 | K15: 6916.75
A16: 136 | B16: Gateway Towers | C16: =+'[2]136'!B15 -> 399 | D16: =+'[2]136'!C15 -> 563 | E16: 1.411027569 | F16: 141.1027569 | G16: 20549500 | H16: 1712458.333 | I16: 0.0125 | J16: 256868.75 | K16: 21405.72917
A17: 138 | B17: Gateway Airport | C17: 52 | D17: =+'[2]138'!C15 -> 156 | E17: 3 | F17: 300 | G17: 5694000 | H17: 474500 | I17: 0.0158 | J17: 89965.2 | K17: 7497.1
A18: 141 | B18: Yorkhouse North | C18: =+'[2]141'!B19 -> 225 | D18: =+'[2]141'!C19 -> 227 | E18: 1.008888889 | F18: 100.8888889 | G18: 8285500 | H18: 690458.3333 | I18: 0.01213333333 | J18: 100530.7333 | K18: 8377.561111
A19: 142 | B19: Yorkhouse South | C19: =+'[2]142'!B16 -> 215 | D19: =+'[2]142'!C16 -> 215 | E19: 1 | F19: 100 | G19: 7847500 | H19: 653958.3333 | I19: 0.01173333333 | J19: 92077.33333 | K19: 7673.111111
A20: 145 | B20: Joshua House | C20: =+'[2]145'!B13 -> 312 | D20: =+'[2]145'!C13 -> 458 | E20: 1.467948718 | F20: 146.7948718 | G20: 16717000 | H20: 1393083.333 | I20: 0.01163333333 | J20: 194474.4333 | K20: 16206.20278
A21: 147 | B21: Fountain Gardens | C21: =+'[2]147'!B12 -> 117 | D21: =+'[2]147'!C12 -> 134 | E21: 1.145299145 | F21: 114.5299145 | G21: 4891000 | H21: 407583.3333 | I21: 0.0125 | J21: 61137.5 | K21: 5094.791667
A22: 152 | B22: Academia Suites | C22: =+'[2]152'!B12 -> 112 | D22: =+'[2]152'!C12 -> 159 | E22: 1.419642857 | F22: 141.9642857 | G22: 5803500 | H22: 483625 | I22: 0.0129 | J22: 74865.15 | K22: 6238.7625
A23: 155 | B23: Rosedale Court | C23: =+'[2]155'!B9 -> 77 | D23: =+'[2]155'!C9 -> 121 | E23: 1.571428571 | F23: 157.1428571 | G23: 4416500 | H23: 368041.6667 | I23: 0.01163333333 | J23: 51378.61667 | K23: 4281.551389
A24: 157 | B24: Meadowbrook Apts | C24: =+'[2]157'!B17 -> 536 | D24: =+'[2]157'!C17 -> 864 | E24: 1.611940299 | F24: 161.1940299 | G24: 31536000 | H24: 2628000 | I24: 0.0127 | J24: 400507.2 | K24: 33375.6
A25: 170 | B25: Mt Airy Arms | C25: =+'[2]170'!B14 -> 100 | D25: =+'[2]170'!C14 -> 123 | E25: 1.23 | F25: 123 | G25: 4489500 | H25: 374125 | I25: 0.01253333333 | J25: 56268.4 | K25: 4689.033333
A26: 173 | B26: Overlook Hills | C26: =+'[2]173'!B12 -> 38 | D26: =+'[2]173'!C12 -> 53 | E26: 1.394736842 | F26: 139.4736842 | G26: 1934500 | H26: 161208.3333 | I26: 0.0125 | J26: 24181.25 | K26: 2015.104167
A27: 175 | B27: Wyncote Towers | C27: =+'[2]175'!B51 -> 1113 | D27: =+'[2]175'!C51 -> 1771 | E27: 1.591194969 | F27: 159.1194969 | G27: 64641500 | H27: 5386791.667 | I27: 0.0108 | J27: 698128.2 | K27: 58177.35
A28: 185 | B28: 251 Dekalb | C28: =+'[2]185'!B55 -> 628 | D28: =+'[2]185'!C55 -> 974 | E28: 1.550955414 | F28: 155.0955414 | G28: 35551000 | H28: 2962583.333 | I28: 0.01153333333 | J28: 410021.5333 | K28: 34168.46111
A29: 188 | B29: Stanbridge Apts | C29: =+'[2]188'!B15 -> 150 | D29: =+'[2]188'!C15 -> 220 | E29: 1.466666667 | F29: 146.6666667 | G29: 8030000 | H29: 669166.6667 | I29: 0.0056 | J29: 44968 | K29: 3747.333333
A30: 190 | B30: Regency House | C30: =+'[2]190'!B14 -> 93 | D30: =+'[2]190'!C14 -> 101 | E30: 1.086021505 | F30: 108.6021505 | G30: 3686500 | H30: 307208.3333 | I30: 0.01283333333 | J30: 47310.08333 | K30: 3942.506944
A31: 191 | B31: 450 Green Apts | C31: =+'[2]191'!B18 -> 305 | D31: =+'[2]191'!C18 -> 447 | E31: 1.46557377 | F31: 146.557377 | G31: 16315500 | H31: 1359625 | I31: 0.0122 | J31: 199049.1 | K31: 16587.425
A32: 192 | B32: Westgate Arms | C32: =+'[2]192'!B10 -> 49 | D32: =+'[2]192'!C10 -> 63 | E32: 1.285714286 | F32: 128.5714286 | G32: 2299500 | H32: 191625 | I32: 0.01356666667 | J32: 31196.55 | K32: 2599.7125
A33: 193 | B33: Park at Westminster | C33: =+'[2]193'!B16 -> 270 | D33: =+'[2]193'!C16 -> 504 | E33: 1.866666667 | F33: 186.6666667 | G33: 18396000 | H33: 1533000 | I33: 0.0015 | J33: 27594 | K33: 2299.5

Sheet DNU Overrides (hidden)
A1: Overrides from the Income Statement Tab
A3: G/L Account | B3: Account Name | C3: Methodology | D3: Suggested Amount | E3: Override Amount | F3: Variance $ | G3: Variance % | H3: Override Notes
A4: =IF('Income Statement'!U6>0,'Income Statement'!A6,0) -> 0 | B4: =IF('Income Statement'!U6>0,'Income Statement'!B6,0) -> 0 | C4: =IF('Income Statement'!U6>0,'Income Statement'!S6,0) -> 0 | D4: =IF('Income Statement'!U6>0,'Income Statement'!T6,0) -> 0 | E4: =IF('Income Statement'!U6>0,'Income Statement'!U6,0) -> 0 | F4: =IF(LEFT(A4,1)="4",E4-D4,D4-E4) -> 0 | G4: =F4/D4 ->  | H4: =IF('Income Statement'!U6>0,'Income Statement'!X6,0) -> 0
A5: =IF('Income Statement'!U7>0,'Income Statement'!A7,0) -> 0 | B5: =IF('Income Statement'!U7>0,'Income Statement'!B7,0) -> 0 | C5: =IF('Income Statement'!U7>0,'Income Statement'!S7,0) -> 0 | D5: =IF('Income Statement'!U7>0,'Income Statement'!T7,0) -> 0 | E5: =IF('Income Statement'!U7>0,'Income Statement'!U7,0) -> 0 | F5: 0 | G5: =F5/D5 ->  | H5: =IF('Income Statement'!U7>0,'Income Statement'!X7,0) -> 0
A6: =IF('Income Statement'!U8>0,'Income Statement'!A8,0) -> 0 | B6: =IF('Income Statement'!U8>0,'Income Statement'!B8,0) -> 0 | C6: =IF('Income Statement'!U8>0,'Income Statement'!S8,0) -> 0 | D6: =IF('Income Statement'!U8>0,'Income Statement'!T8,0) -> 0 | E6: =IF('Income Statement'!U8>0,'Income Statement'!U8,0) -> 0 | F6: 0 | G6: =F6/D6 ->  | H6: =IF('Income Statement'!U8>0,'Income Statement'!X8,0) -> 0
A7: =IF('Income Statement'!U9>0,'Income Statement'!A9,0) -> 0 | B7: =IF('Income Statement'!U9>0,'Income Statement'!B9,0) -> 0 | C7: =IF('Income Statement'!U9>0,'Income Statement'!S9,0) -> 0 | D7: =IF('Income Statement'!U9>0,'Income Statement'!T9,0) -> 0 | E7: =IF('Income Statement'!U9>0,'Income Statement'!U9,0) -> 0 | F7: 0 | H7: =IF('Income Statement'!U9>0,'Income Statement'!X9,0) -> 0
A8: =IF('Income Statement'!U10>0,'Income Statement'!A10,0) -> 0 | B8: =IF('Income Statement'!U10>0,'Income Statement'!B10,0) -> 0 | C8: =IF('Income Statement'!U10>0,'Income Statement'!S10,0) -> 0 | D8: =IF('Income Statement'!U10>0,'Income Statement'!T10,0) -> 0 | E8: =IF('Income Statement'!U10>0,'Income Statement'!U10,0) -> 0 | F8: 0 | H8: =IF('Income Statement'!U10>0,'Income Statement'!X10,0) -> 0
A9: =IF('Income Statement'!U11>0,'Income Statement'!A11,0) -> 40005 | B9: =IF('Income Statement'!U11>0,'Income Statement'!B11,0) -> Late charge income | C9: =IF('Income Statement'!U11>0,'Income Statement'!S11,0) -> 3 yr avg | D9: =IF('Income Statement'!U11>0,'Income Statement'!T11,0) -> 11096.05 | E9: =IF('Income Statement'!U11>0,'Income Statement'!U11,0) -> 12500 | F9: 1403.95 | G9: 0.1265270074 | H9: =IF('Income Statement'!U11>0,'Income Statement'!X11,0) -> increased late fees mid 2024, so took the highest amount in the T12 times 12 months. The increase is still getting phased in, so it is difficult to calculate
A10: =IF('Income Statement'!U12>0,'Income Statement'!A12,0) -> 40006 | B10: =IF('Income Statement'!U12>0,'Income Statement'!B12,0) -> Check fee income | C10: =IF('Income Statement'!U12>0,'Income Statement'!S12,0) -> 3 yr avg | D10: =IF('Income Statement'!U12>0,'Income Statement'!T12,0) -> 276.67 | E10: =IF('Income Statement'!U12>0,'Income Statement'!U12,0) -> 0.0001 | F10: =IF(LEFT(A10,1)="4",E10-D10,D10-E10) -> -276.6699 | G10: -0.9999996386 | H10: =IF('Income Statement'!U12>0,'Income Statement'!X12,0) -> MUST ENTER NOTE-OVERRIDE WAS ENTERED
A11: =IF('Income Statement'!U13>0,'Income Statement'!A13,0) -> 0 | B11: =IF('Income Statement'!U13>0,'Income Statement'!B13,0) -> 0 | C11: =IF('Income Statement'!U13>0,'Income Statement'!S13,0) -> 0 | D11: =IF('Income Statement'!U13>0,'Income Statement'!T13,0) -> 0 | E11: =IF('Income Statement'!U13>0,'Income Statement'!U13,0) -> 0 | F11: =IF(LEFT(A11,1)="4",E11-D11,D11-E11) -> 0 | H11: =IF('Income Statement'!U13>0,'Income Statement'!X13,0) -> 0
A12: =IF('Income Statement'!U14>0,'Income Statement'!A14,0) -> 0 | B12: =IF('Income Statement'!U14>0,'Income Statement'!B14,0) -> 0 | C12: =IF('Income Statement'!U14>0,'Income Statement'!S14,0) -> 0 | D12: =IF('Income Statement'!U14>0,'Income Statement'!T14,0) -> 0 | E12: =IF('Income Statement'!U14>0,'Income Statement'!U14,0) -> 0 | F12: 0 | H12: =IF('Income Statement'!U14>0,'Income Statement'!X14,0) -> 0
A13: =IF('Income Statement'!U15>0,'Income Statement'!A15,0) -> 40020 | B13: =IF('Income Statement'!U15>0,'Income Statement'!B15,0) -> Pet fee income | C13: =IF('Income Statement'!U15>0,'Income Statement'!S15,0) -> T12 | D13: =IF('Income Statement'!U15>0,'Income Statement'!T15,0) -> 2683.85 | E13: =IF('Income Statement'!U15>0,'Income Statement'!U15,0) -> 2683.85 | F13: 0 | G13: 0 | H13: =IF('Income Statement'!U15>0,'Income Statement'!X15,0) -> increased pet fees mid 2024, so took the higher amount between the T12 & July annualized The increase is still getting phased in, so it is difficult to calculate
A14: =IF('Income Statement'!U16>0,'Income Statement'!A16,0) -> 40021 | B14: =IF('Income Statement'!U16>0,'Income Statement'!B16,0) -> Early Lease Termination fees | C14: =IF('Income Statement'!U16>0,'Income Statement'!S16,0) -> 3 yr avg | D14: =IF('Income Statement'!U16>0,'Income Statement'!T16,0) -> 4717.72 | E14: =IF('Income Statement'!U16>0,'Income Statement'!U16,0) -> 2500 | F14: -2217.72 | G14: -0.4700830062 | H14: =IF('Income Statement'!U16>0,'Income Statement'!X16,0) -> $0 in T12 so cut the 3 yr avg in half
A15: =IF('Income Statement'!U17>0,'Income Statement'!A17,0) -> 0 | B15: =IF('Income Statement'!U17>0,'Income Statement'!B17,0) -> 0 | C15: =IF('Income Statement'!U17>0,'Income Statement'!S17,0) -> 0 | D15: =IF('Income Statement'!U17>0,'Income Statement'!T17,0) -> 0 | E15: =IF('Income Statement'!U17>0,'Income Statement'!U17,0) -> 0 | F15: 0 | H15: =IF('Income Statement'!U17>0,'Income Statement'!X17,0) -> 0
A16: =IF('Income Statement'!U18>0,'Income Statement'!A18,0) -> 0 | B16: =IF('Income Statement'!U18>0,'Income Statement'!B18,0) -> 0 | C16: =IF('Income Statement'!U18>0,'Income Statement'!S18,0) -> 0 | D16: =IF('Income Statement'!U18>0,'Income Statement'!T18,0) -> 0 | E16: =IF('Income Statement'!U18>0,'Income Statement'!U18,0) -> 0 | F16: 0 | H16: =IF('Income Statement'!U18>0,'Income Statement'!X18,0) -> 0
A17: =IF('Income Statement'!U19>0,'Income Statement'!A19,0) -> 0 | B17: =IF('Income Statement'!U19>0,'Income Statement'!B19,0) -> 0 | C17: =IF('Income Statement'!U19>0,'Income Statement'!S19,0) -> 0 | D17: =IF('Income Statement'!U19>0,'Income Statement'!T19,0) -> 0 | E17: =IF('Income Statement'!U19>0,'Income Statement'!U19,0) -> 0 | F17: 0 | H17: =IF('Income Statement'!U19>0,'Income Statement'!X19,0) -> 0
A18: =IF('Income Statement'!U20>0,'Income Statement'!A20,0) -> 0 | B18: =IF('Income Statement'!U20>0,'Income Statement'!B20,0) -> 0 | C18: =IF('Income Statement'!U20>0,'Income Statement'!S20,0) -> 0 | D18: =IF('Income Statement'!U20>0,'Income Statement'!T20,0) -> 0 | E18: =IF('Income Statement'!U20>0,'Income Statement'!U20,0) -> 0 | F18: 0 | H18: =IF('Income Statement'!U20>0,'Income Statement'!X20,0) -> 0
A19: =IF('Income Statement'!U21>0,'Income Statement'!A21,0) -> 0 | B19: =IF('Income Statement'!U21>0,'Income Statement'!B21,0) -> 0 | C19: =IF('Income Statement'!U21>0,'Income Statement'!S21,0) -> 0 | D19: =IF('Income Statement'!U21>0,'Income Statement'!T21,0) -> 0 | E19: =IF('Income Statement'!U21>0,'Income Statement'!U21,0) -> 0 | F19: 0 | H19: =IF('Income Statement'!U21>0,'Income Statement'!X21,0) -> 0
A20: =IF('Income Statement'!U22>0,'Income Statement'!A22,0) -> 0 | B20: =IF('Income Statement'!U22>0,'Income Statement'!B22,0) -> 0 | C20: =IF('Income Statement'!U22>0,'Income Statement'!S22,0) -> 0 | D20: =IF('Income Statement'!U22>0,'Income Statement'!T22,0) -> 0 | E20: =IF('Income Statement'!U22>0,'Income Statement'!U22,0) -> 0 | F20: 0 | H20: =IF('Income Statement'!U22>0,'Income Statement'!X22,0) -> 0
A21: =IF('Income Statement'!U23>0,'Income Statement'!A23,0) -> 0 | B21: =IF('Income Statement'!U23>0,'Income Statement'!B23,0) -> 0 | C21: =IF('Income Statement'!U23>0,'Income Statement'!S23,0) -> 0 | D21: =IF('Income Statement'!U23>0,'Income Statement'!T23,0) -> 0 | E21: =IF('Income Statement'!U23>0,'Income Statement'!U23,0) -> 0 | F21: 0 | H21: =IF('Income Statement'!U23>0,'Income Statement'!X23,0) -> 0
A22: =IF('Income Statement'!U24>0,'Income Statement'!A24,0) -> 0 | B22: =IF('Income Statement'!U24>0,'Income Statement'!B24,0) -> 0 | C22: =IF('Income Statement'!U24>0,'Income Statement'!S24,0) -> 0 | D22: =IF('Income Statement'!U24>0,'Income Statement'!T24,0) -> 0 | E22: =IF('Income Statement'!U24>0,'Income Statement'!U24,0) -> 0 | F22: 0 | H22: =IF('Income Statement'!U24>0,'Income Statement'!X24,0) -> 0
A23: =IF('Income Statement'!U25>0,'Income Statement'!A25,0) -> 40214 | B23: =IF('Income Statement'!U25>0,'Income Statement'!B25,0) -> Concession-Inconvenience | C23: =IF('Income Statement'!U25>0,'Income Statement'!S25,0) -> T12 | D23: =IF('Income Statement'!U25>0,'Income Statement'!T25,0) -> -200 | E23: =IF('Income Statement'!U25>0,'Income Statement'!U25,0) -> 0.0001 | F23: 200.0001 | G23: -1.0000005 | H23: =IF('Income Statement'!U25>0,'Income Statement'!X25,0) -> MUST ENTER NOTE-OVERRIDE WAS ENTERED
A24: =IF('Income Statement'!U26>0,'Income Statement'!A26,0) -> 0 | B24: =IF('Income Statement'!U26>0,'Income Statement'!B26,0) -> 0 | C24: =IF('Income Statement'!U26>0,'Income Statement'!S26,0) -> 0 | D24: =IF('Income Statement'!U26>0,'Income Statement'!T26,0) -> 0 | E24: =IF('Income Statement'!U26>0,'Income Statement'!U26,0) -> 0 | F24: 0 | H24: =IF('Income Statement'!U26>0,'Income Statement'!X26,0) -> 0
A25: =IF('Income Statement'!U27>0,'Income Statement'!A27,0) -> 0 | B25: =IF('Income Statement'!U27>0,'Income Statement'!B27,0) -> 0 | C25: =IF('Income Statement'!U27>0,'Income Statement'!S27,0) -> 0 | D25: =IF('Income Statement'!U27>0,'Income Statement'!T27,0) -> 0 | E25: =IF('Income Statement'!U27>0,'Income Statement'!U27,0) -> 0 | F25: 0 | H25: =IF('Income Statement'!U27>0,'Income Statement'!X27,0) -> 0
A26: =IF('Income Statement'!U28>0,'Income Statement'!A28,0) -> 0 | B26: =IF('Income Statement'!U28>0,'Income Statement'!B28,0) -> 0 | C26: =IF('Income Statement'!U28>0,'Income Statement'!S28,0) -> 0 | D26: =IF('Income Statement'!U28>0,'Income Statement'!T28,0) -> 0 | E26: =IF('Income Statement'!U28>0,'Income Statement'!U28,0) -> 0 | F26: 0 | H26: =IF('Income Statement'!U28>0,'Income Statement'!X28,0) -> 0
A27: =IF('Income Statement'!U29>0,'Income Statement'!A29,0) -> 0 | B27: =IF('Income Statement'!U29>0,'Income Statement'!B29,0) -> 0 | C27: =IF('Income Statement'!U29>0,'Income Statement'!S29,0) -> 0 | D27: =IF('Income Statement'!U29>0,'Income Statement'!T29,0) -> 0 | E27: =IF('Income Statement'!U29>0,'Income Statement'!U29,0) -> 0 | F27: 0 | H27: =IF('Income Statement'!U29>0,'Income Statement'!X29,0) -> 0
A28: =IF('Income Statement'!U30>0,'Income Statement'!A30,0) -> 0 | B28: =IF('Income Statement'!U30>0,'Income Statement'!B30,0) -> 0 | C28: =IF('Income Statement'!U30>0,'Income Statement'!S30,0) -> 0 | D28: =IF('Income Statement'!U30>0,'Income Statement'!T30,0) -> 0 | E28: =IF('Income Statement'!U30>0,'Income Statement'!U30,0) -> 0 | F28: 0 | H28: =IF('Income Statement'!U30>0,'Income Statement'!X30,0) -> 0
A29: =IF('Income Statement'!U31>0,'Income Statement'!A31,0) -> 0 | B29: =IF('Income Statement'!U31>0,'Income Statement'!B31,0) -> 0 | C29: =IF('Income Statement'!U31>0,'Income Statement'!S31,0) -> 0 | D29: =IF('Income Statement'!U31>0,'Income Statement'!T31,0) -> 0 | E29: =IF('Income Statement'!U31>0,'Income Statement'!U31,0) -> 0 | F29: 0 | H29: =IF('Income Statement'!U31>0,'Income Statement'!X31,0) -> 0
A30: =IF('Income Statement'!U32>0,'Income Statement'!A32,0) -> 0 | B30: =IF('Income Statement'!U32>0,'Income Statement'!B32,0) -> 0 | C30: =IF('Income Statement'!U32>0,'Income Statement'!S32,0) -> 0 | D30: =IF('Income Statement'!U32>0,'Income Statement'!T32,0) -> 0 | E30: =IF('Income Statement'!U32>0,'Income Statement'!U32,0) -> 0 | F30: 0 | H30: =IF('Income Statement'!U32>0,'Income Statement'!X32,0) -> 0
A31: =IF('Income Statement'!U33>0,'Income Statement'!A33,0) -> 0 | B31: =IF('Income Statement'!U33>0,'Income Statement'!B33,0) -> 0 | C31: =IF('Income Statement'!U33>0,'Income Statement'!S33,0) -> 0 | D31: =IF('Income Statement'!U33>0,'Income Statement'!T33,0) -> 0 | E31: =IF('Income Statement'!U33>0,'Income Statement'!U33,0) -> 0 | F31: 0 | H31: =IF('Income Statement'!U33>0,'Income Statement'!X33,0) -> 0
A32: =IF('Income Statement'!U34>0,'Income Statement'!A34,0) -> 0 | B32: =IF('Income Statement'!U34>0,'Income Statement'!B34,0) -> 0 | C32: =IF('Income Statement'!U34>0,'Income Statement'!S34,0) -> 0 | D32: =IF('Income Statement'!U34>0,'Income Statement'!T34,0) -> 0 | E32: =IF('Income Statement'!U34>0,'Income Statement'!U34,0) -> 0 | F32: 0 | H32: =IF('Income Statement'!U34>0,'Income Statement'!X34,0) -> 0
A33: =IF('Income Statement'!U35>0,'Income Statement'!A35,0) -> 0 | B33: =IF('Income Statement'!U35>0,'Income Statement'!B35,0) -> 0 | C33: =IF('Income Statement'!U35>0,'Income Statement'!S35,0) -> 0 | D33: =IF('Income Statement'!U35>0,'Income Statement'!T35,0) -> 0 | E33: =IF('Income Statement'!U35>0,'Income Statement'!U35,0) -> 0 | F33: 0 | H33: =IF('Income Statement'!U35>0,'Income Statement'!X35,0) -> 0
A34: =IF('Income Statement'!U36>0,'Income Statement'!A36,0) -> 50110 | B34: =IF('Income Statement'!U36>0,'Income Statement'!B36,0) -> Electric Expense | C34: =IF('Income Statement'!U36>0,'Income Statement'!S36,0) -> T12 | D34: =IF('Income Statement'!U36>0,'Income Statement'!T36,0) -> 8618.46 | E34: =IF('Income Statement'!U36>0,'Income Statement'!U36,0) -> 8600 | F34: 18.46 | G34: 0.002141913985 | H34: =IF('Income Statement'!U36>0,'Income Statement'!X36,0) -> removed VCR & increased supply rate
A35: =IF('Income Statement'!U37>0,'Income Statement'!A37,0) -> 50111 | B35: =IF('Income Statement'!U37>0,'Income Statement'!B37,0) -> Electric Income | C35: =IF('Income Statement'!U37>0,'Income Statement'!S37,0) -> T12 | D35: =IF('Income Statement'!U37>0,'Income Statement'!T37,0) -> -3102.81 | E35: =IF('Income Statement'!U37>0,'Income Statement'!U37,0) -> 0.0001 | F35: -3102.8101 | G35: 1.000000032 | H35: =IF('Income Statement'!U37>0,'Income Statement'!X37,0) -> removed VCR
A36: =IF('Income Statement'!U38>0,'Income Statement'!A38,0) -> 0 | B36: =IF('Income Statement'!U38>0,'Income Statement'!B38,0) -> 0 | C36: =IF('Income Statement'!U38>0,'Income Statement'!S38,0) -> 0 | D36: =IF('Income Statement'!U38>0,'Income Statement'!T38,0) -> 0 | E36: =IF('Income Statement'!U38>0,'Income Statement'!U38,0) -> 0 | F36: 0 | H36: =IF('Income Statement'!U38>0,'Income Statement'!X38,0) -> 0
A37: =IF('Income Statement'!U39>0,'Income Statement'!A39,0) -> 0 | B37: =IF('Income Statement'!U39>0,'Income Statement'!B39,0) -> 0 | C37: =IF('Income Statement'!U39>0,'Income Statement'!S39,0) -> 0 | D37: =IF('Income Statement'!U39>0,'Income Statement'!T39,0) -> 0 | E37: =IF('Income Statement'!U39>0,'Income Statement'!U39,0) -> 0 | F37: 0 | H37: =IF('Income Statement'!U39>0,'Income Statement'!X39,0) -> 0
A38: =IF('Income Statement'!U40>0,'Income Statement'!A40,0) -> 50130 | B38: =IF('Income Statement'!U40>0,'Income Statement'!B40,0) -> Water Expense (some incl sewer) | C38: =IF('Income Statement'!U40>0,'Income Statement'!S40,0) -> T12 | D38: =IF('Income Statement'!U40>0,'Income Statement'!T40,0) -> 36855.24 | E38: =IF('Income Statement'!U40>0,'Income Statement'!U40,0) -> 31505.45455 | F38: 5349.785455 | G38: 0.1451567119 | H38: =IF('Income Statement'!U40>0,'Income Statement'!X40,0) -> net of passthrough
A39: =IF('Income Statement'!U41>0,'Income Statement'!A41,0) -> 0 | B39: =IF('Income Statement'!U41>0,'Income Statement'!B41,0) -> 0 | C39: =IF('Income Statement'!U41>0,'Income Statement'!S41,0) -> 0 | D39: =IF('Income Statement'!U41>0,'Income Statement'!T41,0) -> 0 | E39: =IF('Income Statement'!U41>0,'Income Statement'!U41,0) -> 0 | F39: 0 | H39: =IF('Income Statement'!U41>0,'Income Statement'!X41,0) -> 0
A40: =IF('Income Statement'!U42>0,'Income Statement'!A42,0) -> 0 | B40: =IF('Income Statement'!U42>0,'Income Statement'!B42,0) -> 0 | C40: =IF('Income Statement'!U42>0,'Income Statement'!S42,0) -> 0 | D40: =IF('Income Statement'!U42>0,'Income Statement'!T42,0) -> 0 | E40: =IF('Income Statement'!U42>0,'Income Statement'!U42,0) -> 0 | F40: 0 | H40: =IF('Income Statement'!U42>0,'Income Statement'!X42,0) -> 0
A41: =IF('Income Statement'!U43>0,'Income Statement'!A43,0) -> 0 | B41: =IF('Income Statement'!U43>0,'Income Statement'!B43,0) -> 0 | C41: =IF('Income Statement'!U43>0,'Income Statement'!S43,0) -> 0 | D41: =IF('Income Statement'!U43>0,'Income Statement'!T43,0) -> 0 | E41: =IF('Income Statement'!U43>0,'Income Statement'!U43,0) -> 0 | F41: 0 | H41: =IF('Income Statement'!U43>0,'Income Statement'!X43,0) -> 0
A42: =IF('Income Statement'!U44>0,'Income Statement'!A44,0) -> 0 | B42: =IF('Income Statement'!U44>0,'Income Statement'!B44,0) -> 0 | C42: =IF('Income Statement'!U44>0,'Income Statement'!S44,0) -> 0 | D42: =IF('Income Statement'!U44>0,'Income Statement'!T44,0) -> 0 | E42: =IF('Income Statement'!U44>0,'Income Statement'!U44,0) -> 0 | F42: 0 | H42: =IF('Income Statement'!U44>0,'Income Statement'!X44,0) -> 0
A43: =IF('Income Statement'!U45>0,'Income Statement'!A45,0) -> 0 | B43: =IF('Income Statement'!U45>0,'Income Statement'!B45,0) -> 0 | C43: =IF('Income Statement'!U45>0,'Income Statement'!S45,0) -> 0 | D43: =IF('Income Statement'!U45>0,'Income Statement'!T45,0) -> 0 | E43: =IF('Income Statement'!U45>0,'Income Statement'!U45,0) -> 0 | F43: 0 | H43: =IF('Income Statement'!U45>0,'Income Statement'!X45,0) -> 0
A44: =IF('Income Statement'!U46>0,'Income Statement'!A46,0) -> 0 | B44: =IF('Income Statement'!U46>0,'Income Statement'!B46,0) -> 0 | C44: =IF('Income Statement'!U46>0,'Income Statement'!S46,0) -> 0 | D44: =IF('Income Statement'!U46>0,'Income Statement'!T46,0) -> 0 | E44: =IF('Income Statement'!U46>0,'Income Statement'!U46,0) -> 0 | F44: 0 | H44: =IF('Income Statement'!U46>0,'Income Statement'!X46,0) -> 0
A45: =IF('Income Statement'!U47>0,'Income Statement'!A47,0) -> 0 | B45: =IF('Income Statement'!U47>0,'Income Statement'!B47,0) -> 0 | C45: =IF('Income Statement'!U47>0,'Income Statement'!S47,0) -> 0 | D45: =IF('Income Statement'!U47>0,'Income Statement'!T47,0) -> 0 | E45: =IF('Income Statement'!U47>0,'Income Statement'!U47,0) -> 0 | F45: 0 | H45: =IF('Income Statement'!U47>0,'Income Statement'!X47,0) -> 0
A46: =IF('Income Statement'!U48>0,'Income Statement'!A48,0) -> 0 | B46: =IF('Income Statement'!U48>0,'Income Statement'!B48,0) -> 0 | C46: =IF('Income Statement'!U48>0,'Income Statement'!S48,0) -> 0 | D46: =IF('Income Statement'!U48>0,'Income Statement'!T48,0) -> 0 | E46: =IF('Income Statement'!U48>0,'Income Statement'!U48,0) -> 0 | F46: 0 | H46: =IF('Income Statement'!U48>0,'Income Statement'!X48,0) -> 0
A47: =IF('Income Statement'!U49>0,'Income Statement'!A49,0) -> 0 | B47: =IF('Income Statement'!U49>0,'Income Statement'!B49,0) -> 0 | C47: =IF('Income Statement'!U49>0,'Income Statement'!S49,0) -> 0 | D47: =IF('Income Statement'!U49>0,'Income Statement'!T49,0) -> 0 | E47: =IF('Income Statement'!U49>0,'Income Statement'!U49,0) -> 0 | F47: 0 | H47: =IF('Income Statement'!U49>0,'Income Statement'!X49,0) -> 0
A48: =IF('Income Statement'!U50>0,'Income Statement'!A50,0) -> 0 | B48: =IF('Income Statement'!U50>0,'Income Statement'!B50,0) -> 0 | C48: =IF('Income Statement'!U50>0,'Income Statement'!S50,0) -> 0 | D48: =IF('Income Statement'!U50>0,'Income Statement'!T50,0) -> 0 | E48: =IF('Income Statement'!U50>0,'Income Statement'!U50,0) -> 0 | F48: 0 | H48: =IF('Income Statement'!U50>0,'Income Statement'!X50,0) -> 0
A49: =IF('Income Statement'!U51>0,'Income Statement'!A51,0) -> 0 | B49: =IF('Income Statement'!U51>0,'Income Statement'!B51,0) -> 0 | C49: =IF('Income Statement'!U51>0,'Income Statement'!S51,0) -> 0 | D49: =IF('Income Statement'!U51>0,'Income Statement'!T51,0) -> 0 | E49: =IF('Income Statement'!U51>0,'Income Statement'!U51,0) -> 0 | F49: 0 | H49: =IF('Income Statement'!U51>0,'Income Statement'!X51,0) -> 0
A50: =IF('Income Statement'!U52>0,'Income Statement'!A52,0) -> 0 | B50: =IF('Income Statement'!U52>0,'Income Statement'!B52,0) -> 0 | C50: =IF('Income Statement'!U52>0,'Income Statement'!S52,0) -> 0 | D50: =IF('Income Statement'!U52>0,'Income Statement'!T52,0) -> 0 | E50: =IF('Income Statement'!U52>0,'Income Statement'!U52,0) -> 0 | F50: 0 | H50: =IF('Income Statement'!U52>0,'Income Statement'!X52,0) -> 0
A51: =IF('Income Statement'!U53>0,'Income Statement'!A53,0) -> 0 | B51: =IF('Income Statement'!U53>0,'Income Statement'!B53,0) -> 0 | C51: =IF('Income Statement'!U53>0,'Income Statement'!S53,0) -> 0 | D51: =IF('Income Statement'!U53>0,'Income Statement'!T53,0) -> 0 | E51: =IF('Income Statement'!U53>0,'Income Statement'!U53,0) -> 0 | F51: 0 | H51: =IF('Income Statement'!U53>0,'Income Statement'!X53,0) -> 0
A52: =IF('Income Statement'!U54>0,'Income Statement'!A54,0) -> 0 | B52: =IF('Income Statement'!U54>0,'Income Statement'!B54,0) -> 0 | C52: =IF('Income Statement'!U54>0,'Income Statement'!S54,0) -> 0 | D52: =IF('Income Statement'!U54>0,'Income Statement'!T54,0) -> 0 | E52: =IF('Income Statement'!U54>0,'Income Statement'!U54,0) -> 0 | F52: 0 | H52: =IF('Income Statement'!U54>0,'Income Statement'!X54,0) -> 0
A53: =IF('Income Statement'!U55>0,'Income Statement'!A55,0) -> 0 | B53: =IF('Income Statement'!U55>0,'Income Statement'!B55,0) -> 0 | C53: =IF('Income Statement'!U55>0,'Income Statement'!S55,0) -> 0 | D53: =IF('Income Statement'!U55>0,'Income Statement'!T55,0) -> 0 | E53: =IF('Income Statement'!U55>0,'Income Statement'!U55,0) -> 0 | F53: 0 | H53: =IF('Income Statement'!U55>0,'Income Statement'!X55,0) -> 0
A54: =IF('Income Statement'!U56>0,'Income Statement'!A56,0) -> 0 | B54: =IF('Income Statement'!U56>0,'Income Statement'!B56,0) -> 0 | C54: =IF('Income Statement'!U56>0,'Income Statement'!S56,0) -> 0 | D54: =IF('Income Statement'!U56>0,'Income Statement'!T56,0) -> 0 | E54: =IF('Income Statement'!U56>0,'Income Statement'!U56,0) -> 0 | F54: 0 | H54: =IF('Income Statement'!U56>0,'Income Statement'!X56,0) -> 0
A55: =IF('Income Statement'!U57>0,'Income Statement'!A57,0) -> 0 | B55: =IF('Income Statement'!U57>0,'Income Statement'!B57,0) -> 0 | C55: =IF('Income Statement'!U57>0,'Income Statement'!S57,0) -> 0 | D55: =IF('Income Statement'!U57>0,'Income Statement'!T57,0) -> 0 | E55: =IF('Income Statement'!U57>0,'Income Statement'!U57,0) -> 0 | F55: 0 | H55: =IF('Income Statement'!U57>0,'Income Statement'!X57,0) -> 0
A56: =IF('Income Statement'!U58>0,'Income Statement'!A58,0) -> 0 | B56: =IF('Income Statement'!U58>0,'Income Statement'!B58,0) -> 0 | C56: =IF('Income Statement'!U58>0,'Income Statement'!S58,0) -> 0 | D56: =IF('Income Statement'!U58>0,'Income Statement'!T58,0) -> 0 | E56: =IF('Income Statement'!U58>0,'Income Statement'!U58,0) -> 0 | F56: 0 | H56: =IF('Income Statement'!U58>0,'Income Statement'!X58,0) -> 0
A57: =IF('Income Statement'!U59>0,'Income Statement'!A59,0) -> 0 | B57: =IF('Income Statement'!U59>0,'Income Statement'!B59,0) -> 0 | C57: =IF('Income Statement'!U59>0,'Income Statement'!S59,0) -> 0 | D57: =IF('Income Statement'!U59>0,'Income Statement'!T59,0) -> 0 | E57: =IF('Income Statement'!U59>0,'Income Statement'!U59,0) -> 0 | F57: 0 | H57: =IF('Income Statement'!U59>0,'Income Statement'!X59,0) -> 0
A58: =IF('Income Statement'!U60>0,'Income Statement'!A60,0) -> 55010 | B58: =IF('Income Statement'!U60>0,'Income Statement'!B60,0) -> Real estate taxes | C58: =IF('Income Statement'!U60>0,'Income Statement'!S60,0) -> 3% Increase | D58: =IF('Income Statement'!U60>0,'Income Statement'!T60,0) -> 67112.6267 | E58: =IF('Income Statement'!U60>0,'Income Statement'!U60,0) -> 65157.89 | F58: 1954.7367 | G58: 0.02912621359 | H58: =IF('Income Statement'!U60>0,'Income Statement'!X60,0) -> Calculated using 2025 Assessment
A59: =IF('Income Statement'!U61>0,'Income Statement'!A61,0) -> 0 | B59: =IF('Income Statement'!U61>0,'Income Statement'!B61,0) -> 0 | C59: =IF('Income Statement'!U61>0,'Income Statement'!S61,0) -> 0 | D59: =IF('Income Statement'!U61>0,'Income Statement'!T61,0) -> 0 | E59: =IF('Income Statement'!U61>0,'Income Statement'!U61,0) -> 0 | F59: 0 | H59: =IF('Income Statement'!U61>0,'Income Statement'!X61,0) -> 0
A60: =IF('Income Statement'!U62>0,'Income Statement'!A62,0) -> 55040 | B60: =IF('Income Statement'!U62>0,'Income Statement'!B62,0) -> Ins-Bldg/Fire-Liab-Boiler-Machinery | C60: =IF('Income Statement'!U62>0,'Income Statement'!S62,0) -> 5% Increase | D60: =IF('Income Statement'!U62>0,'Income Statement'!T62,0) -> 0 | E60: =IF('Income Statement'!U62>0,'Income Statement'!U62,0) -> 82300 | F60: -82300 | H60: =IF('Income Statement'!U62>0,'Income Statement'!X62,0) -> MUST ENTER NOTE-OVERRIDE WAS ENTERED
A61: =IF('Income Statement'!U63>0,'Income Statement'!A63,0) -> 0 | B61: =IF('Income Statement'!U63>0,'Income Statement'!B63,0) -> 0 | C61: =IF('Income Statement'!U63>0,'Income Statement'!S63,0) -> 0 | D61: =IF('Income Statement'!U63>0,'Income Statement'!T63,0) -> 0 | E61: =IF('Income Statement'!U63>0,'Income Statement'!U63,0) -> 0 | F61: 0 | H61: =IF('Income Statement'!U63>0,'Income Statement'!X63,0) -> 0
A62: =IF('Income Statement'!U64>0,'Income Statement'!A64,0) -> 0 | B62: =IF('Income Statement'!U64>0,'Income Statement'!B64,0) -> 0 | C62: =IF('Income Statement'!U64>0,'Income Statement'!S64,0) -> 0 | D62: =IF('Income Statement'!U64>0,'Income Statement'!T64,0) -> 0 | E62: =IF('Income Statement'!U64>0,'Income Statement'!U64,0) -> 0 | F62: 0 | H62: =IF('Income Statement'!U64>0,'Income Statement'!X64,0) -> 0
A63: =IF('Income Statement'!U65>0,'Income Statement'!A65,0) -> 0 | B63: =IF('Income Statement'!U65>0,'Income Statement'!B65,0) -> 0 | C63: =IF('Income Statement'!U65>0,'Income Statement'!S65,0) -> 0 | D63: =IF('Income Statement'!U65>0,'Income Statement'!T65,0) -> 0 | E63: =IF('Income Statement'!U65>0,'Income Statement'!U65,0) -> 0 | F63: 0 | H63: =IF('Income Statement'!U65>0,'Income Statement'!X65,0) -> 0
A64: =IF('Income Statement'!U66>0,'Income Statement'!A66,0) -> 0 | B64: =IF('Income Statement'!U66>0,'Income Statement'!B66,0) -> 0 | C64: =IF('Income Statement'!U66>0,'Income Statement'!S66,0) -> 0 | D64: =IF('Income Statement'!U66>0,'Income Statement'!T66,0) -> 0 | E64: =IF('Income Statement'!U66>0,'Income Statement'!U66,0) -> 0 | F64: 0 | H64: =IF('Income Statement'!U66>0,'Income Statement'!X66,0) -> 0
A65: =IF('Income Statement'!U67>0,'Income Statement'!A67,0) -> 56112 | B65: =IF('Income Statement'!U67>0,'Income Statement'!B67,0) -> Blinds Supplies | C65: =IF('Income Statement'!U67>0,'Income Statement'!S67,0) -> 3 yr avg | D65: =IF('Income Statement'!U67>0,'Income Statement'!T67,0) -> 40.62 | E65: =IF('Income Statement'!U67>0,'Income Statement'!U67,0) -> 0.0001 | F65: 40.6199 | G65: 0.9999975382 | H65: =IF('Income Statement'!U67>0,'Income Statement'!X67,0) -> MUST ENTER NOTE-OVERRIDE WAS ENTERED
A66: =IF('Income Statement'!U68>0,'Income Statement'!A68,0) -> 0 | B66: =IF('Income Statement'!U68>0,'Income Statement'!B68,0) -> 0 | C66: =IF('Income Statement'!U68>0,'Income Statement'!S68,0) -> 0 | D66: =IF('Income Statement'!U68>0,'Income Statement'!T68,0) -> 0 | E66: =IF('Income Statement'!U68>0,'Income Statement'!U68,0) -> 0 | F66: 0 | H66: =IF('Income Statement'!U68>0,'Income Statement'!X68,0) -> 0
A67: =IF('Income Statement'!U69>0,'Income Statement'!A69,0) -> 0 | B67: =IF('Income Statement'!U69>0,'Income Statement'!B69,0) -> 0 | C67: =IF('Income Statement'!U69>0,'Income Statement'!S69,0) -> 0 | D67: =IF('Income Statement'!U69>0,'Income Statement'!T69,0) -> 0 | E67: =IF('Income Statement'!U69>0,'Income Statement'!U69,0) -> 0 | F67: 0 | H67: =IF('Income Statement'!U69>0,'Income Statement'!X69,0) -> 0
A68: =IF('Income Statement'!U70>0,'Income Statement'!A70,0) -> 56115 | B68: =IF('Income Statement'!U70>0,'Income Statement'!B70,0) -> Carpeting Supplies | C68: =IF('Income Statement'!U70>0,'Income Statement'!S70,0) -> 3 yr avg | D68: =IF('Income Statement'!U70>0,'Income Statement'!T70,0) -> 10.43 | E68: =IF('Income Statement'!U70>0,'Income Statement'!U70,0) -> 0.0001 | F68: 10.4299 | G68: 0.9999904123 | H68: =IF('Income Statement'!U70>0,'Income Statement'!X70,0) -> MUST ENTER NOTE-OVERRIDE WAS ENTERED
A69: =IF('Income Statement'!U71>0,'Income Statement'!A71,0) -> 0 | B69: =IF('Income Statement'!U71>0,'Income Statement'!B71,0) -> 0 | C69: =IF('Income Statement'!U71>0,'Income Statement'!S71,0) -> 0 | D69: =IF('Income Statement'!U71>0,'Income Statement'!T71,0) -> 0 | E69: =IF('Income Statement'!U71>0,'Income Statement'!U71,0) -> 0 | F69: 0 | H69: =IF('Income Statement'!U71>0,'Income Statement'!X71,0) -> 0
A70: =IF('Income Statement'!U72>0,'Income Statement'!A72,0) -> 56117 | B70: =IF('Income Statement'!U72>0,'Income Statement'!B72,0) -> Decorating Supplies | C70: =IF('Income Statement'!U72>0,'Income Statement'!S72,0) -> 3 yr avg | D70: =IF('Income Statement'!U72>0,'Income Statement'!T72,0) -> 11.17 | E70: =IF('Income Statement'!U72>0,'Income Statement'!U72,0) -> 0.0001 | F70: 11.1699 | G70: =F70/D70 -> 0.9999910474 | H70: =IF('Income Statement'!U72>0,'Income Statement'!X72,0) -> MUST ENTER NOTE-OVERRIDE WAS ENTERED
A71: =IF('Income Statement'!U73>0,'Income Statement'!A73,0) -> 0 | B71: =IF('Income Statement'!U73>0,'Income Statement'!B73,0) -> 0 | C71: =IF('Income Statement'!U73>0,'Income Statement'!S73,0) -> 0 | D71: =IF('Income Statement'!U73>0,'Income Statement'!T73,0) -> 0 | E71: =IF('Income Statement'!U73>0,'Income Statement'!U73,0) -> 0 | F71: 0 | H71: =IF('Income Statement'!U73>0,'Income Statement'!X73,0) -> 0
A72: =IF('Income Statement'!U74>0,'Income Statement'!A74,0) -> 0 | B72: =IF('Income Statement'!U74>0,'Income Statement'!B74,0) -> 0 | C72: =IF('Income Statement'!U74>0,'Income Statement'!S74,0) -> 0 | D72: =IF('Income Statement'!U74>0,'Income Statement'!T74,0) -> 0 | E72: =IF('Income Statement'!U74>0,'Income Statement'!U74,0) -> 0 | F72: 0 | H72: =IF('Income Statement'!U74>0,'Income Statement'!X74,0) -> 0
